{"text_format":"1","workbook":"xlsx","n_sheets":2,"sheets":["Template","Moves"],"not_rendered":{"charts":0,"images":0,"macros":1,"external_links":0,"defined_names":13,"comments":0,"pivot_tables":0},"unopened":[],"bounds":{"document_bytes":16777216,"sheet_cells":100000,"rows_first":2000,"rows_last":500,"rows_between":2000,"halvings":0,"cell_chars":16384,"cell_head_chars":4096},"cells_cut":0,"cells_raw":0,"read":"whole","date_system":"1900"}

{"sheet":"Template","index":0,"n_rows":163,"n_cols":109,"rows_kept":163,"cut":false,"hidden":false,"merged":[[27,0,27,1],[27,3,27,7],[27,8,27,11],[23,0,23,1],[23,3,23,7],[23,8,23,11],[34,8,34,11],[35,8,35,11],[34,3,34,7],[35,3,35,7],[29,0,29,1],[29,3,29,7],[29,8,29,12],[6,72,6,79],[6,80,6,87],[6,88,6,95],[6,24,6,31],[6,32,6,39],[6,40,6,47],[6,48,6,55],[6,56,6,63],[6,64,6,71],[6,16,6,23],[28,0,28,1],[28,3,28,7],[28,8,28,11],[24,0,24,1],[24,3,24,7],[24,8,24,11],[25,0,25,1],[25,3,25,7],[25,8,25,11],[22,0,22,1],[22,3,22,7],[22,8,22,11],[26,0,26,1],[26,3,26,7],[26,8,26,11],[20,0,20,1],[20,3,20,7],[20,8,20,11],[21,0,21,1],[21,3,21,7],[21,8,21,11],[4,5,4,9],[4,10,4,11],[19,0,19,1],[19,3,19,7],[19,8,19,11],[6,0,7,1],[6,3,6,7],[6,8,6,11],[18,3,18,7],[18,8,18,11],[4,0,4,1],[4,3,4,4],[5,0,5,1]]}
[]
[]
["Gold Intention Sheet"]
[]
["Gymnast Name:",null,"Gender:",null,null," Gymnast Number:",null,null,null,null,null,null,"Club:"]
[]
["ELEMENTS",null,"EXECUTION","DIFFICULTY",null,null,null,null,"GROUP",null,null,null,"SPECIAL REQUIREMENTS","BONUS",null,null,"Validation 1",null,null,null,null,null,null,null,"Validation 2",null,null,null,null,null,null,null,"Validation 3",null,null,null,null,null,null,null,"Validation 4",null,null,null,null,null,null,null,"Validation 5",null,null,null,null,null,null,null,"Validation 6",null,null,null,null,null,null,null,"Validation 7",null,null,null,null,null,null,null,"Validation 8",null,null,null,null,null,null,null,"Validation 9",null,null,null,null,null,null,null,"Validation 10",null,null,null,null,null,null,null,"LHS","G2","MS","MS G","AS","B1","B2","Crt met b4 B"]
[null,null,null,"A","B","C","D","E",1,2,3,4,null,null,null,null,"found","list",null,null,null,null,"count if","ofset","found","list",null,null,null,null,"count if","ofset","found","list",null,null,null,null,"count if","ofset","found","list",null,null,null,null,"count if","ofset","found","list",null,null,null,null,"count if","ofset","found","list",null,null,null,null,"count if","ofset","found","list",null,null,null,null,"count if","ofset","found","list",null,null,null,null,"count if","ofset","found","list",null,null,null,null,"count if","ofset","found","list",null,null,null,null,"count if","ofset",null,null,null,null,null,null,null,null,"B","C","D","E"]
[1,null,null,{"$f":"IFERROR(IF(VLOOKUP(B9,Moves!$A$1:$D$151,2,FALSE)=\"A\",\"X\",\" \"),\"\")","v":""},{"$f":"IFERROR(IF(VLOOKUP(B9,Moves!$A$1:$D$151,2,FALSE)=\"B\",\"X\",\" \"),\"\")","v":""},{"$f":"IFERROR(IF(VLOOKUP(B9,Moves!$A$1:$D$151,2,FALSE)=\"C\",\"X\",\" \"),\"\")","v":""},{"$f":"IFERROR(IF(VLOOKUP(B9,Moves!$A$1:$D$151,2,FALSE)=\"D\",\"X\",\" \"),\"\")","v":""},{"$f":"IFERROR(IF(VLOOKUP(B9,Moves!$A$1:$D$151,2,FALSE)=\"E\",\"X\",\" \"),\"\")","v":""},{"$f":"IFERROR(IF(VLOOKUP(B9,Moves!$A$1:$D$151,3,FALSE)=1,\"X\",\" \"),\"\")","v":""},{"$f":"IFERROR(IF(VLOOKUP(B9,Moves!$A$1:$D$151,3,FALSE)=2,\"X\",\" \"),\"\")","v":""},{"$f":"IFERROR(IF(VLOOKUP(B9,Moves!$A$1:$D$151,3,FALSE)=3,\"X\",\" \"),\"\")","v":""},{"$f":"IFERROR(IF(VLOOKUP(B9,Moves!$A$1:$D$151,3,FALSE)=4,\"X\",\" \"),\"\")","v":""},null,null,null,null,{"$f":"IF(ISNUMBER(SEARCH($B$9,R9)),MAX($Q$8:Q8)+1,0)","v":1},"Straight jump",null,null,{"$f":"IFERROR(VLOOKUP(ROWS($R$9:R9),$Q$9:$R$163,2,0),\"\")","v":"Straight jump"},null,{"$f":"COUNTIF(U9:U163,\"?*\")","v":155},{"$f":"OFFSET($U$9,,,COUNTIF($U$9:$U$163,\"?*\"))","v":"Straight jump"},{"$f":"IF(ISNUMBER(SEARCH($B$10,Z9)),MAX($Y$8:Y8)+1,0)","v":1},"Straight jump",null,null,{"$f":"IFERROR(VLOOKUP(ROWS($Z$9:Z9),$Y$9:$Z$163,2,0),\"\")","v":"Straight jump"},null,{"$f":"COUNTIF(AC9:AC163,\"?*\")","v":155},{"$f":"OFFSET($AC$9,,,COUNTIF($AC$9:$AC$163,\"?*\"))","v":"Straight jump"},{"$f":"IF(ISNUMBER(SEARCH($B$11,AH9)),MAX($AG$8:AG8)+1,0)","v":1},"Straight jump",null,null,{"$f":"IFERROR(VLOOKUP(ROWS($AH$9:AH9),$AG$9:$AH$163,2,0),\"\")","v":"Straight jump"},null,{"$f":"COUNTIF(AK9:AK163,\"?*\")","v":155},{"$f":"OFFSET($AK$9,,,COUNTIF($AK$9:$AK$163,\"?*\"))","v":"Straight jump"},{"$f":"IF(ISNUMBER(SEARCH($B$12,AP9)),MAX($AO$8:AO8)+1,0)","v":1},"Straight jump",null,null,{"$f":"IFERROR(VLOOKUP(ROWS($AP$9:AP9),$AO$9:$AP$163,2,0),\"\")","v":"Straight jump"},null,{"$f":"COUNTIF(AS9:AS163,\"?*\")","v":155},{"$f":"OFFSET($AS$9,,,COUNTIF($AS$9:$AS$163,\"?*\"))","v":"Straight jump"},{"$f":"IF(ISNUMBER(SEARCH($B$13,AX9)),MAX($AW$8:AW8)+1,0)","v":1},"Straight jump",null,null,{"$f":"IFERROR(VLOOKUP(ROWS($AX$9:AX9),$AW$9:$AX$163,2,0),\"\")","v":"Straight jump"},null,{"$f":"COUNTIF(BA9:BA163,\"?*\")","v":155},{"$f":"OFFSET($BA$9,,,COUNTIF($BA$9:$BA$163,\"?*\"))","v":"Straight jump"},{"$f":"IF(ISNUMBER(SEARCH($B$14,BF9)),MAX($BE$8:BE8)+1,0)","v":1},"Straight jump",null,null,{"$f":"IFERROR(VLOOKUP(ROWS($BF$9:BF9),$BE$9:$BF$163,2,0),\"\")","v":"Straight jump"},null,{"$f":"COUNTIF(BI9:BI163,\"?*\")","v":155},{"$f":"OFFSET($BI$9,,,COUNTIF($BI$9:$BI$163,\"?*\"))","v":"Straight jump"},{"$f":"IF(ISNUMBER(SEARCH($B$15,BN9)),MAX($BM$8:BM8)+1,0)","v":1},"Straight jump",null,null,{"$f":"IFERROR(VLOOKUP(ROWS($BN$9:BN9),$BM$9:$BN$163,2,0),\"\")","v":"Straight jump"},null,{"$f":"COUNTIF(BQ9:BQ163,\"?*\")","v":155},{"$f":"OFFSET($BQ$9,,,COUNTIF($BQ$9:$BQ$163,\"?*\"))","v":"Straight jump"},{"$f":"IF(ISNUMBER(SEARCH($B$16,BV9)),MAX($BU$8:BU8)+1,0)","v":1},"Straight jump",null,null,{"$f":"IFERROR(VLOOKUP(ROWS($BV$9:BV9),$BU$9:$BV$163,2,0),\"\")","v":"Straight jump"},null,{"$f":"COUNTIF(BY9:BY163,\"?*\")","v":155},{"$f":"OFFSET($BY$9,,,COUNTIF($BY$9:$BY$163,\"?*\"))","v":"Straight jump"},{"$f":"IF(ISNUMBER(SEARCH($B$17,CD9)),MAX($CC$8:CC8)+1,0)","v":1},"Straight jump",null,null,{"$f":"IFERROR(VLOOKUP(ROWS($CD$9:CD9),$CC$9:$CD$163,2,0),\"\")","v":"Straight jump"},null,{"$f":"COUNTIF(CG9:CG163,\"?*\")","v":155},{"$f":"OFFSET($CG$9,,,COUNTIF($CG$9:$CG$163,\"?*\"))","v":"Straight jump"},{"$f":"IF(ISNUMBER(SEARCH($B$18,CL9)),MAX($CK$8:CK8)+1,0)","v":1},"Straight jump",null,null,{"$f":"IFERROR(VLOOKUP(ROWS($CL$9:CL9),$CK$9:$CL$163,2,0),\"\")","v":"Straight jump"},null,{"$f":"COUNTIF(CO9:CO163,\"?*\")","v":155},{"$f":"OFFSET($CO$9,,,COUNTIF($CO$9:$CO$163,\"?*\"))","v":"Straight jump"},{"$f":"IF(M9<>$M$37,\"\",IF(I9=\"X\",IF(F9=\"X\",\"Yes\",IF(G9=\"X\",\"Yes\",IF(H9=\"X\",\"Yes\",\"No\")))))","v":""},{"$f":"IF(M9=$M$43,IF(J9=\"X\",IF(E9=\"X\",\"Yes\",IF(F9=\"X\",\"Yes\",IF(G9=\"X\",\"Yes\",IF(H9=\"X\",\"Yes\",\"No\"))))),IF(M9=$M$44,IF(J9=\"X\",IF(E9=\"X\",\"Yes\",IF(F9=\"X\",\"Yes\",IF(G9=\"X\",\"Yes\",IF(H9=\"X\",\"Yes\",\"No\"))))),\"\"))","v":""},{"$f":"IF(M9<>\"Mix series\",\"\",IF(I9=\"X\",IF(E9=\"X\",\"Yes\",IF(F9=\"X\",\"Yes\",IF(G9=\"X\",\"Yes\",IF(D9=\"X\",\"Yes\",IF(H9=\"X\",\"Yes\",\"No\"))))),IF(I9<>\"X\",IF(F9=\"X\",\"Yes\",IF(G9=\"X\",\"Yes\",IF(H9=\"X\",\"Yes\",\"No\"))))))","v":""},{"$f":"IF(CU9<>\"Yes\",\"\",IF(I9=\"X\",1,IF(J9=\"X\",2,IF(K9=\"X\",3,IF(L9=\"X\",4,\"No\")))))","v":""},{"$f":"IF(M9<>$M$39,\"\",IF(G9=\"X\",IF(VLOOKUP(B9,Moves!A1:D151,4,FALSE)=\"AFS2\",\"Yes\",\"No\"),IF(H9=\"X\",IF(VLOOKUP(B9,Moves!A1:D151,4,FALSE)=\"AFS2\",\"Yes\",\"No\"))))","v":""},{"$f":"IF(N9<>$N$33,\"\",IF(H9=\"X\",IF(I9<>\"X\",\"Yes\",\"No\"),\"No\"))","v":""},{"$f":"IF(N9<>$N$32,\"\",IF(H9<>\"X\",\"No\",IF(VLOOKUP(B9,Moves!$A$1:$D$151,4,FALSE)=\"AFS\",\"Yes\",IF(VLOOKUP(B9,Moves!$A$1:$D$151,4,FALSE)=\"AFS2\",\"Yes\",\"No\"))))","v":""},{"$f":"IF(COUNTIF(Q9:CW9,\"Yes\")=2,\"No\",\"Yes\")","v":"Yes"},{"$f":"IF(E9=\"X\",IF($N9=\"Bonus - E AFS\",\"No\",IF($N9=\"Bonus - Egrp 2,3 or 4\",\"No\",\"Yes\")),\"\")","v":""},{"$f":"IF(F9=\"X\",IF($N9=\"Bonus - E AFS\",\"No\",IF($N9=\"Bonus - Egrp 2,3 or 4\",\"No\",\"Yes\")),\"\")","v":""},{"$f":"IF(G9=\"X\",IF($N9=\"Bonus - E AFS\",\"No\",IF($N9=\"Bonus - Egrp 2,3 or 4\",\"No\",\"Yes\")),\"\")","v":""},{"$f":"IF(H9=\"X\",IF($N9=\"Bonus - E AFS\",\"No\",IF($N9=\"Bonus - E Grp 2,3 or 4\",\"No\",\"Yes\")),\"\")","v":""},{"$f":"IF(M9<>\"Mix series\",\"\",IF(I9=\"X\",\"Yes\",IF(I9<>\"X\",IF(COUNTIF(J9:L9,\"X\")=1,\"Yes\",\"No\"),\"No\")))","v":""}]
[2,null,null,{"$f":"IFERROR(IF(VLOOKUP(B10,Moves!$A$1:$D$151,2,FALSE)=\"A\",\"X\",\" \"),\"\")","v":""},{"$f":"IFERROR(IF(VLOOKUP(B10,Moves!$A$1:$D$151,2,FALSE)=\"B\",\"X\",\" \"),\"\")","v":""},{"$f":"IFERROR(IF(VLOOKUP(B10,Moves!$A$1:$D$151,2,FALSE)=\"C\",\"X\",\" \"),\"\")","v":""},{"$f":"IFERROR(IF(VLOOKUP(B10,Moves!$A$1:$D$151,2,FALSE)=\"D\",\"X\",\" \"),\"\")","v":""},{"$f":"IFERROR(IF(VLOOKUP(B10,Moves!$A$1:$D$151,2,FALSE)=\"E\",\"X\",\" \"),\"\")","v":""},{"$f":"IFERROR(IF(VLOOKUP(B10,Moves!$A$1:$D$151,3,FALSE)=1,\"X\",\" \"),\"\")","v":""},{"$f":"IFERROR(IF(VLOOKUP(B10,Moves!$A$1:$D$151,3,FALSE)=2,\"X\",\" \"),\"\")","v":""},{"$f":"IFERROR(IF(VLOOKUP(B10,Moves!$A$1:$D$151,3,FALSE)=3,\"X\",\" \"),\"\")","v":""},{"$f":"IFERROR(IF(VLOOKUP(B10,Moves!$A$1:$D$151,3,FALSE)=4,\"X\",\" \"),\"\")","v":""},null,null,null,null,{"$f":"IF(ISNUMBER(SEARCH($B$9,R10)),MAX($Q$8:Q9)+1,0)","v":2},"Jump ½ turn ",null,null,{"$f":"IFERROR(VLOOKUP(ROWS($R$9:R10),$Q$9:$R$163,2,0),\"\")","v":"Jump ½ turn "},null,null,null,{"$f":"IF(ISNUMBER(SEARCH($B$10,Z10)),MAX($Y$8:Y9)+1,0)","v":2},"Jump ½ turn ",null,null,{"$f":"IFERROR(VLOOKUP(ROWS($Z$9:Z10),$Y$9:$Z$163,2,0),\"\")","v":"Jump ½ turn "},null,null,null,{"$f":"IF(ISNUMBER(SEARCH($B$11,AH10)),MAX($AG$8:AG9)+1,0)","v":2},"Jump ½ turn ",null,null,{"$f":"IFERROR(VLOOKUP(ROWS($AH$9:AH10),$AG$9:$AH$163,2,0),\"\")","v":"Jump ½ turn "},null,null,null,{"$f":"IF(ISNUMBER(SEARCH($B$12,AP10)),MAX($AO$8:AO9)+1,0)","v":2},"Jump ½ turn ",null,null,{"$f":"IFERROR(VLOOKUP(ROWS($AP$9:AP10),$AO$9:$AP$163,2,0),\"\")","v":"Jump ½ turn "},null,null,null,{"$f":"IF(ISNUMBER(SEARCH($B$13,AX10)),MAX($AW$8:AW9)+1,0)","v":2},"Jump ½ turn ",null,null,{"$f":"IFERROR(VLOOKUP(ROWS($AX$9:AX10),$AW$9:$AX$163,2,0),\"\")","v":"Jump ½ turn "},null,null,null,{"$f":"IF(ISNUMBER(SEARCH($B$14,BF10)),MAX($BE$8:BE9)+1,0)","v":2},"Jump ½ turn ",null,null,{"$f":"IFERROR(VLOOKUP(ROWS($BF$9:BF10),$BE$9:$BF$163,2,0),\"\")","v":"Jump ½ turn "},null,null,null,{"$f":"IF(ISNUMBER(SEARCH($B$15,BN10)),MAX($BM$8:BM9)+1,0)","v":2},"Jump ½ turn ",null,null,{"$f":"IFERROR(VLOOKUP(ROWS($BN$9:BN10),$BM$9:$BN$163,2,0),\"\")","v":"Jump ½ turn "},null,null,null,{"$f":"IF(ISNUMBER(SEARCH($B$16,BV10)),MAX($BU$8:BU9)+1,0)","v":2},"Jump ½ turn ",null,null,{"$f":"IFERROR(VLOOKUP(ROWS($BV$9:BV10),$BU$9:$BV$163,2,0),\"\")","v":"Jump ½ turn "},null,null,null,{"$f":"IF(ISNUMBER(SEARCH($B$17,CD10)),MAX($CC$8:CC9)+1,0)","v":2},"Jump ½ turn ",null,null,{"$f":"IFERROR(VLOOKUP(ROWS($CD$9:CD10),$CC$9:$CD$163,2,0),\"\")","v":"Jump ½ turn "},null,null,null,{"$f":"IF(ISNUMBER(SEARCH($B$18,CL10)),MAX($CK$8:CK9)+1,0)","v":2},"Jump ½ turn ",null,null,{"$f":"IFERROR(VLOOKUP(ROWS($CL$9:CL10),$CK$9:$CL$163,2,0),\"\")","v":"Jump ½ turn "},null,null,null,"",{"$f":"IF(M10=$M$43,IF(J10=\"X\",IF(E10=\"X\",\"Yes\",IF(F10=\"X\",\"Yes\",IF(G10=\"X\",\"Yes\",IF(H10=\"X\",\"Yes\",\"No\"))))),IF(M10=$M$44,IF(J10=\"X\",IF(E10=\"X\",\"Yes\",IF(F10=\"X\",\"Yes\",IF(G10=\"X\",\"Yes\",IF(H10=\"X\",\"Yes\",\"No\"))))),\"\"))","v":""},{"$f":"IF(M10<>\"Mix series\",\"\",IF(I10=\"X\",IF(E10=\"X\",\"Yes\",IF(F10=\"X\",\"Yes\",IF(G10=\"X\",\"Yes\",IF(H10=\"X\",\"Yes\",\"No\")))),IF(I10<>\"X\",IF(F10=\"X\",\"Yes\",IF(G10=\"X\",\"Yes\",IF(H10=\"X\",\"Yes\",\"No\"))))))","v":""},{"$f":"IF(CU10<>\"Yes\",\"\",IF(I10=\"X\",1,IF(J10=\"X\",2,IF(K10=\"X\",3,IF(L10=\"X\",4,\"No\")))))","v":""},{"$f":"IF(M10<>$M$39,\"\",IF(G10=\"X\",IF(VLOOKUP(B10,Moves!A2:D152,4,FALSE)=\"AFS2\",\"Yes\",\"No\"),IF(H10=\"X\",IF(VLOOKUP(B10,Moves!A2:D152,4,FALSE)=\"AFS2\",\"Yes\",\"No\"))))","v":""},{"$f":"IF(N10<>$N$33,\"\",IF(H10=\"X\",IF(I10<>\"X\",\"Yes\",\"No\"),\"No\"))","v":""},{"$f":"IF(N10<>$N$32,\"\",IF(H10<>\"X\",\"No\",IF(VLOOKUP(B10,Moves!$A$1:$D$151,4,FALSE)=\"AFS\",\"Yes\",IF(VLOOKUP(B10,Moves!$A$1:$D$151,4,FALSE)=\"AFS2\",\"Yes\",\"No\"))))","v":""},{"$f":"IF(COUNTIF(Q10:CW10,\"Yes\")=2,\"No\",\"Yes\")","v":"Yes"},{"$f":"IF(E10=\"X\",IF($N10=\"Bonus - E AFS\",\"No\",IF($N10=\"Bonus - Egrp 2,3 or 4\",\"No\",\"Yes\")),\"\")","v":""},{"$f":"IF(F10=\"X\",IF($N10=\"Bonus - E AFS\",\"No\",IF($N10=\"Bonus - Egrp 2,3 or 4\",\"No\",\"Yes\")),\"\")","v":""},"",{"$f":"IF(H10=\"X\",IF($N10=\"Bonus - E AFS\",\"No\",IF($N10=\"Bonus - E Grp 2,3 or 4\",\"No\",\"Yes\")),\"\")","v":""},{"$f":"IF(M10<>\"Mix series\",\"\",IF(I10=\"X\",\"Yes\",IF(I10<>\"X\",IF(COUNTIF(J10:L10,\"X\")=1,\"Yes\",\"No\"),\"No\")))","v":""}]
[3,null,null,{"$f":"IFERROR(IF(VLOOKUP(B11,Moves!$A$1:$D$151,2,FALSE)=\"A\",\"X\",\" \"),\"\")","v":""},{"$f":"IFERROR(IF(VLOOKUP(B11,Moves!$A$1:$D$151,2,FALSE)=\"B\",\"X\",\" \"),\"\")","v":""},{"$f":"IFERROR(IF(VLOOKUP(B11,Moves!$A$1:$D$151,2,FALSE)=\"C\",\"X\",\" \"),\"\")","v":""},{"$f":"IFERROR(IF(VLOOKUP(B11,Moves!$A$1:$D$151,2,FALSE)=\"D\",\"X\",\" \"),\"\")","v":""},{"$f":"IFERROR(IF(VLOOKUP(B11,Moves!$A$1:$D$151,2,FALSE)=\"E\",\"X\",\" \"),\"\")","v":""},{"$f":"IFERROR(IF(VLOOKUP(B11,Moves!$A$1:$D$151,3,FALSE)=1,\"X\",\" \"),\"\")","v":""},{"$f":"IFERROR(IF(VLOOKUP(B11,Moves!$A$1:$D$151,3,FALSE)=2,\"X\",\" \"),\"\")","v":""},{"$f":"IFERROR(IF(VLOOKUP(B11,Moves!$A$1:$D$151,3,FALSE)=3,\"X\",\" \"),\"\")","v":""},{"$f":"IFERROR(IF(VLOOKUP(B11,Moves!$A$1:$D$151,3,FALSE)=4,\"X\",\" \"),\"\")","v":""},null,null,null,null,{"$f":"IF(ISNUMBER(SEARCH($B$9,R11)),MAX($Q$8:Q10)+1,0)","v":3},"Star jump ",null,null,{"$f":"IFERROR(VLOOKUP(ROWS($R$9:R11),$Q$9:$R$163,2,0),\"\")","v":"Star jump "},null,null,null,{"$f":"IF(ISNUMBER(SEARCH($B$10,Z11)),MAX($Y$8:Y10)+1,0)","v":3},"Star jump ",null,null,{"$f":"IFERROR(VLOOKUP(ROWS($Z$9:Z11),$Y$9:$Z$163,2,0),\"\")","v":"Star jump "},null,null,null,{"$f":"IF(ISNUMBER(SEARCH($B$11,AH11)),MAX($AG$8:AG10)+1,0)","v":3},"Star jump ",null,null,{"$f":"IFERROR(VLOOKUP(ROWS($AH$9:AH11),$AG$9:$AH$163,2,0),\"\")","v":"Star jump "},null,null,null,{"$f":"IF(ISNUMBER(SEARCH($B$12,AP11)),MAX($AO$8:AO10)+1,0)","v":3},"Star jump ",null,null,{"$f":"IFERROR(VLOOKUP(ROWS($AP$9:AP11),$AO$9:$AP$163,2,0),\"\")","v":"Star jump "},null,null,null,{"$f":"IF(ISNUMBER(SEARCH($B$13,AX11)),MAX($AW$8:AW10)+1,0)","v":3},"Star jump ",null,null,{"$f":"IFERROR(VLOOKUP(ROWS($AX$9:AX11),$AW$9:$AX$163,2,0),\"\")","v":"Star jump "},null,null,null,{"$f":"IF(ISNUMBER(SEARCH($B$14,BF11)),MAX($BE$8:BE10)+1,0)","v":3},"Star jump ",null,null,{"$f":"IFERROR(VLOOKUP(ROWS($BF$9:BF11),$BE$9:$BF$163,2,0),\"\")","v":"Star jump "},null,null,null,{"$f":"IF(ISNUMBER(SEARCH($B$15,BN11)),MAX($BM$8:BM10)+1,0)","v":3},"Star jump ",null,null,{"$f":"IFERROR(VLOOKUP(ROWS($BN$9:BN11),$BM$9:$BN$163,2,0),\"\")","v":"Star jump "},null,null,null,{"$f":"IF(ISNUMBER(SEARCH($B$16,BV11)),MAX($BU$8:BU10)+1,0)","v":3},"Star jump ",null,null,{"$f":"IFERROR(VLOOKUP(ROWS($BV$9:BV11),$BU$9:$BV$163,2,0),\"\")","v":"Star jump "},null,null,null,{"$f":"IF(ISNUMBER(SEARCH($B$17,CD11)),MAX($CC$8:CC10)+1,0)","v":3},"Star jump ",null,null,{"$f":"IFERROR(VLOOKUP(ROWS($CD$9:CD11),$CC$9:$CD$163,2,0),\"\")","v":"Star jump "},null,null,null,{"$f":"IF(ISNUMBER(SEARCH($B$18,CL11)),MAX($CK$8:CK10)+1,0)","v":3},"Star jump ",null,null,{"$f":"IFERROR(VLOOKUP(ROWS($CL$9:CL11),$CK$9:$CL$163,2,0),\"\")","v":"Star jump "},null,null,null,"","","","",{"$f":"IF(M11<>$M$39,\"\",IF(G11=\"X\",IF(VLOOKUP(B11,Moves!A3:D153,4,FALSE)=\"AFS2\",\"Yes\",\"No\"),IF(H11=\"X\",IF(VLOOKUP(B11,Moves!A3:D153,4,FALSE)=\"AFS2\",\"Yes\",\"No\"))))","v":""},"",{"$f":"IF(N11<>$N$32,\"\",IF(H11<>\"X\",\"No\",IF(VLOOKUP(B11,Moves!$A$1:$D$151,4,FALSE)=\"AFS\",\"Yes\",IF(VLOOKUP(B11,Moves!$A$1:$D$151,4,FALSE)=\"AFS2\",\"Yes\",\"No\"))))","v":""},"Yes","","","","",""]
[4,null,null,{"$f":"IFERROR(IF(VLOOKUP(B12,Moves!$A$1:$D$151,2,FALSE)=\"A\",\"X\",\" \"),\"\")","v":""},{"$f":"IFERROR(IF(VLOOKUP(B12,Moves!$A$1:$D$151,2,FALSE)=\"B\",\"X\",\" \"),\"\")","v":""},{"$f":"IFERROR(IF(VLOOKUP(B12,Moves!$A$1:$D$151,2,FALSE)=\"C\",\"X\",\" \"),\"\")","v":""},{"$f":"IFERROR(IF(VLOOKUP(B12,Moves!$A$1:$D$151,2,FALSE)=\"D\",\"X\",\" \"),\"\")","v":""},{"$f":"IFERROR(IF(VLOOKUP(B12,Moves!$A$1:$D$151,2,FALSE)=\"E\",\"X\",\" \"),\"\")","v":""},{"$f":"IFERROR(IF(VLOOKUP(B12,Moves!$A$1:$D$151,3,FALSE)=1,\"X\",\" \"),\"\")","v":""},{"$f":"IFERROR(IF(VLOOKUP(B12,Moves!$A$1:$D$151,3,FALSE)=2,\"X\",\" \"),\"\")","v":""},{"$f":"IFERROR(IF(VLOOKUP(B12,Moves!$A$1:$D$151,3,FALSE)=3,\"X\",\" \"),\"\")","v":""},{"$f":"IFERROR(IF(VLOOKUP(B12,Moves!$A$1:$D$151,3,FALSE)=4,\"X\",\" \"),\"\")","v":""},null,null,null,null,{"$f":"IF(ISNUMBER(SEARCH($B$9,R12)),MAX($Q$8:Q11)+1,0)","v":4},"Tuck jump",null,null,{"$f":"IFERROR(VLOOKUP(ROWS($R$9:R12),$Q$9:$R$163,2,0),\"\")","v":"Tuck jump"},null,null,null,{"$f":"IF(ISNUMBER(SEARCH($B$10,Z12)),MAX($Y$8:Y11)+1,0)","v":4},"Tuck jump",null,null,{"$f":"IFERROR(VLOOKUP(ROWS($Z$9:Z12),$Y$9:$Z$163,2,0),\"\")","v":"Tuck jump"},null,null,null,{"$f":"IF(ISNUMBER(SEARCH($B$11,AH12)),MAX($AG$8:AG11)+1,0)","v":4},"Tuck jump",null,null,{"$f":"IFERROR(VLOOKUP(ROWS($AH$9:AH12),$AG$9:$AH$163,2,0),\"\")","v":"Tuck jump"},null,null,null,{"$f":"IF(ISNUMBER(SEARCH($B$12,AP12)),MAX($AO$8:AO11)+1,0)","v":4},"Tuck jump",null,null,{"$f":"IFERROR(VLOOKUP(ROWS($AP$9:AP12),$AO$9:$AP$163,2,0),\"\")","v":"Tuck jump"},null,null,null,{"$f":"IF(ISNUMBER(SEARCH($B$13,AX12)),MAX($AW$8:AW11)+1,0)","v":4},"Tuck jump",null,null,{"$f":"IFERROR(VLOOKUP(ROWS($AX$9:AX12),$AW$9:$AX$163,2,0),\"\")","v":"Tuck jump"},null,null,null,{"$f":"IF(ISNUMBER(SEARCH($B$14,BF12)),MAX($BE$8:BE11)+1,0)","v":4},"Tuck jump",null,null,{"$f":"IFERROR(VLOOKUP(ROWS($BF$9:BF12),$BE$9:$BF$163,2,0),\"\")","v":"Tuck jump"},null,null,null,{"$f":"IF(ISNUMBER(SEARCH($B$15,BN12)),MAX($BM$8:BM11)+1,0)","v":4},"Tuck jump",null,null,{"$f":"IFERROR(VLOOKUP(ROWS($BN$9:BN12),$BM$9:$BN$163,2,0),\"\")","v":"Tuck jump"},null,null,null,{"$f":"IF(ISNUMBER(SEARCH($B$16,BV12)),MAX($BU$8:BU11)+1,0)","v":4},"Tuck jump",null,null,{"$f":"IFERROR(VLOOKUP(ROWS($BV$9:BV12),$BU$9:$BV$163,2,0),\"\")","v":"Tuck jump"},null,null,null,{"$f":"IF(ISNUMBER(SEARCH($B$17,CD12)),MAX($CC$8:CC11)+1,0)","v":4},"Tuck jump",null,null,{"$f":"IFERROR(VLOOKUP(ROWS($CD$9:CD12),$CC$9:$CD$163,2,0),\"\")","v":"Tuck jump"},null,null,null,{"$f":"IF(ISNUMBER(SEARCH($B$18,CL12)),MAX($CK$8:CK11)+1,0)","v":4},"Tuck jump",null,null,{"$f":"IFERROR(VLOOKUP(ROWS($CL$9:CL12),$CK$9:$CL$163,2,0),\"\")","v":"Tuck jump"},null,null,null,"","","","",{"$f":"IF(M12<>$M$39,\"\",IF(G12=\"X\",IF(VLOOKUP(B12,Moves!A4:D154,4,FALSE)=\"AFS2\",\"Yes\",\"No\"),IF(H12=\"X\",IF(VLOOKUP(B12,Moves!A4:D154,4,FALSE)=\"AFS2\",\"Yes\",\"No\"))))","v":""},"",{"$f":"IF(N12<>$N$32,\"\",IF(H12<>\"X\",\"No\",IF(VLOOKUP(B12,Moves!$A$1:$D$151,4,FALSE)=\"AFS\",\"Yes\",IF(VLOOKUP(B12,Moves!$A$1:$D$151,4,FALSE)=\"AFS2\",\"Yes\",\"No\"))))","v":""},"Yes","","","","",""]
[5,null,null,{"$f":"IFERROR(IF(VLOOKUP(B13,Moves!$A$1:$D$151,2,FALSE)=\"A\",\"X\",\" \"),\"\")","v":""},{"$f":"IFERROR(IF(VLOOKUP(B13,Moves!$A$1:$D$151,2,FALSE)=\"B\",\"X\",\" \"),\"\")","v":""},{"$f":"IFERROR(IF(VLOOKUP(B13,Moves!$A$1:$D$151,2,FALSE)=\"C\",\"X\",\" \"),\"\")","v":""},{"$f":"IFERROR(IF(VLOOKUP(B13,Moves!$A$1:$D$151,2,FALSE)=\"D\",\"X\",\" \"),\"\")","v":""},{"$f":"IFERROR(IF(VLOOKUP(B13,Moves!$A$1:$D$151,2,FALSE)=\"E\",\"X\",\" \"),\"\")","v":""},{"$f":"IFERROR(IF(VLOOKUP(B13,Moves!$A$1:$D$151,3,FALSE)=1,\"X\",\" \"),\"\")","v":""},{"$f":"IFERROR(IF(VLOOKUP(B13,Moves!$A$1:$D$151,3,FALSE)=2,\"X\",\" \"),\"\")","v":""},{"$f":"IFERROR(IF(VLOOKUP(B13,Moves!$A$1:$D$151,3,FALSE)=3,\"X\",\" \"),\"\")","v":""},{"$f":"IFERROR(IF(VLOOKUP(B13,Moves!$A$1:$D$151,3,FALSE)=4,\"X\",\" \"),\"\")","v":""},null,null,null,null,{"$f":"IF(ISNUMBER(SEARCH($B$9,R13)),MAX($Q$8:Q12)+1,0)","v":5},"2 x dynamic 1/2 turns on knees",null,null,{"$f":"IFERROR(VLOOKUP(ROWS($R$9:R13),$Q$9:$R$163,2,0),\"\")","v":"2 x dynamic 1/2 turns on knees"},null,null,null,{"$f":"IF(ISNUMBER(SEARCH($B$10,Z13)),MAX($Y$8:Y12)+1,0)","v":5},"2 x dynamic 1/2 turns on knees",null,null,{"$f":"IFERROR(VLOOKUP(ROWS($Z$9:Z13),$Y$9:$Z$163,2,0),\"\")","v":"2 x dynamic 1/2 turns on knees"},null,null,null,{"$f":"IF(ISNUMBER(SEARCH($B$11,AH13)),MAX($AG$8:AG12)+1,0)","v":5},"2 x dynamic 1/2 turns on knees",null,null,{"$f":"IFERROR(VLOOKUP(ROWS($AH$9:AH13),$AG$9:$AH$163,2,0),\"\")","v":"2 x dynamic 1/2 turns on knees"},null,null,null,{"$f":"IF(ISNUMBER(SEARCH($B$12,AP13)),MAX($AO$8:AO12)+1,0)","v":5},"2 x dynamic 1/2 turns on knees",null,null,{"$f":"IFERROR(VLOOKUP(ROWS($AP$9:AP13),$AO$9:$AP$163,2,0),\"\")","v":"2 x dynamic 1/2 turns on knees"},null,null,null,{"$f":"IF(ISNUMBER(SEARCH($B$13,AX13)),MAX($AW$8:AW12)+1,0)","v":5},"2 x dynamic 1/2 turns on knees",null,null,{"$f":"IFERROR(VLOOKUP(ROWS($AX$9:AX13),$AW$9:$AX$163,2,0),\"\")","v":"2 x dynamic 1/2 turns on knees"},null,null,null,{"$f":"IF(ISNUMBER(SEARCH($B$14,BF13)),MAX($BE$8:BE12)+1,0)","v":5},"2 x dynamic 1/2 turns on knees",null,null,{"$f":"IFERROR(VLOOKUP(ROWS($BF$9:BF13),$BE$9:$BF$163,2,0),\"\")","v":"2 x dynamic 1/2 turns on knees"},null,null,null,{"$f":"IF(ISNUMBER(SEARCH($B$15,BN13)),MAX($BM$8:BM12)+1,0)","v":5},"2 x dynamic 1/2 turns on knees",null,null,{"$f":"IFERROR(VLOOKUP(ROWS($BN$9:BN13),$BM$9:$BN$163,2,0),\"\")","v":"2 x dynamic 1/2 turns on knees"},null,null,null,{"$f":"IF(ISNUMBER(SEARCH($B$16,BV13)),MAX($BU$8:BU12)+1,0)","v":5},"2 x dynamic 1/2 turns on knees",null,null,{"$f":"IFERROR(VLOOKUP(ROWS($BV$9:BV13),$BU$9:$BV$163,2,0),\"\")","v":"2 x dynamic 1/2 turns on knees"},null,null,null,{"$f":"IF(ISNUMBER(SEARCH($B$17,CD13)),MAX($CC$8:CC12)+1,0)","v":5},"2 x dynamic 1/2 turns on knees",null,null,{"$f":"IFERROR(VLOOKUP(ROWS($CD$9:CD13),$CC$9:$CD$163,2,0),\"\")","v":"2 x dynamic 1/2 turns on knees"},null,null,null,{"$f":"IF(ISNUMBER(SEARCH($B$18,CL13)),MAX($CK$8:CK12)+1,0)","v":5},"2 x dynamic 1/2 turns on knees",null,null,{"$f":"IFERROR(VLOOKUP(ROWS($CL$9:CL13),$CK$9:$CL$163,2,0),\"\")","v":"2 x dynamic 1/2 turns on knees"},null,null,null,"","","","",{"$f":"IF(M13<>$M$39,\"\",IF(G13=\"X\",IF(VLOOKUP(B13,Moves!A5:D155,4,FALSE)=\"AFS2\",\"Yes\",\"No\"),IF(H13=\"X\",IF(VLOOKUP(B13,Moves!A5:D155,4,FALSE)=\"AFS2\",\"Yes\",\"No\"))))","v":""},"",{"$f":"IF(N13<>$N$32,\"\",IF(H13<>\"X\",\"No\",IF(VLOOKUP(B13,Moves!$A$1:$D$151,4,FALSE)=\"AFS\",\"Yes\",IF(VLOOKUP(B13,Moves!$A$1:$D$151,4,FALSE)=\"AFS2\",\"Yes\",\"No\"))))","v":""},"Yes","","","","",""]
[6,null,null,{"$f":"IFERROR(IF(VLOOKUP(B14,Moves!$A$1:$D$151,2,FALSE)=\"A\",\"X\",\" \"),\"\")","v":""},{"$f":"IFERROR(IF(VLOOKUP(B14,Moves!$A$1:$D$151,2,FALSE)=\"B\",\"X\",\" \"),\"\")","v":""},{"$f":"IFERROR(IF(VLOOKUP(B14,Moves!$A$1:$D$151,2,FALSE)=\"C\",\"X\",\" \"),\"\")","v":""},{"$f":"IFERROR(IF(VLOOKUP(B14,Moves!$A$1:$D$151,2,FALSE)=\"D\",\"X\",\" \"),\"\")","v":""},{"$f":"IFERROR(IF(VLOOKUP(B14,Moves!$A$1:$D$151,2,FALSE)=\"E\",\"X\",\" \"),\"\")","v":""},{"$f":"IFERROR(IF(VLOOKUP(B14,Moves!$A$1:$D$151,3,FALSE)=1,\"X\",\" \"),\"\")","v":""},{"$f":"IFERROR(IF(VLOOKUP(B14,Moves!$A$1:$D$151,3,FALSE)=2,\"X\",\" \"),\"\")","v":""},{"$f":"IFERROR(IF(VLOOKUP(B14,Moves!$A$1:$D$151,3,FALSE)=3,\"X\",\" \"),\"\")","v":""},{"$f":"IFERROR(IF(VLOOKUP(B14,Moves!$A$1:$D$151,3,FALSE)=4,\"X\",\" \"),\"\")","v":""},null,null,null,null,{"$f":"IF(ISNUMBER(SEARCH($B$9,R14)),MAX($Q$8:Q13)+1,0)","v":6},"1 leg balance ",null,null,{"$f":"IFERROR(VLOOKUP(ROWS($R$9:R14),$Q$9:$R$163,2,0),\"\")","v":"1 leg balance "},null,null,null,{"$f":"IF(ISNUMBER(SEARCH($B$10,Z14)),MAX($Y$8:Y13)+1,0)","v":6},"1 leg balance ",null,null,{"$f":"IFERROR(VLOOKUP(ROWS($Z$9:Z14),$Y$9:$Z$163,2,0),\"\")","v":"1 leg balance "},null,null,null,{"$f":"IF(ISNUMBER(SEARCH($B$11,AH14)),MAX($AG$8:AG13)+1,0)","v":6},"1 leg balance ",null,null,{"$f":"IFERROR(VLOOKUP(ROWS($AH$9:AH14),$AG$9:$AH$163,2,0),\"\")","v":"1 leg balance "},null,null,null,{"$f":"IF(ISNUMBER(SEARCH($B$12,AP14)),MAX($AO$8:AO13)+1,0)","v":6},"1 leg balance ",null,null,{"$f":"IFERROR(VLOOKUP(ROWS($AP$9:AP14),$AO$9:$AP$163,2,0),\"\")","v":"1 leg balance "},null,null,null,{"$f":"IF(ISNUMBER(SEARCH($B$13,AX14)),MAX($AW$8:AW13)+1,0)","v":6},"1 leg balance ",null,null,{"$f":"IFERROR(VLOOKUP(ROWS($AX$9:AX14),$AW$9:$AX$163,2,0),\"\")","v":"1 leg balance "},null,null,null,{"$f":"IF(ISNUMBER(SEARCH($B$14,BF14)),MAX($BE$8:BE13)+1,0)","v":6},"1 leg balance ",null,null,{"$f":"IFERROR(VLOOKUP(ROWS($BF$9:BF14),$BE$9:$BF$163,2,0),\"\")","v":"1 leg balance "},null,null,null,{"$f":"IF(ISNUMBER(SEARCH($B$15,BN14)),MAX($BM$8:BM13)+1,0)","v":6},"1 leg balance ",null,null,{"$f":"IFERROR(VLOOKUP(ROWS($BN$9:BN14),$BM$9:$BN$163,2,0),\"\")","v":"1 leg balance "},null,null,null,{"$f":"IF(ISNUMBER(SEARCH($B$16,BV14)),MAX($BU$8:BU13)+1,0)","v":6},"1 leg balance ",null,null,{"$f":"IFERROR(VLOOKUP(ROWS($BV$9:BV14),$BU$9:$BV$163,2,0),\"\")","v":"1 leg balance "},null,null,null,{"$f":"IF(ISNUMBER(SEARCH($B$17,CD14)),MAX($CC$8:CC13)+1,0)","v":6},"1 leg balance ",null,null,{"$f":"IFERROR(VLOOKUP(ROWS($CD$9:CD14),$CC$9:$CD$163,2,0),\"\")","v":"1 leg balance "},null,null,null,{"$f":"IF(ISNUMBER(SEARCH($B$18,CL14)),MAX($CK$8:CK13)+1,0)","v":6},"1 leg balance ",null,null,{"$f":"IFERROR(VLOOKUP(ROWS($CL$9:CL14),$CK$9:$CL$163,2,0),\"\")","v":"1 leg balance "},null,null,null,"","","",{"$f":"IF(CU14<>\"Yes\",\"\",IF(I14=\"X\",1,IF(J14=\"X\",2,IF(K14=\"X\",3,IF(L14=\"X\",4,\"No\")))))","v":""},{"$f":"IF(M14<>$M$39,\"\",IF(G14=\"X\",IF(VLOOKUP(B14,Moves!A6:D156,4,FALSE)=\"AFS2\",\"Yes\",\"No\"),IF(H14=\"X\",IF(VLOOKUP(B14,Moves!A6:D156,4,FALSE)=\"AFS2\",\"Yes\",\"No\"))))","v":""},"",{"$f":"IF(N14<>$N$32,\"\",IF(H14<>\"X\",\"No\",IF(VLOOKUP(B14,Moves!$A$1:$D$151,4,FALSE)=\"AFS\",\"Yes\",IF(VLOOKUP(B14,Moves!$A$1:$D$151,4,FALSE)=\"AFS2\",\"Yes\",\"No\"))))","v":""},"Yes","","","","",""]
[7,null,null,{"$f":"IFERROR(IF(VLOOKUP(B15,Moves!$A$1:$D$151,2,FALSE)=\"A\",\"X\",\" \"),\"\")","v":""},{"$f":"IFERROR(IF(VLOOKUP(B15,Moves!$A$1:$D$151,2,FALSE)=\"B\",\"X\",\" \"),\"\")","v":""},{"$f":"IFERROR(IF(VLOOKUP(B15,Moves!$A$1:$D$151,2,FALSE)=\"C\",\"X\",\" \"),\"\")","v":""},{"$f":"IFERROR(IF(VLOOKUP(B15,Moves!$A$1:$D$151,2,FALSE)=\"D\",\"X\",\" \"),\"\")","v":""},{"$f":"IFERROR(IF(VLOOKUP(B15,Moves!$A$1:$D$151,2,FALSE)=\"E\",\"X\",\" \"),\"\")","v":""},{"$f":"IFERROR(IF(VLOOKUP(B15,Moves!$A$1:$D$151,3,FALSE)=1,\"X\",\" \"),\"\")","v":""},{"$f":"IFERROR(IF(VLOOKUP(B15,Moves!$A$1:$D$151,3,FALSE)=2,\"X\",\" \"),\"\")","v":""},{"$f":"IFERROR(IF(VLOOKUP(B15,Moves!$A$1:$D$151,3,FALSE)=3,\"X\",\" \"),\"\")","v":""},{"$f":"IFERROR(IF(VLOOKUP(B15,Moves!$A$1:$D$151,3,FALSE)=4,\"X\",\" \"),\"\")","v":""},null,null,null,null,{"$f":"IF(ISNUMBER(SEARCH($B$9,R15)),MAX($Q$8:Q14)+1,0)","v":7},"Splits (F or S) ",null,null,{"$f":"IFERROR(VLOOKUP(ROWS($R$9:R15),$Q$9:$R$163,2,0),\"\")","v":"Splits (F or S) "},null,null,null,{"$f":"IF(ISNUMBER(SEARCH($B$10,Z15)),MAX($Y$8:Y14)+1,0)","v":7},"Splits (F or S) ",null,null,{"$f":"IFERROR(VLOOKUP(ROWS($Z$9:Z15),$Y$9:$Z$163,2,0),\"\")","v":"Splits (F or S) "},null,null,null,{"$f":"IF(ISNUMBER(SEARCH($B$11,AH15)),MAX($AG$8:AG14)+1,0)","v":7},"Splits (F or S) ",null,null,{"$f":"IFERROR(VLOOKUP(ROWS($AH$9:AH15),$AG$9:$AH$163,2,0),\"\")","v":"Splits (F or S) "},null,null,null,{"$f":"IF(ISNUMBER(SEARCH($B$12,AP15)),MAX($AO$8:AO14)+1,0)","v":7},"Splits (F or S) ",null,null,{"$f":"IFERROR(VLOOKUP(ROWS($AP$9:AP15),$AO$9:$AP$163,2,0),\"\")","v":"Splits (F or S) "},null,null,null,{"$f":"IF(ISNUMBER(SEARCH($B$13,AX15)),MAX($AW$8:AW14)+1,0)","v":7},"Splits (F or S) ",null,null,{"$f":"IFERROR(VLOOKUP(ROWS($AX$9:AX15),$AW$9:$AX$163,2,0),\"\")","v":"Splits (F or S) "},null,null,null,{"$f":"IF(ISNUMBER(SEARCH($B$14,BF15)),MAX($BE$8:BE14)+1,0)","v":7},"Splits (F or S) ",null,null,{"$f":"IFERROR(VLOOKUP(ROWS($BF$9:BF15),$BE$9:$BF$163,2,0),\"\")","v":"Splits (F or S) "},null,null,null,{"$f":"IF(ISNUMBER(SEARCH($B$15,BN15)),MAX($BM$8:BM14)+1,0)","v":7},"Splits (F or S) ",null,null,{"$f":"IFERROR(VLOOKUP(ROWS($BN$9:BN15),$BM$9:$BN$163,2,0),\"\")","v":"Splits (F or S) "},null,null,null,{"$f":"IF(ISNUMBER(SEARCH($B$16,BV15)),MAX($BU$8:BU14)+1,0)","v":7},"Splits (F or S) ",null,null,{"$f":"IFERROR(VLOOKUP(ROWS($BV$9:BV15),$BU$9:$BV$163,2,0),\"\")","v":"Splits (F or S) "},null,null,null,{"$f":"IF(ISNUMBER(SEARCH($B$17,CD15)),MAX($CC$8:CC14)+1,0)","v":7},"Splits (F or S) ",null,null,{"$f":"IFERROR(VLOOKUP(ROWS($CD$9:CD15),$CC$9:$CD$163,2,0),\"\")","v":"Splits (F or S) "},null,null,null,{"$f":"IF(ISNUMBER(SEARCH($B$18,CL15)),MAX($CK$8:CK14)+1,0)","v":7},"Splits (F or S) ",null,null,{"$f":"IFERROR(VLOOKUP(ROWS($CL$9:CL15),$CK$9:$CL$163,2,0),\"\")","v":"Splits (F or S) "},null,null,null,"","","","",{"$f":"IF(M15<>$M$39,\"\",IF(G15=\"X\",IF(VLOOKUP(B15,Moves!A7:D157,4,FALSE)=\"AFS2\",\"Yes\",\"No\"),IF(H15=\"X\",IF(VLOOKUP(B15,Moves!A7:D157,4,FALSE)=\"AFS2\",\"Yes\",\"No\"))))","v":""},"",{"$f":"IF(N15<>$N$32,\"\",IF(H15<>\"X\",\"No\",IF(VLOOKUP(B15,Moves!$A$1:$D$151,4,FALSE)=\"AFS\",\"Yes\",IF(VLOOKUP(B15,Moves!$A$1:$D$151,4,FALSE)=\"AFS2\",\"Yes\",\"No\"))))","v":""},"Yes","","","","",""]
[8,null,null,{"$f":"IFERROR(IF(VLOOKUP(B16,Moves!$A$1:$D$151,2,FALSE)=\"A\",\"X\",\" \"),\"\")","v":""},{"$f":"IFERROR(IF(VLOOKUP(B16,Moves!$A$1:$D$151,2,FALSE)=\"B\",\"X\",\" \"),\"\")","v":""},{"$f":"IFERROR(IF(VLOOKUP(B16,Moves!$A$1:$D$151,2,FALSE)=\"C\",\"X\",\" \"),\"\")","v":""},{"$f":"IFERROR(IF(VLOOKUP(B16,Moves!$A$1:$D$151,2,FALSE)=\"D\",\"X\",\" \"),\"\")","v":""},{"$f":"IFERROR(IF(VLOOKUP(B16,Moves!$A$1:$D$151,2,FALSE)=\"E\",\"X\",\" \"),\"\")","v":""},{"$f":"IFERROR(IF(VLOOKUP(B16,Moves!$A$1:$D$151,3,FALSE)=1,\"X\",\" \"),\"\")","v":""},{"$f":"IFERROR(IF(VLOOKUP(B16,Moves!$A$1:$D$151,3,FALSE)=2,\"X\",\" \"),\"\")","v":""},{"$f":"IFERROR(IF(VLOOKUP(B16,Moves!$A$1:$D$151,3,FALSE)=3,\"X\",\" \"),\"\")","v":""},{"$f":"IFERROR(IF(VLOOKUP(B16,Moves!$A$1:$D$151,3,FALSE)=4,\"X\",\" \"),\"\")","v":""},null,null,null,null,{"$f":"IF(ISNUMBER(SEARCH($B$9,R16)),MAX($Q$8:Q15)+1,0)","v":8},"Japana (up to 45⁰ chest)",null,null,{"$f":"IFERROR(VLOOKUP(ROWS($R$9:R16),$Q$9:$R$163,2,0),\"\")","v":"Japana (up to 45⁰ chest)"},null,null,null,{"$f":"IF(ISNUMBER(SEARCH($B$10,Z16)),MAX($Y$8:Y15)+1,0)","v":8},"Japana (up to 45⁰ chest)",null,null,{"$f":"IFERROR(VLOOKUP(ROWS($Z$9:Z16),$Y$9:$Z$163,2,0),\"\")","v":"Japana (up to 45⁰ chest)"},null,null,null,{"$f":"IF(ISNUMBER(SEARCH($B$11,AH16)),MAX($AG$8:AG15)+1,0)","v":8},"Japana (up to 45⁰ chest)",null,null,{"$f":"IFERROR(VLOOKUP(ROWS($AH$9:AH16),$AG$9:$AH$163,2,0),\"\")","v":"Japana (up to 45⁰ chest)"},null,null,null,{"$f":"IF(ISNUMBER(SEARCH($B$12,AP16)),MAX($AO$8:AO15)+1,0)","v":8},"Japana (up to 45⁰ chest)",null,null,{"$f":"IFERROR(VLOOKUP(ROWS($AP$9:AP16),$AO$9:$AP$163,2,0),\"\")","v":"Japana (up to 45⁰ chest)"},null,null,null,{"$f":"IF(ISNUMBER(SEARCH($B$13,AX16)),MAX($AW$8:AW15)+1,0)","v":8},"Japana (up to 45⁰ chest)",null,null,{"$f":"IFERROR(VLOOKUP(ROWS($AX$9:AX16),$AW$9:$AX$163,2,0),\"\")","v":"Japana (up to 45⁰ chest)"},null,null,null,{"$f":"IF(ISNUMBER(SEARCH($B$14,BF16)),MAX($BE$8:BE15)+1,0)","v":8},"Japana (up to 45⁰ chest)",null,null,{"$f":"IFERROR(VLOOKUP(ROWS($BF$9:BF16),$BE$9:$BF$163,2,0),\"\")","v":"Japana (up to 45⁰ chest)"},null,null,null,{"$f":"IF(ISNUMBER(SEARCH($B$15,BN16)),MAX($BM$8:BM15)+1,0)","v":8},"Japana (up to 45⁰ chest)",null,null,{"$f":"IFERROR(VLOOKUP(ROWS($BN$9:BN16),$BM$9:$BN$163,2,0),\"\")","v":"Japana (up to 45⁰ chest)"},null,null,null,{"$f":"IF(ISNUMBER(SEARCH($B$16,BV16)),MAX($BU$8:BU15)+1,0)","v":8},"Japana (up to 45⁰ chest)",null,null,{"$f":"IFERROR(VLOOKUP(ROWS($BV$9:BV16),$BU$9:$BV$163,2,0),\"\")","v":"Japana (up to 45⁰ chest)"},null,null,null,{"$f":"IF(ISNUMBER(SEARCH($B$17,CD16)),MAX($CC$8:CC15)+1,0)","v":8},"Japana (up to 45⁰ chest)",null,null,{"$f":"IFERROR(VLOOKUP(ROWS($CD$9:CD16),$CC$9:$CD$163,2,0),\"\")","v":"Japana (up to 45⁰ chest)"},null,null,null,{"$f":"IF(ISNUMBER(SEARCH($B$18,CL16)),MAX($CK$8:CK15)+1,0)","v":8},"Japana (up to 45⁰ chest)",null,null,{"$f":"IFERROR(VLOOKUP(ROWS($CL$9:CL16),$CK$9:$CL$163,2,0),\"\")","v":"Japana (up to 45⁰ chest)"},null,null,null,"","","","",{"$f":"IF(M16<>$M$39,\"\",IF(G16=\"X\",IF(VLOOKUP(B16,Moves!A8:D158,4,FALSE)=\"AFS2\",\"Yes\",\"No\"),IF(H16=\"X\",IF(VLOOKUP(B16,Moves!A8:D158,4,FALSE)=\"AFS2\",\"Yes\",\"No\"))))","v":""},"",{"$f":"IF(N16<>$N$32,\"\",IF(H16<>\"X\",\"No\",IF(VLOOKUP(B16,Moves!$A$1:$D$151,4,FALSE)=\"AFS\",\"Yes\",IF(VLOOKUP(B16,Moves!$A$1:$D$151,4,FALSE)=\"AFS2\",\"Yes\",\"No\"))))","v":""},"Yes","","","","",""]
[9,null,null,{"$f":"IFERROR(IF(VLOOKUP(B17,Moves!$A$1:$D$151,2,FALSE)=\"A\",\"X\",\" \"),\"\")","v":""},{"$f":"IFERROR(IF(VLOOKUP(B17,Moves!$A$1:$D$151,2,FALSE)=\"B\",\"X\",\" \"),\"\")","v":""},{"$f":"IFERROR(IF(VLOOKUP(B17,Moves!$A$1:$D$151,2,FALSE)=\"C\",\"X\",\" \"),\"\")","v":""},{"$f":"IFERROR(IF(VLOOKUP(B17,Moves!$A$1:$D$151,2,FALSE)=\"D\",\"X\",\" \"),\"\")","v":""},{"$f":"IFERROR(IF(VLOOKUP(B17,Moves!$A$1:$D$151,2,FALSE)=\"E\",\"X\",\" \"),\"\")","v":""},{"$f":"IFERROR(IF(VLOOKUP(B17,Moves!$A$1:$D$151,3,FALSE)=1,\"X\",\" \"),\"\")","v":""},{"$f":"IFERROR(IF(VLOOKUP(B17,Moves!$A$1:$D$151,3,FALSE)=2,\"X\",\" \"),\"\")","v":""},{"$f":"IFERROR(IF(VLOOKUP(B17,Moves!$A$1:$D$151,3,FALSE)=3,\"X\",\" \"),\"\")","v":""},{"$f":"IFERROR(IF(VLOOKUP(B17,Moves!$A$1:$D$151,3,FALSE)=4,\"X\",\" \"),\"\")","v":""},null,null,null,null,{"$f":"IF(ISNUMBER(SEARCH($B$9,R17)),MAX($Q$8:Q16)+1,0)","v":9},"D Shape",null,null,{"$f":"IFERROR(VLOOKUP(ROWS($R$9:R17),$Q$9:$R$163,2,0),\"\")","v":"D Shape"},null,null,null,{"$f":"IF(ISNUMBER(SEARCH($B$10,Z17)),MAX($Y$8:Y16)+1,0)","v":9},"D Shape",null,null,{"$f":"IFERROR(VLOOKUP(ROWS($Z$9:Z17),$Y$9:$Z$163,2,0),\"\")","v":"D Shape"},null,null,null,{"$f":"IF(ISNUMBER(SEARCH($B$11,AH17)),MAX($AG$8:AG16)+1,0)","v":9},"D Shape",null,null,{"$f":"IFERROR(VLOOKUP(ROWS($AH$9:AH17),$AG$9:$AH$163,2,0),\"\")","v":"D Shape"},null,null,null,{"$f":"IF(ISNUMBER(SEARCH($B$12,AP17)),MAX($AO$8:AO16)+1,0)","v":9},"D Shape",null,null,{"$f":"IFERROR(VLOOKUP(ROWS($AP$9:AP17),$AO$9:$AP$163,2,0),\"\")","v":"D Shape"},null,null,null,{"$f":"IF(ISNUMBER(SEARCH($B$13,AX17)),MAX($AW$8:AW16)+1,0)","v":9},"D Shape",null,null,{"$f":"IFERROR(VLOOKUP(ROWS($AX$9:AX17),$AW$9:$AX$163,2,0),\"\")","v":"D Shape"},null,null,null,{"$f":"IF(ISNUMBER(SEARCH($B$14,BF17)),MAX($BE$8:BE16)+1,0)","v":9},"D Shape",null,null,{"$f":"IFERROR(VLOOKUP(ROWS($BF$9:BF17),$BE$9:$BF$163,2,0),\"\")","v":"D Shape"},null,null,null,{"$f":"IF(ISNUMBER(SEARCH($B$15,BN17)),MAX($BM$8:BM16)+1,0)","v":9},"D Shape",null,null,{"$f":"IFERROR(VLOOKUP(ROWS($BN$9:BN17),$BM$9:$BN$163,2,0),\"\")","v":"D Shape"},null,null,null,{"$f":"IF(ISNUMBER(SEARCH($B$16,BV17)),MAX($BU$8:BU16)+1,0)","v":9},"D Shape",null,null,{"$f":"IFERROR(VLOOKUP(ROWS($BV$9:BV17),$BU$9:$BV$163,2,0),\"\")","v":"D Shape"},null,null,null,{"$f":"IF(ISNUMBER(SEARCH($B$17,CD17)),MAX($CC$8:CC16)+1,0)","v":9},"D Shape",null,null,{"$f":"IFERROR(VLOOKUP(ROWS($CD$9:CD17),$CC$9:$CD$163,2,0),\"\")","v":"D Shape"},null,null,null,{"$f":"IF(ISNUMBER(SEARCH($B$18,CL17)),MAX($CK$8:CK16)+1,0)","v":9},"D Shape",null,null,{"$f":"IFERROR(VLOOKUP(ROWS($CL$9:CL17),$CK$9:$CL$163,2,0),\"\")","v":"D Shape"},null,null,null,"","","","",{"$f":"IF(M17<>$M$39,\"\",IF(G17=\"X\",IF(VLOOKUP(B17,Moves!A9:D159,4,FALSE)=\"AFS2\",\"Yes\",\"No\"),IF(H17=\"X\",IF(VLOOKUP(B17,Moves!A9:D159,4,FALSE)=\"AFS2\",\"Yes\",\"No\"))))","v":""},"",{"$f":"IF(N17<>$N$32,\"\",IF(H17<>\"X\",\"No\",IF(VLOOKUP(B17,Moves!$A$1:$D$151,4,FALSE)=\"AFS\",\"Yes\",IF(VLOOKUP(B17,Moves!$A$1:$D$151,4,FALSE)=\"AFS2\",\"Yes\",\"No\"))))","v":""},"Yes","","","","",""]
[10,null,null,{"$f":"IFERROR(IF(VLOOKUP(B18,Moves!$A$1:$D$151,2,FALSE)=\"A\",\"X\",\" \"),\"\")","v":""},{"$f":"IFERROR(IF(VLOOKUP(B18,Moves!$A$1:$D$151,2,FALSE)=\"B\",\"X\",\" \"),\"\")","v":""},{"$f":"IFERROR(IF(VLOOKUP(B18,Moves!$A$1:$D$151,2,FALSE)=\"C\",\"X\",\" \"),\"\")","v":""},{"$f":"IFERROR(IF(VLOOKUP(B18,Moves!$A$1:$D$151,2,FALSE)=\"D\",\"X\",\" \"),\"\")","v":""},{"$f":"IFERROR(IF(VLOOKUP(B18,Moves!$A$1:$D$151,2,FALSE)=\"E\",\"X\",\" \"),\"\")","v":""},{"$f":"IFERROR(IF(VLOOKUP(B18,Moves!$A$1:$D$151,3,FALSE)=1,\"X\",\" \"),\"\")","v":""},{"$f":"IFERROR(IF(VLOOKUP(B18,Moves!$A$1:$D$151,3,FALSE)=2,\"X\",\" \"),\"\")","v":""},{"$f":"IFERROR(IF(VLOOKUP(B18,Moves!$A$1:$D$151,3,FALSE)=3,\"X\",\" \"),\"\")","v":""},{"$f":"IFERROR(IF(VLOOKUP(B18,Moves!$A$1:$D$151,3,FALSE)=4,\"X\",\" \"),\"\")","v":""},null,null,null,null,{"$f":"IF(ISNUMBER(SEARCH($B$9,R18)),MAX($Q$8:Q17)+1,0)","v":10},"Bridge",null,null,{"$f":"IFERROR(VLOOKUP(ROWS($R$9:R18),$Q$9:$R$163,2,0),\"\")","v":"Bridge"},null,null,null,{"$f":"IF(ISNUMBER(SEARCH($B$10,Z18)),MAX($Y$8:Y17)+1,0)","v":10},"Bridge",null,null,{"$f":"IFERROR(VLOOKUP(ROWS($Z$9:Z18),$Y$9:$Z$163,2,0),\"\")","v":"Bridge"},null,null,null,{"$f":"IF(ISNUMBER(SEARCH($B$11,AH18)),MAX($AG$8:AG17)+1,0)","v":10},"Bridge",null,null,{"$f":"IFERROR(VLOOKUP(ROWS($AH$9:AH18),$AG$9:$AH$163,2,0),\"\")","v":"Bridge"},null,null,null,{"$f":"IF(ISNUMBER(SEARCH($B$12,AP18)),MAX($AO$8:AO17)+1,0)","v":10},"Bridge",null,null,{"$f":"IFERROR(VLOOKUP(ROWS($AP$9:AP18),$AO$9:$AP$163,2,0),\"\")","v":"Bridge"},null,null,null,{"$f":"IF(ISNUMBER(SEARCH($B$13,AX18)),MAX($AW$8:AW17)+1,0)","v":10},"Bridge",null,null,{"$f":"IFERROR(VLOOKUP(ROWS($AX$9:AX18),$AW$9:$AX$163,2,0),\"\")","v":"Bridge"},null,null,null,{"$f":"IF(ISNUMBER(SEARCH($B$14,BF18)),MAX($BE$8:BE17)+1,0)","v":10},"Bridge",null,null,{"$f":"IFERROR(VLOOKUP(ROWS($BF$9:BF18),$BE$9:$BF$163,2,0),\"\")","v":"Bridge"},null,null,null,{"$f":"IF(ISNUMBER(SEARCH($B$15,BN18)),MAX($BM$8:BM17)+1,0)","v":10},"Bridge",null,null,{"$f":"IFERROR(VLOOKUP(ROWS($BN$9:BN18),$BM$9:$BN$163,2,0),\"\")","v":"Bridge"},null,null,null,{"$f":"IF(ISNUMBER(SEARCH($B$16,BV18)),MAX($BU$8:BU17)+1,0)","v":10},"Bridge",null,null,{"$f":"IFERROR(VLOOKUP(ROWS($BV$9:BV18),$BU$9:$BV$163,2,0),\"\")","v":"Bridge"},null,null,null,{"$f":"IF(ISNUMBER(SEARCH($B$17,CD18)),MAX($CC$8:CC17)+1,0)","v":10},"Bridge",null,null,{"$f":"IFERROR(VLOOKUP(ROWS($CD$9:CD18),$CC$9:$CD$163,2,0),\"\")","v":"Bridge"},null,null,null,{"$f":"IF(ISNUMBER(SEARCH($B$18,CL18)),MAX($CK$8:CK17)+1,0)","v":10},"Bridge",null,null,{"$f":"IFERROR(VLOOKUP(ROWS($CL$9:CL18),$CK$9:$CL$163,2,0),\"\")","v":"Bridge"},null,null,null,"","","","",{"$f":"IF(M18<>$M$39,\"\",IF(G18=\"X\",IF(VLOOKUP(B18,Moves!A10:D160,4,FALSE)=\"AFS2\",\"Yes\",\"No\"),IF(H18=\"X\",IF(VLOOKUP(B18,Moves!A10:D160,4,FALSE)=\"AFS2\",\"Yes\",\"No\"))))","v":""},"",{"$f":"IF(N18<>$N$32,\"\",IF(H18<>\"X\",\"No\",IF(VLOOKUP(B18,Moves!$A$1:$D$151,4,FALSE)=\"AFS\",\"Yes\",IF(VLOOKUP(B18,Moves!$A$1:$D$151,4,FALSE)=\"AFS2\",\"Yes\",\"No\"))))","v":""},"Yes","","","","",""]
[null,null,null,null,null,null,null,null,null,null,null,null,null,null,null,null,{"$f":"IF(ISNUMBER(SEARCH($B$9,R19)),MAX($Q$8:Q18)+1,0)","v":11},"F or B support (lower or push up) ",null,null,{"$f":"IFERROR(VLOOKUP(ROWS($R$9:R19),$Q$9:$R$163,2,0),\"\")","v":"F or B support (lower or push up) "},null,null,null,{"$f":"IF(ISNUMBER(SEARCH($B$10,Z19)),MAX($Y$8:Y18)+1,0)","v":11},"F or B support (lower or push up) ",null,null,{"$f":"IFERROR(VLOOKUP(ROWS($Z$9:Z19),$Y$9:$Z$163,2,0),\"\")","v":"F or B support (lower or push up) "},null,null,null,{"$f":"IF(ISNUMBER(SEARCH($B$11,AH19)),MAX($AG$8:AG18)+1,0)","v":11},"F or B support (lower or push up) ",null,null,{"$f":"IFERROR(VLOOKUP(ROWS($AH$9:AH19),$AG$9:$AH$163,2,0),\"\")","v":"F or B support (lower or push up) "},null,null,null,{"$f":"IF(ISNUMBER(SEARCH($B$12,AP19)),MAX($AO$8:AO18)+1,0)","v":11},"F or B support (lower or push up) ",null,null,{"$f":"IFERROR(VLOOKUP(ROWS($AP$9:AP19),$AO$9:$AP$163,2,0),\"\")","v":"F or B support (lower or push up) "},null,null,null,{"$f":"IF(ISNUMBER(SEARCH($B$13,AX19)),MAX($AW$8:AW18)+1,0)","v":11},"F or B support (lower or push up) ",null,null,{"$f":"IFERROR(VLOOKUP(ROWS($AX$9:AX19),$AW$9:$AX$163,2,0),\"\")","v":"F or B support (lower or push up) "},null,null,null,{"$f":"IF(ISNUMBER(SEARCH($B$14,BF19)),MAX($BE$8:BE18)+1,0)","v":11},"F or B support (lower or push up) ",null,null,{"$f":"IFERROR(VLOOKUP(ROWS($BF$9:BF19),$BE$9:$BF$163,2,0),\"\")","v":"F or B support (lower or push up) "},null,null,null,{"$f":"IF(ISNUMBER(SEARCH($B$15,BN19)),MAX($BM$8:BM18)+1,0)","v":11},"F or B support (lower or push up) ",null,null,{"$f":"IFERROR(VLOOKUP(ROWS($BN$9:BN19),$BM$9:$BN$163,2,0),\"\")","v":"F or B support (lower or push up) "},null,null,null,{"$f":"IF(ISNUMBER(SEARCH($B$16,BV19)),MAX($BU$8:BU18)+1,0)","v":11},"F or B support (lower or push up) ",null,null,{"$f":"IFERROR(VLOOKUP(ROWS($BV$9:BV19),$BU$9:$BV$163,2,0),\"\")","v":"F or B support (lower or push up) "},null,null,null,{"$f":"IF(ISNUMBER(SEARCH($B$17,CD19)),MAX($CC$8:CC18)+1,0)","v":11},"F or B support (lower or push up) ",null,null,{"$f":"IFERROR(VLOOKUP(ROWS($CD$9:CD19),$CC$9:$CD$163,2,0),\"\")","v":"F or B support (lower or push up) "},null,null,null,{"$f":"IF(ISNUMBER(SEARCH($B$18,CL19)),MAX($CK$8:CK18)+1,0)","v":11},"F or B support (lower or push up) ",null,null,{"$f":"IFERROR(VLOOKUP(ROWS($CL$9:CL19),$CK$9:$CL$163,2,0),\"\")","v":"F or B support (lower or push up) "}]
["Judges Section",null,null,"Difficulty content:",null,null,null,null,"Group Content",null,null,null,null,null,null,null,{"$f":"IF(ISNUMBER(SEARCH($B$9,R20)),MAX($Q$8:Q19)+1,0)","v":12},"F Support turn to B Support",null,null,{"$f":"IFERROR(VLOOKUP(ROWS($R$9:R20),$Q$9:$R$163,2,0),\"\")","v":"F Support turn to B Support"},null,null,null,{"$f":"IF(ISNUMBER(SEARCH($B$10,Z20)),MAX($Y$8:Y19)+1,0)","v":12},"F Support turn to B Support",null,null,{"$f":"IFERROR(VLOOKUP(ROWS($Z$9:Z20),$Y$9:$Z$163,2,0),\"\")","v":"F Support turn to B Support"},null,null,null,{"$f":"IF(ISNUMBER(SEARCH($B$11,AH20)),MAX($AG$8:AG19)+1,0)","v":12},"F Support turn to B Support",null,null,{"$f":"IFERROR(VLOOKUP(ROWS($AH$9:AH20),$AG$9:$AH$163,2,0),\"\")","v":"F Support turn to B Support"},null,null,null,{"$f":"IF(ISNUMBER(SEARCH($B$12,AP20)),MAX($AO$8:AO19)+1,0)","v":12},"F Support turn to B Support",null,null,{"$f":"IFERROR(VLOOKUP(ROWS($AP$9:AP20),$AO$9:$AP$163,2,0),\"\")","v":"F Support turn to B Support"},null,null,null,{"$f":"IF(ISNUMBER(SEARCH($B$13,AX20)),MAX($AW$8:AW19)+1,0)","v":12},"F Support turn to B Support",null,null,{"$f":"IFERROR(VLOOKUP(ROWS($AX$9:AX20),$AW$9:$AX$163,2,0),\"\")","v":"F Support turn to B Support"},null,null,null,{"$f":"IF(ISNUMBER(SEARCH($B$14,BF20)),MAX($BE$8:BE19)+1,0)","v":12},"F Support turn to B Support",null,null,{"$f":"IFERROR(VLOOKUP(ROWS($BF$9:BF20),$BE$9:$BF$163,2,0),\"\")","v":"F Support turn to B Support"},null,null,null,{"$f":"IF(ISNUMBER(SEARCH($B$15,BN20)),MAX($BM$8:BM19)+1,0)","v":12},"F Support turn to B Support",null,null,{"$f":"IFERROR(VLOOKUP(ROWS($BN$9:BN20),$BM$9:$BN$163,2,0),\"\")","v":"F Support turn to B Support"},null,null,null,{"$f":"IF(ISNUMBER(SEARCH($B$16,BV20)),MAX($BU$8:BU19)+1,0)","v":12},"F Support turn to B Support",null,null,{"$f":"IFERROR(VLOOKUP(ROWS($BV$9:BV20),$BU$9:$BV$163,2,0),\"\")","v":"F Support turn to B Support"},null,null,null,{"$f":"IF(ISNUMBER(SEARCH($B$17,CD20)),MAX($CC$8:CC19)+1,0)","v":12},"F Support turn to B Support",null,null,{"$f":"IFERROR(VLOOKUP(ROWS($CD$9:CD20),$CC$9:$CD$163,2,0),\"\")","v":"F Support turn to B Support"},null,null,null,{"$f":"IF(ISNUMBER(SEARCH($B$18,CL20)),MAX($CK$8:CK19)+1,0)","v":12},"F Support turn to B Support",null,null,{"$f":"IFERROR(VLOOKUP(ROWS($CL$9:CL20),$CK$9:$CL$163,2,0),\"\")","v":"F Support turn to B Support"}]
[null,null,null,"2 x B = 0.60",null,null,null,null,"2 x Grp 1",null,null,null,"1 = 0.20","E Acro Flight Series = 0.80",null,null,{"$f":"IF(ISNUMBER(SEARCH($B$9,R21)),MAX($Q$8:Q20)+1,0)","v":13},"Piked V sit (hand supp.)",null,null,{"$f":"IFERROR(VLOOKUP(ROWS($R$9:R21),$Q$9:$R$163,2,0),\"\")","v":"Piked V sit (hand supp.)"},null,null,null,{"$f":"IF(ISNUMBER(SEARCH($B$10,Z21)),MAX($Y$8:Y20)+1,0)","v":13},"Piked V sit (hand supp.)",null,null,{"$f":"IFERROR(VLOOKUP(ROWS($Z$9:Z21),$Y$9:$Z$163,2,0),\"\")","v":"Piked V sit (hand supp.)"},null,null,null,{"$f":"IF(ISNUMBER(SEARCH($B$11,AH21)),MAX($AG$8:AG20)+1,0)","v":13},"Piked V sit (hand supp.)",null,null,{"$f":"IFERROR(VLOOKUP(ROWS($AH$9:AH21),$AG$9:$AH$163,2,0),\"\")","v":"Piked V sit (hand supp.)"},null,null,null,{"$f":"IF(ISNUMBER(SEARCH($B$12,AP21)),MAX($AO$8:AO20)+1,0)","v":13},"Piked V sit (hand supp.)",null,null,{"$f":"IFERROR(VLOOKUP(ROWS($AP$9:AP21),$AO$9:$AP$163,2,0),\"\")","v":"Piked V sit (hand supp.)"},null,null,null,{"$f":"IF(ISNUMBER(SEARCH($B$13,AX21)),MAX($AW$8:AW20)+1,0)","v":13},"Piked V sit (hand supp.)",null,null,{"$f":"IFERROR(VLOOKUP(ROWS($AX$9:AX21),$AW$9:$AX$163,2,0),\"\")","v":"Piked V sit (hand supp.)"},null,null,null,{"$f":"IF(ISNUMBER(SEARCH($B$14,BF21)),MAX($BE$8:BE20)+1,0)","v":13},"Piked V sit (hand supp.)",null,null,{"$f":"IFERROR(VLOOKUP(ROWS($BF$9:BF21),$BE$9:$BF$163,2,0),\"\")","v":"Piked V sit (hand supp.)"},null,null,null,{"$f":"IF(ISNUMBER(SEARCH($B$15,BN21)),MAX($BM$8:BM20)+1,0)","v":13},"Piked V sit (hand supp.)",null,null,{"$f":"IFERROR(VLOOKUP(ROWS($BN$9:BN21),$BM$9:$BN$163,2,0),\"\")","v":"Piked V sit (hand supp.)"},null,null,null,{"$f":"IF(ISNUMBER(SEARCH($B$16,BV21)),MAX($BU$8:BU20)+1,0)","v":13},"Piked V sit (hand supp.)",null,null,{"$f":"IFERROR(VLOOKUP(ROWS($BV$9:BV21),$BU$9:$BV$163,2,0),\"\")","v":"Piked V sit (hand supp.)"},null,null,null,{"$f":"IF(ISNUMBER(SEARCH($B$17,CD21)),MAX($CC$8:CC20)+1,0)","v":13},"Piked V sit (hand supp.)",null,null,{"$f":"IFERROR(VLOOKUP(ROWS($CD$9:CD21),$CC$9:$CD$163,2,0),\"\")","v":"Piked V sit (hand supp.)"},null,null,null,{"$f":"IF(ISNUMBER(SEARCH($B$18,CL21)),MAX($CK$8:CK20)+1,0)","v":13},"Piked V sit (hand supp.)",null,null,{"$f":"IFERROR(VLOOKUP(ROWS($CL$9:CL21),$CK$9:$CL$163,2,0),\"\")","v":"Piked V sit (hand supp.)"}]
[null,null,null,"1 x C = 0.50",null,null,null,null,"2 x Grp 2",null,null,null,"2 = 0.20","E Skill Grp  2,3,4 = 0.80",null,null,{"$f":"IF(ISNUMBER(SEARCH($B$9,R22)),MAX($Q$8:Q21)+1,0)","v":14},"½ lever (1 foot on floor)",null,null,{"$f":"IFERROR(VLOOKUP(ROWS($R$9:R22),$Q$9:$R$163,2,0),\"\")","v":"½ lever (1 foot on floor)"},null,null,null,{"$f":"IF(ISNUMBER(SEARCH($B$10,Z22)),MAX($Y$8:Y21)+1,0)","v":14},"½ lever (1 foot on floor)",null,null,{"$f":"IFERROR(VLOOKUP(ROWS($Z$9:Z22),$Y$9:$Z$163,2,0),\"\")","v":"½ lever (1 foot on floor)"},null,null,null,{"$f":"IF(ISNUMBER(SEARCH($B$11,AH22)),MAX($AG$8:AG21)+1,0)","v":14},"½ lever (1 foot on floor)",null,null,{"$f":"IFERROR(VLOOKUP(ROWS($AH$9:AH22),$AG$9:$AH$163,2,0),\"\")","v":"½ lever (1 foot on floor)"},null,null,null,{"$f":"IF(ISNUMBER(SEARCH($B$12,AP22)),MAX($AO$8:AO21)+1,0)","v":14},"½ lever (1 foot on floor)",null,null,{"$f":"IFERROR(VLOOKUP(ROWS($AP$9:AP22),$AO$9:$AP$163,2,0),\"\")","v":"½ lever (1 foot on floor)"},null,null,null,{"$f":"IF(ISNUMBER(SEARCH($B$13,AX22)),MAX($AW$8:AW21)+1,0)","v":14},"½ lever (1 foot on floor)",null,null,{"$f":"IFERROR(VLOOKUP(ROWS($AX$9:AX22),$AW$9:$AX$163,2,0),\"\")","v":"½ lever (1 foot on floor)"},null,null,null,{"$f":"IF(ISNUMBER(SEARCH($B$14,BF22)),MAX($BE$8:BE21)+1,0)","v":14},"½ lever (1 foot on floor)",null,null,{"$f":"IFERROR(VLOOKUP(ROWS($BF$9:BF22),$BE$9:$BF$163,2,0),\"\")","v":"½ lever (1 foot on floor)"},null,null,null,{"$f":"IF(ISNUMBER(SEARCH($B$15,BN22)),MAX($BM$8:BM21)+1,0)","v":14},"½ lever (1 foot on floor)",null,null,{"$f":"IFERROR(VLOOKUP(ROWS($BN$9:BN22),$BM$9:$BN$163,2,0),\"\")","v":"½ lever (1 foot on floor)"},null,null,null,{"$f":"IF(ISNUMBER(SEARCH($B$16,BV22)),MAX($BU$8:BU21)+1,0)","v":14},"½ lever (1 foot on floor)",null,null,{"$f":"IFERROR(VLOOKUP(ROWS($BV$9:BV22),$BU$9:$BV$163,2,0),\"\")","v":"½ lever (1 foot on floor)"},null,null,null,{"$f":"IF(ISNUMBER(SEARCH($B$17,CD22)),MAX($CC$8:CC21)+1,0)","v":14},"½ lever (1 foot on floor)",null,null,{"$f":"IFERROR(VLOOKUP(ROWS($CD$9:CD22),$CC$9:$CD$163,2,0),\"\")","v":"½ lever (1 foot on floor)"},null,null,null,{"$f":"IF(ISNUMBER(SEARCH($B$18,CL22)),MAX($CK$8:CK21)+1,0)","v":14},"½ lever (1 foot on floor)",null,null,{"$f":"IFERROR(VLOOKUP(ROWS($CL$9:CL22),$CK$9:$CL$163,2,0),\"\")","v":"½ lever (1 foot on floor)"}]
[null,null,null,"1 x D = 0.70",null,null,null,null,"2 x Grp 3",null,null,null,"3 = 0.20",null,null,null,{"$f":"IF(ISNUMBER(SEARCH($B$9,R23)),MAX($Q$8:Q22)+1,0)","v":15},"Headstand  (leg optional)",null,null,{"$f":"IFERROR(VLOOKUP(ROWS($R$9:R23),$Q$9:$R$163,2,0),\"\")","v":"Headstand  (leg optional)"},null,null,null,{"$f":"IF(ISNUMBER(SEARCH($B$10,Z23)),MAX($Y$8:Y22)+1,0)","v":15},"Headstand  (leg optional)",null,null,{"$f":"IFERROR(VLOOKUP(ROWS($Z$9:Z23),$Y$9:$Z$163,2,0),\"\")","v":"Headstand  (leg optional)"},null,null,null,{"$f":"IF(ISNUMBER(SEARCH($B$11,AH23)),MAX($AG$8:AG22)+1,0)","v":15},"Headstand  (leg optional)",null,null,{"$f":"IFERROR(VLOOKUP(ROWS($AH$9:AH23),$AG$9:$AH$163,2,0),\"\")","v":"Headstand  (leg optional)"},null,null,null,{"$f":"IF(ISNUMBER(SEARCH($B$12,AP23)),MAX($AO$8:AO22)+1,0)","v":15},"Headstand  (leg optional)",null,null,{"$f":"IFERROR(VLOOKUP(ROWS($AP$9:AP23),$AO$9:$AP$163,2,0),\"\")","v":"Headstand  (leg optional)"},null,null,null,{"$f":"IF(ISNUMBER(SEARCH($B$13,AX23)),MAX($AW$8:AW22)+1,0)","v":15},"Headstand  (leg optional)",null,null,{"$f":"IFERROR(VLOOKUP(ROWS($AX$9:AX23),$AW$9:$AX$163,2,0),\"\")","v":"Headstand  (leg optional)"},null,null,null,{"$f":"IF(ISNUMBER(SEARCH($B$14,BF23)),MAX($BE$8:BE22)+1,0)","v":15},"Headstand  (leg optional)",null,null,{"$f":"IFERROR(VLOOKUP(ROWS($BF$9:BF23),$BE$9:$BF$163,2,0),\"\")","v":"Headstand  (leg optional)"},null,null,null,{"$f":"IF(ISNUMBER(SEARCH($B$15,BN23)),MAX($BM$8:BM22)+1,0)","v":15},"Headstand  (leg optional)",null,null,{"$f":"IFERROR(VLOOKUP(ROWS($BN$9:BN23),$BM$9:$BN$163,2,0),\"\")","v":"Headstand  (leg optional)"},null,null,null,{"$f":"IF(ISNUMBER(SEARCH($B$16,BV23)),MAX($BU$8:BU22)+1,0)","v":15},"Headstand  (leg optional)",null,null,{"$f":"IFERROR(VLOOKUP(ROWS($BV$9:BV23),$BU$9:$BV$163,2,0),\"\")","v":"Headstand  (leg optional)"},null,null,null,{"$f":"IF(ISNUMBER(SEARCH($B$17,CD23)),MAX($CC$8:CC22)+1,0)","v":15},"Headstand  (leg optional)",null,null,{"$f":"IFERROR(VLOOKUP(ROWS($CD$9:CD23),$CC$9:$CD$163,2,0),\"\")","v":"Headstand  (leg optional)"},null,null,null,{"$f":"IF(ISNUMBER(SEARCH($B$18,CL23)),MAX($CK$8:CK22)+1,0)","v":15},"Headstand  (leg optional)",null,null,{"$f":"IFERROR(VLOOKUP(ROWS($CL$9:CL23),$CK$9:$CL$163,2,0),\"\")","v":"Headstand  (leg optional)"},null,null,null," "]
[null,null,null,"1 x E = 0.80",null,null,null,null,"2 x Grp 4",null,null,null,null,null,null,null,{"$f":"IF(ISNUMBER(SEARCH($B$9,R24)),MAX($Q$8:Q23)+1,0)","v":16},"Shoulder stand (hip supp)",null,null,{"$f":"IFERROR(VLOOKUP(ROWS($R$9:R24),$Q$9:$R$163,2,0),\"\")","v":"Shoulder stand (hip supp)"},null,null,null,{"$f":"IF(ISNUMBER(SEARCH($B$10,Z24)),MAX($Y$8:Y23)+1,0)","v":16},"Shoulder stand (hip supp)",null,null,{"$f":"IFERROR(VLOOKUP(ROWS($Z$9:Z24),$Y$9:$Z$163,2,0),\"\")","v":"Shoulder stand (hip supp)"},null,null,null,{"$f":"IF(ISNUMBER(SEARCH($B$11,AH24)),MAX($AG$8:AG23)+1,0)","v":16},"Shoulder stand (hip supp)",null,null,{"$f":"IFERROR(VLOOKUP(ROWS($AH$9:AH24),$AG$9:$AH$163,2,0),\"\")","v":"Shoulder stand (hip supp)"},null,null,null,{"$f":"IF(ISNUMBER(SEARCH($B$12,AP24)),MAX($AO$8:AO23)+1,0)","v":16},"Shoulder stand (hip supp)",null,null,{"$f":"IFERROR(VLOOKUP(ROWS($AP$9:AP24),$AO$9:$AP$163,2,0),\"\")","v":"Shoulder stand (hip supp)"},null,null,null,{"$f":"IF(ISNUMBER(SEARCH($B$13,AX24)),MAX($AW$8:AW23)+1,0)","v":16},"Shoulder stand (hip supp)",null,null,{"$f":"IFERROR(VLOOKUP(ROWS($AX$9:AX24),$AW$9:$AX$163,2,0),\"\")","v":"Shoulder stand (hip supp)"},null,null,null,{"$f":"IF(ISNUMBER(SEARCH($B$14,BF24)),MAX($BE$8:BE23)+1,0)","v":16},"Shoulder stand (hip supp)",null,null,{"$f":"IFERROR(VLOOKUP(ROWS($BF$9:BF24),$BE$9:$BF$163,2,0),\"\")","v":"Shoulder stand (hip supp)"},null,null,null,{"$f":"IF(ISNUMBER(SEARCH($B$15,BN24)),MAX($BM$8:BM23)+1,0)","v":16},"Shoulder stand (hip supp)",null,null,{"$f":"IFERROR(VLOOKUP(ROWS($BN$9:BN24),$BM$9:$BN$163,2,0),\"\")","v":"Shoulder stand (hip supp)"},null,null,null,{"$f":"IF(ISNUMBER(SEARCH($B$16,BV24)),MAX($BU$8:BU23)+1,0)","v":16},"Shoulder stand (hip supp)",null,null,{"$f":"IFERROR(VLOOKUP(ROWS($BV$9:BV24),$BU$9:$BV$163,2,0),\"\")","v":"Shoulder stand (hip supp)"},null,null,null,{"$f":"IF(ISNUMBER(SEARCH($B$17,CD24)),MAX($CC$8:CC23)+1,0)","v":16},"Shoulder stand (hip supp)",null,null,{"$f":"IFERROR(VLOOKUP(ROWS($CD$9:CD24),$CC$9:$CD$163,2,0),\"\")","v":"Shoulder stand (hip supp)"},null,null,null,{"$f":"IF(ISNUMBER(SEARCH($B$18,CL24)),MAX($CK$8:CK23)+1,0)","v":16},"Shoulder stand (hip supp)",null,null,{"$f":"IFERROR(VLOOKUP(ROWS($CL$9:CL24),$CK$9:$CL$163,2,0),\"\")","v":"Shoulder stand (hip supp)"}]
[null,null,null,null,null,null,null,null,null,null,null,null,null,null,null,null,{"$f":"IF(ISNUMBER(SEARCH($B$9,R25)),MAX($Q$8:Q24)+1,0)","v":17},"Forward Roll ",null,null,{"$f":"IFERROR(VLOOKUP(ROWS($R$9:R25),$Q$9:$R$163,2,0),\"\")","v":"Forward Roll "},null,null,null,{"$f":"IF(ISNUMBER(SEARCH($B$10,Z25)),MAX($Y$8:Y24)+1,0)","v":17},"Forward Roll ",null,null,{"$f":"IFERROR(VLOOKUP(ROWS($Z$9:Z25),$Y$9:$Z$163,2,0),\"\")","v":"Forward Roll "},null,null,null,{"$f":"IF(ISNUMBER(SEARCH($B$11,AH25)),MAX($AG$8:AG24)+1,0)","v":17},"Forward Roll ",null,null,{"$f":"IFERROR(VLOOKUP(ROWS($AH$9:AH25),$AG$9:$AH$163,2,0),\"\")","v":"Forward Roll "},null,null,null,{"$f":"IF(ISNUMBER(SEARCH($B$12,AP25)),MAX($AO$8:AO24)+1,0)","v":17},"Forward Roll ",null,null,{"$f":"IFERROR(VLOOKUP(ROWS($AP$9:AP25),$AO$9:$AP$163,2,0),\"\")","v":"Forward Roll "},null,null,null,{"$f":"IF(ISNUMBER(SEARCH($B$13,AX25)),MAX($AW$8:AW24)+1,0)","v":17},"Forward Roll ",null,null,{"$f":"IFERROR(VLOOKUP(ROWS($AX$9:AX25),$AW$9:$AX$163,2,0),\"\")","v":"Forward Roll "},null,null,null,{"$f":"IF(ISNUMBER(SEARCH($B$14,BF25)),MAX($BE$8:BE24)+1,0)","v":17},"Forward Roll ",null,null,{"$f":"IFERROR(VLOOKUP(ROWS($BF$9:BF25),$BE$9:$BF$163,2,0),\"\")","v":"Forward Roll "},null,null,null,{"$f":"IF(ISNUMBER(SEARCH($B$15,BN25)),MAX($BM$8:BM24)+1,0)","v":17},"Forward Roll ",null,null,{"$f":"IFERROR(VLOOKUP(ROWS($BN$9:BN25),$BM$9:$BN$163,2,0),\"\")","v":"Forward Roll "},null,null,null,{"$f":"IF(ISNUMBER(SEARCH($B$16,BV25)),MAX($BU$8:BU24)+1,0)","v":17},"Forward Roll ",null,null,{"$f":"IFERROR(VLOOKUP(ROWS($BV$9:BV25),$BU$9:$BV$163,2,0),\"\")","v":"Forward Roll "},null,null,null,{"$f":"IF(ISNUMBER(SEARCH($B$17,CD25)),MAX($CC$8:CC24)+1,0)","v":17},"Forward Roll ",null,null,{"$f":"IFERROR(VLOOKUP(ROWS($CD$9:CD25),$CC$9:$CD$163,2,0),\"\")","v":"Forward Roll "},null,null,null,{"$f":"IF(ISNUMBER(SEARCH($B$18,CL25)),MAX($CK$8:CK24)+1,0)","v":17},"Forward Roll ",null,null,{"$f":"IFERROR(VLOOKUP(ROWS($CL$9:CL25),$CK$9:$CL$163,2,0),\"\")","v":"Forward Roll "}]
[null,null,null,"Total = 2.60",null,null,null,null,null,null,null,null,"Total = 0.60","Total = 1.60",null,null,{"$f":"IF(ISNUMBER(SEARCH($B$9,R26)),MAX($Q$8:Q25)+1,0)","v":18},"Back Roll & to straddle",null,null,{"$f":"IFERROR(VLOOKUP(ROWS($R$9:R26),$Q$9:$R$163,2,0),\"\")","v":"Back Roll & to straddle"},null,null,null,{"$f":"IF(ISNUMBER(SEARCH($B$10,Z26)),MAX($Y$8:Y25)+1,0)","v":18},"Back Roll & to straddle",null,null,{"$f":"IFERROR(VLOOKUP(ROWS($Z$9:Z26),$Y$9:$Z$163,2,0),\"\")","v":"Back Roll & to straddle"},null,null,null,{"$f":"IF(ISNUMBER(SEARCH($B$11,AH26)),MAX($AG$8:AG25)+1,0)","v":18},"Back Roll & to straddle",null,null,{"$f":"IFERROR(VLOOKUP(ROWS($AH$9:AH26),$AG$9:$AH$163,2,0),\"\")","v":"Back Roll & to straddle"},null,null,null,{"$f":"IF(ISNUMBER(SEARCH($B$12,AP26)),MAX($AO$8:AO25)+1,0)","v":18},"Back Roll & to straddle",null,null,{"$f":"IFERROR(VLOOKUP(ROWS($AP$9:AP26),$AO$9:$AP$163,2,0),\"\")","v":"Back Roll & to straddle"},null,null,null,{"$f":"IF(ISNUMBER(SEARCH($B$13,AX26)),MAX($AW$8:AW25)+1,0)","v":18},"Back Roll & to straddle",null,null,{"$f":"IFERROR(VLOOKUP(ROWS($AX$9:AX26),$AW$9:$AX$163,2,0),\"\")","v":"Back Roll & to straddle"},null,null,null,{"$f":"IF(ISNUMBER(SEARCH($B$14,BF26)),MAX($BE$8:BE25)+1,0)","v":18},"Back Roll & to straddle",null,null,{"$f":"IFERROR(VLOOKUP(ROWS($BF$9:BF26),$BE$9:$BF$163,2,0),\"\")","v":"Back Roll & to straddle"},null,null,null,{"$f":"IF(ISNUMBER(SEARCH($B$15,BN26)),MAX($BM$8:BM25)+1,0)","v":18},"Back Roll & to straddle",null,null,{"$f":"IFERROR(VLOOKUP(ROWS($BN$9:BN26),$BM$9:$BN$163,2,0),\"\")","v":"Back Roll & to straddle"},null,null,null,{"$f":"IF(ISNUMBER(SEARCH($B$16,BV26)),MAX($BU$8:BU25)+1,0)","v":18},"Back Roll & to straddle",null,null,{"$f":"IFERROR(VLOOKUP(ROWS($BV$9:BV26),$BU$9:$BV$163,2,0),\"\")","v":"Back Roll & to straddle"},null,null,null,{"$f":"IF(ISNUMBER(SEARCH($B$17,CD26)),MAX($CC$8:CC25)+1,0)","v":18},"Back Roll & to straddle",null,null,{"$f":"IFERROR(VLOOKUP(ROWS($CD$9:CD26),$CC$9:$CD$163,2,0),\"\")","v":"Back Roll & to straddle"},null,null,null,{"$f":"IF(ISNUMBER(SEARCH($B$18,CL26)),MAX($CK$8:CK25)+1,0)","v":18},"Back Roll & to straddle",null,null,{"$f":"IFERROR(VLOOKUP(ROWS($CL$9:CL26),$CK$9:$CL$163,2,0),\"\")","v":"Back Roll & to straddle"}]
[null,null,null,null,null,null,null,null,null,null,null,null,null,null,null,null,{"$f":"IF(ISNUMBER(SEARCH($B$9,R27)),MAX($Q$8:Q26)+1,0)","v":19},"Circle (‘teddy bear’) roll",null,null,{"$f":"IFERROR(VLOOKUP(ROWS($R$9:R27),$Q$9:$R$163,2,0),\"\")","v":"Circle (‘teddy bear’) roll"},null,null,null,{"$f":"IF(ISNUMBER(SEARCH($B$10,Z27)),MAX($Y$8:Y26)+1,0)","v":19},"Circle (‘teddy bear’) roll",null,null,{"$f":"IFERROR(VLOOKUP(ROWS($Z$9:Z27),$Y$9:$Z$163,2,0),\"\")","v":"Circle (‘teddy bear’) roll"},null,null,null,{"$f":"IF(ISNUMBER(SEARCH($B$11,AH27)),MAX($AG$8:AG26)+1,0)","v":19},"Circle (‘teddy bear’) roll",null,null,{"$f":"IFERROR(VLOOKUP(ROWS($AH$9:AH27),$AG$9:$AH$163,2,0),\"\")","v":"Circle (‘teddy bear’) roll"},null,null,null,{"$f":"IF(ISNUMBER(SEARCH($B$12,AP27)),MAX($AO$8:AO26)+1,0)","v":19},"Circle (‘teddy bear’) roll",null,null,{"$f":"IFERROR(VLOOKUP(ROWS($AP$9:AP27),$AO$9:$AP$163,2,0),\"\")","v":"Circle (‘teddy bear’) roll"},null,null,null,{"$f":"IF(ISNUMBER(SEARCH($B$13,AX27)),MAX($AW$8:AW26)+1,0)","v":19},"Circle (‘teddy bear’) roll",null,null,{"$f":"IFERROR(VLOOKUP(ROWS($AX$9:AX27),$AW$9:$AX$163,2,0),\"\")","v":"Circle (‘teddy bear’) roll"},null,null,null,{"$f":"IF(ISNUMBER(SEARCH($B$14,BF27)),MAX($BE$8:BE26)+1,0)","v":19},"Circle (‘teddy bear’) roll",null,null,{"$f":"IFERROR(VLOOKUP(ROWS($BF$9:BF27),$BE$9:$BF$163,2,0),\"\")","v":"Circle (‘teddy bear’) roll"},null,null,null,{"$f":"IF(ISNUMBER(SEARCH($B$15,BN27)),MAX($BM$8:BM26)+1,0)","v":19},"Circle (‘teddy bear’) roll",null,null,{"$f":"IFERROR(VLOOKUP(ROWS($BN$9:BN27),$BM$9:$BN$163,2,0),\"\")","v":"Circle (‘teddy bear’) roll"},null,null,null,{"$f":"IF(ISNUMBER(SEARCH($B$16,BV27)),MAX($BU$8:BU26)+1,0)","v":19},"Circle (‘teddy bear’) roll",null,null,{"$f":"IFERROR(VLOOKUP(ROWS($BV$9:BV27),$BU$9:$BV$163,2,0),\"\")","v":"Circle (‘teddy bear’) roll"},null,null,null,{"$f":"IF(ISNUMBER(SEARCH($B$17,CD27)),MAX($CC$8:CC26)+1,0)","v":19},"Circle (‘teddy bear’) roll",null,null,{"$f":"IFERROR(VLOOKUP(ROWS($CD$9:CD27),$CC$9:$CD$163,2,0),\"\")","v":"Circle (‘teddy bear’) roll"},null,null,null,{"$f":"IF(ISNUMBER(SEARCH($B$18,CL27)),MAX($CK$8:CK26)+1,0)","v":19},"Circle (‘teddy bear’) roll",null,null,{"$f":"IFERROR(VLOOKUP(ROWS($CL$9:CL27),$CK$9:$CL$163,2,0),\"\")","v":"Circle (‘teddy bear’) roll"}]
["Execution",null,null,5,null,null,null,null,null,null,null,null,null,null,null,null,{"$f":"IF(ISNUMBER(SEARCH($B$9,R28)),MAX($Q$8:Q27)+1,0)","v":20},"Side Roll (various shapes)",null,null,{"$f":"IFERROR(VLOOKUP(ROWS($R$9:R28),$Q$9:$R$163,2,0),\"\")","v":"Side Roll (various shapes)"},null,null,null,{"$f":"IF(ISNUMBER(SEARCH($B$10,Z28)),MAX($Y$8:Y27)+1,0)","v":20},"Side Roll (various shapes)",null,null,{"$f":"IFERROR(VLOOKUP(ROWS($Z$9:Z28),$Y$9:$Z$163,2,0),\"\")","v":"Side Roll (various shapes)"},null,null,null,{"$f":"IF(ISNUMBER(SEARCH($B$11,AH28)),MAX($AG$8:AG27)+1,0)","v":20},"Side Roll (various shapes)",null,null,{"$f":"IFERROR(VLOOKUP(ROWS($AH$9:AH28),$AG$9:$AH$163,2,0),\"\")","v":"Side Roll (various shapes)"},null,null,null,{"$f":"IF(ISNUMBER(SEARCH($B$12,AP28)),MAX($AO$8:AO27)+1,0)","v":20},"Side Roll (various shapes)",null,null,{"$f":"IFERROR(VLOOKUP(ROWS($AP$9:AP28),$AO$9:$AP$163,2,0),\"\")","v":"Side Roll (various shapes)"},null,null,null,{"$f":"IF(ISNUMBER(SEARCH($B$13,AX28)),MAX($AW$8:AW27)+1,0)","v":20},"Side Roll (various shapes)",null,null,{"$f":"IFERROR(VLOOKUP(ROWS($AX$9:AX28),$AW$9:$AX$163,2,0),\"\")","v":"Side Roll (various shapes)"},null,null,null,{"$f":"IF(ISNUMBER(SEARCH($B$14,BF28)),MAX($BE$8:BE27)+1,0)","v":20},"Side Roll (various shapes)",null,null,{"$f":"IFERROR(VLOOKUP(ROWS($BF$9:BF28),$BE$9:$BF$163,2,0),\"\")","v":"Side Roll (various shapes)"},null,null,null,{"$f":"IF(ISNUMBER(SEARCH($B$15,BN28)),MAX($BM$8:BM27)+1,0)","v":20},"Side Roll (various shapes)",null,null,{"$f":"IFERROR(VLOOKUP(ROWS($BN$9:BN28),$BM$9:$BN$163,2,0),\"\")","v":"Side Roll (various shapes)"},null,null,null,{"$f":"IF(ISNUMBER(SEARCH($B$16,BV28)),MAX($BU$8:BU27)+1,0)","v":20},"Side Roll (various shapes)",null,null,{"$f":"IFERROR(VLOOKUP(ROWS($BV$9:BV28),$BU$9:$BV$163,2,0),\"\")","v":"Side Roll (various shapes)"},null,null,null,{"$f":"IF(ISNUMBER(SEARCH($B$17,CD28)),MAX($CC$8:CC27)+1,0)","v":20},"Side Roll (various shapes)",null,null,{"$f":"IFERROR(VLOOKUP(ROWS($CD$9:CD28),$CC$9:$CD$163,2,0),\"\")","v":"Side Roll (various shapes)"},null,null,null,{"$f":"IF(ISNUMBER(SEARCH($B$18,CL28)),MAX($CK$8:CK27)+1,0)","v":20},"Side Roll (various shapes)",null,null,{"$f":"IFERROR(VLOOKUP(ROWS($CL$9:CL28),$CK$9:$CL$163,2,0),\"\")","v":"Side Roll (various shapes)"}]
["Artistry / Linkage",null,null,0.2,null,null,null,null,null,null,null,null,null,null,null,null,{"$f":"IF(ISNUMBER(SEARCH($B$9,R29)),MAX($Q$8:Q28)+1,0)","v":21},"Egg roll (leg shape optional)",null,null,{"$f":"IFERROR(VLOOKUP(ROWS($R$9:R29),$Q$9:$R$163,2,0),\"\")","v":"Egg roll (leg shape optional)"},null,null,null,{"$f":"IF(ISNUMBER(SEARCH($B$10,Z29)),MAX($Y$8:Y28)+1,0)","v":21},"Egg roll (leg shape optional)",null,null,{"$f":"IFERROR(VLOOKUP(ROWS($Z$9:Z29),$Y$9:$Z$163,2,0),\"\")","v":"Egg roll (leg shape optional)"},null,null,null,{"$f":"IF(ISNUMBER(SEARCH($B$11,AH29)),MAX($AG$8:AG28)+1,0)","v":21},"Egg roll (leg shape optional)",null,null,{"$f":"IFERROR(VLOOKUP(ROWS($AH$9:AH29),$AG$9:$AH$163,2,0),\"\")","v":"Egg roll (leg shape optional)"},null,null,null,{"$f":"IF(ISNUMBER(SEARCH($B$12,AP29)),MAX($AO$8:AO28)+1,0)","v":21},"Egg roll (leg shape optional)",null,null,{"$f":"IFERROR(VLOOKUP(ROWS($AP$9:AP29),$AO$9:$AP$163,2,0),\"\")","v":"Egg roll (leg shape optional)"},null,null,null,{"$f":"IF(ISNUMBER(SEARCH($B$13,AX29)),MAX($AW$8:AW28)+1,0)","v":21},"Egg roll (leg shape optional)",null,null,{"$f":"IFERROR(VLOOKUP(ROWS($AX$9:AX29),$AW$9:$AX$163,2,0),\"\")","v":"Egg roll (leg shape optional)"},null,null,null,{"$f":"IF(ISNUMBER(SEARCH($B$14,BF29)),MAX($BE$8:BE28)+1,0)","v":21},"Egg roll (leg shape optional)",null,null,{"$f":"IFERROR(VLOOKUP(ROWS($BF$9:BF29),$BE$9:$BF$163,2,0),\"\")","v":"Egg roll (leg shape optional)"},null,null,null,{"$f":"IF(ISNUMBER(SEARCH($B$15,BN29)),MAX($BM$8:BM28)+1,0)","v":21},"Egg roll (leg shape optional)",null,null,{"$f":"IFERROR(VLOOKUP(ROWS($BN$9:BN29),$BM$9:$BN$163,2,0),\"\")","v":"Egg roll (leg shape optional)"},null,null,null,{"$f":"IF(ISNUMBER(SEARCH($B$16,BV29)),MAX($BU$8:BU28)+1,0)","v":21},"Egg roll (leg shape optional)",null,null,{"$f":"IFERROR(VLOOKUP(ROWS($BV$9:BV29),$BU$9:$BV$163,2,0),\"\")","v":"Egg roll (leg shape optional)"},null,null,null,{"$f":"IF(ISNUMBER(SEARCH($B$17,CD29)),MAX($CC$8:CC28)+1,0)","v":21},"Egg roll (leg shape optional)",null,null,{"$f":"IFERROR(VLOOKUP(ROWS($CD$9:CD29),$CC$9:$CD$163,2,0),\"\")","v":"Egg roll (leg shape optional)"},null,null,null,{"$f":"IF(ISNUMBER(SEARCH($B$18,CL29)),MAX($CK$8:CK28)+1,0)","v":21},"Egg roll (leg shape optional)",null,null,{"$f":"IFERROR(VLOOKUP(ROWS($CL$9:CL29),$CK$9:$CL$163,2,0),\"\")","v":"Egg roll (leg shape optional)"}]
["Total Start Value:",null,null,null,null,null,null,null,"Total Execution:",null,null,null,null,null,null,null,{"$f":"IF(ISNUMBER(SEARCH($B$9,R30)),MAX($Q$8:Q29)+1,0)","v":22},"Tuck Bunny Hop to Handstand ",null,null,{"$f":"IFERROR(VLOOKUP(ROWS($R$9:R30),$Q$9:$R$163,2,0),\"\")","v":"Tuck Bunny Hop to Handstand "},null,null,null,{"$f":"IF(ISNUMBER(SEARCH($B$10,Z30)),MAX($Y$8:Y29)+1,0)","v":22},"Tuck Bunny Hop to Handstand ",null,null,{"$f":"IFERROR(VLOOKUP(ROWS($Z$9:Z30),$Y$9:$Z$163,2,0),\"\")","v":"Tuck Bunny Hop to Handstand "},null,null,null,{"$f":"IF(ISNUMBER(SEARCH($B$11,AH30)),MAX($AG$8:AG29)+1,0)","v":22},"Tuck Bunny Hop to Handstand ",null,null,{"$f":"IFERROR(VLOOKUP(ROWS($AH$9:AH30),$AG$9:$AH$163,2,0),\"\")","v":"Tuck Bunny Hop to Handstand "},null,null,null,{"$f":"IF(ISNUMBER(SEARCH($B$12,AP30)),MAX($AO$8:AO29)+1,0)","v":22},"Tuck Bunny Hop to Handstand ",null,null,{"$f":"IFERROR(VLOOKUP(ROWS($AP$9:AP30),$AO$9:$AP$163,2,0),\"\")","v":"Tuck Bunny Hop to Handstand "},null,null,null,{"$f":"IF(ISNUMBER(SEARCH($B$13,AX30)),MAX($AW$8:AW29)+1,0)","v":22},"Tuck Bunny Hop to Handstand ",null,null,{"$f":"IFERROR(VLOOKUP(ROWS($AX$9:AX30),$AW$9:$AX$163,2,0),\"\")","v":"Tuck Bunny Hop to Handstand "},null,null,null,{"$f":"IF(ISNUMBER(SEARCH($B$14,BF30)),MAX($BE$8:BE29)+1,0)","v":22},"Tuck Bunny Hop to Handstand ",null,null,{"$f":"IFERROR(VLOOKUP(ROWS($BF$9:BF30),$BE$9:$BF$163,2,0),\"\")","v":"Tuck Bunny Hop to Handstand "},null,null,null,{"$f":"IF(ISNUMBER(SEARCH($B$15,BN30)),MAX($BM$8:BM29)+1,0)","v":22},"Tuck Bunny Hop to Handstand ",null,null,{"$f":"IFERROR(VLOOKUP(ROWS($BN$9:BN30),$BM$9:$BN$163,2,0),\"\")","v":"Tuck Bunny Hop to Handstand "},null,null,null,{"$f":"IF(ISNUMBER(SEARCH($B$16,BV30)),MAX($BU$8:BU29)+1,0)","v":22},"Tuck Bunny Hop to Handstand ",null,null,{"$f":"IFERROR(VLOOKUP(ROWS($BV$9:BV30),$BU$9:$BV$163,2,0),\"\")","v":"Tuck Bunny Hop to Handstand "},null,null,null,{"$f":"IF(ISNUMBER(SEARCH($B$17,CD30)),MAX($CC$8:CC29)+1,0)","v":22},"Tuck Bunny Hop to Handstand ",null,null,{"$f":"IFERROR(VLOOKUP(ROWS($CD$9:CD30),$CC$9:$CD$163,2,0),\"\")","v":"Tuck Bunny Hop to Handstand "},null,null,null,{"$f":"IF(ISNUMBER(SEARCH($B$18,CL30)),MAX($CK$8:CK29)+1,0)","v":22},"Tuck Bunny Hop to Handstand ",null,null,{"$f":"IFERROR(VLOOKUP(ROWS($CL$9:CL30),$CK$9:$CL$163,2,0),\"\")","v":"Tuck Bunny Hop to Handstand "}]
[null,null,null,null,null,null,null,null,null,null,null,null,null,null,null,null,{"$f":"IF(ISNUMBER(SEARCH($B$9,R31)),MAX($Q$8:Q30)+1,0)","v":23},"Handstand return to feet",null,null,{"$f":"IFERROR(VLOOKUP(ROWS($R$9:R31),$Q$9:$R$163,2,0),\"\")","v":"Handstand return to feet"},null,null,null,{"$f":"IF(ISNUMBER(SEARCH($B$10,Z31)),MAX($Y$8:Y30)+1,0)","v":23},"Handstand return to feet",null,null,{"$f":"IFERROR(VLOOKUP(ROWS($Z$9:Z31),$Y$9:$Z$163,2,0),\"\")","v":"Handstand return to feet"},null,null,null,{"$f":"IF(ISNUMBER(SEARCH($B$11,AH31)),MAX($AG$8:AG30)+1,0)","v":23},"Handstand return to feet",null,null,{"$f":"IFERROR(VLOOKUP(ROWS($AH$9:AH31),$AG$9:$AH$163,2,0),\"\")","v":"Handstand return to feet"},null,null,null,{"$f":"IF(ISNUMBER(SEARCH($B$12,AP31)),MAX($AO$8:AO30)+1,0)","v":23},"Handstand return to feet",null,null,{"$f":"IFERROR(VLOOKUP(ROWS($AP$9:AP31),$AO$9:$AP$163,2,0),\"\")","v":"Handstand return to feet"},null,null,null,{"$f":"IF(ISNUMBER(SEARCH($B$13,AX31)),MAX($AW$8:AW30)+1,0)","v":23},"Handstand return to feet",null,null,{"$f":"IFERROR(VLOOKUP(ROWS($AX$9:AX31),$AW$9:$AX$163,2,0),\"\")","v":"Handstand return to feet"},null,null,null,{"$f":"IF(ISNUMBER(SEARCH($B$14,BF31)),MAX($BE$8:BE30)+1,0)","v":23},"Handstand return to feet",null,null,{"$f":"IFERROR(VLOOKUP(ROWS($BF$9:BF31),$BE$9:$BF$163,2,0),\"\")","v":"Handstand return to feet"},null,null,null,{"$f":"IF(ISNUMBER(SEARCH($B$15,BN31)),MAX($BM$8:BM30)+1,0)","v":23},"Handstand return to feet",null,null,{"$f":"IFERROR(VLOOKUP(ROWS($BN$9:BN31),$BM$9:$BN$163,2,0),\"\")","v":"Handstand return to feet"},null,null,null,{"$f":"IF(ISNUMBER(SEARCH($B$16,BV31)),MAX($BU$8:BU30)+1,0)","v":23},"Handstand return to feet",null,null,{"$f":"IFERROR(VLOOKUP(ROWS($BV$9:BV31),$BU$9:$BV$163,2,0),\"\")","v":"Handstand return to feet"},null,null,null,{"$f":"IF(ISNUMBER(SEARCH($B$17,CD31)),MAX($CC$8:CC30)+1,0)","v":23},"Handstand return to feet",null,null,{"$f":"IFERROR(VLOOKUP(ROWS($CD$9:CD31),$CC$9:$CD$163,2,0),\"\")","v":"Handstand return to feet"},null,null,null,{"$f":"IF(ISNUMBER(SEARCH($B$18,CL31)),MAX($CK$8:CK30)+1,0)","v":23},"Handstand return to feet",null,null,{"$f":"IFERROR(VLOOKUP(ROWS($CL$9:CL31),$CK$9:$CL$163,2,0),\"\")","v":"Handstand return to feet"}]
[null,null,null,"B","C","D","E",null,1,2,3,4,"Sex","Bonus - E AFS",null,null,{"$f":"IF(ISNUMBER(SEARCH($B$9,R32)),MAX($Q$8:Q31)+1,0)","v":24},"Cartwheel",null,null,{"$f":"IFERROR(VLOOKUP(ROWS($R$9:R32),$Q$9:$R$163,2,0),\"\")","v":"Cartwheel"},null,null,null,{"$f":"IF(ISNUMBER(SEARCH($B$10,Z32)),MAX($Y$8:Y31)+1,0)","v":24},"Cartwheel",null,null,{"$f":"IFERROR(VLOOKUP(ROWS($Z$9:Z32),$Y$9:$Z$163,2,0),\"\")","v":"Cartwheel"},null,null,null,{"$f":"IF(ISNUMBER(SEARCH($B$11,AH32)),MAX($AG$8:AG31)+1,0)","v":24},"Cartwheel",null,null,{"$f":"IFERROR(VLOOKUP(ROWS($AH$9:AH32),$AG$9:$AH$163,2,0),\"\")","v":"Cartwheel"},null,null,null,{"$f":"IF(ISNUMBER(SEARCH($B$12,AP32)),MAX($AO$8:AO31)+1,0)","v":24},"Cartwheel",null,null,{"$f":"IFERROR(VLOOKUP(ROWS($AP$9:AP32),$AO$9:$AP$163,2,0),\"\")","v":"Cartwheel"},null,null,null,{"$f":"IF(ISNUMBER(SEARCH($B$13,AX32)),MAX($AW$8:AW31)+1,0)","v":24},"Cartwheel",null,null,{"$f":"IFERROR(VLOOKUP(ROWS($AX$9:AX32),$AW$9:$AX$163,2,0),\"\")","v":"Cartwheel"},null,null,null,{"$f":"IF(ISNUMBER(SEARCH($B$14,BF32)),MAX($BE$8:BE31)+1,0)","v":24},"Cartwheel",null,null,{"$f":"IFERROR(VLOOKUP(ROWS($BF$9:BF32),$BE$9:$BF$163,2,0),\"\")","v":"Cartwheel"},null,null,null,{"$f":"IF(ISNUMBER(SEARCH($B$15,BN32)),MAX($BM$8:BM31)+1,0)","v":24},"Cartwheel",null,null,{"$f":"IFERROR(VLOOKUP(ROWS($BN$9:BN32),$BM$9:$BN$163,2,0),\"\")","v":"Cartwheel"},null,null,null,{"$f":"IF(ISNUMBER(SEARCH($B$16,BV32)),MAX($BU$8:BU31)+1,0)","v":24},"Cartwheel",null,null,{"$f":"IFERROR(VLOOKUP(ROWS($BV$9:BV32),$BU$9:$BV$163,2,0),\"\")","v":"Cartwheel"},null,null,null,{"$f":"IF(ISNUMBER(SEARCH($B$17,CD32)),MAX($CC$8:CC31)+1,0)","v":24},"Cartwheel",null,null,{"$f":"IFERROR(VLOOKUP(ROWS($CD$9:CD32),$CC$9:$CD$163,2,0),\"\")","v":"Cartwheel"},null,null,null,{"$f":"IF(ISNUMBER(SEARCH($B$18,CL32)),MAX($CK$8:CK31)+1,0)","v":24},"Cartwheel",null,null,{"$f":"IFERROR(VLOOKUP(ROWS($CL$9:CL32),$CK$9:$CL$163,2,0),\"\")","v":"Cartwheel"}]
[null,null,null,{"$f":"IF(COUNTIF(DA9:DA18,\"Yes\")>=2,\"Yes\",\"No\")","v":"No"},{"$f":"IF(COUNTIF(DB9:DB18,\"Yes\")>=1,\"Yes\",\"No\")","v":"No"},{"$f":"IF(COUNTIF(DC9:DC18,\"Yes\")>=1,\"Yes\",\"No\")","v":"No"},{"$f":"IF(COUNTIF(H9:H18,\"X\")>=1,\"Yes\",\"No\")","v":"No"},null,{"$f":"IF(COUNTIF(I9:I18,\"X\")>=2,\"Yes\",\"No\")","v":"No"},{"$f":"IF(COUNTIF(J9:J18,\"X\")>=2,\"Yes\",\"No\")","v":"No"},{"$f":"IF(COUNTIF(K9:K18,\"X\")>=2,\"Yes\",\"No\")","v":"No"},{"$f":"IF(COUNTIF(L9:L18,\"X\")>=2,\"Yes\",\"No\")","v":"No"},"Female","Bonus - E Grp 2,3 or 4",null,null,{"$f":"IF(ISNUMBER(SEARCH($B$9,R33)),MAX($Q$8:Q32)+1,0)","v":25},"Bunny Hop / Jump - (Long)",null,null,{"$f":"IFERROR(VLOOKUP(ROWS($R$9:R33),$Q$9:$R$163,2,0),\"\")","v":"Bunny Hop / Jump - (Long)"},null,null,null,{"$f":"IF(ISNUMBER(SEARCH($B$10,Z33)),MAX($Y$8:Y32)+1,0)","v":25},"Bunny Hop / Jump - (Long)",null,null,{"$f":"IFERROR(VLOOKUP(ROWS($Z$9:Z33),$Y$9:$Z$163,2,0),\"\")","v":"Bunny Hop / Jump - (Long)"},null,null,null,{"$f":"IF(ISNUMBER(SEARCH($B$11,AH33)),MAX($AG$8:AG32)+1,0)","v":25},"Bunny Hop / Jump - (Long)",null,null,{"$f":"IFERROR(VLOOKUP(ROWS($AH$9:AH33),$AG$9:$AH$163,2,0),\"\")","v":"Bunny Hop / Jump - (Long)"},null,null,null,{"$f":"IF(ISNUMBER(SEARCH($B$12,AP33)),MAX($AO$8:AO32)+1,0)","v":25},"Bunny Hop / Jump - (Long)",null,null,{"$f":"IFERROR(VLOOKUP(ROWS($AP$9:AP33),$AO$9:$AP$163,2,0),\"\")","v":"Bunny Hop / Jump - (Long)"},null,null,null,{"$f":"IF(ISNUMBER(SEARCH($B$13,AX33)),MAX($AW$8:AW32)+1,0)","v":25},"Bunny Hop / Jump - (Long)",null,null,{"$f":"IFERROR(VLOOKUP(ROWS($AX$9:AX33),$AW$9:$AX$163,2,0),\"\")","v":"Bunny Hop / Jump - (Long)"},null,null,null,{"$f":"IF(ISNUMBER(SEARCH($B$14,BF33)),MAX($BE$8:BE32)+1,0)","v":25},"Bunny Hop / Jump - (Long)",null,null,{"$f":"IFERROR(VLOOKUP(ROWS($BF$9:BF33),$BE$9:$BF$163,2,0),\"\")","v":"Bunny Hop / Jump - (Long)"},null,null,null,{"$f":"IF(ISNUMBER(SEARCH($B$15,BN33)),MAX($BM$8:BM32)+1,0)","v":25},"Bunny Hop / Jump - (Long)",null,null,{"$f":"IFERROR(VLOOKUP(ROWS($BN$9:BN33),$BM$9:$BN$163,2,0),\"\")","v":"Bunny Hop / Jump - (Long)"},null,null,null,{"$f":"IF(ISNUMBER(SEARCH($B$16,BV33)),MAX($BU$8:BU32)+1,0)","v":25},"Bunny Hop / Jump - (Long)",null,null,{"$f":"IFERROR(VLOOKUP(ROWS($BV$9:BV33),$BU$9:$BV$163,2,0),\"\")","v":"Bunny Hop / Jump - (Long)"},null,null,null,{"$f":"IF(ISNUMBER(SEARCH($B$17,CD33)),MAX($CC$8:CC32)+1,0)","v":25},"Bunny Hop / Jump - (Long)",null,null,{"$f":"IFERROR(VLOOKUP(ROWS($CD$9:CD33),$CC$9:$CD$163,2,0),\"\")","v":"Bunny Hop / Jump - (Long)"},null,null,null,{"$f":"IF(ISNUMBER(SEARCH($B$18,CL33)),MAX($CK$8:CK32)+1,0)","v":25},"Bunny Hop / Jump - (Long)",null,null,{"$f":"IFERROR(VLOOKUP(ROWS($CL$9:CL33),$CK$9:$CL$163,2,0),\"\")","v":"Bunny Hop / Jump - (Long)"}]
[null,null,null,null,null,null,null,null,null,null,null,null,"Male","E Acro Flight Series ",null,null,{"$f":"IF(ISNUMBER(SEARCH($B$9,R34)),MAX($Q$8:Q33)+1,0)","v":26},"Bunny Hop / Jump - (High)",null,null,{"$f":"IFERROR(VLOOKUP(ROWS($R$9:R34),$Q$9:$R$163,2,0),\"\")","v":"Bunny Hop / Jump - (High)"},null,null,null,{"$f":"IF(ISNUMBER(SEARCH($B$10,Z34)),MAX($Y$8:Y33)+1,0)","v":26},"Bunny Hop / Jump - (High)",null,null,{"$f":"IFERROR(VLOOKUP(ROWS($Z$9:Z34),$Y$9:$Z$163,2,0),\"\")","v":"Bunny Hop / Jump - (High)"},null,null,null,{"$f":"IF(ISNUMBER(SEARCH($B$11,AH34)),MAX($AG$8:AG33)+1,0)","v":26},"Bunny Hop / Jump - (High)",null,null,{"$f":"IFERROR(VLOOKUP(ROWS($AH$9:AH34),$AG$9:$AH$163,2,0),\"\")","v":"Bunny Hop / Jump - (High)"},null,null,null,{"$f":"IF(ISNUMBER(SEARCH($B$12,AP34)),MAX($AO$8:AO33)+1,0)","v":26},"Bunny Hop / Jump - (High)",null,null,{"$f":"IFERROR(VLOOKUP(ROWS($AP$9:AP34),$AO$9:$AP$163,2,0),\"\")","v":"Bunny Hop / Jump - (High)"},null,null,null,{"$f":"IF(ISNUMBER(SEARCH($B$13,AX34)),MAX($AW$8:AW33)+1,0)","v":26},"Bunny Hop / Jump - (High)",null,null,{"$f":"IFERROR(VLOOKUP(ROWS($AX$9:AX34),$AW$9:$AX$163,2,0),\"\")","v":"Bunny Hop / Jump - (High)"},null,null,null,{"$f":"IF(ISNUMBER(SEARCH($B$14,BF34)),MAX($BE$8:BE33)+1,0)","v":26},"Bunny Hop / Jump - (High)",null,null,{"$f":"IFERROR(VLOOKUP(ROWS($BF$9:BF34),$BE$9:$BF$163,2,0),\"\")","v":"Bunny Hop / Jump - (High)"},null,null,null,{"$f":"IF(ISNUMBER(SEARCH($B$15,BN34)),MAX($BM$8:BM33)+1,0)","v":26},"Bunny Hop / Jump - (High)",null,null,{"$f":"IFERROR(VLOOKUP(ROWS($BN$9:BN34),$BM$9:$BN$163,2,0),\"\")","v":"Bunny Hop / Jump - (High)"},null,null,null,{"$f":"IF(ISNUMBER(SEARCH($B$16,BV34)),MAX($BU$8:BU33)+1,0)","v":26},"Bunny Hop / Jump - (High)",null,null,{"$f":"IFERROR(VLOOKUP(ROWS($BV$9:BV34),$BU$9:$BV$163,2,0),\"\")","v":"Bunny Hop / Jump - (High)"},null,null,null,{"$f":"IF(ISNUMBER(SEARCH($B$17,CD34)),MAX($CC$8:CC33)+1,0)","v":26},"Bunny Hop / Jump - (High)",null,null,{"$f":"IFERROR(VLOOKUP(ROWS($CD$9:CD34),$CC$9:$CD$163,2,0),\"\")","v":"Bunny Hop / Jump - (High)"},null,null,null,{"$f":"IF(ISNUMBER(SEARCH($B$18,CL34)),MAX($CK$8:CK33)+1,0)","v":26},"Bunny Hop / Jump - (High)",null,null,{"$f":"IFERROR(VLOOKUP(ROWS($CL$9:CL34),$CK$9:$CL$163,2,0),\"\")","v":"Bunny Hop / Jump - (High)"}]
[null,null,null,"Achieved",null,null,null,null,"Achieved",null,null,null,null,{"$f":"IF(COUNTIF(CZ9:CZ18,\"Yes\")=10,IF(COUNTIF(CY9:CY18,\"Yes\")>=1,\"Yes\",\"No\"),\"No\")","v":"No"},null,null,{"$f":"IF(ISNUMBER(SEARCH($B$9,R35)),MAX($Q$8:Q34)+1,0)","v":27},"Split leap / jump (120° )",null,null,{"$f":"IFERROR(VLOOKUP(ROWS($R$9:R35),$Q$9:$R$163,2,0),\"\")","v":"Split leap / jump (120° )"},null,null,null,{"$f":"IF(ISNUMBER(SEARCH($B$10,Z35)),MAX($Y$8:Y34)+1,0)","v":27},"Split leap / jump (120° )",null,null,{"$f":"IFERROR(VLOOKUP(ROWS($Z$9:Z35),$Y$9:$Z$163,2,0),\"\")","v":"Split leap / jump (120° )"},null,null,null,{"$f":"IF(ISNUMBER(SEARCH($B$11,AH35)),MAX($AG$8:AG34)+1,0)","v":27},"Split leap / jump (120° )",null,null,{"$f":"IFERROR(VLOOKUP(ROWS($AH$9:AH35),$AG$9:$AH$163,2,0),\"\")","v":"Split leap / jump (120° )"},null,null,null,{"$f":"IF(ISNUMBER(SEARCH($B$12,AP35)),MAX($AO$8:AO34)+1,0)","v":27},"Split leap / jump (120° )",null,null,{"$f":"IFERROR(VLOOKUP(ROWS($AP$9:AP35),$AO$9:$AP$163,2,0),\"\")","v":"Split leap / jump (120° )"},null,null,null,{"$f":"IF(ISNUMBER(SEARCH($B$13,AX35)),MAX($AW$8:AW34)+1,0)","v":27},"Split leap / jump (120° )",null,null,{"$f":"IFERROR(VLOOKUP(ROWS($AX$9:AX35),$AW$9:$AX$163,2,0),\"\")","v":"Split leap / jump (120° )"},null,null,null,{"$f":"IF(ISNUMBER(SEARCH($B$14,BF35)),MAX($BE$8:BE34)+1,0)","v":27},"Split leap / jump (120° )",null,null,{"$f":"IFERROR(VLOOKUP(ROWS($BF$9:BF35),$BE$9:$BF$163,2,0),\"\")","v":"Split leap / jump (120° )"},null,null,null,{"$f":"IF(ISNUMBER(SEARCH($B$15,BN35)),MAX($BM$8:BM34)+1,0)","v":27},"Split leap / jump (120° )",null,null,{"$f":"IFERROR(VLOOKUP(ROWS($BN$9:BN35),$BM$9:$BN$163,2,0),\"\")","v":"Split leap / jump (120° )"},null,null,null,{"$f":"IF(ISNUMBER(SEARCH($B$16,BV35)),MAX($BU$8:BU34)+1,0)","v":27},"Split leap / jump (120° )",null,null,{"$f":"IFERROR(VLOOKUP(ROWS($BV$9:BV35),$BU$9:$BV$163,2,0),\"\")","v":"Split leap / jump (120° )"},null,null,null,{"$f":"IF(ISNUMBER(SEARCH($B$17,CD35)),MAX($CC$8:CC34)+1,0)","v":27},"Split leap / jump (120° )",null,null,{"$f":"IFERROR(VLOOKUP(ROWS($CD$9:CD35),$CC$9:$CD$163,2,0),\"\")","v":"Split leap / jump (120° )"},null,null,null,{"$f":"IF(ISNUMBER(SEARCH($B$18,CL35)),MAX($CK$8:CK34)+1,0)","v":27},"Split leap / jump (120° )",null,null,{"$f":"IFERROR(VLOOKUP(ROWS($CL$9:CL35),$CK$9:$CL$163,2,0),\"\")","v":"Split leap / jump (120° )"}]
[null,null,null,{"$f":"IF(COUNTIF(D33:G33,\"Yes\")=4,\"Yes\",\"No\")","v":"No"},null,null,null,null,{"$f":"IF(COUNTIF(I33:L33,\"Yes\")=4,\"Yes\",\"No\")","v":"No"},null,null,null,"GIRLS",null,null,null,{"$f":"IF(ISNUMBER(SEARCH($B$9,R36)),MAX($Q$8:Q35)+1,0)","v":28},"Stag leap or jump ",null,null,{"$f":"IFERROR(VLOOKUP(ROWS($R$9:R36),$Q$9:$R$163,2,0),\"\")","v":"Stag leap or jump "},null,null,null,{"$f":"IF(ISNUMBER(SEARCH($B$10,Z36)),MAX($Y$8:Y35)+1,0)","v":28},"Stag leap or jump ",null,null,{"$f":"IFERROR(VLOOKUP(ROWS($Z$9:Z36),$Y$9:$Z$163,2,0),\"\")","v":"Stag leap or jump "},null,null,null,{"$f":"IF(ISNUMBER(SEARCH($B$11,AH36)),MAX($AG$8:AG35)+1,0)","v":28},"Stag leap or jump ",null,null,{"$f":"IFERROR(VLOOKUP(ROWS($AH$9:AH36),$AG$9:$AH$163,2,0),\"\")","v":"Stag leap or jump "},null,null,null,{"$f":"IF(ISNUMBER(SEARCH($B$12,AP36)),MAX($AO$8:AO35)+1,0)","v":28},"Stag leap or jump ",null,null,{"$f":"IFERROR(VLOOKUP(ROWS($AP$9:AP36),$AO$9:$AP$163,2,0),\"\")","v":"Stag leap or jump "},null,null,null,{"$f":"IF(ISNUMBER(SEARCH($B$13,AX36)),MAX($AW$8:AW35)+1,0)","v":28},"Stag leap or jump ",null,null,{"$f":"IFERROR(VLOOKUP(ROWS($AX$9:AX36),$AW$9:$AX$163,2,0),\"\")","v":"Stag leap or jump "},null,null,null,{"$f":"IF(ISNUMBER(SEARCH($B$14,BF36)),MAX($BE$8:BE35)+1,0)","v":28},"Stag leap or jump ",null,null,{"$f":"IFERROR(VLOOKUP(ROWS($BF$9:BF36),$BE$9:$BF$163,2,0),\"\")","v":"Stag leap or jump "},null,null,null,{"$f":"IF(ISNUMBER(SEARCH($B$15,BN36)),MAX($BM$8:BM35)+1,0)","v":28},"Stag leap or jump ",null,null,{"$f":"IFERROR(VLOOKUP(ROWS($BN$9:BN36),$BM$9:$BN$163,2,0),\"\")","v":"Stag leap or jump "},null,null,null,{"$f":"IF(ISNUMBER(SEARCH($B$16,BV36)),MAX($BU$8:BU35)+1,0)","v":28},"Stag leap or jump ",null,null,{"$f":"IFERROR(VLOOKUP(ROWS($BV$9:BV36),$BU$9:$BV$163,2,0),\"\")","v":"Stag leap or jump "},null,null,null,{"$f":"IF(ISNUMBER(SEARCH($B$17,CD36)),MAX($CC$8:CC35)+1,0)","v":28},"Stag leap or jump ",null,null,{"$f":"IFERROR(VLOOKUP(ROWS($CD$9:CD36),$CC$9:$CD$163,2,0),\"\")","v":"Stag leap or jump "},null,null,null,{"$f":"IF(ISNUMBER(SEARCH($B$18,CL36)),MAX($CK$8:CK35)+1,0)","v":28},"Stag leap or jump ",null,null,{"$f":"IFERROR(VLOOKUP(ROWS($CL$9:CL36),$CK$9:$CL$163,2,0),\"\")","v":"Stag leap or jump "}]
[null,null,null,null,null,null,"E",null,null,null,null,null,"Leap / hop series or passage","E Skill Grp  2,3,4",null,null,{"$f":"IF(ISNUMBER(SEARCH($B$9,R37)),MAX($Q$8:Q36)+1,0)","v":29},"Cat leap",null,null,{"$f":"IFERROR(VLOOKUP(ROWS($R$9:R37),$Q$9:$R$163,2,0),\"\")","v":"Cat leap"},null,null,null,{"$f":"IF(ISNUMBER(SEARCH($B$10,Z37)),MAX($Y$8:Y36)+1,0)","v":29},"Cat leap",null,null,{"$f":"IFERROR(VLOOKUP(ROWS($Z$9:Z37),$Y$9:$Z$163,2,0),\"\")","v":"Cat leap"},null,null,null,{"$f":"IF(ISNUMBER(SEARCH($B$11,AH37)),MAX($AG$8:AG36)+1,0)","v":29},"Cat leap",null,null,{"$f":"IFERROR(VLOOKUP(ROWS($AH$9:AH37),$AG$9:$AH$163,2,0),\"\")","v":"Cat leap"},null,null,null,{"$f":"IF(ISNUMBER(SEARCH($B$12,AP37)),MAX($AO$8:AO36)+1,0)","v":29},"Cat leap",null,null,{"$f":"IFERROR(VLOOKUP(ROWS($AP$9:AP37),$AO$9:$AP$163,2,0),\"\")","v":"Cat leap"},null,null,null,{"$f":"IF(ISNUMBER(SEARCH($B$13,AX37)),MAX($AW$8:AW36)+1,0)","v":29},"Cat leap",null,null,{"$f":"IFERROR(VLOOKUP(ROWS($AX$9:AX37),$AW$9:$AX$163,2,0),\"\")","v":"Cat leap"},null,null,null,{"$f":"IF(ISNUMBER(SEARCH($B$14,BF37)),MAX($BE$8:BE36)+1,0)","v":29},"Cat leap",null,null,{"$f":"IFERROR(VLOOKUP(ROWS($BF$9:BF37),$BE$9:$BF$163,2,0),\"\")","v":"Cat leap"},null,null,null,{"$f":"IF(ISNUMBER(SEARCH($B$15,BN37)),MAX($BM$8:BM36)+1,0)","v":29},"Cat leap",null,null,{"$f":"IFERROR(VLOOKUP(ROWS($BN$9:BN37),$BM$9:$BN$163,2,0),\"\")","v":"Cat leap"},null,null,null,{"$f":"IF(ISNUMBER(SEARCH($B$16,BV37)),MAX($BU$8:BU36)+1,0)","v":29},"Cat leap",null,null,{"$f":"IFERROR(VLOOKUP(ROWS($BV$9:BV37),$BU$9:$BV$163,2,0),\"\")","v":"Cat leap"},null,null,null,{"$f":"IF(ISNUMBER(SEARCH($B$17,CD37)),MAX($CC$8:CC36)+1,0)","v":29},"Cat leap",null,null,{"$f":"IFERROR(VLOOKUP(ROWS($CD$9:CD37),$CC$9:$CD$163,2,0),\"\")","v":"Cat leap"},null,null,null,{"$f":"IF(ISNUMBER(SEARCH($B$18,CL37)),MAX($CK$8:CK36)+1,0)","v":29},"Cat leap",null,null,{"$f":"IFERROR(VLOOKUP(ROWS($CL$9:CL37),$CK$9:$CL$163,2,0),\"\")","v":"Cat leap"}]
[null,null,null,null,null,null,{"$f":"IF(H9=\"X\",IF(N9=$N$32,0,IF(N9=$N$33,0,1)),0)","v":0},null,null,null,null,null,"Mix series",{"$f":"IF(COUNTIF(CZ9:CZ18,\"Yes\")=10,IF(COUNTIF(CX9:CX18,\"Yes\")=1,\"Yes\",\"No\"),\"No\")","v":"No"},null,null,{"$f":"IF(ISNUMBER(SEARCH($B$9,R38)),MAX($Q$8:Q37)+1,0)","v":30},"Jump full turn ",null,null,{"$f":"IFERROR(VLOOKUP(ROWS($R$9:R38),$Q$9:$R$163,2,0),\"\")","v":"Jump full turn "},null,null,null,{"$f":"IF(ISNUMBER(SEARCH($B$10,Z38)),MAX($Y$8:Y37)+1,0)","v":30},"Jump full turn ",null,null,{"$f":"IFERROR(VLOOKUP(ROWS($Z$9:Z38),$Y$9:$Z$163,2,0),\"\")","v":"Jump full turn "},null,null,null,{"$f":"IF(ISNUMBER(SEARCH($B$11,AH38)),MAX($AG$8:AG37)+1,0)","v":30},"Jump full turn ",null,null,{"$f":"IFERROR(VLOOKUP(ROWS($AH$9:AH38),$AG$9:$AH$163,2,0),\"\")","v":"Jump full turn "},null,null,null,{"$f":"IF(ISNUMBER(SEARCH($B$12,AP38)),MAX($AO$8:AO37)+1,0)","v":30},"Jump full turn ",null,null,{"$f":"IFERROR(VLOOKUP(ROWS($AP$9:AP38),$AO$9:$AP$163,2,0),\"\")","v":"Jump full turn "},null,null,null,{"$f":"IF(ISNUMBER(SEARCH($B$13,AX38)),MAX($AW$8:AW37)+1,0)","v":30},"Jump full turn ",null,null,{"$f":"IFERROR(VLOOKUP(ROWS($AX$9:AX38),$AW$9:$AX$163,2,0),\"\")","v":"Jump full turn "},null,null,null,{"$f":"IF(ISNUMBER(SEARCH($B$14,BF38)),MAX($BE$8:BE37)+1,0)","v":30},"Jump full turn ",null,null,{"$f":"IFERROR(VLOOKUP(ROWS($BF$9:BF38),$BE$9:$BF$163,2,0),\"\")","v":"Jump full turn "},null,null,null,{"$f":"IF(ISNUMBER(SEARCH($B$15,BN38)),MAX($BM$8:BM37)+1,0)","v":30},"Jump full turn ",null,null,{"$f":"IFERROR(VLOOKUP(ROWS($BN$9:BN38),$BM$9:$BN$163,2,0),\"\")","v":"Jump full turn "},null,null,null,{"$f":"IF(ISNUMBER(SEARCH($B$16,BV38)),MAX($BU$8:BU37)+1,0)","v":30},"Jump full turn ",null,null,{"$f":"IFERROR(VLOOKUP(ROWS($BV$9:BV38),$BU$9:$BV$163,2,0),\"\")","v":"Jump full turn "},null,null,null,{"$f":"IF(ISNUMBER(SEARCH($B$17,CD38)),MAX($CC$8:CC37)+1,0)","v":30},"Jump full turn ",null,null,{"$f":"IFERROR(VLOOKUP(ROWS($CD$9:CD38),$CC$9:$CD$163,2,0),\"\")","v":"Jump full turn "},null,null,null,{"$f":"IF(ISNUMBER(SEARCH($B$18,CL38)),MAX($CK$8:CK37)+1,0)","v":30},"Jump full turn ",null,null,{"$f":"IFERROR(VLOOKUP(ROWS($CL$9:CL38),$CK$9:$CL$163,2,0),\"\")","v":"Jump full turn "}]
[null,null,null,null,null,null,{"$f":"IF(H10=\"X\",IF(N10=$N$32,0,IF(N10=$N$33,0,1)),0)","v":0},null,null,null,null,null,"Acrobatic series of 2 FS",null,null,null,{"$f":"IF(ISNUMBER(SEARCH($B$9,R39)),MAX($Q$8:Q38)+1,0)","v":31},"Scissor jump ",null,null,{"$f":"IFERROR(VLOOKUP(ROWS($R$9:R39),$Q$9:$R$163,2,0),\"\")","v":"Scissor jump "},null,null,null,{"$f":"IF(ISNUMBER(SEARCH($B$10,Z39)),MAX($Y$8:Y38)+1,0)","v":31},"Scissor jump ",null,null,{"$f":"IFERROR(VLOOKUP(ROWS($Z$9:Z39),$Y$9:$Z$163,2,0),\"\")","v":"Scissor jump "},null,null,null,{"$f":"IF(ISNUMBER(SEARCH($B$11,AH39)),MAX($AG$8:AG38)+1,0)","v":31},"Scissor jump ",null,null,{"$f":"IFERROR(VLOOKUP(ROWS($AH$9:AH39),$AG$9:$AH$163,2,0),\"\")","v":"Scissor jump "},null,null,null,{"$f":"IF(ISNUMBER(SEARCH($B$12,AP39)),MAX($AO$8:AO38)+1,0)","v":31},"Scissor jump ",null,null,{"$f":"IFERROR(VLOOKUP(ROWS($AP$9:AP39),$AO$9:$AP$163,2,0),\"\")","v":"Scissor jump "},null,null,null,{"$f":"IF(ISNUMBER(SEARCH($B$13,AX39)),MAX($AW$8:AW38)+1,0)","v":31},"Scissor jump ",null,null,{"$f":"IFERROR(VLOOKUP(ROWS($AX$9:AX39),$AW$9:$AX$163,2,0),\"\")","v":"Scissor jump "},null,null,null,{"$f":"IF(ISNUMBER(SEARCH($B$14,BF39)),MAX($BE$8:BE38)+1,0)","v":31},"Scissor jump ",null,null,{"$f":"IFERROR(VLOOKUP(ROWS($BF$9:BF39),$BE$9:$BF$163,2,0),\"\")","v":"Scissor jump "},null,null,null,{"$f":"IF(ISNUMBER(SEARCH($B$15,BN39)),MAX($BM$8:BM38)+1,0)","v":31},"Scissor jump ",null,null,{"$f":"IFERROR(VLOOKUP(ROWS($BN$9:BN39),$BM$9:$BN$163,2,0),\"\")","v":"Scissor jump "},null,null,null,{"$f":"IF(ISNUMBER(SEARCH($B$16,BV39)),MAX($BU$8:BU38)+1,0)","v":31},"Scissor jump ",null,null,{"$f":"IFERROR(VLOOKUP(ROWS($BV$9:BV39),$BU$9:$BV$163,2,0),\"\")","v":"Scissor jump "},null,null,null,{"$f":"IF(ISNUMBER(SEARCH($B$17,CD39)),MAX($CC$8:CC38)+1,0)","v":31},"Scissor jump ",null,null,{"$f":"IFERROR(VLOOKUP(ROWS($CD$9:CD39),$CC$9:$CD$163,2,0),\"\")","v":"Scissor jump "},null,null,null,{"$f":"IF(ISNUMBER(SEARCH($B$18,CL39)),MAX($CK$8:CK38)+1,0)","v":31},"Scissor jump ",null,null,{"$f":"IFERROR(VLOOKUP(ROWS($CL$9:CL39),$CK$9:$CL$163,2,0),\"\")","v":"Scissor jump "}]
[null,null,null,null,null,null,0,null,null,null,null,null,null,"Criteria met before bonus",null,null,{"$f":"IF(ISNUMBER(SEARCH($B$9,R40)),MAX($Q$8:Q39)+1,0)","v":32},"W jump",null,null,{"$f":"IFERROR(VLOOKUP(ROWS($R$9:R40),$Q$9:$R$163,2,0),\"\")","v":"W jump"},null,null,null,{"$f":"IF(ISNUMBER(SEARCH($B$10,Z40)),MAX($Y$8:Y39)+1,0)","v":32},"W jump",null,null,{"$f":"IFERROR(VLOOKUP(ROWS($Z$9:Z40),$Y$9:$Z$163,2,0),\"\")","v":"W jump"},null,null,null,{"$f":"IF(ISNUMBER(SEARCH($B$11,AH40)),MAX($AG$8:AG39)+1,0)","v":32},"W jump",null,null,{"$f":"IFERROR(VLOOKUP(ROWS($AH$9:AH40),$AG$9:$AH$163,2,0),\"\")","v":"W jump"},null,null,null,{"$f":"IF(ISNUMBER(SEARCH($B$12,AP40)),MAX($AO$8:AO39)+1,0)","v":32},"W jump",null,null,{"$f":"IFERROR(VLOOKUP(ROWS($AP$9:AP40),$AO$9:$AP$163,2,0),\"\")","v":"W jump"},null,null,null,{"$f":"IF(ISNUMBER(SEARCH($B$13,AX40)),MAX($AW$8:AW39)+1,0)","v":32},"W jump",null,null,{"$f":"IFERROR(VLOOKUP(ROWS($AX$9:AX40),$AW$9:$AX$163,2,0),\"\")","v":"W jump"},null,null,null,{"$f":"IF(ISNUMBER(SEARCH($B$14,BF40)),MAX($BE$8:BE39)+1,0)","v":32},"W jump",null,null,{"$f":"IFERROR(VLOOKUP(ROWS($BF$9:BF40),$BE$9:$BF$163,2,0),\"\")","v":"W jump"},null,null,null,{"$f":"IF(ISNUMBER(SEARCH($B$15,BN40)),MAX($BM$8:BM39)+1,0)","v":32},"W jump",null,null,{"$f":"IFERROR(VLOOKUP(ROWS($BN$9:BN40),$BM$9:$BN$163,2,0),\"\")","v":"W jump"},null,null,null,{"$f":"IF(ISNUMBER(SEARCH($B$16,BV40)),MAX($BU$8:BU39)+1,0)","v":32},"W jump",null,null,{"$f":"IFERROR(VLOOKUP(ROWS($BV$9:BV40),$BU$9:$BV$163,2,0),\"\")","v":"W jump"},null,null,null,{"$f":"IF(ISNUMBER(SEARCH($B$17,CD40)),MAX($CC$8:CC39)+1,0)","v":32},"W jump",null,null,{"$f":"IFERROR(VLOOKUP(ROWS($CD$9:CD40),$CC$9:$CD$163,2,0),\"\")","v":"W jump"},null,null,null,{"$f":"IF(ISNUMBER(SEARCH($B$18,CL40)),MAX($CK$8:CK39)+1,0)","v":32},"W jump",null,null,{"$f":"IFERROR(VLOOKUP(ROWS($CL$9:CL40),$CK$9:$CL$163,2,0),\"\")","v":"W jump"}]
[null,null,null,null,null,null,0,null,null,null,null,null,null,{"$f":"IF(D36=\"Yes\",IF(M63=\"Yes\",\"Yes\",\"No\"))","v":false},null,null,{"$f":"IF(ISNUMBER(SEARCH($B$9,R41)),MAX($Q$8:Q40)+1,0)","v":33},"Arabesque",null,null,{"$f":"IFERROR(VLOOKUP(ROWS($R$9:R41),$Q$9:$R$163,2,0),\"\")","v":"Arabesque"},null,null,null,{"$f":"IF(ISNUMBER(SEARCH($B$10,Z41)),MAX($Y$8:Y40)+1,0)","v":33},"Arabesque",null,null,{"$f":"IFERROR(VLOOKUP(ROWS($Z$9:Z41),$Y$9:$Z$163,2,0),\"\")","v":"Arabesque"},null,null,null,{"$f":"IF(ISNUMBER(SEARCH($B$11,AH41)),MAX($AG$8:AG40)+1,0)","v":33},"Arabesque",null,null,{"$f":"IFERROR(VLOOKUP(ROWS($AH$9:AH41),$AG$9:$AH$163,2,0),\"\")","v":"Arabesque"},null,null,null,{"$f":"IF(ISNUMBER(SEARCH($B$12,AP41)),MAX($AO$8:AO40)+1,0)","v":33},"Arabesque",null,null,{"$f":"IFERROR(VLOOKUP(ROWS($AP$9:AP41),$AO$9:$AP$163,2,0),\"\")","v":"Arabesque"},null,null,null,{"$f":"IF(ISNUMBER(SEARCH($B$13,AX41)),MAX($AW$8:AW40)+1,0)","v":33},"Arabesque",null,null,{"$f":"IFERROR(VLOOKUP(ROWS($AX$9:AX41),$AW$9:$AX$163,2,0),\"\")","v":"Arabesque"},null,null,null,{"$f":"IF(ISNUMBER(SEARCH($B$14,BF41)),MAX($BE$8:BE40)+1,0)","v":33},"Arabesque",null,null,{"$f":"IFERROR(VLOOKUP(ROWS($BF$9:BF41),$BE$9:$BF$163,2,0),\"\")","v":"Arabesque"},null,null,null,{"$f":"IF(ISNUMBER(SEARCH($B$15,BN41)),MAX($BM$8:BM40)+1,0)","v":33},"Arabesque",null,null,{"$f":"IFERROR(VLOOKUP(ROWS($BN$9:BN41),$BM$9:$BN$163,2,0),\"\")","v":"Arabesque"},null,null,null,{"$f":"IF(ISNUMBER(SEARCH($B$16,BV41)),MAX($BU$8:BU40)+1,0)","v":33},"Arabesque",null,null,{"$f":"IFERROR(VLOOKUP(ROWS($BV$9:BV41),$BU$9:$BV$163,2,0),\"\")","v":"Arabesque"},null,null,null,{"$f":"IF(ISNUMBER(SEARCH($B$17,CD41)),MAX($CC$8:CC40)+1,0)","v":33},"Arabesque",null,null,{"$f":"IFERROR(VLOOKUP(ROWS($CD$9:CD41),$CC$9:$CD$163,2,0),\"\")","v":"Arabesque"},null,null,null,{"$f":"IF(ISNUMBER(SEARCH($B$18,CL41)),MAX($CK$8:CK40)+1,0)","v":33},"Arabesque",null,null,{"$f":"IFERROR(VLOOKUP(ROWS($CL$9:CL41),$CK$9:$CL$163,2,0),\"\")","v":"Arabesque"}]
[null,null,null,null,null,null,0,null,null,null,null,null,"BOYS",null,null,null,{"$f":"IF(ISNUMBER(SEARCH($B$9,R42)),MAX($Q$8:Q41)+1,0)","v":34},"Japana (flat back, chest to floor)",null,null,{"$f":"IFERROR(VLOOKUP(ROWS($R$9:R42),$Q$9:$R$163,2,0),\"\")","v":"Japana (flat back, chest to floor)"},null,null,null,{"$f":"IF(ISNUMBER(SEARCH($B$10,Z42)),MAX($Y$8:Y41)+1,0)","v":34},"Japana (flat back, chest to floor)",null,null,{"$f":"IFERROR(VLOOKUP(ROWS($Z$9:Z42),$Y$9:$Z$163,2,0),\"\")","v":"Japana (flat back, chest to floor)"},null,null,null,{"$f":"IF(ISNUMBER(SEARCH($B$11,AH42)),MAX($AG$8:AG41)+1,0)","v":34},"Japana (flat back, chest to floor)",null,null,{"$f":"IFERROR(VLOOKUP(ROWS($AH$9:AH42),$AG$9:$AH$163,2,0),\"\")","v":"Japana (flat back, chest to floor)"},null,null,null,{"$f":"IF(ISNUMBER(SEARCH($B$12,AP42)),MAX($AO$8:AO41)+1,0)","v":34},"Japana (flat back, chest to floor)",null,null,{"$f":"IFERROR(VLOOKUP(ROWS($AP$9:AP42),$AO$9:$AP$163,2,0),\"\")","v":"Japana (flat back, chest to floor)"},null,null,null,{"$f":"IF(ISNUMBER(SEARCH($B$13,AX42)),MAX($AW$8:AW41)+1,0)","v":34},"Japana (flat back, chest to floor)",null,null,{"$f":"IFERROR(VLOOKUP(ROWS($AX$9:AX42),$AW$9:$AX$163,2,0),\"\")","v":"Japana (flat back, chest to floor)"},null,null,null,{"$f":"IF(ISNUMBER(SEARCH($B$14,BF42)),MAX($BE$8:BE41)+1,0)","v":34},"Japana (flat back, chest to floor)",null,null,{"$f":"IFERROR(VLOOKUP(ROWS($BF$9:BF42),$BE$9:$BF$163,2,0),\"\")","v":"Japana (flat back, chest to floor)"},null,null,null,{"$f":"IF(ISNUMBER(SEARCH($B$15,BN42)),MAX($BM$8:BM41)+1,0)","v":34},"Japana (flat back, chest to floor)",null,null,{"$f":"IFERROR(VLOOKUP(ROWS($BN$9:BN42),$BM$9:$BN$163,2,0),\"\")","v":"Japana (flat back, chest to floor)"},null,null,null,{"$f":"IF(ISNUMBER(SEARCH($B$16,BV42)),MAX($BU$8:BU41)+1,0)","v":34},"Japana (flat back, chest to floor)",null,null,{"$f":"IFERROR(VLOOKUP(ROWS($BV$9:BV42),$BU$9:$BV$163,2,0),\"\")","v":"Japana (flat back, chest to floor)"},null,null,null,{"$f":"IF(ISNUMBER(SEARCH($B$17,CD42)),MAX($CC$8:CC41)+1,0)","v":34},"Japana (flat back, chest to floor)",null,null,{"$f":"IFERROR(VLOOKUP(ROWS($CD$9:CD42),$CC$9:$CD$163,2,0),\"\")","v":"Japana (flat back, chest to floor)"},null,null,null,{"$f":"IF(ISNUMBER(SEARCH($B$18,CL42)),MAX($CK$8:CK41)+1,0)","v":34},"Japana (flat back, chest to floor)",null,null,{"$f":"IFERROR(VLOOKUP(ROWS($CL$9:CL42),$CK$9:$CL$163,2,0),\"\")","v":"Japana (flat back, chest to floor)"}]
[null,null,null,null,null,null,0,null,null,null,null,null,"Group 2 skill","Achieved",null,null,{"$f":"IF(ISNUMBER(SEARCH($B$9,R43)),MAX($Q$8:Q42)+1,0)","v":35},"Fall to prone push to Front Support",null,null,{"$f":"IFERROR(VLOOKUP(ROWS($R$9:R43),$Q$9:$R$163,2,0),\"\")","v":"Fall to prone push to Front Support"},null,null,null,{"$f":"IF(ISNUMBER(SEARCH($B$10,Z43)),MAX($Y$8:Y42)+1,0)","v":35},"Fall to prone push to Front Support",null,null,{"$f":"IFERROR(VLOOKUP(ROWS($Z$9:Z43),$Y$9:$Z$163,2,0),\"\")","v":"Fall to prone push to Front Support"},null,null,null,{"$f":"IF(ISNUMBER(SEARCH($B$11,AH43)),MAX($AG$8:AG42)+1,0)","v":35},"Fall to prone push to Front Support",null,null,{"$f":"IFERROR(VLOOKUP(ROWS($AH$9:AH43),$AG$9:$AH$163,2,0),\"\")","v":"Fall to prone push to Front Support"},null,null,null,{"$f":"IF(ISNUMBER(SEARCH($B$12,AP43)),MAX($AO$8:AO42)+1,0)","v":35},"Fall to prone push to Front Support",null,null,{"$f":"IFERROR(VLOOKUP(ROWS($AP$9:AP43),$AO$9:$AP$163,2,0),\"\")","v":"Fall to prone push to Front Support"},null,null,null,{"$f":"IF(ISNUMBER(SEARCH($B$13,AX43)),MAX($AW$8:AW42)+1,0)","v":35},"Fall to prone push to Front Support",null,null,{"$f":"IFERROR(VLOOKUP(ROWS($AX$9:AX43),$AW$9:$AX$163,2,0),\"\")","v":"Fall to prone push to Front Support"},null,null,null,{"$f":"IF(ISNUMBER(SEARCH($B$14,BF43)),MAX($BE$8:BE42)+1,0)","v":35},"Fall to prone push to Front Support",null,null,{"$f":"IFERROR(VLOOKUP(ROWS($BF$9:BF43),$BE$9:$BF$163,2,0),\"\")","v":"Fall to prone push to Front Support"},null,null,null,{"$f":"IF(ISNUMBER(SEARCH($B$15,BN43)),MAX($BM$8:BM42)+1,0)","v":35},"Fall to prone push to Front Support",null,null,{"$f":"IFERROR(VLOOKUP(ROWS($BN$9:BN43),$BM$9:$BN$163,2,0),\"\")","v":"Fall to prone push to Front Support"},null,null,null,{"$f":"IF(ISNUMBER(SEARCH($B$16,BV43)),MAX($BU$8:BU42)+1,0)","v":35},"Fall to prone push to Front Support",null,null,{"$f":"IFERROR(VLOOKUP(ROWS($BV$9:BV43),$BU$9:$BV$163,2,0),\"\")","v":"Fall to prone push to Front Support"},null,null,null,{"$f":"IF(ISNUMBER(SEARCH($B$17,CD43)),MAX($CC$8:CC42)+1,0)","v":35},"Fall to prone push to Front Support",null,null,{"$f":"IFERROR(VLOOKUP(ROWS($CD$9:CD43),$CC$9:$CD$163,2,0),\"\")","v":"Fall to prone push to Front Support"},null,null,null,{"$f":"IF(ISNUMBER(SEARCH($B$18,CL43)),MAX($CK$8:CK42)+1,0)","v":35},"Fall to prone push to Front Support",null,null,{"$f":"IFERROR(VLOOKUP(ROWS($CL$9:CL43),$CK$9:$CL$163,2,0),\"\")","v":"Fall to prone push to Front Support"}]
[null,null,null,null,null,null,0,null,null,null,null,null,"Group 2 skill - Held",{"$f":"IF(N41=\"Yes\",IF(N35=\"Yes\",IF(N38=\"Yes\",\"Yes\",\"No\"),\"No\"),\"No\")","v":"No"},null,null,{"$f":"IF(ISNUMBER(SEARCH($B$9,R44)),MAX($Q$8:Q43)+1,0)","v":36},"Swedish Fall",null,null,{"$f":"IFERROR(VLOOKUP(ROWS($R$9:R44),$Q$9:$R$163,2,0),\"\")","v":"Swedish Fall"},null,null,null,{"$f":"IF(ISNUMBER(SEARCH($B$10,Z44)),MAX($Y$8:Y43)+1,0)","v":36},"Swedish Fall",null,null,{"$f":"IFERROR(VLOOKUP(ROWS($Z$9:Z44),$Y$9:$Z$163,2,0),\"\")","v":"Swedish Fall"},null,null,null,{"$f":"IF(ISNUMBER(SEARCH($B$11,AH44)),MAX($AG$8:AG43)+1,0)","v":36},"Swedish Fall",null,null,{"$f":"IFERROR(VLOOKUP(ROWS($AH$9:AH44),$AG$9:$AH$163,2,0),\"\")","v":"Swedish Fall"},null,null,null,{"$f":"IF(ISNUMBER(SEARCH($B$12,AP44)),MAX($AO$8:AO43)+1,0)","v":36},"Swedish Fall",null,null,{"$f":"IFERROR(VLOOKUP(ROWS($AP$9:AP44),$AO$9:$AP$163,2,0),\"\")","v":"Swedish Fall"},null,null,null,{"$f":"IF(ISNUMBER(SEARCH($B$13,AX44)),MAX($AW$8:AW43)+1,0)","v":36},"Swedish Fall",null,null,{"$f":"IFERROR(VLOOKUP(ROWS($AX$9:AX44),$AW$9:$AX$163,2,0),\"\")","v":"Swedish Fall"},null,null,null,{"$f":"IF(ISNUMBER(SEARCH($B$14,BF44)),MAX($BE$8:BE43)+1,0)","v":36},"Swedish Fall",null,null,{"$f":"IFERROR(VLOOKUP(ROWS($BF$9:BF44),$BE$9:$BF$163,2,0),\"\")","v":"Swedish Fall"},null,null,null,{"$f":"IF(ISNUMBER(SEARCH($B$15,BN44)),MAX($BM$8:BM43)+1,0)","v":36},"Swedish Fall",null,null,{"$f":"IFERROR(VLOOKUP(ROWS($BN$9:BN44),$BM$9:$BN$163,2,0),\"\")","v":"Swedish Fall"},null,null,null,{"$f":"IF(ISNUMBER(SEARCH($B$16,BV44)),MAX($BU$8:BU43)+1,0)","v":36},"Swedish Fall",null,null,{"$f":"IFERROR(VLOOKUP(ROWS($BV$9:BV44),$BU$9:$BV$163,2,0),\"\")","v":"Swedish Fall"},null,null,null,{"$f":"IF(ISNUMBER(SEARCH($B$17,CD44)),MAX($CC$8:CC43)+1,0)","v":36},"Swedish Fall",null,null,{"$f":"IFERROR(VLOOKUP(ROWS($CD$9:CD44),$CC$9:$CD$163,2,0),\"\")","v":"Swedish Fall"},null,null,null,{"$f":"IF(ISNUMBER(SEARCH($B$18,CL44)),MAX($CK$8:CK43)+1,0)","v":36},"Swedish Fall",null,null,{"$f":"IFERROR(VLOOKUP(ROWS($CL$9:CL44),$CK$9:$CL$163,2,0),\"\")","v":"Swedish Fall"}]
[null,null,null,null,null,null,0,null,null,null,null,null,"Mix series",null,null,null,{"$f":"IF(ISNUMBER(SEARCH($B$9,R45)),MAX($Q$8:Q44)+1,0)","v":37},"Piked V sit (no supp.)",null,null,{"$f":"IFERROR(VLOOKUP(ROWS($R$9:R45),$Q$9:$R$163,2,0),\"\")","v":"Piked V sit (no supp.)"},null,null,null,{"$f":"IF(ISNUMBER(SEARCH($B$10,Z45)),MAX($Y$8:Y44)+1,0)","v":37},"Piked V sit (no supp.)",null,null,{"$f":"IFERROR(VLOOKUP(ROWS($Z$9:Z45),$Y$9:$Z$163,2,0),\"\")","v":"Piked V sit (no supp.)"},null,null,null,{"$f":"IF(ISNUMBER(SEARCH($B$11,AH45)),MAX($AG$8:AG44)+1,0)","v":37},"Piked V sit (no supp.)",null,null,{"$f":"IFERROR(VLOOKUP(ROWS($AH$9:AH45),$AG$9:$AH$163,2,0),\"\")","v":"Piked V sit (no supp.)"},null,null,null,{"$f":"IF(ISNUMBER(SEARCH($B$12,AP45)),MAX($AO$8:AO44)+1,0)","v":37},"Piked V sit (no supp.)",null,null,{"$f":"IFERROR(VLOOKUP(ROWS($AP$9:AP45),$AO$9:$AP$163,2,0),\"\")","v":"Piked V sit (no supp.)"},null,null,null,{"$f":"IF(ISNUMBER(SEARCH($B$13,AX45)),MAX($AW$8:AW44)+1,0)","v":37},"Piked V sit (no supp.)",null,null,{"$f":"IFERROR(VLOOKUP(ROWS($AX$9:AX45),$AW$9:$AX$163,2,0),\"\")","v":"Piked V sit (no supp.)"},null,null,null,{"$f":"IF(ISNUMBER(SEARCH($B$14,BF45)),MAX($BE$8:BE44)+1,0)","v":37},"Piked V sit (no supp.)",null,null,{"$f":"IFERROR(VLOOKUP(ROWS($BF$9:BF45),$BE$9:$BF$163,2,0),\"\")","v":"Piked V sit (no supp.)"},null,null,null,{"$f":"IF(ISNUMBER(SEARCH($B$15,BN45)),MAX($BM$8:BM44)+1,0)","v":37},"Piked V sit (no supp.)",null,null,{"$f":"IFERROR(VLOOKUP(ROWS($BN$9:BN45),$BM$9:$BN$163,2,0),\"\")","v":"Piked V sit (no supp.)"},null,null,null,{"$f":"IF(ISNUMBER(SEARCH($B$16,BV45)),MAX($BU$8:BU44)+1,0)","v":37},"Piked V sit (no supp.)",null,null,{"$f":"IFERROR(VLOOKUP(ROWS($BV$9:BV45),$BU$9:$BV$163,2,0),\"\")","v":"Piked V sit (no supp.)"},null,null,null,{"$f":"IF(ISNUMBER(SEARCH($B$17,CD45)),MAX($CC$8:CC44)+1,0)","v":37},"Piked V sit (no supp.)",null,null,{"$f":"IFERROR(VLOOKUP(ROWS($CD$9:CD45),$CC$9:$CD$163,2,0),\"\")","v":"Piked V sit (no supp.)"},null,null,null,{"$f":"IF(ISNUMBER(SEARCH($B$18,CL45)),MAX($CK$8:CK44)+1,0)","v":37},"Piked V sit (no supp.)",null,null,{"$f":"IFERROR(VLOOKUP(ROWS($CL$9:CL45),$CK$9:$CL$163,2,0),\"\")","v":"Piked V sit (no supp.)"}]
[null,null,null,null,null,null,0,null,null,null,null,null,"Acrobatic series of 2 FS",null,null,null,{"$f":"IF(ISNUMBER(SEARCH($B$9,R46)),MAX($Q$8:Q45)+1,0)","v":38},"1/2 lever shown (straight or straddled) ",null,null,{"$f":"IFERROR(VLOOKUP(ROWS($R$9:R46),$Q$9:$R$163,2,0),\"\")","v":"1/2 lever shown (straight or straddled) "},null,null,null,{"$f":"IF(ISNUMBER(SEARCH($B$10,Z46)),MAX($Y$8:Y45)+1,0)","v":38},"1/2 lever shown (straight or straddled) ",null,null,{"$f":"IFERROR(VLOOKUP(ROWS($Z$9:Z46),$Y$9:$Z$163,2,0),\"\")","v":"1/2 lever shown (straight or straddled) "},null,null,null,{"$f":"IF(ISNUMBER(SEARCH($B$11,AH46)),MAX($AG$8:AG45)+1,0)","v":38},"1/2 lever shown (straight or straddled) ",null,null,{"$f":"IFERROR(VLOOKUP(ROWS($AH$9:AH46),$AG$9:$AH$163,2,0),\"\")","v":"1/2 lever shown (straight or straddled) "},null,null,null,{"$f":"IF(ISNUMBER(SEARCH($B$12,AP46)),MAX($AO$8:AO45)+1,0)","v":38},"1/2 lever shown (straight or straddled) ",null,null,{"$f":"IFERROR(VLOOKUP(ROWS($AP$9:AP46),$AO$9:$AP$163,2,0),\"\")","v":"1/2 lever shown (straight or straddled) "},null,null,null,{"$f":"IF(ISNUMBER(SEARCH($B$13,AX46)),MAX($AW$8:AW45)+1,0)","v":38},"1/2 lever shown (straight or straddled) ",null,null,{"$f":"IFERROR(VLOOKUP(ROWS($AX$9:AX46),$AW$9:$AX$163,2,0),\"\")","v":"1/2 lever shown (straight or straddled) "},null,null,null,{"$f":"IF(ISNUMBER(SEARCH($B$14,BF46)),MAX($BE$8:BE45)+1,0)","v":38},"1/2 lever shown (straight or straddled) ",null,null,{"$f":"IFERROR(VLOOKUP(ROWS($BF$9:BF46),$BE$9:$BF$163,2,0),\"\")","v":"1/2 lever shown (straight or straddled) "},null,null,null,{"$f":"IF(ISNUMBER(SEARCH($B$15,BN46)),MAX($BM$8:BM45)+1,0)","v":38},"1/2 lever shown (straight or straddled) ",null,null,{"$f":"IFERROR(VLOOKUP(ROWS($BN$9:BN46),$BM$9:$BN$163,2,0),\"\")","v":"1/2 lever shown (straight or straddled) "},null,null,null,{"$f":"IF(ISNUMBER(SEARCH($B$16,BV46)),MAX($BU$8:BU45)+1,0)","v":38},"1/2 lever shown (straight or straddled) ",null,null,{"$f":"IFERROR(VLOOKUP(ROWS($BV$9:BV46),$BU$9:$BV$163,2,0),\"\")","v":"1/2 lever shown (straight or straddled) "},null,null,null,{"$f":"IF(ISNUMBER(SEARCH($B$17,CD46)),MAX($CC$8:CC45)+1,0)","v":38},"1/2 lever shown (straight or straddled) ",null,null,{"$f":"IFERROR(VLOOKUP(ROWS($CD$9:CD46),$CC$9:$CD$163,2,0),\"\")","v":"1/2 lever shown (straight or straddled) "},null,null,null,{"$f":"IF(ISNUMBER(SEARCH($B$18,CL46)),MAX($CK$8:CK45)+1,0)","v":38},"1/2 lever shown (straight or straddled) ",null,null,{"$f":"IFERROR(VLOOKUP(ROWS($CL$9:CL46),$CK$9:$CL$163,2,0),\"\")","v":"1/2 lever shown (straight or straddled) "}]
[null,null,null,null,null,null,0,null,null,null,null,null,null,null,null,null,{"$f":"IF(ISNUMBER(SEARCH($B$9,R47)),MAX($Q$8:Q46)+1,0)","v":39},"Shoulder stand (no support)",null,null,{"$f":"IFERROR(VLOOKUP(ROWS($R$9:R47),$Q$9:$R$163,2,0),\"\")","v":"Shoulder stand (no support)"},null,null,null,{"$f":"IF(ISNUMBER(SEARCH($B$10,Z47)),MAX($Y$8:Y46)+1,0)","v":39},"Shoulder stand (no support)",null,null,{"$f":"IFERROR(VLOOKUP(ROWS($Z$9:Z47),$Y$9:$Z$163,2,0),\"\")","v":"Shoulder stand (no support)"},null,null,null,{"$f":"IF(ISNUMBER(SEARCH($B$11,AH47)),MAX($AG$8:AG46)+1,0)","v":39},"Shoulder stand (no support)",null,null,{"$f":"IFERROR(VLOOKUP(ROWS($AH$9:AH47),$AG$9:$AH$163,2,0),\"\")","v":"Shoulder stand (no support)"},null,null,null,{"$f":"IF(ISNUMBER(SEARCH($B$12,AP47)),MAX($AO$8:AO46)+1,0)","v":39},"Shoulder stand (no support)",null,null,{"$f":"IFERROR(VLOOKUP(ROWS($AP$9:AP47),$AO$9:$AP$163,2,0),\"\")","v":"Shoulder stand (no support)"},null,null,null,{"$f":"IF(ISNUMBER(SEARCH($B$13,AX47)),MAX($AW$8:AW46)+1,0)","v":39},"Shoulder stand (no support)",null,null,{"$f":"IFERROR(VLOOKUP(ROWS($AX$9:AX47),$AW$9:$AX$163,2,0),\"\")","v":"Shoulder stand (no support)"},null,null,null,{"$f":"IF(ISNUMBER(SEARCH($B$14,BF47)),MAX($BE$8:BE46)+1,0)","v":39},"Shoulder stand (no support)",null,null,{"$f":"IFERROR(VLOOKUP(ROWS($BF$9:BF47),$BE$9:$BF$163,2,0),\"\")","v":"Shoulder stand (no support)"},null,null,null,{"$f":"IF(ISNUMBER(SEARCH($B$15,BN47)),MAX($BM$8:BM46)+1,0)","v":39},"Shoulder stand (no support)",null,null,{"$f":"IFERROR(VLOOKUP(ROWS($BN$9:BN47),$BM$9:$BN$163,2,0),\"\")","v":"Shoulder stand (no support)"},null,null,null,{"$f":"IF(ISNUMBER(SEARCH($B$16,BV47)),MAX($BU$8:BU46)+1,0)","v":39},"Shoulder stand (no support)",null,null,{"$f":"IFERROR(VLOOKUP(ROWS($BV$9:BV47),$BU$9:$BV$163,2,0),\"\")","v":"Shoulder stand (no support)"},null,null,null,{"$f":"IF(ISNUMBER(SEARCH($B$17,CD47)),MAX($CC$8:CC46)+1,0)","v":39},"Shoulder stand (no support)",null,null,{"$f":"IFERROR(VLOOKUP(ROWS($CD$9:CD47),$CC$9:$CD$163,2,0),\"\")","v":"Shoulder stand (no support)"},null,null,null,{"$f":"IF(ISNUMBER(SEARCH($B$18,CL47)),MAX($CK$8:CK46)+1,0)","v":39},"Shoulder stand (no support)",null,null,{"$f":"IFERROR(VLOOKUP(ROWS($CL$9:CL47),$CK$9:$CL$163,2,0),\"\")","v":"Shoulder stand (no support)"}]
[null,null,null,null,null,null,null,null,null,null,null,null,null,null,null,null,{"$f":"IF(ISNUMBER(SEARCH($B$9,R48)),MAX($Q$8:Q47)+1,0)","v":40},"F Roll to straddle stand",null,null,{"$f":"IFERROR(VLOOKUP(ROWS($R$9:R48),$Q$9:$R$163,2,0),\"\")","v":"F Roll to straddle stand"},null,null,null,{"$f":"IF(ISNUMBER(SEARCH($B$10,Z48)),MAX($Y$8:Y47)+1,0)","v":40},"F Roll to straddle stand",null,null,{"$f":"IFERROR(VLOOKUP(ROWS($Z$9:Z48),$Y$9:$Z$163,2,0),\"\")","v":"F Roll to straddle stand"},null,null,null,{"$f":"IF(ISNUMBER(SEARCH($B$11,AH48)),MAX($AG$8:AG47)+1,0)","v":40},"F Roll to straddle stand",null,null,{"$f":"IFERROR(VLOOKUP(ROWS($AH$9:AH48),$AG$9:$AH$163,2,0),\"\")","v":"F Roll to straddle stand"},null,null,null,{"$f":"IF(ISNUMBER(SEARCH($B$12,AP48)),MAX($AO$8:AO47)+1,0)","v":40},"F Roll to straddle stand",null,null,{"$f":"IFERROR(VLOOKUP(ROWS($AP$9:AP48),$AO$9:$AP$163,2,0),\"\")","v":"F Roll to straddle stand"},null,null,null,{"$f":"IF(ISNUMBER(SEARCH($B$13,AX48)),MAX($AW$8:AW47)+1,0)","v":40},"F Roll to straddle stand",null,null,{"$f":"IFERROR(VLOOKUP(ROWS($AX$9:AX48),$AW$9:$AX$163,2,0),\"\")","v":"F Roll to straddle stand"},null,null,null,{"$f":"IF(ISNUMBER(SEARCH($B$14,BF48)),MAX($BE$8:BE47)+1,0)","v":40},"F Roll to straddle stand",null,null,{"$f":"IFERROR(VLOOKUP(ROWS($BF$9:BF48),$BE$9:$BF$163,2,0),\"\")","v":"F Roll to straddle stand"},null,null,null,{"$f":"IF(ISNUMBER(SEARCH($B$15,BN48)),MAX($BM$8:BM47)+1,0)","v":40},"F Roll to straddle stand",null,null,{"$f":"IFERROR(VLOOKUP(ROWS($BN$9:BN48),$BM$9:$BN$163,2,0),\"\")","v":"F Roll to straddle stand"},null,null,null,{"$f":"IF(ISNUMBER(SEARCH($B$16,BV48)),MAX($BU$8:BU47)+1,0)","v":40},"F Roll to straddle stand",null,null,{"$f":"IFERROR(VLOOKUP(ROWS($BV$9:BV48),$BU$9:$BV$163,2,0),\"\")","v":"F Roll to straddle stand"},null,null,null,{"$f":"IF(ISNUMBER(SEARCH($B$17,CD48)),MAX($CC$8:CC47)+1,0)","v":40},"F Roll to straddle stand",null,null,{"$f":"IFERROR(VLOOKUP(ROWS($CD$9:CD48),$CC$9:$CD$163,2,0),\"\")","v":"F Roll to straddle stand"},null,null,null,{"$f":"IF(ISNUMBER(SEARCH($B$18,CL48)),MAX($CK$8:CK47)+1,0)","v":40},"F Roll to straddle stand",null,null,{"$f":"IFERROR(VLOOKUP(ROWS($CL$9:CL48),$CK$9:$CL$163,2,0),\"\")","v":"F Roll to straddle stand"}]
[null,null,null,null,null,null,null,null,null,null,null,null,1,null,null,null,{"$f":"IF(ISNUMBER(SEARCH($B$9,R49)),MAX($Q$8:Q48)+1,0)","v":41},"Handstand F roll ",null,null,{"$f":"IFERROR(VLOOKUP(ROWS($R$9:R49),$Q$9:$R$163,2,0),\"\")","v":"Handstand F roll "},null,null,null,{"$f":"IF(ISNUMBER(SEARCH($B$10,Z49)),MAX($Y$8:Y48)+1,0)","v":41},"Handstand F roll ",null,null,{"$f":"IFERROR(VLOOKUP(ROWS($Z$9:Z49),$Y$9:$Z$163,2,0),\"\")","v":"Handstand F roll "},null,null,null,{"$f":"IF(ISNUMBER(SEARCH($B$11,AH49)),MAX($AG$8:AG48)+1,0)","v":41},"Handstand F roll ",null,null,{"$f":"IFERROR(VLOOKUP(ROWS($AH$9:AH49),$AG$9:$AH$163,2,0),\"\")","v":"Handstand F roll "},null,null,null,{"$f":"IF(ISNUMBER(SEARCH($B$12,AP49)),MAX($AO$8:AO48)+1,0)","v":41},"Handstand F roll ",null,null,{"$f":"IFERROR(VLOOKUP(ROWS($AP$9:AP49),$AO$9:$AP$163,2,0),\"\")","v":"Handstand F roll "},null,null,null,{"$f":"IF(ISNUMBER(SEARCH($B$13,AX49)),MAX($AW$8:AW48)+1,0)","v":41},"Handstand F roll ",null,null,{"$f":"IFERROR(VLOOKUP(ROWS($AX$9:AX49),$AW$9:$AX$163,2,0),\"\")","v":"Handstand F roll "},null,null,null,{"$f":"IF(ISNUMBER(SEARCH($B$14,BF49)),MAX($BE$8:BE48)+1,0)","v":41},"Handstand F roll ",null,null,{"$f":"IFERROR(VLOOKUP(ROWS($BF$9:BF49),$BE$9:$BF$163,2,0),\"\")","v":"Handstand F roll "},null,null,null,{"$f":"IF(ISNUMBER(SEARCH($B$15,BN49)),MAX($BM$8:BM48)+1,0)","v":41},"Handstand F roll ",null,null,{"$f":"IFERROR(VLOOKUP(ROWS($BN$9:BN49),$BM$9:$BN$163,2,0),\"\")","v":"Handstand F roll "},null,null,null,{"$f":"IF(ISNUMBER(SEARCH($B$16,BV49)),MAX($BU$8:BU48)+1,0)","v":41},"Handstand F roll ",null,null,{"$f":"IFERROR(VLOOKUP(ROWS($BV$9:BV49),$BU$9:$BV$163,2,0),\"\")","v":"Handstand F roll "},null,null,null,{"$f":"IF(ISNUMBER(SEARCH($B$17,CD49)),MAX($CC$8:CC48)+1,0)","v":41},"Handstand F roll ",null,null,{"$f":"IFERROR(VLOOKUP(ROWS($CD$9:CD49),$CC$9:$CD$163,2,0),\"\")","v":"Handstand F roll "},null,null,null,{"$f":"IF(ISNUMBER(SEARCH($B$18,CL49)),MAX($CK$8:CK48)+1,0)","v":41},"Handstand F roll ",null,null,{"$f":"IFERROR(VLOOKUP(ROWS($CL$9:CL49),$CK$9:$CL$163,2,0),\"\")","v":"Handstand F roll "}]
[null,null,null,null,null,null,null,null,null,null,null,null," Leap/hop",null,null,null,{"$f":"IF(ISNUMBER(SEARCH($B$9,R50)),MAX($Q$8:Q49)+1,0)","v":42},"B Roll to pike stand",null,null,{"$f":"IFERROR(VLOOKUP(ROWS($R$9:R50),$Q$9:$R$163,2,0),\"\")","v":"B Roll to pike stand"},null,null,null,{"$f":"IF(ISNUMBER(SEARCH($B$10,Z50)),MAX($Y$8:Y49)+1,0)","v":42},"B Roll to pike stand",null,null,{"$f":"IFERROR(VLOOKUP(ROWS($Z$9:Z50),$Y$9:$Z$163,2,0),\"\")","v":"B Roll to pike stand"},null,null,null,{"$f":"IF(ISNUMBER(SEARCH($B$11,AH50)),MAX($AG$8:AG49)+1,0)","v":42},"B Roll to pike stand",null,null,{"$f":"IFERROR(VLOOKUP(ROWS($AH$9:AH50),$AG$9:$AH$163,2,0),\"\")","v":"B Roll to pike stand"},null,null,null,{"$f":"IF(ISNUMBER(SEARCH($B$12,AP50)),MAX($AO$8:AO49)+1,0)","v":42},"B Roll to pike stand",null,null,{"$f":"IFERROR(VLOOKUP(ROWS($AP$9:AP50),$AO$9:$AP$163,2,0),\"\")","v":"B Roll to pike stand"},null,null,null,{"$f":"IF(ISNUMBER(SEARCH($B$13,AX50)),MAX($AW$8:AW49)+1,0)","v":42},"B Roll to pike stand",null,null,{"$f":"IFERROR(VLOOKUP(ROWS($AX$9:AX50),$AW$9:$AX$163,2,0),\"\")","v":"B Roll to pike stand"},null,null,null,{"$f":"IF(ISNUMBER(SEARCH($B$14,BF50)),MAX($BE$8:BE49)+1,0)","v":42},"B Roll to pike stand",null,null,{"$f":"IFERROR(VLOOKUP(ROWS($BF$9:BF50),$BE$9:$BF$163,2,0),\"\")","v":"B Roll to pike stand"},null,null,null,{"$f":"IF(ISNUMBER(SEARCH($B$15,BN50)),MAX($BM$8:BM49)+1,0)","v":42},"B Roll to pike stand",null,null,{"$f":"IFERROR(VLOOKUP(ROWS($BN$9:BN50),$BM$9:$BN$163,2,0),\"\")","v":"B Roll to pike stand"},null,null,null,{"$f":"IF(ISNUMBER(SEARCH($B$16,BV50)),MAX($BU$8:BU49)+1,0)","v":42},"B Roll to pike stand",null,null,{"$f":"IFERROR(VLOOKUP(ROWS($BV$9:BV50),$BU$9:$BV$163,2,0),\"\")","v":"B Roll to pike stand"},null,null,null,{"$f":"IF(ISNUMBER(SEARCH($B$17,CD50)),MAX($CC$8:CC49)+1,0)","v":42},"B Roll to pike stand",null,null,{"$f":"IFERROR(VLOOKUP(ROWS($CD$9:CD50),$CC$9:$CD$163,2,0),\"\")","v":"B Roll to pike stand"},null,null,null,{"$f":"IF(ISNUMBER(SEARCH($B$18,CL50)),MAX($CK$8:CK49)+1,0)","v":42},"B Roll to pike stand",null,null,{"$f":"IFERROR(VLOOKUP(ROWS($CL$9:CL50),$CK$9:$CL$163,2,0),\"\")","v":"B Roll to pike stand"}]
[null,null,null,null,null,null,null,null,null,null,null,null,{"$f":"IF(D5=\"Male\",\"Yes\",IF(COUNTIF(CS9:CS18,\"Yes\")>=2,\"Yes\",\"No\"))","v":"No"},null,null,null,{"$f":"IF(ISNUMBER(SEARCH($B$9,R51)),MAX($Q$8:Q50)+1,0)","v":43},"Handstand ½ turn",null,null,{"$f":"IFERROR(VLOOKUP(ROWS($R$9:R51),$Q$9:$R$163,2,0),\"\")","v":"Handstand ½ turn"},null,null,null,{"$f":"IF(ISNUMBER(SEARCH($B$10,Z51)),MAX($Y$8:Y50)+1,0)","v":43},"Handstand ½ turn",null,null,{"$f":"IFERROR(VLOOKUP(ROWS($Z$9:Z51),$Y$9:$Z$163,2,0),\"\")","v":"Handstand ½ turn"},null,null,null,{"$f":"IF(ISNUMBER(SEARCH($B$11,AH51)),MAX($AG$8:AG50)+1,0)","v":43},"Handstand ½ turn",null,null,{"$f":"IFERROR(VLOOKUP(ROWS($AH$9:AH51),$AG$9:$AH$163,2,0),\"\")","v":"Handstand ½ turn"},null,null,null,{"$f":"IF(ISNUMBER(SEARCH($B$12,AP51)),MAX($AO$8:AO50)+1,0)","v":43},"Handstand ½ turn",null,null,{"$f":"IFERROR(VLOOKUP(ROWS($AP$9:AP51),$AO$9:$AP$163,2,0),\"\")","v":"Handstand ½ turn"},null,null,null,{"$f":"IF(ISNUMBER(SEARCH($B$13,AX51)),MAX($AW$8:AW50)+1,0)","v":43},"Handstand ½ turn",null,null,{"$f":"IFERROR(VLOOKUP(ROWS($AX$9:AX51),$AW$9:$AX$163,2,0),\"\")","v":"Handstand ½ turn"},null,null,null,{"$f":"IF(ISNUMBER(SEARCH($B$14,BF51)),MAX($BE$8:BE50)+1,0)","v":43},"Handstand ½ turn",null,null,{"$f":"IFERROR(VLOOKUP(ROWS($BF$9:BF51),$BE$9:$BF$163,2,0),\"\")","v":"Handstand ½ turn"},null,null,null,{"$f":"IF(ISNUMBER(SEARCH($B$15,BN51)),MAX($BM$8:BM50)+1,0)","v":43},"Handstand ½ turn",null,null,{"$f":"IFERROR(VLOOKUP(ROWS($BN$9:BN51),$BM$9:$BN$163,2,0),\"\")","v":"Handstand ½ turn"},null,null,null,{"$f":"IF(ISNUMBER(SEARCH($B$16,BV51)),MAX($BU$8:BU50)+1,0)","v":43},"Handstand ½ turn",null,null,{"$f":"IFERROR(VLOOKUP(ROWS($BV$9:BV51),$BU$9:$BV$163,2,0),\"\")","v":"Handstand ½ turn"},null,null,null,{"$f":"IF(ISNUMBER(SEARCH($B$17,CD51)),MAX($CC$8:CC50)+1,0)","v":43},"Handstand ½ turn",null,null,{"$f":"IFERROR(VLOOKUP(ROWS($CD$9:CD51),$CC$9:$CD$163,2,0),\"\")","v":"Handstand ½ turn"},null,null,null,{"$f":"IF(ISNUMBER(SEARCH($B$18,CL51)),MAX($CK$8:CK50)+1,0)","v":43},"Handstand ½ turn",null,null,{"$f":"IFERROR(VLOOKUP(ROWS($CL$9:CL51),$CK$9:$CL$163,2,0),\"\")","v":"Handstand ½ turn"}]
[null,null,null,null,null,null,null,null,null,null,null,null,"G2",null,null,null,{"$f":"IF(ISNUMBER(SEARCH($B$9,R52)),MAX($Q$8:Q51)+1,0)","v":44},"Straddle Bunny Hop to Handstand",null,null,{"$f":"IFERROR(VLOOKUP(ROWS($R$9:R52),$Q$9:$R$163,2,0),\"\")","v":"Straddle Bunny Hop to Handstand"},null,null,null,{"$f":"IF(ISNUMBER(SEARCH($B$10,Z52)),MAX($Y$8:Y51)+1,0)","v":44},"Straddle Bunny Hop to Handstand",null,null,{"$f":"IFERROR(VLOOKUP(ROWS($Z$9:Z52),$Y$9:$Z$163,2,0),\"\")","v":"Straddle Bunny Hop to Handstand"},null,null,null,{"$f":"IF(ISNUMBER(SEARCH($B$11,AH52)),MAX($AG$8:AG51)+1,0)","v":44},"Straddle Bunny Hop to Handstand",null,null,{"$f":"IFERROR(VLOOKUP(ROWS($AH$9:AH52),$AG$9:$AH$163,2,0),\"\")","v":"Straddle Bunny Hop to Handstand"},null,null,null,{"$f":"IF(ISNUMBER(SEARCH($B$12,AP52)),MAX($AO$8:AO51)+1,0)","v":44},"Straddle Bunny Hop to Handstand",null,null,{"$f":"IFERROR(VLOOKUP(ROWS($AP$9:AP52),$AO$9:$AP$163,2,0),\"\")","v":"Straddle Bunny Hop to Handstand"},null,null,null,{"$f":"IF(ISNUMBER(SEARCH($B$13,AX52)),MAX($AW$8:AW51)+1,0)","v":44},"Straddle Bunny Hop to Handstand",null,null,{"$f":"IFERROR(VLOOKUP(ROWS($AX$9:AX52),$AW$9:$AX$163,2,0),\"\")","v":"Straddle Bunny Hop to Handstand"},null,null,null,{"$f":"IF(ISNUMBER(SEARCH($B$14,BF52)),MAX($BE$8:BE51)+1,0)","v":44},"Straddle Bunny Hop to Handstand",null,null,{"$f":"IFERROR(VLOOKUP(ROWS($BF$9:BF52),$BE$9:$BF$163,2,0),\"\")","v":"Straddle Bunny Hop to Handstand"},null,null,null,{"$f":"IF(ISNUMBER(SEARCH($B$15,BN52)),MAX($BM$8:BM51)+1,0)","v":44},"Straddle Bunny Hop to Handstand",null,null,{"$f":"IFERROR(VLOOKUP(ROWS($BN$9:BN52),$BM$9:$BN$163,2,0),\"\")","v":"Straddle Bunny Hop to Handstand"},null,null,null,{"$f":"IF(ISNUMBER(SEARCH($B$16,BV52)),MAX($BU$8:BU51)+1,0)","v":44},"Straddle Bunny Hop to Handstand",null,null,{"$f":"IFERROR(VLOOKUP(ROWS($BV$9:BV52),$BU$9:$BV$163,2,0),\"\")","v":"Straddle Bunny Hop to Handstand"},null,null,null,{"$f":"IF(ISNUMBER(SEARCH($B$17,CD52)),MAX($CC$8:CC51)+1,0)","v":44},"Straddle Bunny Hop to Handstand",null,null,{"$f":"IFERROR(VLOOKUP(ROWS($CD$9:CD52),$CC$9:$CD$163,2,0),\"\")","v":"Straddle Bunny Hop to Handstand"},null,null,null,{"$f":"IF(ISNUMBER(SEARCH($B$18,CL52)),MAX($CK$8:CK51)+1,0)","v":44},"Straddle Bunny Hop to Handstand",null,null,{"$f":"IFERROR(VLOOKUP(ROWS($CL$9:CL52),$CK$9:$CL$163,2,0),\"\")","v":"Straddle Bunny Hop to Handstand"}]
[null,null,null,null,null,null,null,null,null,null,null,null,{"$f":"IF(COUNTIF(CT9:CT18,\"Yes\")=2,\"Yes\",\"No\")","v":"No"},null,null,null,{"$f":"IF(ISNUMBER(SEARCH($B$9,R53)),MAX($Q$8:Q52)+1,0)","v":45},"Single Leg Circle",null,null,{"$f":"IFERROR(VLOOKUP(ROWS($R$9:R53),$Q$9:$R$163,2,0),\"\")","v":"Single Leg Circle"},null,null,null,{"$f":"IF(ISNUMBER(SEARCH($B$10,Z53)),MAX($Y$8:Y52)+1,0)","v":45},"Single Leg Circle",null,null,{"$f":"IFERROR(VLOOKUP(ROWS($Z$9:Z53),$Y$9:$Z$163,2,0),\"\")","v":"Single Leg Circle"},null,null,null,{"$f":"IF(ISNUMBER(SEARCH($B$11,AH53)),MAX($AG$8:AG52)+1,0)","v":45},"Single Leg Circle",null,null,{"$f":"IFERROR(VLOOKUP(ROWS($AH$9:AH53),$AG$9:$AH$163,2,0),\"\")","v":"Single Leg Circle"},null,null,null,{"$f":"IF(ISNUMBER(SEARCH($B$12,AP53)),MAX($AO$8:AO52)+1,0)","v":45},"Single Leg Circle",null,null,{"$f":"IFERROR(VLOOKUP(ROWS($AP$9:AP53),$AO$9:$AP$163,2,0),\"\")","v":"Single Leg Circle"},null,null,null,{"$f":"IF(ISNUMBER(SEARCH($B$13,AX53)),MAX($AW$8:AW52)+1,0)","v":45},"Single Leg Circle",null,null,{"$f":"IFERROR(VLOOKUP(ROWS($AX$9:AX53),$AW$9:$AX$163,2,0),\"\")","v":"Single Leg Circle"},null,null,null,{"$f":"IF(ISNUMBER(SEARCH($B$14,BF53)),MAX($BE$8:BE52)+1,0)","v":45},"Single Leg Circle",null,null,{"$f":"IFERROR(VLOOKUP(ROWS($BF$9:BF53),$BE$9:$BF$163,2,0),\"\")","v":"Single Leg Circle"},null,null,null,{"$f":"IF(ISNUMBER(SEARCH($B$15,BN53)),MAX($BM$8:BM52)+1,0)","v":45},"Single Leg Circle",null,null,{"$f":"IFERROR(VLOOKUP(ROWS($BN$9:BN53),$BM$9:$BN$163,2,0),\"\")","v":"Single Leg Circle"},null,null,null,{"$f":"IF(ISNUMBER(SEARCH($B$16,BV53)),MAX($BU$8:BU52)+1,0)","v":45},"Single Leg Circle",null,null,{"$f":"IFERROR(VLOOKUP(ROWS($BV$9:BV53),$BU$9:$BV$163,2,0),\"\")","v":"Single Leg Circle"},null,null,null,{"$f":"IF(ISNUMBER(SEARCH($B$17,CD53)),MAX($CC$8:CC52)+1,0)","v":45},"Single Leg Circle",null,null,{"$f":"IFERROR(VLOOKUP(ROWS($CD$9:CD53),$CC$9:$CD$163,2,0),\"\")","v":"Single Leg Circle"},null,null,null,{"$f":"IF(ISNUMBER(SEARCH($B$18,CL53)),MAX($CK$8:CK52)+1,0)","v":45},"Single Leg Circle",null,null,{"$f":"IFERROR(VLOOKUP(ROWS($CL$9:CL53),$CK$9:$CL$163,2,0),\"\")","v":"Single Leg Circle"}]
[null,null,null,null,null,null,null,null,null,null,null,null,{"$f":"IF(D5=M34,IF(M53=\"Yes\",\"Yes\",\"No\"),IF(D5=M33,IF(M51=\"Yes\",\"Yes\",\"No\")))","v":false},null,null,null,{"$f":"IF(ISNUMBER(SEARCH($B$9,R54)),MAX($Q$8:Q53)+1,0)","v":46},"Backward walkover",null,null,{"$f":"IFERROR(VLOOKUP(ROWS($R$9:R54),$Q$9:$R$163,2,0),\"\")","v":"Backward walkover"},null,null,null,{"$f":"IF(ISNUMBER(SEARCH($B$10,Z54)),MAX($Y$8:Y53)+1,0)","v":46},"Backward walkover",null,null,{"$f":"IFERROR(VLOOKUP(ROWS($Z$9:Z54),$Y$9:$Z$163,2,0),\"\")","v":"Backward walkover"},null,null,null,{"$f":"IF(ISNUMBER(SEARCH($B$11,AH54)),MAX($AG$8:AG53)+1,0)","v":46},"Backward walkover",null,null,{"$f":"IFERROR(VLOOKUP(ROWS($AH$9:AH54),$AG$9:$AH$163,2,0),\"\")","v":"Backward walkover"},null,null,null,{"$f":"IF(ISNUMBER(SEARCH($B$12,AP54)),MAX($AO$8:AO53)+1,0)","v":46},"Backward walkover",null,null,{"$f":"IFERROR(VLOOKUP(ROWS($AP$9:AP54),$AO$9:$AP$163,2,0),\"\")","v":"Backward walkover"},null,null,null,{"$f":"IF(ISNUMBER(SEARCH($B$13,AX54)),MAX($AW$8:AW53)+1,0)","v":46},"Backward walkover",null,null,{"$f":"IFERROR(VLOOKUP(ROWS($AX$9:AX54),$AW$9:$AX$163,2,0),\"\")","v":"Backward walkover"},null,null,null,{"$f":"IF(ISNUMBER(SEARCH($B$14,BF54)),MAX($BE$8:BE53)+1,0)","v":46},"Backward walkover",null,null,{"$f":"IFERROR(VLOOKUP(ROWS($BF$9:BF54),$BE$9:$BF$163,2,0),\"\")","v":"Backward walkover"},null,null,null,{"$f":"IF(ISNUMBER(SEARCH($B$15,BN54)),MAX($BM$8:BM53)+1,0)","v":46},"Backward walkover",null,null,{"$f":"IFERROR(VLOOKUP(ROWS($BN$9:BN54),$BM$9:$BN$163,2,0),\"\")","v":"Backward walkover"},null,null,null,{"$f":"IF(ISNUMBER(SEARCH($B$16,BV54)),MAX($BU$8:BU53)+1,0)","v":46},"Backward walkover",null,null,{"$f":"IFERROR(VLOOKUP(ROWS($BV$9:BV54),$BU$9:$BV$163,2,0),\"\")","v":"Backward walkover"},null,null,null,{"$f":"IF(ISNUMBER(SEARCH($B$17,CD54)),MAX($CC$8:CC53)+1,0)","v":46},"Backward walkover",null,null,{"$f":"IFERROR(VLOOKUP(ROWS($CD$9:CD54),$CC$9:$CD$163,2,0),\"\")","v":"Backward walkover"},null,null,null,{"$f":"IF(ISNUMBER(SEARCH($B$18,CL54)),MAX($CK$8:CK53)+1,0)","v":46},"Backward walkover",null,null,{"$f":"IFERROR(VLOOKUP(ROWS($CL$9:CL54),$CK$9:$CL$163,2,0),\"\")","v":"Backward walkover"}]
[null,null,null,null,null,null,null,null,null,null,null,null,2,null,null,null,{"$f":"IF(ISNUMBER(SEARCH($B$9,R55)),MAX($Q$8:Q54)+1,0)","v":47},"Cartwheel ¼ turn in (Front to Back)↓",null,null,{"$f":"IFERROR(VLOOKUP(ROWS($R$9:R55),$Q$9:$R$163,2,0),\"\")","v":"Cartwheel ¼ turn in (Front to Back)↓"},null,null,null,{"$f":"IF(ISNUMBER(SEARCH($B$10,Z55)),MAX($Y$8:Y54)+1,0)","v":47},"Cartwheel ¼ turn in (Front to Back)↓",null,null,{"$f":"IFERROR(VLOOKUP(ROWS($Z$9:Z55),$Y$9:$Z$163,2,0),\"\")","v":"Cartwheel ¼ turn in (Front to Back)↓"},null,null,null,{"$f":"IF(ISNUMBER(SEARCH($B$11,AH55)),MAX($AG$8:AG54)+1,0)","v":47},"Cartwheel ¼ turn in (Front to Back)↓",null,null,{"$f":"IFERROR(VLOOKUP(ROWS($AH$9:AH55),$AG$9:$AH$163,2,0),\"\")","v":"Cartwheel ¼ turn in (Front to Back)↓"},null,null,null,{"$f":"IF(ISNUMBER(SEARCH($B$12,AP55)),MAX($AO$8:AO54)+1,0)","v":47},"Cartwheel ¼ turn in (Front to Back)↓",null,null,{"$f":"IFERROR(VLOOKUP(ROWS($AP$9:AP55),$AO$9:$AP$163,2,0),\"\")","v":"Cartwheel ¼ turn in (Front to Back)↓"},null,null,null,{"$f":"IF(ISNUMBER(SEARCH($B$13,AX55)),MAX($AW$8:AW54)+1,0)","v":47},"Cartwheel ¼ turn in (Front to Back)↓",null,null,{"$f":"IFERROR(VLOOKUP(ROWS($AX$9:AX55),$AW$9:$AX$163,2,0),\"\")","v":"Cartwheel ¼ turn in (Front to Back)↓"},null,null,null,{"$f":"IF(ISNUMBER(SEARCH($B$14,BF55)),MAX($BE$8:BE54)+1,0)","v":47},"Cartwheel ¼ turn in (Front to Back)↓",null,null,{"$f":"IFERROR(VLOOKUP(ROWS($BF$9:BF55),$BE$9:$BF$163,2,0),\"\")","v":"Cartwheel ¼ turn in (Front to Back)↓"},null,null,null,{"$f":"IF(ISNUMBER(SEARCH($B$15,BN55)),MAX($BM$8:BM54)+1,0)","v":47},"Cartwheel ¼ turn in (Front to Back)↓",null,null,{"$f":"IFERROR(VLOOKUP(ROWS($BN$9:BN55),$BM$9:$BN$163,2,0),\"\")","v":"Cartwheel ¼ turn in (Front to Back)↓"},null,null,null,{"$f":"IF(ISNUMBER(SEARCH($B$16,BV55)),MAX($BU$8:BU54)+1,0)","v":47},"Cartwheel ¼ turn in (Front to Back)↓",null,null,{"$f":"IFERROR(VLOOKUP(ROWS($BV$9:BV55),$BU$9:$BV$163,2,0),\"\")","v":"Cartwheel ¼ turn in (Front to Back)↓"},null,null,null,{"$f":"IF(ISNUMBER(SEARCH($B$17,CD55)),MAX($CC$8:CC54)+1,0)","v":47},"Cartwheel ¼ turn in (Front to Back)↓",null,null,{"$f":"IFERROR(VLOOKUP(ROWS($CD$9:CD55),$CC$9:$CD$163,2,0),\"\")","v":"Cartwheel ¼ turn in (Front to Back)↓"},null,null,null,{"$f":"IF(ISNUMBER(SEARCH($B$18,CL55)),MAX($CK$8:CK54)+1,0)","v":47},"Cartwheel ¼ turn in (Front to Back)↓",null,null,{"$f":"IFERROR(VLOOKUP(ROWS($CL$9:CL55),$CK$9:$CL$163,2,0),\"\")","v":"Cartwheel ¼ turn in (Front to Back)↓"}]
[null,null,null,null,null,null,null,null,null,null,null,null,"Mix Series",null,null,null,{"$f":"IF(ISNUMBER(SEARCH($B$9,R56)),MAX($Q$8:Q55)+1,0)","v":48},"Cartwheel ¼ turn out",null,null,{"$f":"IFERROR(VLOOKUP(ROWS($R$9:R56),$Q$9:$R$163,2,0),\"\")","v":"Cartwheel ¼ turn out"},null,null,null,{"$f":"IF(ISNUMBER(SEARCH($B$10,Z56)),MAX($Y$8:Y55)+1,0)","v":48},"Cartwheel ¼ turn out",null,null,{"$f":"IFERROR(VLOOKUP(ROWS($Z$9:Z56),$Y$9:$Z$163,2,0),\"\")","v":"Cartwheel ¼ turn out"},null,null,null,{"$f":"IF(ISNUMBER(SEARCH($B$11,AH56)),MAX($AG$8:AG55)+1,0)","v":48},"Cartwheel ¼ turn out",null,null,{"$f":"IFERROR(VLOOKUP(ROWS($AH$9:AH56),$AG$9:$AH$163,2,0),\"\")","v":"Cartwheel ¼ turn out"},null,null,null,{"$f":"IF(ISNUMBER(SEARCH($B$12,AP56)),MAX($AO$8:AO55)+1,0)","v":48},"Cartwheel ¼ turn out",null,null,{"$f":"IFERROR(VLOOKUP(ROWS($AP$9:AP56),$AO$9:$AP$163,2,0),\"\")","v":"Cartwheel ¼ turn out"},null,null,null,{"$f":"IF(ISNUMBER(SEARCH($B$13,AX56)),MAX($AW$8:AW55)+1,0)","v":48},"Cartwheel ¼ turn out",null,null,{"$f":"IFERROR(VLOOKUP(ROWS($AX$9:AX56),$AW$9:$AX$163,2,0),\"\")","v":"Cartwheel ¼ turn out"},null,null,null,{"$f":"IF(ISNUMBER(SEARCH($B$14,BF56)),MAX($BE$8:BE55)+1,0)","v":48},"Cartwheel ¼ turn out",null,null,{"$f":"IFERROR(VLOOKUP(ROWS($BF$9:BF56),$BE$9:$BF$163,2,0),\"\")","v":"Cartwheel ¼ turn out"},null,null,null,{"$f":"IF(ISNUMBER(SEARCH($B$15,BN56)),MAX($BM$8:BM55)+1,0)","v":48},"Cartwheel ¼ turn out",null,null,{"$f":"IFERROR(VLOOKUP(ROWS($BN$9:BN56),$BM$9:$BN$163,2,0),\"\")","v":"Cartwheel ¼ turn out"},null,null,null,{"$f":"IF(ISNUMBER(SEARCH($B$16,BV56)),MAX($BU$8:BU55)+1,0)","v":48},"Cartwheel ¼ turn out",null,null,{"$f":"IFERROR(VLOOKUP(ROWS($BV$9:BV56),$BU$9:$BV$163,2,0),\"\")","v":"Cartwheel ¼ turn out"},null,null,null,{"$f":"IF(ISNUMBER(SEARCH($B$17,CD56)),MAX($CC$8:CC55)+1,0)","v":48},"Cartwheel ¼ turn out",null,null,{"$f":"IFERROR(VLOOKUP(ROWS($CD$9:CD56),$CC$9:$CD$163,2,0),\"\")","v":"Cartwheel ¼ turn out"},null,null,null,{"$f":"IF(ISNUMBER(SEARCH($B$18,CL56)),MAX($CK$8:CK55)+1,0)","v":48},"Cartwheel ¼ turn out",null,null,{"$f":"IFERROR(VLOOKUP(ROWS($CL$9:CL56),$CK$9:$CL$163,2,0),\"\")","v":"Cartwheel ¼ turn out"}]
[null,null,null,null,null,null,null,null,null,null,null,null,{"$f":"IF(COUNTIF(DE9:DE18,\"Yes\")=2,\"Yes\",\"No\")","v":"No"},null,null,null,{"$f":"IF(ISNUMBER(SEARCH($B$9,R57)),MAX($Q$8:Q56)+1,0)","v":49},"1 Arm Cartwheel ",null,null,{"$f":"IFERROR(VLOOKUP(ROWS($R$9:R57),$Q$9:$R$163,2,0),\"\")","v":"1 Arm Cartwheel "},null,null,null,{"$f":"IF(ISNUMBER(SEARCH($B$10,Z57)),MAX($Y$8:Y56)+1,0)","v":49},"1 Arm Cartwheel ",null,null,{"$f":"IFERROR(VLOOKUP(ROWS($Z$9:Z57),$Y$9:$Z$163,2,0),\"\")","v":"1 Arm Cartwheel "},null,null,null,{"$f":"IF(ISNUMBER(SEARCH($B$11,AH57)),MAX($AG$8:AG56)+1,0)","v":49},"1 Arm Cartwheel ",null,null,{"$f":"IFERROR(VLOOKUP(ROWS($AH$9:AH57),$AG$9:$AH$163,2,0),\"\")","v":"1 Arm Cartwheel "},null,null,null,{"$f":"IF(ISNUMBER(SEARCH($B$12,AP57)),MAX($AO$8:AO56)+1,0)","v":49},"1 Arm Cartwheel ",null,null,{"$f":"IFERROR(VLOOKUP(ROWS($AP$9:AP57),$AO$9:$AP$163,2,0),\"\")","v":"1 Arm Cartwheel "},null,null,null,{"$f":"IF(ISNUMBER(SEARCH($B$13,AX57)),MAX($AW$8:AW56)+1,0)","v":49},"1 Arm Cartwheel ",null,null,{"$f":"IFERROR(VLOOKUP(ROWS($AX$9:AX57),$AW$9:$AX$163,2,0),\"\")","v":"1 Arm Cartwheel "},null,null,null,{"$f":"IF(ISNUMBER(SEARCH($B$14,BF57)),MAX($BE$8:BE56)+1,0)","v":49},"1 Arm Cartwheel ",null,null,{"$f":"IFERROR(VLOOKUP(ROWS($BF$9:BF57),$BE$9:$BF$163,2,0),\"\")","v":"1 Arm Cartwheel "},null,null,null,{"$f":"IF(ISNUMBER(SEARCH($B$15,BN57)),MAX($BM$8:BM56)+1,0)","v":49},"1 Arm Cartwheel ",null,null,{"$f":"IFERROR(VLOOKUP(ROWS($BN$9:BN57),$BM$9:$BN$163,2,0),\"\")","v":"1 Arm Cartwheel "},null,null,null,{"$f":"IF(ISNUMBER(SEARCH($B$16,BV57)),MAX($BU$8:BU56)+1,0)","v":49},"1 Arm Cartwheel ",null,null,{"$f":"IFERROR(VLOOKUP(ROWS($BV$9:BV57),$BU$9:$BV$163,2,0),\"\")","v":"1 Arm Cartwheel "},null,null,null,{"$f":"IF(ISNUMBER(SEARCH($B$17,CD57)),MAX($CC$8:CC56)+1,0)","v":49},"1 Arm Cartwheel ",null,null,{"$f":"IFERROR(VLOOKUP(ROWS($CD$9:CD57),$CC$9:$CD$163,2,0),\"\")","v":"1 Arm Cartwheel "},null,null,null,{"$f":"IF(ISNUMBER(SEARCH($B$18,CL57)),MAX($CK$8:CK56)+1,0)","v":49},"1 Arm Cartwheel ",null,null,{"$f":"IFERROR(VLOOKUP(ROWS($CL$9:CL57),$CK$9:$CL$163,2,0),\"\")","v":"1 Arm Cartwheel "}]
[null,null,null,null,null,null,null,null,null,null,null,null,3,null,null,null,{"$f":"IF(ISNUMBER(SEARCH($B$9,R58)),MAX($Q$8:Q57)+1,0)","v":50},"2 x side C/wheels (opt. entry / exit)",null,null,{"$f":"IFERROR(VLOOKUP(ROWS($R$9:R58),$Q$9:$R$163,2,0),\"\")","v":"2 x side C/wheels (opt. entry / exit)"},null,null,null,{"$f":"IF(ISNUMBER(SEARCH($B$10,Z58)),MAX($Y$8:Y57)+1,0)","v":50},"2 x side C/wheels (opt. entry / exit)",null,null,{"$f":"IFERROR(VLOOKUP(ROWS($Z$9:Z58),$Y$9:$Z$163,2,0),\"\")","v":"2 x side C/wheels (opt. entry / exit)"},null,null,null,{"$f":"IF(ISNUMBER(SEARCH($B$11,AH58)),MAX($AG$8:AG57)+1,0)","v":50},"2 x side C/wheels (opt. entry / exit)",null,null,{"$f":"IFERROR(VLOOKUP(ROWS($AH$9:AH58),$AG$9:$AH$163,2,0),\"\")","v":"2 x side C/wheels (opt. entry / exit)"},null,null,null,{"$f":"IF(ISNUMBER(SEARCH($B$12,AP58)),MAX($AO$8:AO57)+1,0)","v":50},"2 x side C/wheels (opt. entry / exit)",null,null,{"$f":"IFERROR(VLOOKUP(ROWS($AP$9:AP58),$AO$9:$AP$163,2,0),\"\")","v":"2 x side C/wheels (opt. entry / exit)"},null,null,null,{"$f":"IF(ISNUMBER(SEARCH($B$13,AX58)),MAX($AW$8:AW57)+1,0)","v":50},"2 x side C/wheels (opt. entry / exit)",null,null,{"$f":"IFERROR(VLOOKUP(ROWS($AX$9:AX58),$AW$9:$AX$163,2,0),\"\")","v":"2 x side C/wheels (opt. entry / exit)"},null,null,null,{"$f":"IF(ISNUMBER(SEARCH($B$14,BF58)),MAX($BE$8:BE57)+1,0)","v":50},"2 x side C/wheels (opt. entry / exit)",null,null,{"$f":"IFERROR(VLOOKUP(ROWS($BF$9:BF58),$BE$9:$BF$163,2,0),\"\")","v":"2 x side C/wheels (opt. entry / exit)"},null,null,null,{"$f":"IF(ISNUMBER(SEARCH($B$15,BN58)),MAX($BM$8:BM57)+1,0)","v":50},"2 x side C/wheels (opt. entry / exit)",null,null,{"$f":"IFERROR(VLOOKUP(ROWS($BN$9:BN58),$BM$9:$BN$163,2,0),\"\")","v":"2 x side C/wheels (opt. entry / exit)"},null,null,null,{"$f":"IF(ISNUMBER(SEARCH($B$16,BV58)),MAX($BU$8:BU57)+1,0)","v":50},"2 x side C/wheels (opt. entry / exit)",null,null,{"$f":"IFERROR(VLOOKUP(ROWS($BV$9:BV58),$BU$9:$BV$163,2,0),\"\")","v":"2 x side C/wheels (opt. entry / exit)"},null,null,null,{"$f":"IF(ISNUMBER(SEARCH($B$17,CD58)),MAX($CC$8:CC57)+1,0)","v":50},"2 x side C/wheels (opt. entry / exit)",null,null,{"$f":"IFERROR(VLOOKUP(ROWS($CD$9:CD58),$CC$9:$CD$163,2,0),\"\")","v":"2 x side C/wheels (opt. entry / exit)"},null,null,null,{"$f":"IF(ISNUMBER(SEARCH($B$18,CL58)),MAX($CK$8:CK57)+1,0)","v":50},"2 x side C/wheels (opt. entry / exit)",null,null,{"$f":"IFERROR(VLOOKUP(ROWS($CL$9:CL58),$CK$9:$CL$163,2,0),\"\")","v":"2 x side C/wheels (opt. entry / exit)"}]
[null,null,null,null,null,null,null,null,null,null,null,null,"AS2FS",null,null,null,{"$f":"IF(ISNUMBER(SEARCH($B$9,R59)),MAX($Q$8:Q58)+1,0)","v":51},"Dive C/wheel (must show flight)",null,null,{"$f":"IFERROR(VLOOKUP(ROWS($R$9:R59),$Q$9:$R$163,2,0),\"\")","v":"Dive C/wheel (must show flight)"},null,null,null,{"$f":"IF(ISNUMBER(SEARCH($B$10,Z59)),MAX($Y$8:Y58)+1,0)","v":51},"Dive C/wheel (must show flight)",null,null,{"$f":"IFERROR(VLOOKUP(ROWS($Z$9:Z59),$Y$9:$Z$163,2,0),\"\")","v":"Dive C/wheel (must show flight)"},null,null,null,{"$f":"IF(ISNUMBER(SEARCH($B$11,AH59)),MAX($AG$8:AG58)+1,0)","v":51},"Dive C/wheel (must show flight)",null,null,{"$f":"IFERROR(VLOOKUP(ROWS($AH$9:AH59),$AG$9:$AH$163,2,0),\"\")","v":"Dive C/wheel (must show flight)"},null,null,null,{"$f":"IF(ISNUMBER(SEARCH($B$12,AP59)),MAX($AO$8:AO58)+1,0)","v":51},"Dive C/wheel (must show flight)",null,null,{"$f":"IFERROR(VLOOKUP(ROWS($AP$9:AP59),$AO$9:$AP$163,2,0),\"\")","v":"Dive C/wheel (must show flight)"},null,null,null,{"$f":"IF(ISNUMBER(SEARCH($B$13,AX59)),MAX($AW$8:AW58)+1,0)","v":51},"Dive C/wheel (must show flight)",null,null,{"$f":"IFERROR(VLOOKUP(ROWS($AX$9:AX59),$AW$9:$AX$163,2,0),\"\")","v":"Dive C/wheel (must show flight)"},null,null,null,{"$f":"IF(ISNUMBER(SEARCH($B$14,BF59)),MAX($BE$8:BE58)+1,0)","v":51},"Dive C/wheel (must show flight)",null,null,{"$f":"IFERROR(VLOOKUP(ROWS($BF$9:BF59),$BE$9:$BF$163,2,0),\"\")","v":"Dive C/wheel (must show flight)"},null,null,null,{"$f":"IF(ISNUMBER(SEARCH($B$15,BN59)),MAX($BM$8:BM58)+1,0)","v":51},"Dive C/wheel (must show flight)",null,null,{"$f":"IFERROR(VLOOKUP(ROWS($BN$9:BN59),$BM$9:$BN$163,2,0),\"\")","v":"Dive C/wheel (must show flight)"},null,null,null,{"$f":"IF(ISNUMBER(SEARCH($B$16,BV59)),MAX($BU$8:BU58)+1,0)","v":51},"Dive C/wheel (must show flight)",null,null,{"$f":"IFERROR(VLOOKUP(ROWS($BV$9:BV59),$BU$9:$BV$163,2,0),\"\")","v":"Dive C/wheel (must show flight)"},null,null,null,{"$f":"IF(ISNUMBER(SEARCH($B$17,CD59)),MAX($CC$8:CC58)+1,0)","v":51},"Dive C/wheel (must show flight)",null,null,{"$f":"IFERROR(VLOOKUP(ROWS($CD$9:CD59),$CC$9:$CD$163,2,0),\"\")","v":"Dive C/wheel (must show flight)"},null,null,null,{"$f":"IF(ISNUMBER(SEARCH($B$18,CL59)),MAX($CK$8:CK58)+1,0)","v":51},"Dive C/wheel (must show flight)",null,null,{"$f":"IFERROR(VLOOKUP(ROWS($CL$9:CL59),$CK$9:$CL$163,2,0),\"\")","v":"Dive C/wheel (must show flight)"}]
[null,null,null,null,null,null,null,null,null,null,null,null,{"$f":"IF(COUNTIF(CW8:CW18,\"Yes\")=1,\"Yes\",\"No\")","v":"No"},null,null,null,{"$f":"IF(ISNUMBER(SEARCH($B$9,R60)),MAX($Q$8:Q59)+1,0)","v":52},"Roundoff",null,null,{"$f":"IFERROR(VLOOKUP(ROWS($R$9:R60),$Q$9:$R$163,2,0),\"\")","v":"Roundoff"},null,null,null,{"$f":"IF(ISNUMBER(SEARCH($B$10,Z60)),MAX($Y$8:Y59)+1,0)","v":52},"Roundoff",null,null,{"$f":"IFERROR(VLOOKUP(ROWS($Z$9:Z60),$Y$9:$Z$163,2,0),\"\")","v":"Roundoff"},null,null,null,{"$f":"IF(ISNUMBER(SEARCH($B$11,AH60)),MAX($AG$8:AG59)+1,0)","v":52},"Roundoff",null,null,{"$f":"IFERROR(VLOOKUP(ROWS($AH$9:AH60),$AG$9:$AH$163,2,0),\"\")","v":"Roundoff"},null,null,null,{"$f":"IF(ISNUMBER(SEARCH($B$12,AP60)),MAX($AO$8:AO59)+1,0)","v":52},"Roundoff",null,null,{"$f":"IFERROR(VLOOKUP(ROWS($AP$9:AP60),$AO$9:$AP$163,2,0),\"\")","v":"Roundoff"},null,null,null,{"$f":"IF(ISNUMBER(SEARCH($B$13,AX60)),MAX($AW$8:AW59)+1,0)","v":52},"Roundoff",null,null,{"$f":"IFERROR(VLOOKUP(ROWS($AX$9:AX60),$AW$9:$AX$163,2,0),\"\")","v":"Roundoff"},null,null,null,{"$f":"IF(ISNUMBER(SEARCH($B$14,BF60)),MAX($BE$8:BE59)+1,0)","v":52},"Roundoff",null,null,{"$f":"IFERROR(VLOOKUP(ROWS($BF$9:BF60),$BE$9:$BF$163,2,0),\"\")","v":"Roundoff"},null,null,null,{"$f":"IF(ISNUMBER(SEARCH($B$15,BN60)),MAX($BM$8:BM59)+1,0)","v":52},"Roundoff",null,null,{"$f":"IFERROR(VLOOKUP(ROWS($BN$9:BN60),$BM$9:$BN$163,2,0),\"\")","v":"Roundoff"},null,null,null,{"$f":"IF(ISNUMBER(SEARCH($B$16,BV60)),MAX($BU$8:BU59)+1,0)","v":52},"Roundoff",null,null,{"$f":"IFERROR(VLOOKUP(ROWS($BV$9:BV60),$BU$9:$BV$163,2,0),\"\")","v":"Roundoff"},null,null,null,{"$f":"IF(ISNUMBER(SEARCH($B$17,CD60)),MAX($CC$8:CC59)+1,0)","v":52},"Roundoff",null,null,{"$f":"IFERROR(VLOOKUP(ROWS($CD$9:CD60),$CC$9:$CD$163,2,0),\"\")","v":"Roundoff"},null,null,null,{"$f":"IF(ISNUMBER(SEARCH($B$18,CL60)),MAX($CK$8:CK59)+1,0)","v":52},"Roundoff",null,null,{"$f":"IFERROR(VLOOKUP(ROWS($CL$9:CL60),$CK$9:$CL$163,2,0),\"\")","v":"Roundoff"}]
[null,null,null,null,null,null,null,null,null,null,null,null,null,null,null,null,{"$f":"IF(ISNUMBER(SEARCH($B$9,R61)),MAX($Q$8:Q60)+1,0)","v":53},"Roundoff jump (optional shape)",null,null,{"$f":"IFERROR(VLOOKUP(ROWS($R$9:R61),$Q$9:$R$163,2,0),\"\")","v":"Roundoff jump (optional shape)"},null,null,null,{"$f":"IF(ISNUMBER(SEARCH($B$10,Z61)),MAX($Y$8:Y60)+1,0)","v":53},"Roundoff jump (optional shape)",null,null,{"$f":"IFERROR(VLOOKUP(ROWS($Z$9:Z61),$Y$9:$Z$163,2,0),\"\")","v":"Roundoff jump (optional shape)"},null,null,null,{"$f":"IF(ISNUMBER(SEARCH($B$11,AH61)),MAX($AG$8:AG60)+1,0)","v":53},"Roundoff jump (optional shape)",null,null,{"$f":"IFERROR(VLOOKUP(ROWS($AH$9:AH61),$AG$9:$AH$163,2,0),\"\")","v":"Roundoff jump (optional shape)"},null,null,null,{"$f":"IF(ISNUMBER(SEARCH($B$12,AP61)),MAX($AO$8:AO60)+1,0)","v":53},"Roundoff jump (optional shape)",null,null,{"$f":"IFERROR(VLOOKUP(ROWS($AP$9:AP61),$AO$9:$AP$163,2,0),\"\")","v":"Roundoff jump (optional shape)"},null,null,null,{"$f":"IF(ISNUMBER(SEARCH($B$13,AX61)),MAX($AW$8:AW60)+1,0)","v":53},"Roundoff jump (optional shape)",null,null,{"$f":"IFERROR(VLOOKUP(ROWS($AX$9:AX61),$AW$9:$AX$163,2,0),\"\")","v":"Roundoff jump (optional shape)"},null,null,null,{"$f":"IF(ISNUMBER(SEARCH($B$14,BF61)),MAX($BE$8:BE60)+1,0)","v":53},"Roundoff jump (optional shape)",null,null,{"$f":"IFERROR(VLOOKUP(ROWS($BF$9:BF61),$BE$9:$BF$163,2,0),\"\")","v":"Roundoff jump (optional shape)"},null,null,null,{"$f":"IF(ISNUMBER(SEARCH($B$15,BN61)),MAX($BM$8:BM60)+1,0)","v":53},"Roundoff jump (optional shape)",null,null,{"$f":"IFERROR(VLOOKUP(ROWS($BN$9:BN61),$BM$9:$BN$163,2,0),\"\")","v":"Roundoff jump (optional shape)"},null,null,null,{"$f":"IF(ISNUMBER(SEARCH($B$16,BV61)),MAX($BU$8:BU60)+1,0)","v":53},"Roundoff jump (optional shape)",null,null,{"$f":"IFERROR(VLOOKUP(ROWS($BV$9:BV61),$BU$9:$BV$163,2,0),\"\")","v":"Roundoff jump (optional shape)"},null,null,null,{"$f":"IF(ISNUMBER(SEARCH($B$17,CD61)),MAX($CC$8:CC60)+1,0)","v":53},"Roundoff jump (optional shape)",null,null,{"$f":"IFERROR(VLOOKUP(ROWS($CD$9:CD61),$CC$9:$CD$163,2,0),\"\")","v":"Roundoff jump (optional shape)"},null,null,null,{"$f":"IF(ISNUMBER(SEARCH($B$18,CL61)),MAX($CK$8:CK60)+1,0)","v":53},"Roundoff jump (optional shape)",null,null,{"$f":"IFERROR(VLOOKUP(ROWS($CL$9:CL61),$CK$9:$CL$163,2,0),\"\")","v":"Roundoff jump (optional shape)"}]
[null,null,null,null,null,null,null,null,null,null,null,null,"Achieved",null,null,null,{"$f":"IF(ISNUMBER(SEARCH($B$9,R62)),MAX($Q$8:Q61)+1,0)","v":54},"Split leap or jump (150°)",null,null,{"$f":"IFERROR(VLOOKUP(ROWS($R$9:R62),$Q$9:$R$163,2,0),\"\")","v":"Split leap or jump (150°)"},null,null,null,{"$f":"IF(ISNUMBER(SEARCH($B$10,Z62)),MAX($Y$8:Y61)+1,0)","v":54},"Split leap or jump (150°)",null,null,{"$f":"IFERROR(VLOOKUP(ROWS($Z$9:Z62),$Y$9:$Z$163,2,0),\"\")","v":"Split leap or jump (150°)"},null,null,null,{"$f":"IF(ISNUMBER(SEARCH($B$11,AH62)),MAX($AG$8:AG61)+1,0)","v":54},"Split leap or jump (150°)",null,null,{"$f":"IFERROR(VLOOKUP(ROWS($AH$9:AH62),$AG$9:$AH$163,2,0),\"\")","v":"Split leap or jump (150°)"},null,null,null,{"$f":"IF(ISNUMBER(SEARCH($B$12,AP62)),MAX($AO$8:AO61)+1,0)","v":54},"Split leap or jump (150°)",null,null,{"$f":"IFERROR(VLOOKUP(ROWS($AP$9:AP62),$AO$9:$AP$163,2,0),\"\")","v":"Split leap or jump (150°)"},null,null,null,{"$f":"IF(ISNUMBER(SEARCH($B$13,AX62)),MAX($AW$8:AW61)+1,0)","v":54},"Split leap or jump (150°)",null,null,{"$f":"IFERROR(VLOOKUP(ROWS($AX$9:AX62),$AW$9:$AX$163,2,0),\"\")","v":"Split leap or jump (150°)"},null,null,null,{"$f":"IF(ISNUMBER(SEARCH($B$14,BF62)),MAX($BE$8:BE61)+1,0)","v":54},"Split leap or jump (150°)",null,null,{"$f":"IFERROR(VLOOKUP(ROWS($BF$9:BF62),$BE$9:$BF$163,2,0),\"\")","v":"Split leap or jump (150°)"},null,null,null,{"$f":"IF(ISNUMBER(SEARCH($B$15,BN62)),MAX($BM$8:BM61)+1,0)","v":54},"Split leap or jump (150°)",null,null,{"$f":"IFERROR(VLOOKUP(ROWS($BN$9:BN62),$BM$9:$BN$163,2,0),\"\")","v":"Split leap or jump (150°)"},null,null,null,{"$f":"IF(ISNUMBER(SEARCH($B$16,BV62)),MAX($BU$8:BU61)+1,0)","v":54},"Split leap or jump (150°)",null,null,{"$f":"IFERROR(VLOOKUP(ROWS($BV$9:BV62),$BU$9:$BV$163,2,0),\"\")","v":"Split leap or jump (150°)"},null,null,null,{"$f":"IF(ISNUMBER(SEARCH($B$17,CD62)),MAX($CC$8:CC61)+1,0)","v":54},"Split leap or jump (150°)",null,null,{"$f":"IFERROR(VLOOKUP(ROWS($CD$9:CD62),$CC$9:$CD$163,2,0),\"\")","v":"Split leap or jump (150°)"},null,null,null,{"$f":"IF(ISNUMBER(SEARCH($B$18,CL62)),MAX($CK$8:CK61)+1,0)","v":54},"Split leap or jump (150°)",null,null,{"$f":"IFERROR(VLOOKUP(ROWS($CL$9:CL62),$CK$9:$CL$163,2,0),\"\")","v":"Split leap or jump (150°)"}]
[null,null,null,null,null,null,null,null,null,null,null,null,{"$f":"IF(M54=\"Yes\",IF(M57=\"Yes\",IF(M60=\"Yes\",\"Yes\",\"No\"),\"No\"),\"No\")","v":"No"},null,null,null,{"$f":"IF(ISNUMBER(SEARCH($B$9,R63)),MAX($Q$8:Q62)+1,0)","v":55},"Fouette Turn",null,null,{"$f":"IFERROR(VLOOKUP(ROWS($R$9:R63),$Q$9:$R$163,2,0),\"\")","v":"Fouette Turn"},null,null,null,{"$f":"IF(ISNUMBER(SEARCH($B$10,Z63)),MAX($Y$8:Y62)+1,0)","v":55},"Fouette Turn",null,null,{"$f":"IFERROR(VLOOKUP(ROWS($Z$9:Z63),$Y$9:$Z$163,2,0),\"\")","v":"Fouette Turn"},null,null,null,{"$f":"IF(ISNUMBER(SEARCH($B$11,AH63)),MAX($AG$8:AG62)+1,0)","v":55},"Fouette Turn",null,null,{"$f":"IFERROR(VLOOKUP(ROWS($AH$9:AH63),$AG$9:$AH$163,2,0),\"\")","v":"Fouette Turn"},null,null,null,{"$f":"IF(ISNUMBER(SEARCH($B$12,AP63)),MAX($AO$8:AO62)+1,0)","v":55},"Fouette Turn",null,null,{"$f":"IFERROR(VLOOKUP(ROWS($AP$9:AP63),$AO$9:$AP$163,2,0),\"\")","v":"Fouette Turn"},null,null,null,{"$f":"IF(ISNUMBER(SEARCH($B$13,AX63)),MAX($AW$8:AW62)+1,0)","v":55},"Fouette Turn",null,null,{"$f":"IFERROR(VLOOKUP(ROWS($AX$9:AX63),$AW$9:$AX$163,2,0),\"\")","v":"Fouette Turn"},null,null,null,{"$f":"IF(ISNUMBER(SEARCH($B$14,BF63)),MAX($BE$8:BE62)+1,0)","v":55},"Fouette Turn",null,null,{"$f":"IFERROR(VLOOKUP(ROWS($BF$9:BF63),$BE$9:$BF$163,2,0),\"\")","v":"Fouette Turn"},null,null,null,{"$f":"IF(ISNUMBER(SEARCH($B$15,BN63)),MAX($BM$8:BM62)+1,0)","v":55},"Fouette Turn",null,null,{"$f":"IFERROR(VLOOKUP(ROWS($BN$9:BN63),$BM$9:$BN$163,2,0),\"\")","v":"Fouette Turn"},null,null,null,{"$f":"IF(ISNUMBER(SEARCH($B$16,BV63)),MAX($BU$8:BU62)+1,0)","v":55},"Fouette Turn",null,null,{"$f":"IFERROR(VLOOKUP(ROWS($BV$9:BV63),$BU$9:$BV$163,2,0),\"\")","v":"Fouette Turn"},null,null,null,{"$f":"IF(ISNUMBER(SEARCH($B$17,CD63)),MAX($CC$8:CC62)+1,0)","v":55},"Fouette Turn",null,null,{"$f":"IFERROR(VLOOKUP(ROWS($CD$9:CD63),$CC$9:$CD$163,2,0),\"\")","v":"Fouette Turn"},null,null,null,{"$f":"IF(ISNUMBER(SEARCH($B$18,CL63)),MAX($CK$8:CK62)+1,0)","v":55},"Fouette Turn",null,null,{"$f":"IFERROR(VLOOKUP(ROWS($CL$9:CL63),$CK$9:$CL$163,2,0),\"\")","v":"Fouette Turn"}]
[null,null,null,null,null,null,null,null,null,null,null,null,null,null,null,null,{"$f":"IF(ISNUMBER(SEARCH($B$9,R64)),MAX($Q$8:Q63)+1,0)","v":56},"Cat leap ½ turn",null,null,{"$f":"IFERROR(VLOOKUP(ROWS($R$9:R64),$Q$9:$R$163,2,0),\"\")","v":"Cat leap ½ turn"},null,null,null,{"$f":"IF(ISNUMBER(SEARCH($B$10,Z64)),MAX($Y$8:Y63)+1,0)","v":56},"Cat leap ½ turn",null,null,{"$f":"IFERROR(VLOOKUP(ROWS($Z$9:Z64),$Y$9:$Z$163,2,0),\"\")","v":"Cat leap ½ turn"},null,null,null,{"$f":"IF(ISNUMBER(SEARCH($B$11,AH64)),MAX($AG$8:AG63)+1,0)","v":56},"Cat leap ½ turn",null,null,{"$f":"IFERROR(VLOOKUP(ROWS($AH$9:AH64),$AG$9:$AH$163,2,0),\"\")","v":"Cat leap ½ turn"},null,null,null,{"$f":"IF(ISNUMBER(SEARCH($B$12,AP64)),MAX($AO$8:AO63)+1,0)","v":56},"Cat leap ½ turn",null,null,{"$f":"IFERROR(VLOOKUP(ROWS($AP$9:AP64),$AO$9:$AP$163,2,0),\"\")","v":"Cat leap ½ turn"},null,null,null,{"$f":"IF(ISNUMBER(SEARCH($B$13,AX64)),MAX($AW$8:AW63)+1,0)","v":56},"Cat leap ½ turn",null,null,{"$f":"IFERROR(VLOOKUP(ROWS($AX$9:AX64),$AW$9:$AX$163,2,0),\"\")","v":"Cat leap ½ turn"},null,null,null,{"$f":"IF(ISNUMBER(SEARCH($B$14,BF64)),MAX($BE$8:BE63)+1,0)","v":56},"Cat leap ½ turn",null,null,{"$f":"IFERROR(VLOOKUP(ROWS($BF$9:BF64),$BE$9:$BF$163,2,0),\"\")","v":"Cat leap ½ turn"},null,null,null,{"$f":"IF(ISNUMBER(SEARCH($B$15,BN64)),MAX($BM$8:BM63)+1,0)","v":56},"Cat leap ½ turn",null,null,{"$f":"IFERROR(VLOOKUP(ROWS($BN$9:BN64),$BM$9:$BN$163,2,0),\"\")","v":"Cat leap ½ turn"},null,null,null,{"$f":"IF(ISNUMBER(SEARCH($B$16,BV64)),MAX($BU$8:BU63)+1,0)","v":56},"Cat leap ½ turn",null,null,{"$f":"IFERROR(VLOOKUP(ROWS($BV$9:BV64),$BU$9:$BV$163,2,0),\"\")","v":"Cat leap ½ turn"},null,null,null,{"$f":"IF(ISNUMBER(SEARCH($B$17,CD64)),MAX($CC$8:CC63)+1,0)","v":56},"Cat leap ½ turn",null,null,{"$f":"IFERROR(VLOOKUP(ROWS($CD$9:CD64),$CC$9:$CD$163,2,0),\"\")","v":"Cat leap ½ turn"},null,null,null,{"$f":"IF(ISNUMBER(SEARCH($B$18,CL64)),MAX($CK$8:CK63)+1,0)","v":56},"Cat leap ½ turn",null,null,{"$f":"IFERROR(VLOOKUP(ROWS($CL$9:CL64),$CK$9:$CL$163,2,0),\"\")","v":"Cat leap ½ turn"}]
[null,null,null,null,null,null,null,null,null,null,null,null,null,null,null,null,{"$f":"IF(ISNUMBER(SEARCH($B$9,R65)),MAX($Q$8:Q64)+1,0)","v":57},"Jump 1 ½  turn ",null,null,{"$f":"IFERROR(VLOOKUP(ROWS($R$9:R65),$Q$9:$R$163,2,0),\"\")","v":"Jump 1 ½  turn "},null,null,null,{"$f":"IF(ISNUMBER(SEARCH($B$10,Z65)),MAX($Y$8:Y64)+1,0)","v":57},"Jump 1 ½  turn ",null,null,{"$f":"IFERROR(VLOOKUP(ROWS($Z$9:Z65),$Y$9:$Z$163,2,0),\"\")","v":"Jump 1 ½  turn "},null,null,null,{"$f":"IF(ISNUMBER(SEARCH($B$11,AH65)),MAX($AG$8:AG64)+1,0)","v":57},"Jump 1 ½  turn ",null,null,{"$f":"IFERROR(VLOOKUP(ROWS($AH$9:AH65),$AG$9:$AH$163,2,0),\"\")","v":"Jump 1 ½  turn "},null,null,null,{"$f":"IF(ISNUMBER(SEARCH($B$12,AP65)),MAX($AO$8:AO64)+1,0)","v":57},"Jump 1 ½  turn ",null,null,{"$f":"IFERROR(VLOOKUP(ROWS($AP$9:AP65),$AO$9:$AP$163,2,0),\"\")","v":"Jump 1 ½  turn "},null,null,null,{"$f":"IF(ISNUMBER(SEARCH($B$13,AX65)),MAX($AW$8:AW64)+1,0)","v":57},"Jump 1 ½  turn ",null,null,{"$f":"IFERROR(VLOOKUP(ROWS($AX$9:AX65),$AW$9:$AX$163,2,0),\"\")","v":"Jump 1 ½  turn "},null,null,null,{"$f":"IF(ISNUMBER(SEARCH($B$14,BF65)),MAX($BE$8:BE64)+1,0)","v":57},"Jump 1 ½  turn ",null,null,{"$f":"IFERROR(VLOOKUP(ROWS($BF$9:BF65),$BE$9:$BF$163,2,0),\"\")","v":"Jump 1 ½  turn "},null,null,null,{"$f":"IF(ISNUMBER(SEARCH($B$15,BN65)),MAX($BM$8:BM64)+1,0)","v":57},"Jump 1 ½  turn ",null,null,{"$f":"IFERROR(VLOOKUP(ROWS($BN$9:BN65),$BM$9:$BN$163,2,0),\"\")","v":"Jump 1 ½  turn "},null,null,null,{"$f":"IF(ISNUMBER(SEARCH($B$16,BV65)),MAX($BU$8:BU64)+1,0)","v":57},"Jump 1 ½  turn ",null,null,{"$f":"IFERROR(VLOOKUP(ROWS($BV$9:BV65),$BU$9:$BV$163,2,0),\"\")","v":"Jump 1 ½  turn "},null,null,null,{"$f":"IF(ISNUMBER(SEARCH($B$17,CD65)),MAX($CC$8:CC64)+1,0)","v":57},"Jump 1 ½  turn ",null,null,{"$f":"IFERROR(VLOOKUP(ROWS($CD$9:CD65),$CC$9:$CD$163,2,0),\"\")","v":"Jump 1 ½  turn "},null,null,null,{"$f":"IF(ISNUMBER(SEARCH($B$18,CL65)),MAX($CK$8:CK64)+1,0)","v":57},"Jump 1 ½  turn ",null,null,{"$f":"IFERROR(VLOOKUP(ROWS($CL$9:CL65),$CK$9:$CL$163,2,0),\"\")","v":"Jump 1 ½  turn "}]
[null,null,null,null,null,null,null,null,null,null,null,null,null,null,null,null,{"$f":"IF(ISNUMBER(SEARCH($B$9,R66)),MAX($Q$8:Q65)+1,0)","v":58},"Straddle jump",null,null,{"$f":"IFERROR(VLOOKUP(ROWS($R$9:R66),$Q$9:$R$163,2,0),\"\")","v":"Straddle jump"},null,null,null,{"$f":"IF(ISNUMBER(SEARCH($B$10,Z66)),MAX($Y$8:Y65)+1,0)","v":58},"Straddle jump",null,null,{"$f":"IFERROR(VLOOKUP(ROWS($Z$9:Z66),$Y$9:$Z$163,2,0),\"\")","v":"Straddle jump"},null,null,null,{"$f":"IF(ISNUMBER(SEARCH($B$11,AH66)),MAX($AG$8:AG65)+1,0)","v":58},"Straddle jump",null,null,{"$f":"IFERROR(VLOOKUP(ROWS($AH$9:AH66),$AG$9:$AH$163,2,0),\"\")","v":"Straddle jump"},null,null,null,{"$f":"IF(ISNUMBER(SEARCH($B$12,AP66)),MAX($AO$8:AO65)+1,0)","v":58},"Straddle jump",null,null,{"$f":"IFERROR(VLOOKUP(ROWS($AP$9:AP66),$AO$9:$AP$163,2,0),\"\")","v":"Straddle jump"},null,null,null,{"$f":"IF(ISNUMBER(SEARCH($B$13,AX66)),MAX($AW$8:AW65)+1,0)","v":58},"Straddle jump",null,null,{"$f":"IFERROR(VLOOKUP(ROWS($AX$9:AX66),$AW$9:$AX$163,2,0),\"\")","v":"Straddle jump"},null,null,null,{"$f":"IF(ISNUMBER(SEARCH($B$14,BF66)),MAX($BE$8:BE65)+1,0)","v":58},"Straddle jump",null,null,{"$f":"IFERROR(VLOOKUP(ROWS($BF$9:BF66),$BE$9:$BF$163,2,0),\"\")","v":"Straddle jump"},null,null,null,{"$f":"IF(ISNUMBER(SEARCH($B$15,BN66)),MAX($BM$8:BM65)+1,0)","v":58},"Straddle jump",null,null,{"$f":"IFERROR(VLOOKUP(ROWS($BN$9:BN66),$BM$9:$BN$163,2,0),\"\")","v":"Straddle jump"},null,null,null,{"$f":"IF(ISNUMBER(SEARCH($B$16,BV66)),MAX($BU$8:BU65)+1,0)","v":58},"Straddle jump",null,null,{"$f":"IFERROR(VLOOKUP(ROWS($BV$9:BV66),$BU$9:$BV$163,2,0),\"\")","v":"Straddle jump"},null,null,null,{"$f":"IF(ISNUMBER(SEARCH($B$17,CD66)),MAX($CC$8:CC65)+1,0)","v":58},"Straddle jump",null,null,{"$f":"IFERROR(VLOOKUP(ROWS($CD$9:CD66),$CC$9:$CD$163,2,0),\"\")","v":"Straddle jump"},null,null,null,{"$f":"IF(ISNUMBER(SEARCH($B$18,CL66)),MAX($CK$8:CK65)+1,0)","v":58},"Straddle jump",null,null,{"$f":"IFERROR(VLOOKUP(ROWS($CL$9:CL66),$CK$9:$CL$163,2,0),\"\")","v":"Straddle jump"}]
[null,null,null,null,null,null,null,null,null,null,null,null,null,null,null,null,{"$f":"IF(ISNUMBER(SEARCH($B$9,R67)),MAX($Q$8:Q66)+1,0)","v":59},"Tuck jump ½ turn",null,null,{"$f":"IFERROR(VLOOKUP(ROWS($R$9:R67),$Q$9:$R$163,2,0),\"\")","v":"Tuck jump ½ turn"},null,null,null,{"$f":"IF(ISNUMBER(SEARCH($B$10,Z67)),MAX($Y$8:Y66)+1,0)","v":59},"Tuck jump ½ turn",null,null,{"$f":"IFERROR(VLOOKUP(ROWS($Z$9:Z67),$Y$9:$Z$163,2,0),\"\")","v":"Tuck jump ½ turn"},null,null,null,{"$f":"IF(ISNUMBER(SEARCH($B$11,AH67)),MAX($AG$8:AG66)+1,0)","v":59},"Tuck jump ½ turn",null,null,{"$f":"IFERROR(VLOOKUP(ROWS($AH$9:AH67),$AG$9:$AH$163,2,0),\"\")","v":"Tuck jump ½ turn"},null,null,null,{"$f":"IF(ISNUMBER(SEARCH($B$12,AP67)),MAX($AO$8:AO66)+1,0)","v":59},"Tuck jump ½ turn",null,null,{"$f":"IFERROR(VLOOKUP(ROWS($AP$9:AP67),$AO$9:$AP$163,2,0),\"\")","v":"Tuck jump ½ turn"},null,null,null,{"$f":"IF(ISNUMBER(SEARCH($B$13,AX67)),MAX($AW$8:AW66)+1,0)","v":59},"Tuck jump ½ turn",null,null,{"$f":"IFERROR(VLOOKUP(ROWS($AX$9:AX67),$AW$9:$AX$163,2,0),\"\")","v":"Tuck jump ½ turn"},null,null,null,{"$f":"IF(ISNUMBER(SEARCH($B$14,BF67)),MAX($BE$8:BE66)+1,0)","v":59},"Tuck jump ½ turn",null,null,{"$f":"IFERROR(VLOOKUP(ROWS($BF$9:BF67),$BE$9:$BF$163,2,0),\"\")","v":"Tuck jump ½ turn"},null,null,null,{"$f":"IF(ISNUMBER(SEARCH($B$15,BN67)),MAX($BM$8:BM66)+1,0)","v":59},"Tuck jump ½ turn",null,null,{"$f":"IFERROR(VLOOKUP(ROWS($BN$9:BN67),$BM$9:$BN$163,2,0),\"\")","v":"Tuck jump ½ turn"},null,null,null,{"$f":"IF(ISNUMBER(SEARCH($B$16,BV67)),MAX($BU$8:BU66)+1,0)","v":59},"Tuck jump ½ turn",null,null,{"$f":"IFERROR(VLOOKUP(ROWS($BV$9:BV67),$BU$9:$BV$163,2,0),\"\")","v":"Tuck jump ½ turn"},null,null,null,{"$f":"IF(ISNUMBER(SEARCH($B$17,CD67)),MAX($CC$8:CC66)+1,0)","v":59},"Tuck jump ½ turn",null,null,{"$f":"IFERROR(VLOOKUP(ROWS($CD$9:CD67),$CC$9:$CD$163,2,0),\"\")","v":"Tuck jump ½ turn"},null,null,null,{"$f":"IF(ISNUMBER(SEARCH($B$18,CL67)),MAX($CK$8:CK66)+1,0)","v":59},"Tuck jump ½ turn",null,null,{"$f":"IFERROR(VLOOKUP(ROWS($CL$9:CL67),$CK$9:$CL$163,2,0),\"\")","v":"Tuck jump ½ turn"}]
[null,null,null,null,null,null,null,null,null,null,null,null,null,null,null,null,{"$f":"IF(ISNUMBER(SEARCH($B$9,R68)),MAX($Q$8:Q67)+1,0)","v":60},"Full Spin",null,null,{"$f":"IFERROR(VLOOKUP(ROWS($R$9:R68),$Q$9:$R$163,2,0),\"\")","v":"Full Spin"},null,null,null,{"$f":"IF(ISNUMBER(SEARCH($B$10,Z68)),MAX($Y$8:Y67)+1,0)","v":60},"Full Spin",null,null,{"$f":"IFERROR(VLOOKUP(ROWS($Z$9:Z68),$Y$9:$Z$163,2,0),\"\")","v":"Full Spin"},null,null,null,{"$f":"IF(ISNUMBER(SEARCH($B$11,AH68)),MAX($AG$8:AG67)+1,0)","v":60},"Full Spin",null,null,{"$f":"IFERROR(VLOOKUP(ROWS($AH$9:AH68),$AG$9:$AH$163,2,0),\"\")","v":"Full Spin"},null,null,null,{"$f":"IF(ISNUMBER(SEARCH($B$12,AP68)),MAX($AO$8:AO67)+1,0)","v":60},"Full Spin",null,null,{"$f":"IFERROR(VLOOKUP(ROWS($AP$9:AP68),$AO$9:$AP$163,2,0),\"\")","v":"Full Spin"},null,null,null,{"$f":"IF(ISNUMBER(SEARCH($B$13,AX68)),MAX($AW$8:AW67)+1,0)","v":60},"Full Spin",null,null,{"$f":"IFERROR(VLOOKUP(ROWS($AX$9:AX68),$AW$9:$AX$163,2,0),\"\")","v":"Full Spin"},null,null,null,{"$f":"IF(ISNUMBER(SEARCH($B$14,BF68)),MAX($BE$8:BE67)+1,0)","v":60},"Full Spin",null,null,{"$f":"IFERROR(VLOOKUP(ROWS($BF$9:BF68),$BE$9:$BF$163,2,0),\"\")","v":"Full Spin"},null,null,null,{"$f":"IF(ISNUMBER(SEARCH($B$15,BN68)),MAX($BM$8:BM67)+1,0)","v":60},"Full Spin",null,null,{"$f":"IFERROR(VLOOKUP(ROWS($BN$9:BN68),$BM$9:$BN$163,2,0),\"\")","v":"Full Spin"},null,null,null,{"$f":"IF(ISNUMBER(SEARCH($B$16,BV68)),MAX($BU$8:BU67)+1,0)","v":60},"Full Spin",null,null,{"$f":"IFERROR(VLOOKUP(ROWS($BV$9:BV68),$BU$9:$BV$163,2,0),\"\")","v":"Full Spin"},null,null,null,{"$f":"IF(ISNUMBER(SEARCH($B$17,CD68)),MAX($CC$8:CC67)+1,0)","v":60},"Full Spin",null,null,{"$f":"IFERROR(VLOOKUP(ROWS($CD$9:CD68),$CC$9:$CD$163,2,0),\"\")","v":"Full Spin"},null,null,null,{"$f":"IF(ISNUMBER(SEARCH($B$18,CL68)),MAX($CK$8:CK67)+1,0)","v":60},"Full Spin",null,null,{"$f":"IFERROR(VLOOKUP(ROWS($CL$9:CL68),$CK$9:$CL$163,2,0),\"\")","v":"Full Spin"}]
[null,null,null,null,null,null,null,null,null,null,null,null,null,null,null,null,{"$f":"IF(ISNUMBER(SEARCH($B$9,R69)),MAX($Q$8:Q68)+1,0)","v":61},"Y scale (leg above waist height) ",null,null,{"$f":"IFERROR(VLOOKUP(ROWS($R$9:R69),$Q$9:$R$163,2,0),\"\")","v":"Y scale (leg above waist height) "},null,null,null,{"$f":"IF(ISNUMBER(SEARCH($B$10,Z69)),MAX($Y$8:Y68)+1,0)","v":61},"Y scale (leg above waist height) ",null,null,{"$f":"IFERROR(VLOOKUP(ROWS($Z$9:Z69),$Y$9:$Z$163,2,0),\"\")","v":"Y scale (leg above waist height) "},null,null,null,{"$f":"IF(ISNUMBER(SEARCH($B$11,AH69)),MAX($AG$8:AG68)+1,0)","v":61},"Y scale (leg above waist height) ",null,null,{"$f":"IFERROR(VLOOKUP(ROWS($AH$9:AH69),$AG$9:$AH$163,2,0),\"\")","v":"Y scale (leg above waist height) "},null,null,null,{"$f":"IF(ISNUMBER(SEARCH($B$12,AP69)),MAX($AO$8:AO68)+1,0)","v":61},"Y scale (leg above waist height) ",null,null,{"$f":"IFERROR(VLOOKUP(ROWS($AP$9:AP69),$AO$9:$AP$163,2,0),\"\")","v":"Y scale (leg above waist height) "},null,null,null,{"$f":"IF(ISNUMBER(SEARCH($B$13,AX69)),MAX($AW$8:AW68)+1,0)","v":61},"Y scale (leg above waist height) ",null,null,{"$f":"IFERROR(VLOOKUP(ROWS($AX$9:AX69),$AW$9:$AX$163,2,0),\"\")","v":"Y scale (leg above waist height) "},null,null,null,{"$f":"IF(ISNUMBER(SEARCH($B$14,BF69)),MAX($BE$8:BE68)+1,0)","v":61},"Y scale (leg above waist height) ",null,null,{"$f":"IFERROR(VLOOKUP(ROWS($BF$9:BF69),$BE$9:$BF$163,2,0),\"\")","v":"Y scale (leg above waist height) "},null,null,null,{"$f":"IF(ISNUMBER(SEARCH($B$15,BN69)),MAX($BM$8:BM68)+1,0)","v":61},"Y scale (leg above waist height) ",null,null,{"$f":"IFERROR(VLOOKUP(ROWS($BN$9:BN69),$BM$9:$BN$163,2,0),\"\")","v":"Y scale (leg above waist height) "},null,null,null,{"$f":"IF(ISNUMBER(SEARCH($B$16,BV69)),MAX($BU$8:BU68)+1,0)","v":61},"Y scale (leg above waist height) ",null,null,{"$f":"IFERROR(VLOOKUP(ROWS($BV$9:BV69),$BU$9:$BV$163,2,0),\"\")","v":"Y scale (leg above waist height) "},null,null,null,{"$f":"IF(ISNUMBER(SEARCH($B$17,CD69)),MAX($CC$8:CC68)+1,0)","v":61},"Y scale (leg above waist height) ",null,null,{"$f":"IFERROR(VLOOKUP(ROWS($CD$9:CD69),$CC$9:$CD$163,2,0),\"\")","v":"Y scale (leg above waist height) "},null,null,null,{"$f":"IF(ISNUMBER(SEARCH($B$18,CL69)),MAX($CK$8:CK68)+1,0)","v":61},"Y scale (leg above waist height) ",null,null,{"$f":"IFERROR(VLOOKUP(ROWS($CL$9:CL69),$CK$9:$CL$163,2,0),\"\")","v":"Y scale (leg above waist height) "}]
[null,null,null,null,null,null,null,null,null,null,null,null,null,null,null,null,{"$f":"IF(ISNUMBER(SEARCH($B$9,R70)),MAX($Q$8:Q69)+1,0)","v":62},"2 way Splits",null,null,{"$f":"IFERROR(VLOOKUP(ROWS($R$9:R70),$Q$9:$R$163,2,0),\"\")","v":"2 way Splits"},null,null,null,{"$f":"IF(ISNUMBER(SEARCH($B$10,Z70)),MAX($Y$8:Y69)+1,0)","v":62},"2 way Splits",null,null,{"$f":"IFERROR(VLOOKUP(ROWS($Z$9:Z70),$Y$9:$Z$163,2,0),\"\")","v":"2 way Splits"},null,null,null,{"$f":"IF(ISNUMBER(SEARCH($B$11,AH70)),MAX($AG$8:AG69)+1,0)","v":62},"2 way Splits",null,null,{"$f":"IFERROR(VLOOKUP(ROWS($AH$9:AH70),$AG$9:$AH$163,2,0),\"\")","v":"2 way Splits"},null,null,null,{"$f":"IF(ISNUMBER(SEARCH($B$12,AP70)),MAX($AO$8:AO69)+1,0)","v":62},"2 way Splits",null,null,{"$f":"IFERROR(VLOOKUP(ROWS($AP$9:AP70),$AO$9:$AP$163,2,0),\"\")","v":"2 way Splits"},null,null,null,{"$f":"IF(ISNUMBER(SEARCH($B$13,AX70)),MAX($AW$8:AW69)+1,0)","v":62},"2 way Splits",null,null,{"$f":"IFERROR(VLOOKUP(ROWS($AX$9:AX70),$AW$9:$AX$163,2,0),\"\")","v":"2 way Splits"},null,null,null,{"$f":"IF(ISNUMBER(SEARCH($B$14,BF70)),MAX($BE$8:BE69)+1,0)","v":62},"2 way Splits",null,null,{"$f":"IFERROR(VLOOKUP(ROWS($BF$9:BF70),$BE$9:$BF$163,2,0),\"\")","v":"2 way Splits"},null,null,null,{"$f":"IF(ISNUMBER(SEARCH($B$15,BN70)),MAX($BM$8:BM69)+1,0)","v":62},"2 way Splits",null,null,{"$f":"IFERROR(VLOOKUP(ROWS($BN$9:BN70),$BM$9:$BN$163,2,0),\"\")","v":"2 way Splits"},null,null,null,{"$f":"IF(ISNUMBER(SEARCH($B$16,BV70)),MAX($BU$8:BU69)+1,0)","v":62},"2 way Splits",null,null,{"$f":"IFERROR(VLOOKUP(ROWS($BV$9:BV70),$BU$9:$BV$163,2,0),\"\")","v":"2 way Splits"},null,null,null,{"$f":"IF(ISNUMBER(SEARCH($B$17,CD70)),MAX($CC$8:CC69)+1,0)","v":62},"2 way Splits",null,null,{"$f":"IFERROR(VLOOKUP(ROWS($CD$9:CD70),$CC$9:$CD$163,2,0),\"\")","v":"2 way Splits"},null,null,null,{"$f":"IF(ISNUMBER(SEARCH($B$18,CL70)),MAX($CK$8:CK69)+1,0)","v":62},"2 way Splits",null,null,{"$f":"IFERROR(VLOOKUP(ROWS($CL$9:CL70),$CK$9:$CL$163,2,0),\"\")","v":"2 way Splits"}]
[null,null,null,null,null,null,null,null,null,null,null,null,null,null,null,null,{"$f":"IF(ISNUMBER(SEARCH($B$9,R71)),MAX($Q$8:Q70)+1,0)","v":63},"Japana Swim Through",null,null,{"$f":"IFERROR(VLOOKUP(ROWS($R$9:R71),$Q$9:$R$163,2,0),\"\")","v":"Japana Swim Through"},null,null,null,{"$f":"IF(ISNUMBER(SEARCH($B$10,Z71)),MAX($Y$8:Y70)+1,0)","v":63},"Japana Swim Through",null,null,{"$f":"IFERROR(VLOOKUP(ROWS($Z$9:Z71),$Y$9:$Z$163,2,0),\"\")","v":"Japana Swim Through"},null,null,null,{"$f":"IF(ISNUMBER(SEARCH($B$11,AH71)),MAX($AG$8:AG70)+1,0)","v":63},"Japana Swim Through",null,null,{"$f":"IFERROR(VLOOKUP(ROWS($AH$9:AH71),$AG$9:$AH$163,2,0),\"\")","v":"Japana Swim Through"},null,null,null,{"$f":"IF(ISNUMBER(SEARCH($B$12,AP71)),MAX($AO$8:AO70)+1,0)","v":63},"Japana Swim Through",null,null,{"$f":"IFERROR(VLOOKUP(ROWS($AP$9:AP71),$AO$9:$AP$163,2,0),\"\")","v":"Japana Swim Through"},null,null,null,{"$f":"IF(ISNUMBER(SEARCH($B$13,AX71)),MAX($AW$8:AW70)+1,0)","v":63},"Japana Swim Through",null,null,{"$f":"IFERROR(VLOOKUP(ROWS($AX$9:AX71),$AW$9:$AX$163,2,0),\"\")","v":"Japana Swim Through"},null,null,null,{"$f":"IF(ISNUMBER(SEARCH($B$14,BF71)),MAX($BE$8:BE70)+1,0)","v":63},"Japana Swim Through",null,null,{"$f":"IFERROR(VLOOKUP(ROWS($BF$9:BF71),$BE$9:$BF$163,2,0),\"\")","v":"Japana Swim Through"},null,null,null,{"$f":"IF(ISNUMBER(SEARCH($B$15,BN71)),MAX($BM$8:BM70)+1,0)","v":63},"Japana Swim Through",null,null,{"$f":"IFERROR(VLOOKUP(ROWS($BN$9:BN71),$BM$9:$BN$163,2,0),\"\")","v":"Japana Swim Through"},null,null,null,{"$f":"IF(ISNUMBER(SEARCH($B$16,BV71)),MAX($BU$8:BU70)+1,0)","v":63},"Japana Swim Through",null,null,{"$f":"IFERROR(VLOOKUP(ROWS($BV$9:BV71),$BU$9:$BV$163,2,0),\"\")","v":"Japana Swim Through"},null,null,null,{"$f":"IF(ISNUMBER(SEARCH($B$17,CD71)),MAX($CC$8:CC70)+1,0)","v":63},"Japana Swim Through",null,null,{"$f":"IFERROR(VLOOKUP(ROWS($CD$9:CD71),$CC$9:$CD$163,2,0),\"\")","v":"Japana Swim Through"},null,null,null,{"$f":"IF(ISNUMBER(SEARCH($B$18,CL71)),MAX($CK$8:CK70)+1,0)","v":63},"Japana Swim Through",null,null,{"$f":"IFERROR(VLOOKUP(ROWS($CL$9:CL71),$CK$9:$CL$163,2,0),\"\")","v":"Japana Swim Through"}]
[null,null,null,null,null,null,null,null,null,null,null,null,null,null,null,null,{"$f":"IF(ISNUMBER(SEARCH($B$9,R72)),MAX($Q$8:Q71)+1,0)","v":64},"Fall to Prone Jump to Straddle Stand",null,null,{"$f":"IFERROR(VLOOKUP(ROWS($R$9:R72),$Q$9:$R$163,2,0),\"\")","v":"Fall to Prone Jump to Straddle Stand"},null,null,null,{"$f":"IF(ISNUMBER(SEARCH($B$10,Z72)),MAX($Y$8:Y71)+1,0)","v":64},"Fall to Prone Jump to Straddle Stand",null,null,{"$f":"IFERROR(VLOOKUP(ROWS($Z$9:Z72),$Y$9:$Z$163,2,0),\"\")","v":"Fall to Prone Jump to Straddle Stand"},null,null,null,{"$f":"IF(ISNUMBER(SEARCH($B$11,AH72)),MAX($AG$8:AG71)+1,0)","v":64},"Fall to Prone Jump to Straddle Stand",null,null,{"$f":"IFERROR(VLOOKUP(ROWS($AH$9:AH72),$AG$9:$AH$163,2,0),\"\")","v":"Fall to Prone Jump to Straddle Stand"},null,null,null,{"$f":"IF(ISNUMBER(SEARCH($B$12,AP72)),MAX($AO$8:AO71)+1,0)","v":64},"Fall to Prone Jump to Straddle Stand",null,null,{"$f":"IFERROR(VLOOKUP(ROWS($AP$9:AP72),$AO$9:$AP$163,2,0),\"\")","v":"Fall to Prone Jump to Straddle Stand"},null,null,null,{"$f":"IF(ISNUMBER(SEARCH($B$13,AX72)),MAX($AW$8:AW71)+1,0)","v":64},"Fall to Prone Jump to Straddle Stand",null,null,{"$f":"IFERROR(VLOOKUP(ROWS($AX$9:AX72),$AW$9:$AX$163,2,0),\"\")","v":"Fall to Prone Jump to Straddle Stand"},null,null,null,{"$f":"IF(ISNUMBER(SEARCH($B$14,BF72)),MAX($BE$8:BE71)+1,0)","v":64},"Fall to Prone Jump to Straddle Stand",null,null,{"$f":"IFERROR(VLOOKUP(ROWS($BF$9:BF72),$BE$9:$BF$163,2,0),\"\")","v":"Fall to Prone Jump to Straddle Stand"},null,null,null,{"$f":"IF(ISNUMBER(SEARCH($B$15,BN72)),MAX($BM$8:BM71)+1,0)","v":64},"Fall to Prone Jump to Straddle Stand",null,null,{"$f":"IFERROR(VLOOKUP(ROWS($BN$9:BN72),$BM$9:$BN$163,2,0),\"\")","v":"Fall to Prone Jump to Straddle Stand"},null,null,null,{"$f":"IF(ISNUMBER(SEARCH($B$16,BV72)),MAX($BU$8:BU71)+1,0)","v":64},"Fall to Prone Jump to Straddle Stand",null,null,{"$f":"IFERROR(VLOOKUP(ROWS($BV$9:BV72),$BU$9:$BV$163,2,0),\"\")","v":"Fall to Prone Jump to Straddle Stand"},null,null,null,{"$f":"IF(ISNUMBER(SEARCH($B$17,CD72)),MAX($CC$8:CC71)+1,0)","v":64},"Fall to Prone Jump to Straddle Stand",null,null,{"$f":"IFERROR(VLOOKUP(ROWS($CD$9:CD72),$CC$9:$CD$163,2,0),\"\")","v":"Fall to Prone Jump to Straddle Stand"},null,null,null,{"$f":"IF(ISNUMBER(SEARCH($B$18,CL72)),MAX($CK$8:CK71)+1,0)","v":64},"Fall to Prone Jump to Straddle Stand",null,null,{"$f":"IFERROR(VLOOKUP(ROWS($CL$9:CL72),$CK$9:$CL$163,2,0),\"\")","v":"Fall to Prone Jump to Straddle Stand"}]
[null,null,null,null,null,null,null,null,null,null,null,null,null,null,null,null,{"$f":"IF(ISNUMBER(SEARCH($B$9,R73)),MAX($Q$8:Q72)+1,0)","v":65},"F Supp jump legs through straddle -",null,null,{"$f":"IFERROR(VLOOKUP(ROWS($R$9:R73),$Q$9:$R$163,2,0),\"\")","v":"F Supp jump legs through straddle -"},null,null,null,{"$f":"IF(ISNUMBER(SEARCH($B$10,Z73)),MAX($Y$8:Y72)+1,0)","v":65},"F Supp jump legs through straddle -",null,null,{"$f":"IFERROR(VLOOKUP(ROWS($Z$9:Z73),$Y$9:$Z$163,2,0),\"\")","v":"F Supp jump legs through straddle -"},null,null,null,{"$f":"IF(ISNUMBER(SEARCH($B$11,AH73)),MAX($AG$8:AG72)+1,0)","v":65},"F Supp jump legs through straddle -",null,null,{"$f":"IFERROR(VLOOKUP(ROWS($AH$9:AH73),$AG$9:$AH$163,2,0),\"\")","v":"F Supp jump legs through straddle -"},null,null,null,{"$f":"IF(ISNUMBER(SEARCH($B$12,AP73)),MAX($AO$8:AO72)+1,0)","v":65},"F Supp jump legs through straddle -",null,null,{"$f":"IFERROR(VLOOKUP(ROWS($AP$9:AP73),$AO$9:$AP$163,2,0),\"\")","v":"F Supp jump legs through straddle -"},null,null,null,{"$f":"IF(ISNUMBER(SEARCH($B$13,AX73)),MAX($AW$8:AW72)+1,0)","v":65},"F Supp jump legs through straddle -",null,null,{"$f":"IFERROR(VLOOKUP(ROWS($AX$9:AX73),$AW$9:$AX$163,2,0),\"\")","v":"F Supp jump legs through straddle -"},null,null,null,{"$f":"IF(ISNUMBER(SEARCH($B$14,BF73)),MAX($BE$8:BE72)+1,0)","v":65},"F Supp jump legs through straddle -",null,null,{"$f":"IFERROR(VLOOKUP(ROWS($BF$9:BF73),$BE$9:$BF$163,2,0),\"\")","v":"F Supp jump legs through straddle -"},null,null,null,{"$f":"IF(ISNUMBER(SEARCH($B$15,BN73)),MAX($BM$8:BM72)+1,0)","v":65},"F Supp jump legs through straddle -",null,null,{"$f":"IFERROR(VLOOKUP(ROWS($BN$9:BN73),$BM$9:$BN$163,2,0),\"\")","v":"F Supp jump legs through straddle -"},null,null,null,{"$f":"IF(ISNUMBER(SEARCH($B$16,BV73)),MAX($BU$8:BU72)+1,0)","v":65},"F Supp jump legs through straddle -",null,null,{"$f":"IFERROR(VLOOKUP(ROWS($BV$9:BV73),$BU$9:$BV$163,2,0),\"\")","v":"F Supp jump legs through straddle -"},null,null,null,{"$f":"IF(ISNUMBER(SEARCH($B$17,CD73)),MAX($CC$8:CC72)+1,0)","v":65},"F Supp jump legs through straddle -",null,null,{"$f":"IFERROR(VLOOKUP(ROWS($CD$9:CD73),$CC$9:$CD$163,2,0),\"\")","v":"F Supp jump legs through straddle -"},null,null,null,{"$f":"IF(ISNUMBER(SEARCH($B$18,CL73)),MAX($CK$8:CK72)+1,0)","v":65},"F Supp jump legs through straddle -",null,null,{"$f":"IFERROR(VLOOKUP(ROWS($CL$9:CL73),$CK$9:$CL$163,2,0),\"\")","v":"F Supp jump legs through straddle -"}]
[null,null,null,null,null,null,null,null,null,null,null,null,null,null,null,null,{"$f":"IF(ISNUMBER(SEARCH($B$9,R74)),MAX($Q$8:Q73)+1,0)","v":66},"Tuck ‘Russian’ Lever",null,null,{"$f":"IFERROR(VLOOKUP(ROWS($R$9:R74),$Q$9:$R$163,2,0),\"\")","v":"Tuck ‘Russian’ Lever"},null,null,null,{"$f":"IF(ISNUMBER(SEARCH($B$10,Z74)),MAX($Y$8:Y73)+1,0)","v":66},"Tuck ‘Russian’ Lever",null,null,{"$f":"IFERROR(VLOOKUP(ROWS($Z$9:Z74),$Y$9:$Z$163,2,0),\"\")","v":"Tuck ‘Russian’ Lever"},null,null,null,{"$f":"IF(ISNUMBER(SEARCH($B$11,AH74)),MAX($AG$8:AG73)+1,0)","v":66},"Tuck ‘Russian’ Lever",null,null,{"$f":"IFERROR(VLOOKUP(ROWS($AH$9:AH74),$AG$9:$AH$163,2,0),\"\")","v":"Tuck ‘Russian’ Lever"},null,null,null,{"$f":"IF(ISNUMBER(SEARCH($B$12,AP74)),MAX($AO$8:AO73)+1,0)","v":66},"Tuck ‘Russian’ Lever",null,null,{"$f":"IFERROR(VLOOKUP(ROWS($AP$9:AP74),$AO$9:$AP$163,2,0),\"\")","v":"Tuck ‘Russian’ Lever"},null,null,null,{"$f":"IF(ISNUMBER(SEARCH($B$13,AX74)),MAX($AW$8:AW73)+1,0)","v":66},"Tuck ‘Russian’ Lever",null,null,{"$f":"IFERROR(VLOOKUP(ROWS($AX$9:AX74),$AW$9:$AX$163,2,0),\"\")","v":"Tuck ‘Russian’ Lever"},null,null,null,{"$f":"IF(ISNUMBER(SEARCH($B$14,BF74)),MAX($BE$8:BE73)+1,0)","v":66},"Tuck ‘Russian’ Lever",null,null,{"$f":"IFERROR(VLOOKUP(ROWS($BF$9:BF74),$BE$9:$BF$163,2,0),\"\")","v":"Tuck ‘Russian’ Lever"},null,null,null,{"$f":"IF(ISNUMBER(SEARCH($B$15,BN74)),MAX($BM$8:BM73)+1,0)","v":66},"Tuck ‘Russian’ Lever",null,null,{"$f":"IFERROR(VLOOKUP(ROWS($BN$9:BN74),$BM$9:$BN$163,2,0),\"\")","v":"Tuck ‘Russian’ Lever"},null,null,null,{"$f":"IF(ISNUMBER(SEARCH($B$16,BV74)),MAX($BU$8:BU73)+1,0)","v":66},"Tuck ‘Russian’ Lever",null,null,{"$f":"IFERROR(VLOOKUP(ROWS($BV$9:BV74),$BU$9:$BV$163,2,0),\"\")","v":"Tuck ‘Russian’ Lever"},null,null,null,{"$f":"IF(ISNUMBER(SEARCH($B$17,CD74)),MAX($CC$8:CC73)+1,0)","v":66},"Tuck ‘Russian’ Lever",null,null,{"$f":"IFERROR(VLOOKUP(ROWS($CD$9:CD74),$CC$9:$CD$163,2,0),\"\")","v":"Tuck ‘Russian’ Lever"},null,null,null,{"$f":"IF(ISNUMBER(SEARCH($B$18,CL74)),MAX($CK$8:CK73)+1,0)","v":66},"Tuck ‘Russian’ Lever",null,null,{"$f":"IFERROR(VLOOKUP(ROWS($CL$9:CL74),$CK$9:$CL$163,2,0),\"\")","v":"Tuck ‘Russian’ Lever"}]
[null,null,null,null,null,null,null,null,null,null,null,null,null,null,null,null,{"$f":"IF(ISNUMBER(SEARCH($B$9,R75)),MAX($Q$8:Q74)+1,0)","v":67},"Tucked hold (press off knees)",null,null,{"$f":"IFERROR(VLOOKUP(ROWS($R$9:R75),$Q$9:$R$163,2,0),\"\")","v":"Tucked hold (press off knees)"},null,null,null,{"$f":"IF(ISNUMBER(SEARCH($B$10,Z75)),MAX($Y$8:Y74)+1,0)","v":67},"Tucked hold (press off knees)",null,null,{"$f":"IFERROR(VLOOKUP(ROWS($Z$9:Z75),$Y$9:$Z$163,2,0),\"\")","v":"Tucked hold (press off knees)"},null,null,null,{"$f":"IF(ISNUMBER(SEARCH($B$11,AH75)),MAX($AG$8:AG74)+1,0)","v":67},"Tucked hold (press off knees)",null,null,{"$f":"IFERROR(VLOOKUP(ROWS($AH$9:AH75),$AG$9:$AH$163,2,0),\"\")","v":"Tucked hold (press off knees)"},null,null,null,{"$f":"IF(ISNUMBER(SEARCH($B$12,AP75)),MAX($AO$8:AO74)+1,0)","v":67},"Tucked hold (press off knees)",null,null,{"$f":"IFERROR(VLOOKUP(ROWS($AP$9:AP75),$AO$9:$AP$163,2,0),\"\")","v":"Tucked hold (press off knees)"},null,null,null,{"$f":"IF(ISNUMBER(SEARCH($B$13,AX75)),MAX($AW$8:AW74)+1,0)","v":67},"Tucked hold (press off knees)",null,null,{"$f":"IFERROR(VLOOKUP(ROWS($AX$9:AX75),$AW$9:$AX$163,2,0),\"\")","v":"Tucked hold (press off knees)"},null,null,null,{"$f":"IF(ISNUMBER(SEARCH($B$14,BF75)),MAX($BE$8:BE74)+1,0)","v":67},"Tucked hold (press off knees)",null,null,{"$f":"IFERROR(VLOOKUP(ROWS($BF$9:BF75),$BE$9:$BF$163,2,0),\"\")","v":"Tucked hold (press off knees)"},null,null,null,{"$f":"IF(ISNUMBER(SEARCH($B$15,BN75)),MAX($BM$8:BM74)+1,0)","v":67},"Tucked hold (press off knees)",null,null,{"$f":"IFERROR(VLOOKUP(ROWS($BN$9:BN75),$BM$9:$BN$163,2,0),\"\")","v":"Tucked hold (press off knees)"},null,null,null,{"$f":"IF(ISNUMBER(SEARCH($B$16,BV75)),MAX($BU$8:BU74)+1,0)","v":67},"Tucked hold (press off knees)",null,null,{"$f":"IFERROR(VLOOKUP(ROWS($BV$9:BV75),$BU$9:$BV$163,2,0),\"\")","v":"Tucked hold (press off knees)"},null,null,null,{"$f":"IF(ISNUMBER(SEARCH($B$17,CD75)),MAX($CC$8:CC74)+1,0)","v":67},"Tucked hold (press off knees)",null,null,{"$f":"IFERROR(VLOOKUP(ROWS($CD$9:CD75),$CC$9:$CD$163,2,0),\"\")","v":"Tucked hold (press off knees)"},null,null,null,{"$f":"IF(ISNUMBER(SEARCH($B$18,CL75)),MAX($CK$8:CK74)+1,0)","v":67},"Tucked hold (press off knees)",null,null,{"$f":"IFERROR(VLOOKUP(ROWS($CL$9:CL75),$CK$9:$CL$163,2,0),\"\")","v":"Tucked hold (press off knees)"}]
[null,null,null,null,null,null,null,null,null,null,null,null,null,null,null,null,{"$f":"IF(ISNUMBER(SEARCH($B$9,R76)),MAX($Q$8:Q75)+1,0)","v":68},"1/2 lever held 2 secs (pike / straddle)",null,null,{"$f":"IFERROR(VLOOKUP(ROWS($R$9:R76),$Q$9:$R$163,2,0),\"\")","v":"1/2 lever held 2 secs (pike / straddle)"},null,null,null,{"$f":"IF(ISNUMBER(SEARCH($B$10,Z76)),MAX($Y$8:Y75)+1,0)","v":68},"1/2 lever held 2 secs (pike / straddle)",null,null,{"$f":"IFERROR(VLOOKUP(ROWS($Z$9:Z76),$Y$9:$Z$163,2,0),\"\")","v":"1/2 lever held 2 secs (pike / straddle)"},null,null,null,{"$f":"IF(ISNUMBER(SEARCH($B$11,AH76)),MAX($AG$8:AG75)+1,0)","v":68},"1/2 lever held 2 secs (pike / straddle)",null,null,{"$f":"IFERROR(VLOOKUP(ROWS($AH$9:AH76),$AG$9:$AH$163,2,0),\"\")","v":"1/2 lever held 2 secs (pike / straddle)"},null,null,null,{"$f":"IF(ISNUMBER(SEARCH($B$12,AP76)),MAX($AO$8:AO75)+1,0)","v":68},"1/2 lever held 2 secs (pike / straddle)",null,null,{"$f":"IFERROR(VLOOKUP(ROWS($AP$9:AP76),$AO$9:$AP$163,2,0),\"\")","v":"1/2 lever held 2 secs (pike / straddle)"},null,null,null,{"$f":"IF(ISNUMBER(SEARCH($B$13,AX76)),MAX($AW$8:AW75)+1,0)","v":68},"1/2 lever held 2 secs (pike / straddle)",null,null,{"$f":"IFERROR(VLOOKUP(ROWS($AX$9:AX76),$AW$9:$AX$163,2,0),\"\")","v":"1/2 lever held 2 secs (pike / straddle)"},null,null,null,{"$f":"IF(ISNUMBER(SEARCH($B$14,BF76)),MAX($BE$8:BE75)+1,0)","v":68},"1/2 lever held 2 secs (pike / straddle)",null,null,{"$f":"IFERROR(VLOOKUP(ROWS($BF$9:BF76),$BE$9:$BF$163,2,0),\"\")","v":"1/2 lever held 2 secs (pike / straddle)"},null,null,null,{"$f":"IF(ISNUMBER(SEARCH($B$15,BN76)),MAX($BM$8:BM75)+1,0)","v":68},"1/2 lever held 2 secs (pike / straddle)",null,null,{"$f":"IFERROR(VLOOKUP(ROWS($BN$9:BN76),$BM$9:$BN$163,2,0),\"\")","v":"1/2 lever held 2 secs (pike / straddle)"},null,null,null,{"$f":"IF(ISNUMBER(SEARCH($B$16,BV76)),MAX($BU$8:BU75)+1,0)","v":68},"1/2 lever held 2 secs (pike / straddle)",null,null,{"$f":"IFERROR(VLOOKUP(ROWS($BV$9:BV76),$BU$9:$BV$163,2,0),\"\")","v":"1/2 lever held 2 secs (pike / straddle)"},null,null,null,{"$f":"IF(ISNUMBER(SEARCH($B$17,CD76)),MAX($CC$8:CC75)+1,0)","v":68},"1/2 lever held 2 secs (pike / straddle)",null,null,{"$f":"IFERROR(VLOOKUP(ROWS($CD$9:CD76),$CC$9:$CD$163,2,0),\"\")","v":"1/2 lever held 2 secs (pike / straddle)"},null,null,null,{"$f":"IF(ISNUMBER(SEARCH($B$18,CL76)),MAX($CK$8:CK75)+1,0)","v":68},"1/2 lever held 2 secs (pike / straddle)",null,null,{"$f":"IFERROR(VLOOKUP(ROWS($CL$9:CL76),$CK$9:$CL$163,2,0),\"\")","v":"1/2 lever held 2 secs (pike / straddle)"}]
[null,null,null,null,null,null,null,null,null,null,null,null,null,null,null,null,{"$f":"IF(ISNUMBER(SEARCH($B$9,R77)),MAX($Q$8:Q76)+1,0)","v":69},"Straddle stand press to h/stand",null,null,{"$f":"IFERROR(VLOOKUP(ROWS($R$9:R77),$Q$9:$R$163,2,0),\"\")","v":"Straddle stand press to h/stand"},null,null,null,{"$f":"IF(ISNUMBER(SEARCH($B$10,Z77)),MAX($Y$8:Y76)+1,0)","v":69},"Straddle stand press to h/stand",null,null,{"$f":"IFERROR(VLOOKUP(ROWS($Z$9:Z77),$Y$9:$Z$163,2,0),\"\")","v":"Straddle stand press to h/stand"},null,null,null,{"$f":"IF(ISNUMBER(SEARCH($B$11,AH77)),MAX($AG$8:AG76)+1,0)","v":69},"Straddle stand press to h/stand",null,null,{"$f":"IFERROR(VLOOKUP(ROWS($AH$9:AH77),$AG$9:$AH$163,2,0),\"\")","v":"Straddle stand press to h/stand"},null,null,null,{"$f":"IF(ISNUMBER(SEARCH($B$12,AP77)),MAX($AO$8:AO76)+1,0)","v":69},"Straddle stand press to h/stand",null,null,{"$f":"IFERROR(VLOOKUP(ROWS($AP$9:AP77),$AO$9:$AP$163,2,0),\"\")","v":"Straddle stand press to h/stand"},null,null,null,{"$f":"IF(ISNUMBER(SEARCH($B$13,AX77)),MAX($AW$8:AW76)+1,0)","v":69},"Straddle stand press to h/stand",null,null,{"$f":"IFERROR(VLOOKUP(ROWS($AX$9:AX77),$AW$9:$AX$163,2,0),\"\")","v":"Straddle stand press to h/stand"},null,null,null,{"$f":"IF(ISNUMBER(SEARCH($B$14,BF77)),MAX($BE$8:BE76)+1,0)","v":69},"Straddle stand press to h/stand",null,null,{"$f":"IFERROR(VLOOKUP(ROWS($BF$9:BF77),$BE$9:$BF$163,2,0),\"\")","v":"Straddle stand press to h/stand"},null,null,null,{"$f":"IF(ISNUMBER(SEARCH($B$15,BN77)),MAX($BM$8:BM76)+1,0)","v":69},"Straddle stand press to h/stand",null,null,{"$f":"IFERROR(VLOOKUP(ROWS($BN$9:BN77),$BM$9:$BN$163,2,0),\"\")","v":"Straddle stand press to h/stand"},null,null,null,{"$f":"IF(ISNUMBER(SEARCH($B$16,BV77)),MAX($BU$8:BU76)+1,0)","v":69},"Straddle stand press to h/stand",null,null,{"$f":"IFERROR(VLOOKUP(ROWS($BV$9:BV77),$BU$9:$BV$163,2,0),\"\")","v":"Straddle stand press to h/stand"},null,null,null,{"$f":"IF(ISNUMBER(SEARCH($B$17,CD77)),MAX($CC$8:CC76)+1,0)","v":69},"Straddle stand press to h/stand",null,null,{"$f":"IFERROR(VLOOKUP(ROWS($CD$9:CD77),$CC$9:$CD$163,2,0),\"\")","v":"Straddle stand press to h/stand"},null,null,null,{"$f":"IF(ISNUMBER(SEARCH($B$18,CL77)),MAX($CK$8:CK76)+1,0)","v":69},"Straddle stand press to h/stand",null,null,{"$f":"IFERROR(VLOOKUP(ROWS($CL$9:CL77),$CK$9:$CL$163,2,0),\"\")","v":"Straddle stand press to h/stand"}]
[null,null,null,null,null,null,null,null,null,null,null,null,null,null,null,null,{"$f":"IF(ISNUMBER(SEARCH($B$9,R78)),MAX($Q$8:Q77)+1,0)","v":70},"Forward roll with straight legs",null,null,{"$f":"IFERROR(VLOOKUP(ROWS($R$9:R78),$Q$9:$R$163,2,0),\"\")","v":"Forward roll with straight legs"},null,null,null,{"$f":"IF(ISNUMBER(SEARCH($B$10,Z78)),MAX($Y$8:Y77)+1,0)","v":70},"Forward roll with straight legs",null,null,{"$f":"IFERROR(VLOOKUP(ROWS($Z$9:Z78),$Y$9:$Z$163,2,0),\"\")","v":"Forward roll with straight legs"},null,null,null,{"$f":"IF(ISNUMBER(SEARCH($B$11,AH78)),MAX($AG$8:AG77)+1,0)","v":70},"Forward roll with straight legs",null,null,{"$f":"IFERROR(VLOOKUP(ROWS($AH$9:AH78),$AG$9:$AH$163,2,0),\"\")","v":"Forward roll with straight legs"},null,null,null,{"$f":"IF(ISNUMBER(SEARCH($B$12,AP78)),MAX($AO$8:AO77)+1,0)","v":70},"Forward roll with straight legs",null,null,{"$f":"IFERROR(VLOOKUP(ROWS($AP$9:AP78),$AO$9:$AP$163,2,0),\"\")","v":"Forward roll with straight legs"},null,null,null,{"$f":"IF(ISNUMBER(SEARCH($B$13,AX78)),MAX($AW$8:AW77)+1,0)","v":70},"Forward roll with straight legs",null,null,{"$f":"IFERROR(VLOOKUP(ROWS($AX$9:AX78),$AW$9:$AX$163,2,0),\"\")","v":"Forward roll with straight legs"},null,null,null,{"$f":"IF(ISNUMBER(SEARCH($B$14,BF78)),MAX($BE$8:BE77)+1,0)","v":70},"Forward roll with straight legs",null,null,{"$f":"IFERROR(VLOOKUP(ROWS($BF$9:BF78),$BE$9:$BF$163,2,0),\"\")","v":"Forward roll with straight legs"},null,null,null,{"$f":"IF(ISNUMBER(SEARCH($B$15,BN78)),MAX($BM$8:BM77)+1,0)","v":70},"Forward roll with straight legs",null,null,{"$f":"IFERROR(VLOOKUP(ROWS($BN$9:BN78),$BM$9:$BN$163,2,0),\"\")","v":"Forward roll with straight legs"},null,null,null,{"$f":"IF(ISNUMBER(SEARCH($B$16,BV78)),MAX($BU$8:BU77)+1,0)","v":70},"Forward roll with straight legs",null,null,{"$f":"IFERROR(VLOOKUP(ROWS($BV$9:BV78),$BU$9:$BV$163,2,0),\"\")","v":"Forward roll with straight legs"},null,null,null,{"$f":"IF(ISNUMBER(SEARCH($B$17,CD78)),MAX($CC$8:CC77)+1,0)","v":70},"Forward roll with straight legs",null,null,{"$f":"IFERROR(VLOOKUP(ROWS($CD$9:CD78),$CC$9:$CD$163,2,0),\"\")","v":"Forward roll with straight legs"},null,null,null,{"$f":"IF(ISNUMBER(SEARCH($B$18,CL78)),MAX($CK$8:CK77)+1,0)","v":70},"Forward roll with straight legs",null,null,{"$f":"IFERROR(VLOOKUP(ROWS($CL$9:CL78),$CK$9:$CL$163,2,0),\"\")","v":"Forward roll with straight legs"}]
[null,null,null,null,null,null,null,null,null,null,null,null,null,null,null,null,{"$f":"IF(ISNUMBER(SEARCH($B$9,R79)),MAX($Q$8:Q78)+1,0)","v":71},"H/stand F Roll straight arms",null,null,{"$f":"IFERROR(VLOOKUP(ROWS($R$9:R79),$Q$9:$R$163,2,0),\"\")","v":"H/stand F Roll straight arms"},null,null,null,{"$f":"IF(ISNUMBER(SEARCH($B$10,Z79)),MAX($Y$8:Y78)+1,0)","v":71},"H/stand F Roll straight arms",null,null,{"$f":"IFERROR(VLOOKUP(ROWS($Z$9:Z79),$Y$9:$Z$163,2,0),\"\")","v":"H/stand F Roll straight arms"},null,null,null,{"$f":"IF(ISNUMBER(SEARCH($B$11,AH79)),MAX($AG$8:AG78)+1,0)","v":71},"H/stand F Roll straight arms",null,null,{"$f":"IFERROR(VLOOKUP(ROWS($AH$9:AH79),$AG$9:$AH$163,2,0),\"\")","v":"H/stand F Roll straight arms"},null,null,null,{"$f":"IF(ISNUMBER(SEARCH($B$12,AP79)),MAX($AO$8:AO78)+1,0)","v":71},"H/stand F Roll straight arms",null,null,{"$f":"IFERROR(VLOOKUP(ROWS($AP$9:AP79),$AO$9:$AP$163,2,0),\"\")","v":"H/stand F Roll straight arms"},null,null,null,{"$f":"IF(ISNUMBER(SEARCH($B$13,AX79)),MAX($AW$8:AW78)+1,0)","v":71},"H/stand F Roll straight arms",null,null,{"$f":"IFERROR(VLOOKUP(ROWS($AX$9:AX79),$AW$9:$AX$163,2,0),\"\")","v":"H/stand F Roll straight arms"},null,null,null,{"$f":"IF(ISNUMBER(SEARCH($B$14,BF79)),MAX($BE$8:BE78)+1,0)","v":71},"H/stand F Roll straight arms",null,null,{"$f":"IFERROR(VLOOKUP(ROWS($BF$9:BF79),$BE$9:$BF$163,2,0),\"\")","v":"H/stand F Roll straight arms"},null,null,null,{"$f":"IF(ISNUMBER(SEARCH($B$15,BN79)),MAX($BM$8:BM78)+1,0)","v":71},"H/stand F Roll straight arms",null,null,{"$f":"IFERROR(VLOOKUP(ROWS($BN$9:BN79),$BM$9:$BN$163,2,0),\"\")","v":"H/stand F Roll straight arms"},null,null,null,{"$f":"IF(ISNUMBER(SEARCH($B$16,BV79)),MAX($BU$8:BU78)+1,0)","v":71},"H/stand F Roll straight arms",null,null,{"$f":"IFERROR(VLOOKUP(ROWS($BV$9:BV79),$BU$9:$BV$163,2,0),\"\")","v":"H/stand F Roll straight arms"},null,null,null,{"$f":"IF(ISNUMBER(SEARCH($B$17,CD79)),MAX($CC$8:CC78)+1,0)","v":71},"H/stand F Roll straight arms",null,null,{"$f":"IFERROR(VLOOKUP(ROWS($CD$9:CD79),$CC$9:$CD$163,2,0),\"\")","v":"H/stand F Roll straight arms"},null,null,null,{"$f":"IF(ISNUMBER(SEARCH($B$18,CL79)),MAX($CK$8:CK78)+1,0)","v":71},"H/stand F Roll straight arms",null,null,{"$f":"IFERROR(VLOOKUP(ROWS($CL$9:CL79),$CK$9:$CL$163,2,0),\"\")","v":"H/stand F Roll straight arms"}]
[null,null,null,null,null,null,null,null,null,null,null,null,null,null,null,null,{"$f":"IF(ISNUMBER(SEARCH($B$9,R80)),MAX($Q$8:Q79)+1,0)","v":72},"B Roll through h/stand",null,null,{"$f":"IFERROR(VLOOKUP(ROWS($R$9:R80),$Q$9:$R$163,2,0),\"\")","v":"B Roll through h/stand"},null,null,null,{"$f":"IF(ISNUMBER(SEARCH($B$10,Z80)),MAX($Y$8:Y79)+1,0)","v":72},"B Roll through h/stand",null,null,{"$f":"IFERROR(VLOOKUP(ROWS($Z$9:Z80),$Y$9:$Z$163,2,0),\"\")","v":"B Roll through h/stand"},null,null,null,{"$f":"IF(ISNUMBER(SEARCH($B$11,AH80)),MAX($AG$8:AG79)+1,0)","v":72},"B Roll through h/stand",null,null,{"$f":"IFERROR(VLOOKUP(ROWS($AH$9:AH80),$AG$9:$AH$163,2,0),\"\")","v":"B Roll through h/stand"},null,null,null,{"$f":"IF(ISNUMBER(SEARCH($B$12,AP80)),MAX($AO$8:AO79)+1,0)","v":72},"B Roll through h/stand",null,null,{"$f":"IFERROR(VLOOKUP(ROWS($AP$9:AP80),$AO$9:$AP$163,2,0),\"\")","v":"B Roll through h/stand"},null,null,null,{"$f":"IF(ISNUMBER(SEARCH($B$13,AX80)),MAX($AW$8:AW79)+1,0)","v":72},"B Roll through h/stand",null,null,{"$f":"IFERROR(VLOOKUP(ROWS($AX$9:AX80),$AW$9:$AX$163,2,0),\"\")","v":"B Roll through h/stand"},null,null,null,{"$f":"IF(ISNUMBER(SEARCH($B$14,BF80)),MAX($BE$8:BE79)+1,0)","v":72},"B Roll through h/stand",null,null,{"$f":"IFERROR(VLOOKUP(ROWS($BF$9:BF80),$BE$9:$BF$163,2,0),\"\")","v":"B Roll through h/stand"},null,null,null,{"$f":"IF(ISNUMBER(SEARCH($B$15,BN80)),MAX($BM$8:BM79)+1,0)","v":72},"B Roll through h/stand",null,null,{"$f":"IFERROR(VLOOKUP(ROWS($BN$9:BN80),$BM$9:$BN$163,2,0),\"\")","v":"B Roll through h/stand"},null,null,null,{"$f":"IF(ISNUMBER(SEARCH($B$16,BV80)),MAX($BU$8:BU79)+1,0)","v":72},"B Roll through h/stand",null,null,{"$f":"IFERROR(VLOOKUP(ROWS($BV$9:BV80),$BU$9:$BV$163,2,0),\"\")","v":"B Roll through h/stand"},null,null,null,{"$f":"IF(ISNUMBER(SEARCH($B$17,CD80)),MAX($CC$8:CC79)+1,0)","v":72},"B Roll through h/stand",null,null,{"$f":"IFERROR(VLOOKUP(ROWS($CD$9:CD80),$CC$9:$CD$163,2,0),\"\")","v":"B Roll through h/stand"},null,null,null,{"$f":"IF(ISNUMBER(SEARCH($B$18,CL80)),MAX($CK$8:CK79)+1,0)","v":72},"B Roll through h/stand",null,null,{"$f":"IFERROR(VLOOKUP(ROWS($CL$9:CL80),$CK$9:$CL$163,2,0),\"\")","v":"B Roll through h/stand"}]
[null,null,null,null,null,null,null,null,null,null,null,null,null,null,null,null,{"$f":"IF(ISNUMBER(SEARCH($B$9,R81)),MAX($Q$8:Q80)+1,0)","v":73},"Handstand full pirouette",null,null,{"$f":"IFERROR(VLOOKUP(ROWS($R$9:R81),$Q$9:$R$163,2,0),\"\")","v":"Handstand full pirouette"},null,null,null,{"$f":"IF(ISNUMBER(SEARCH($B$10,Z81)),MAX($Y$8:Y80)+1,0)","v":73},"Handstand full pirouette",null,null,{"$f":"IFERROR(VLOOKUP(ROWS($Z$9:Z81),$Y$9:$Z$163,2,0),\"\")","v":"Handstand full pirouette"},null,null,null,{"$f":"IF(ISNUMBER(SEARCH($B$11,AH81)),MAX($AG$8:AG80)+1,0)","v":73},"Handstand full pirouette",null,null,{"$f":"IFERROR(VLOOKUP(ROWS($AH$9:AH81),$AG$9:$AH$163,2,0),\"\")","v":"Handstand full pirouette"},null,null,null,{"$f":"IF(ISNUMBER(SEARCH($B$12,AP81)),MAX($AO$8:AO80)+1,0)","v":73},"Handstand full pirouette",null,null,{"$f":"IFERROR(VLOOKUP(ROWS($AP$9:AP81),$AO$9:$AP$163,2,0),\"\")","v":"Handstand full pirouette"},null,null,null,{"$f":"IF(ISNUMBER(SEARCH($B$13,AX81)),MAX($AW$8:AW80)+1,0)","v":73},"Handstand full pirouette",null,null,{"$f":"IFERROR(VLOOKUP(ROWS($AX$9:AX81),$AW$9:$AX$163,2,0),\"\")","v":"Handstand full pirouette"},null,null,null,{"$f":"IF(ISNUMBER(SEARCH($B$14,BF81)),MAX($BE$8:BE80)+1,0)","v":73},"Handstand full pirouette",null,null,{"$f":"IFERROR(VLOOKUP(ROWS($BF$9:BF81),$BE$9:$BF$163,2,0),\"\")","v":"Handstand full pirouette"},null,null,null,{"$f":"IF(ISNUMBER(SEARCH($B$15,BN81)),MAX($BM$8:BM80)+1,0)","v":73},"Handstand full pirouette",null,null,{"$f":"IFERROR(VLOOKUP(ROWS($BN$9:BN81),$BM$9:$BN$163,2,0),\"\")","v":"Handstand full pirouette"},null,null,null,{"$f":"IF(ISNUMBER(SEARCH($B$16,BV81)),MAX($BU$8:BU80)+1,0)","v":73},"Handstand full pirouette",null,null,{"$f":"IFERROR(VLOOKUP(ROWS($BV$9:BV81),$BU$9:$BV$163,2,0),\"\")","v":"Handstand full pirouette"},null,null,null,{"$f":"IF(ISNUMBER(SEARCH($B$17,CD81)),MAX($CC$8:CC80)+1,0)","v":73},"Handstand full pirouette",null,null,{"$f":"IFERROR(VLOOKUP(ROWS($CD$9:CD81),$CC$9:$CD$163,2,0),\"\")","v":"Handstand full pirouette"},null,null,null,{"$f":"IF(ISNUMBER(SEARCH($B$18,CL81)),MAX($CK$8:CK80)+1,0)","v":73},"Handstand full pirouette",null,null,{"$f":"IFERROR(VLOOKUP(ROWS($CL$9:CL81),$CK$9:$CL$163,2,0),\"\")","v":"Handstand full pirouette"}]
[null,null,null,null,null,null,null,null,null,null,null,null,null,null,null,null,{"$f":"IF(ISNUMBER(SEARCH($B$9,R82)),MAX($Q$8:Q81)+1,0)","v":74},"Pike Bunny Hop to Handstand - ",null,null,{"$f":"IFERROR(VLOOKUP(ROWS($R$9:R82),$Q$9:$R$163,2,0),\"\")","v":"Pike Bunny Hop to Handstand - "},null,null,null,{"$f":"IF(ISNUMBER(SEARCH($B$10,Z82)),MAX($Y$8:Y81)+1,0)","v":74},"Pike Bunny Hop to Handstand - ",null,null,{"$f":"IFERROR(VLOOKUP(ROWS($Z$9:Z82),$Y$9:$Z$163,2,0),\"\")","v":"Pike Bunny Hop to Handstand - "},null,null,null,{"$f":"IF(ISNUMBER(SEARCH($B$11,AH82)),MAX($AG$8:AG81)+1,0)","v":74},"Pike Bunny Hop to Handstand - ",null,null,{"$f":"IFERROR(VLOOKUP(ROWS($AH$9:AH82),$AG$9:$AH$163,2,0),\"\")","v":"Pike Bunny Hop to Handstand - "},null,null,null,{"$f":"IF(ISNUMBER(SEARCH($B$12,AP82)),MAX($AO$8:AO81)+1,0)","v":74},"Pike Bunny Hop to Handstand - ",null,null,{"$f":"IFERROR(VLOOKUP(ROWS($AP$9:AP82),$AO$9:$AP$163,2,0),\"\")","v":"Pike Bunny Hop to Handstand - "},null,null,null,{"$f":"IF(ISNUMBER(SEARCH($B$13,AX82)),MAX($AW$8:AW81)+1,0)","v":74},"Pike Bunny Hop to Handstand - ",null,null,{"$f":"IFERROR(VLOOKUP(ROWS($AX$9:AX82),$AW$9:$AX$163,2,0),\"\")","v":"Pike Bunny Hop to Handstand - "},null,null,null,{"$f":"IF(ISNUMBER(SEARCH($B$14,BF82)),MAX($BE$8:BE81)+1,0)","v":74},"Pike Bunny Hop to Handstand - ",null,null,{"$f":"IFERROR(VLOOKUP(ROWS($BF$9:BF82),$BE$9:$BF$163,2,0),\"\")","v":"Pike Bunny Hop to Handstand - "},null,null,null,{"$f":"IF(ISNUMBER(SEARCH($B$15,BN82)),MAX($BM$8:BM81)+1,0)","v":74},"Pike Bunny Hop to Handstand - ",null,null,{"$f":"IFERROR(VLOOKUP(ROWS($BN$9:BN82),$BM$9:$BN$163,2,0),\"\")","v":"Pike Bunny Hop to Handstand - "},null,null,null,{"$f":"IF(ISNUMBER(SEARCH($B$16,BV82)),MAX($BU$8:BU81)+1,0)","v":74},"Pike Bunny Hop to Handstand - ",null,null,{"$f":"IFERROR(VLOOKUP(ROWS($BV$9:BV82),$BU$9:$BV$163,2,0),\"\")","v":"Pike Bunny Hop to Handstand - "},null,null,null,{"$f":"IF(ISNUMBER(SEARCH($B$17,CD82)),MAX($CC$8:CC81)+1,0)","v":74},"Pike Bunny Hop to Handstand - ",null,null,{"$f":"IFERROR(VLOOKUP(ROWS($CD$9:CD82),$CC$9:$CD$163,2,0),\"\")","v":"Pike Bunny Hop to Handstand - "},null,null,null,{"$f":"IF(ISNUMBER(SEARCH($B$18,CL82)),MAX($CK$8:CK81)+1,0)","v":74},"Pike Bunny Hop to Handstand - ",null,null,{"$f":"IFERROR(VLOOKUP(ROWS($CL$9:CL82),$CK$9:$CL$163,2,0),\"\")","v":"Pike Bunny Hop to Handstand - "}]
[null,null,null,null,null,null,null,null,null,null,null,null,null,null,null,null,{"$f":"IF(ISNUMBER(SEARCH($B$9,R83)),MAX($Q$8:Q82)+1,0)","v":75},"Half Double Leg Circle",null,null,{"$f":"IFERROR(VLOOKUP(ROWS($R$9:R83),$Q$9:$R$163,2,0),\"\")","v":"Half Double Leg Circle"},null,null,null,{"$f":"IF(ISNUMBER(SEARCH($B$10,Z83)),MAX($Y$8:Y82)+1,0)","v":75},"Half Double Leg Circle",null,null,{"$f":"IFERROR(VLOOKUP(ROWS($Z$9:Z83),$Y$9:$Z$163,2,0),\"\")","v":"Half Double Leg Circle"},null,null,null,{"$f":"IF(ISNUMBER(SEARCH($B$11,AH83)),MAX($AG$8:AG82)+1,0)","v":75},"Half Double Leg Circle",null,null,{"$f":"IFERROR(VLOOKUP(ROWS($AH$9:AH83),$AG$9:$AH$163,2,0),\"\")","v":"Half Double Leg Circle"},null,null,null,{"$f":"IF(ISNUMBER(SEARCH($B$12,AP83)),MAX($AO$8:AO82)+1,0)","v":75},"Half Double Leg Circle",null,null,{"$f":"IFERROR(VLOOKUP(ROWS($AP$9:AP83),$AO$9:$AP$163,2,0),\"\")","v":"Half Double Leg Circle"},null,null,null,{"$f":"IF(ISNUMBER(SEARCH($B$13,AX83)),MAX($AW$8:AW82)+1,0)","v":75},"Half Double Leg Circle",null,null,{"$f":"IFERROR(VLOOKUP(ROWS($AX$9:AX83),$AW$9:$AX$163,2,0),\"\")","v":"Half Double Leg Circle"},null,null,null,{"$f":"IF(ISNUMBER(SEARCH($B$14,BF83)),MAX($BE$8:BE82)+1,0)","v":75},"Half Double Leg Circle",null,null,{"$f":"IFERROR(VLOOKUP(ROWS($BF$9:BF83),$BE$9:$BF$163,2,0),\"\")","v":"Half Double Leg Circle"},null,null,null,{"$f":"IF(ISNUMBER(SEARCH($B$15,BN83)),MAX($BM$8:BM82)+1,0)","v":75},"Half Double Leg Circle",null,null,{"$f":"IFERROR(VLOOKUP(ROWS($BN$9:BN83),$BM$9:$BN$163,2,0),\"\")","v":"Half Double Leg Circle"},null,null,null,{"$f":"IF(ISNUMBER(SEARCH($B$16,BV83)),MAX($BU$8:BU82)+1,0)","v":75},"Half Double Leg Circle",null,null,{"$f":"IFERROR(VLOOKUP(ROWS($BV$9:BV83),$BU$9:$BV$163,2,0),\"\")","v":"Half Double Leg Circle"},null,null,null,{"$f":"IF(ISNUMBER(SEARCH($B$17,CD83)),MAX($CC$8:CC82)+1,0)","v":75},"Half Double Leg Circle",null,null,{"$f":"IFERROR(VLOOKUP(ROWS($CD$9:CD83),$CC$9:$CD$163,2,0),\"\")","v":"Half Double Leg Circle"},null,null,null,{"$f":"IF(ISNUMBER(SEARCH($B$18,CL83)),MAX($CK$8:CK82)+1,0)","v":75},"Half Double Leg Circle",null,null,{"$f":"IFERROR(VLOOKUP(ROWS($CL$9:CL83),$CK$9:$CL$163,2,0),\"\")","v":"Half Double Leg Circle"}]
[null,null,null,null,null,null,null,null,null,null,null,null,null,null,null,null,{"$f":"IF(ISNUMBER(SEARCH($B$9,R84)),MAX($Q$8:Q83)+1,0)","v":76},"Forward walkover",null,null,{"$f":"IFERROR(VLOOKUP(ROWS($R$9:R84),$Q$9:$R$163,2,0),\"\")","v":"Forward walkover"},null,null,null,{"$f":"IF(ISNUMBER(SEARCH($B$10,Z84)),MAX($Y$8:Y83)+1,0)","v":76},"Forward walkover",null,null,{"$f":"IFERROR(VLOOKUP(ROWS($Z$9:Z84),$Y$9:$Z$163,2,0),\"\")","v":"Forward walkover"},null,null,null,{"$f":"IF(ISNUMBER(SEARCH($B$11,AH84)),MAX($AG$8:AG83)+1,0)","v":76},"Forward walkover",null,null,{"$f":"IFERROR(VLOOKUP(ROWS($AH$9:AH84),$AG$9:$AH$163,2,0),\"\")","v":"Forward walkover"},null,null,null,{"$f":"IF(ISNUMBER(SEARCH($B$12,AP84)),MAX($AO$8:AO83)+1,0)","v":76},"Forward walkover",null,null,{"$f":"IFERROR(VLOOKUP(ROWS($AP$9:AP84),$AO$9:$AP$163,2,0),\"\")","v":"Forward walkover"},null,null,null,{"$f":"IF(ISNUMBER(SEARCH($B$13,AX84)),MAX($AW$8:AW83)+1,0)","v":76},"Forward walkover",null,null,{"$f":"IFERROR(VLOOKUP(ROWS($AX$9:AX84),$AW$9:$AX$163,2,0),\"\")","v":"Forward walkover"},null,null,null,{"$f":"IF(ISNUMBER(SEARCH($B$14,BF84)),MAX($BE$8:BE83)+1,0)","v":76},"Forward walkover",null,null,{"$f":"IFERROR(VLOOKUP(ROWS($BF$9:BF84),$BE$9:$BF$163,2,0),\"\")","v":"Forward walkover"},null,null,null,{"$f":"IF(ISNUMBER(SEARCH($B$15,BN84)),MAX($BM$8:BM83)+1,0)","v":76},"Forward walkover",null,null,{"$f":"IFERROR(VLOOKUP(ROWS($BN$9:BN84),$BM$9:$BN$163,2,0),\"\")","v":"Forward walkover"},null,null,null,{"$f":"IF(ISNUMBER(SEARCH($B$16,BV84)),MAX($BU$8:BU83)+1,0)","v":76},"Forward walkover",null,null,{"$f":"IFERROR(VLOOKUP(ROWS($BV$9:BV84),$BU$9:$BV$163,2,0),\"\")","v":"Forward walkover"},null,null,null,{"$f":"IF(ISNUMBER(SEARCH($B$17,CD84)),MAX($CC$8:CC83)+1,0)","v":76},"Forward walkover",null,null,{"$f":"IFERROR(VLOOKUP(ROWS($CD$9:CD84),$CC$9:$CD$163,2,0),\"\")","v":"Forward walkover"},null,null,null,{"$f":"IF(ISNUMBER(SEARCH($B$18,CL84)),MAX($CK$8:CK83)+1,0)","v":76},"Forward walkover",null,null,{"$f":"IFERROR(VLOOKUP(ROWS($CL$9:CL84),$CK$9:$CL$163,2,0),\"\")","v":"Forward walkover"}]
[null,null,null,null,null,null,null,null,null,null,null,null,null,null,null,null,{"$f":"IF(ISNUMBER(SEARCH($B$9,R85)),MAX($Q$8:Q84)+1,0)","v":77},"Standing Flic to 2 feet",null,null,{"$f":"IFERROR(VLOOKUP(ROWS($R$9:R85),$Q$9:$R$163,2,0),\"\")","v":"Standing Flic to 2 feet"},null,null,null,{"$f":"IF(ISNUMBER(SEARCH($B$10,Z85)),MAX($Y$8:Y84)+1,0)","v":77},"Standing Flic to 2 feet",null,null,{"$f":"IFERROR(VLOOKUP(ROWS($Z$9:Z85),$Y$9:$Z$163,2,0),\"\")","v":"Standing Flic to 2 feet"},null,null,null,{"$f":"IF(ISNUMBER(SEARCH($B$11,AH85)),MAX($AG$8:AG84)+1,0)","v":77},"Standing Flic to 2 feet",null,null,{"$f":"IFERROR(VLOOKUP(ROWS($AH$9:AH85),$AG$9:$AH$163,2,0),\"\")","v":"Standing Flic to 2 feet"},null,null,null,{"$f":"IF(ISNUMBER(SEARCH($B$12,AP85)),MAX($AO$8:AO84)+1,0)","v":77},"Standing Flic to 2 feet",null,null,{"$f":"IFERROR(VLOOKUP(ROWS($AP$9:AP85),$AO$9:$AP$163,2,0),\"\")","v":"Standing Flic to 2 feet"},null,null,null,{"$f":"IF(ISNUMBER(SEARCH($B$13,AX85)),MAX($AW$8:AW84)+1,0)","v":77},"Standing Flic to 2 feet",null,null,{"$f":"IFERROR(VLOOKUP(ROWS($AX$9:AX85),$AW$9:$AX$163,2,0),\"\")","v":"Standing Flic to 2 feet"},null,null,null,{"$f":"IF(ISNUMBER(SEARCH($B$14,BF85)),MAX($BE$8:BE84)+1,0)","v":77},"Standing Flic to 2 feet",null,null,{"$f":"IFERROR(VLOOKUP(ROWS($BF$9:BF85),$BE$9:$BF$163,2,0),\"\")","v":"Standing Flic to 2 feet"},null,null,null,{"$f":"IF(ISNUMBER(SEARCH($B$15,BN85)),MAX($BM$8:BM84)+1,0)","v":77},"Standing Flic to 2 feet",null,null,{"$f":"IFERROR(VLOOKUP(ROWS($BN$9:BN85),$BM$9:$BN$163,2,0),\"\")","v":"Standing Flic to 2 feet"},null,null,null,{"$f":"IF(ISNUMBER(SEARCH($B$16,BV85)),MAX($BU$8:BU84)+1,0)","v":77},"Standing Flic to 2 feet",null,null,{"$f":"IFERROR(VLOOKUP(ROWS($BV$9:BV85),$BU$9:$BV$163,2,0),\"\")","v":"Standing Flic to 2 feet"},null,null,null,{"$f":"IF(ISNUMBER(SEARCH($B$17,CD85)),MAX($CC$8:CC84)+1,0)","v":77},"Standing Flic to 2 feet",null,null,{"$f":"IFERROR(VLOOKUP(ROWS($CD$9:CD85),$CC$9:$CD$163,2,0),\"\")","v":"Standing Flic to 2 feet"},null,null,null,{"$f":"IF(ISNUMBER(SEARCH($B$18,CL85)),MAX($CK$8:CK84)+1,0)","v":77},"Standing Flic to 2 feet",null,null,{"$f":"IFERROR(VLOOKUP(ROWS($CL$9:CL85),$CK$9:$CL$163,2,0),\"\")","v":"Standing Flic to 2 feet"}]
[null,null,null,null,null,null,null,null,null,null,null,null,null,null,null,null,{"$f":"IF(ISNUMBER(SEARCH($B$9,R86)),MAX($Q$8:Q85)+1,0)","v":78},"Standing Flic to 1 foot",null,null,{"$f":"IFERROR(VLOOKUP(ROWS($R$9:R86),$Q$9:$R$163,2,0),\"\")","v":"Standing Flic to 1 foot"},null,null,null,{"$f":"IF(ISNUMBER(SEARCH($B$10,Z86)),MAX($Y$8:Y85)+1,0)","v":78},"Standing Flic to 1 foot",null,null,{"$f":"IFERROR(VLOOKUP(ROWS($Z$9:Z86),$Y$9:$Z$163,2,0),\"\")","v":"Standing Flic to 1 foot"},null,null,null,{"$f":"IF(ISNUMBER(SEARCH($B$11,AH86)),MAX($AG$8:AG85)+1,0)","v":78},"Standing Flic to 1 foot",null,null,{"$f":"IFERROR(VLOOKUP(ROWS($AH$9:AH86),$AG$9:$AH$163,2,0),\"\")","v":"Standing Flic to 1 foot"},null,null,null,{"$f":"IF(ISNUMBER(SEARCH($B$12,AP86)),MAX($AO$8:AO85)+1,0)","v":78},"Standing Flic to 1 foot",null,null,{"$f":"IFERROR(VLOOKUP(ROWS($AP$9:AP86),$AO$9:$AP$163,2,0),\"\")","v":"Standing Flic to 1 foot"},null,null,null,{"$f":"IF(ISNUMBER(SEARCH($B$13,AX86)),MAX($AW$8:AW85)+1,0)","v":78},"Standing Flic to 1 foot",null,null,{"$f":"IFERROR(VLOOKUP(ROWS($AX$9:AX86),$AW$9:$AX$163,2,0),\"\")","v":"Standing Flic to 1 foot"},null,null,null,{"$f":"IF(ISNUMBER(SEARCH($B$14,BF86)),MAX($BE$8:BE85)+1,0)","v":78},"Standing Flic to 1 foot",null,null,{"$f":"IFERROR(VLOOKUP(ROWS($BF$9:BF86),$BE$9:$BF$163,2,0),\"\")","v":"Standing Flic to 1 foot"},null,null,null,{"$f":"IF(ISNUMBER(SEARCH($B$15,BN86)),MAX($BM$8:BM85)+1,0)","v":78},"Standing Flic to 1 foot",null,null,{"$f":"IFERROR(VLOOKUP(ROWS($BN$9:BN86),$BM$9:$BN$163,2,0),\"\")","v":"Standing Flic to 1 foot"},null,null,null,{"$f":"IF(ISNUMBER(SEARCH($B$16,BV86)),MAX($BU$8:BU85)+1,0)","v":78},"Standing Flic to 1 foot",null,null,{"$f":"IFERROR(VLOOKUP(ROWS($BV$9:BV86),$BU$9:$BV$163,2,0),\"\")","v":"Standing Flic to 1 foot"},null,null,null,{"$f":"IF(ISNUMBER(SEARCH($B$17,CD86)),MAX($CC$8:CC85)+1,0)","v":78},"Standing Flic to 1 foot",null,null,{"$f":"IFERROR(VLOOKUP(ROWS($CD$9:CD86),$CC$9:$CD$163,2,0),\"\")","v":"Standing Flic to 1 foot"},null,null,null,{"$f":"IF(ISNUMBER(SEARCH($B$18,CL86)),MAX($CK$8:CK85)+1,0)","v":78},"Standing Flic to 1 foot",null,null,{"$f":"IFERROR(VLOOKUP(ROWS($CL$9:CL86),$CK$9:$CL$163,2,0),\"\")","v":"Standing Flic to 1 foot"}]
[null,null,null,null,null,null,null,null,null,null,null,null,null,null,null,null,{"$f":"IF(ISNUMBER(SEARCH($B$9,R87)),MAX($Q$8:Q86)+1,0)","v":79},"Standing Flic to Front Support",null,null,{"$f":"IFERROR(VLOOKUP(ROWS($R$9:R87),$Q$9:$R$163,2,0),\"\")","v":"Standing Flic to Front Support"},null,null,null,{"$f":"IF(ISNUMBER(SEARCH($B$10,Z87)),MAX($Y$8:Y86)+1,0)","v":79},"Standing Flic to Front Support",null,null,{"$f":"IFERROR(VLOOKUP(ROWS($Z$9:Z87),$Y$9:$Z$163,2,0),\"\")","v":"Standing Flic to Front Support"},null,null,null,{"$f":"IF(ISNUMBER(SEARCH($B$11,AH87)),MAX($AG$8:AG86)+1,0)","v":79},"Standing Flic to Front Support",null,null,{"$f":"IFERROR(VLOOKUP(ROWS($AH$9:AH87),$AG$9:$AH$163,2,0),\"\")","v":"Standing Flic to Front Support"},null,null,null,{"$f":"IF(ISNUMBER(SEARCH($B$12,AP87)),MAX($AO$8:AO86)+1,0)","v":79},"Standing Flic to Front Support",null,null,{"$f":"IFERROR(VLOOKUP(ROWS($AP$9:AP87),$AO$9:$AP$163,2,0),\"\")","v":"Standing Flic to Front Support"},null,null,null,{"$f":"IF(ISNUMBER(SEARCH($B$13,AX87)),MAX($AW$8:AW86)+1,0)","v":79},"Standing Flic to Front Support",null,null,{"$f":"IFERROR(VLOOKUP(ROWS($AX$9:AX87),$AW$9:$AX$163,2,0),\"\")","v":"Standing Flic to Front Support"},null,null,null,{"$f":"IF(ISNUMBER(SEARCH($B$14,BF87)),MAX($BE$8:BE86)+1,0)","v":79},"Standing Flic to Front Support",null,null,{"$f":"IFERROR(VLOOKUP(ROWS($BF$9:BF87),$BE$9:$BF$163,2,0),\"\")","v":"Standing Flic to Front Support"},null,null,null,{"$f":"IF(ISNUMBER(SEARCH($B$15,BN87)),MAX($BM$8:BM86)+1,0)","v":79},"Standing Flic to Front Support",null,null,{"$f":"IFERROR(VLOOKUP(ROWS($BN$9:BN87),$BM$9:$BN$163,2,0),\"\")","v":"Standing Flic to Front Support"},null,null,null,{"$f":"IF(ISNUMBER(SEARCH($B$16,BV87)),MAX($BU$8:BU86)+1,0)","v":79},"Standing Flic to Front Support",null,null,{"$f":"IFERROR(VLOOKUP(ROWS($BV$9:BV87),$BU$9:$BV$163,2,0),\"\")","v":"Standing Flic to Front Support"},null,null,null,{"$f":"IF(ISNUMBER(SEARCH($B$17,CD87)),MAX($CC$8:CC86)+1,0)","v":79},"Standing Flic to Front Support",null,null,{"$f":"IFERROR(VLOOKUP(ROWS($CD$9:CD87),$CC$9:$CD$163,2,0),\"\")","v":"Standing Flic to Front Support"},null,null,null,{"$f":"IF(ISNUMBER(SEARCH($B$18,CL87)),MAX($CK$8:CK86)+1,0)","v":79},"Standing Flic to Front Support",null,null,{"$f":"IFERROR(VLOOKUP(ROWS($CL$9:CL87),$CK$9:$CL$163,2,0),\"\")","v":"Standing Flic to Front Support"}]
[null,null,null,null,null,null,null,null,null,null,null,null,null,null,null,null,{"$f":"IF(ISNUMBER(SEARCH($B$9,R88)),MAX($Q$8:Q87)+1,0)","v":80},"Back Walkover, Flick (1or2 feet)",null,null,{"$f":"IFERROR(VLOOKUP(ROWS($R$9:R88),$Q$9:$R$163,2,0),\"\")","v":"Back Walkover, Flick (1or2 feet)"},null,null,null,{"$f":"IF(ISNUMBER(SEARCH($B$10,Z88)),MAX($Y$8:Y87)+1,0)","v":80},"Back Walkover, Flick (1or2 feet)",null,null,{"$f":"IFERROR(VLOOKUP(ROWS($Z$9:Z88),$Y$9:$Z$163,2,0),\"\")","v":"Back Walkover, Flick (1or2 feet)"},null,null,null,{"$f":"IF(ISNUMBER(SEARCH($B$11,AH88)),MAX($AG$8:AG87)+1,0)","v":80},"Back Walkover, Flick (1or2 feet)",null,null,{"$f":"IFERROR(VLOOKUP(ROWS($AH$9:AH88),$AG$9:$AH$163,2,0),\"\")","v":"Back Walkover, Flick (1or2 feet)"},null,null,null,{"$f":"IF(ISNUMBER(SEARCH($B$12,AP88)),MAX($AO$8:AO87)+1,0)","v":80},"Back Walkover, Flick (1or2 feet)",null,null,{"$f":"IFERROR(VLOOKUP(ROWS($AP$9:AP88),$AO$9:$AP$163,2,0),\"\")","v":"Back Walkover, Flick (1or2 feet)"},null,null,null,{"$f":"IF(ISNUMBER(SEARCH($B$13,AX88)),MAX($AW$8:AW87)+1,0)","v":80},"Back Walkover, Flick (1or2 feet)",null,null,{"$f":"IFERROR(VLOOKUP(ROWS($AX$9:AX88),$AW$9:$AX$163,2,0),\"\")","v":"Back Walkover, Flick (1or2 feet)"},null,null,null,{"$f":"IF(ISNUMBER(SEARCH($B$14,BF88)),MAX($BE$8:BE87)+1,0)","v":80},"Back Walkover, Flick (1or2 feet)",null,null,{"$f":"IFERROR(VLOOKUP(ROWS($BF$9:BF88),$BE$9:$BF$163,2,0),\"\")","v":"Back Walkover, Flick (1or2 feet)"},null,null,null,{"$f":"IF(ISNUMBER(SEARCH($B$15,BN88)),MAX($BM$8:BM87)+1,0)","v":80},"Back Walkover, Flick (1or2 feet)",null,null,{"$f":"IFERROR(VLOOKUP(ROWS($BN$9:BN88),$BM$9:$BN$163,2,0),\"\")","v":"Back Walkover, Flick (1or2 feet)"},null,null,null,{"$f":"IF(ISNUMBER(SEARCH($B$16,BV88)),MAX($BU$8:BU87)+1,0)","v":80},"Back Walkover, Flick (1or2 feet)",null,null,{"$f":"IFERROR(VLOOKUP(ROWS($BV$9:BV88),$BU$9:$BV$163,2,0),\"\")","v":"Back Walkover, Flick (1or2 feet)"},null,null,null,{"$f":"IF(ISNUMBER(SEARCH($B$17,CD88)),MAX($CC$8:CC87)+1,0)","v":80},"Back Walkover, Flick (1or2 feet)",null,null,{"$f":"IFERROR(VLOOKUP(ROWS($CD$9:CD88),$CC$9:$CD$163,2,0),\"\")","v":"Back Walkover, Flick (1or2 feet)"},null,null,null,{"$f":"IF(ISNUMBER(SEARCH($B$18,CL88)),MAX($CK$8:CK87)+1,0)","v":80},"Back Walkover, Flick (1or2 feet)",null,null,{"$f":"IFERROR(VLOOKUP(ROWS($CL$9:CL88),$CK$9:$CL$163,2,0),\"\")","v":"Back Walkover, Flick (1or2 feet)"}]
[null,null,null,null,null,null,null,null,null,null,null,null,null,null,null,null,{"$f":"IF(ISNUMBER(SEARCH($B$9,R89)),MAX($Q$8:Q88)+1,0)","v":81},"Cartwheel, Flick",null,null,{"$f":"IFERROR(VLOOKUP(ROWS($R$9:R89),$Q$9:$R$163,2,0),\"\")","v":"Cartwheel, Flick"},null,null,null,{"$f":"IF(ISNUMBER(SEARCH($B$10,Z89)),MAX($Y$8:Y88)+1,0)","v":81},"Cartwheel, Flick",null,null,{"$f":"IFERROR(VLOOKUP(ROWS($Z$9:Z89),$Y$9:$Z$163,2,0),\"\")","v":"Cartwheel, Flick"},null,null,null,{"$f":"IF(ISNUMBER(SEARCH($B$11,AH89)),MAX($AG$8:AG88)+1,0)","v":81},"Cartwheel, Flick",null,null,{"$f":"IFERROR(VLOOKUP(ROWS($AH$9:AH89),$AG$9:$AH$163,2,0),\"\")","v":"Cartwheel, Flick"},null,null,null,{"$f":"IF(ISNUMBER(SEARCH($B$12,AP89)),MAX($AO$8:AO88)+1,0)","v":81},"Cartwheel, Flick",null,null,{"$f":"IFERROR(VLOOKUP(ROWS($AP$9:AP89),$AO$9:$AP$163,2,0),\"\")","v":"Cartwheel, Flick"},null,null,null,{"$f":"IF(ISNUMBER(SEARCH($B$13,AX89)),MAX($AW$8:AW88)+1,0)","v":81},"Cartwheel, Flick",null,null,{"$f":"IFERROR(VLOOKUP(ROWS($AX$9:AX89),$AW$9:$AX$163,2,0),\"\")","v":"Cartwheel, Flick"},null,null,null,{"$f":"IF(ISNUMBER(SEARCH($B$14,BF89)),MAX($BE$8:BE88)+1,0)","v":81},"Cartwheel, Flick",null,null,{"$f":"IFERROR(VLOOKUP(ROWS($BF$9:BF89),$BE$9:$BF$163,2,0),\"\")","v":"Cartwheel, Flick"},null,null,null,{"$f":"IF(ISNUMBER(SEARCH($B$15,BN89)),MAX($BM$8:BM88)+1,0)","v":81},"Cartwheel, Flick",null,null,{"$f":"IFERROR(VLOOKUP(ROWS($BN$9:BN89),$BM$9:$BN$163,2,0),\"\")","v":"Cartwheel, Flick"},null,null,null,{"$f":"IF(ISNUMBER(SEARCH($B$16,BV89)),MAX($BU$8:BU88)+1,0)","v":81},"Cartwheel, Flick",null,null,{"$f":"IFERROR(VLOOKUP(ROWS($BV$9:BV89),$BU$9:$BV$163,2,0),\"\")","v":"Cartwheel, Flick"},null,null,null,{"$f":"IF(ISNUMBER(SEARCH($B$17,CD89)),MAX($CC$8:CC88)+1,0)","v":81},"Cartwheel, Flick",null,null,{"$f":"IFERROR(VLOOKUP(ROWS($CD$9:CD89),$CC$9:$CD$163,2,0),\"\")","v":"Cartwheel, Flick"},null,null,null,{"$f":"IF(ISNUMBER(SEARCH($B$18,CL89)),MAX($CK$8:CK88)+1,0)","v":81},"Cartwheel, Flick",null,null,{"$f":"IFERROR(VLOOKUP(ROWS($CL$9:CL89),$CK$9:$CL$163,2,0),\"\")","v":"Cartwheel, Flick"}]
[null,null,null,null,null,null,null,null,null,null,null,null,null,null,null,null,{"$f":"IF(ISNUMBER(SEARCH($B$9,R90)),MAX($Q$8:Q89)+1,0)","v":82},"Roundoff, Flic to 1 foot",null,null,{"$f":"IFERROR(VLOOKUP(ROWS($R$9:R90),$Q$9:$R$163,2,0),\"\")","v":"Roundoff, Flic to 1 foot"},null,null,null,{"$f":"IF(ISNUMBER(SEARCH($B$10,Z90)),MAX($Y$8:Y89)+1,0)","v":82},"Roundoff, Flic to 1 foot",null,null,{"$f":"IFERROR(VLOOKUP(ROWS($Z$9:Z90),$Y$9:$Z$163,2,0),\"\")","v":"Roundoff, Flic to 1 foot"},null,null,null,{"$f":"IF(ISNUMBER(SEARCH($B$11,AH90)),MAX($AG$8:AG89)+1,0)","v":82},"Roundoff, Flic to 1 foot",null,null,{"$f":"IFERROR(VLOOKUP(ROWS($AH$9:AH90),$AG$9:$AH$163,2,0),\"\")","v":"Roundoff, Flic to 1 foot"},null,null,null,{"$f":"IF(ISNUMBER(SEARCH($B$12,AP90)),MAX($AO$8:AO89)+1,0)","v":82},"Roundoff, Flic to 1 foot",null,null,{"$f":"IFERROR(VLOOKUP(ROWS($AP$9:AP90),$AO$9:$AP$163,2,0),\"\")","v":"Roundoff, Flic to 1 foot"},null,null,null,{"$f":"IF(ISNUMBER(SEARCH($B$13,AX90)),MAX($AW$8:AW89)+1,0)","v":82},"Roundoff, Flic to 1 foot",null,null,{"$f":"IFERROR(VLOOKUP(ROWS($AX$9:AX90),$AW$9:$AX$163,2,0),\"\")","v":"Roundoff, Flic to 1 foot"},null,null,null,{"$f":"IF(ISNUMBER(SEARCH($B$14,BF90)),MAX($BE$8:BE89)+1,0)","v":82},"Roundoff, Flic to 1 foot",null,null,{"$f":"IFERROR(VLOOKUP(ROWS($BF$9:BF90),$BE$9:$BF$163,2,0),\"\")","v":"Roundoff, Flic to 1 foot"},null,null,null,{"$f":"IF(ISNUMBER(SEARCH($B$15,BN90)),MAX($BM$8:BM89)+1,0)","v":82},"Roundoff, Flic to 1 foot",null,null,{"$f":"IFERROR(VLOOKUP(ROWS($BN$9:BN90),$BM$9:$BN$163,2,0),\"\")","v":"Roundoff, Flic to 1 foot"},null,null,null,{"$f":"IF(ISNUMBER(SEARCH($B$16,BV90)),MAX($BU$8:BU89)+1,0)","v":82},"Roundoff, Flic to 1 foot",null,null,{"$f":"IFERROR(VLOOKUP(ROWS($BV$9:BV90),$BU$9:$BV$163,2,0),\"\")","v":"Roundoff, Flic to 1 foot"},null,null,null,{"$f":"IF(ISNUMBER(SEARCH($B$17,CD90)),MAX($CC$8:CC89)+1,0)","v":82},"Roundoff, Flic to 1 foot",null,null,{"$f":"IFERROR(VLOOKUP(ROWS($CD$9:CD90),$CC$9:$CD$163,2,0),\"\")","v":"Roundoff, Flic to 1 foot"},null,null,null,{"$f":"IF(ISNUMBER(SEARCH($B$18,CL90)),MAX($CK$8:CK89)+1,0)","v":82},"Roundoff, Flic to 1 foot",null,null,{"$f":"IFERROR(VLOOKUP(ROWS($CL$9:CL90),$CK$9:$CL$163,2,0),\"\")","v":"Roundoff, Flic to 1 foot"}]
[null,null,null,null,null,null,null,null,null,null,null,null,null,null,null,null,{"$f":"IF(ISNUMBER(SEARCH($B$9,R91)),MAX($Q$8:Q90)+1,0)","v":83},"Roundoff, Flic to 2 feet",null,null,{"$f":"IFERROR(VLOOKUP(ROWS($R$9:R91),$Q$9:$R$163,2,0),\"\")","v":"Roundoff, Flic to 2 feet"},null,null,null,{"$f":"IF(ISNUMBER(SEARCH($B$10,Z91)),MAX($Y$8:Y90)+1,0)","v":83},"Roundoff, Flic to 2 feet",null,null,{"$f":"IFERROR(VLOOKUP(ROWS($Z$9:Z91),$Y$9:$Z$163,2,0),\"\")","v":"Roundoff, Flic to 2 feet"},null,null,null,{"$f":"IF(ISNUMBER(SEARCH($B$11,AH91)),MAX($AG$8:AG90)+1,0)","v":83},"Roundoff, Flic to 2 feet",null,null,{"$f":"IFERROR(VLOOKUP(ROWS($AH$9:AH91),$AG$9:$AH$163,2,0),\"\")","v":"Roundoff, Flic to 2 feet"},null,null,null,{"$f":"IF(ISNUMBER(SEARCH($B$12,AP91)),MAX($AO$8:AO90)+1,0)","v":83},"Roundoff, Flic to 2 feet",null,null,{"$f":"IFERROR(VLOOKUP(ROWS($AP$9:AP91),$AO$9:$AP$163,2,0),\"\")","v":"Roundoff, Flic to 2 feet"},null,null,null,{"$f":"IF(ISNUMBER(SEARCH($B$13,AX91)),MAX($AW$8:AW90)+1,0)","v":83},"Roundoff, Flic to 2 feet",null,null,{"$f":"IFERROR(VLOOKUP(ROWS($AX$9:AX91),$AW$9:$AX$163,2,0),\"\")","v":"Roundoff, Flic to 2 feet"},null,null,null,{"$f":"IF(ISNUMBER(SEARCH($B$14,BF91)),MAX($BE$8:BE90)+1,0)","v":83},"Roundoff, Flic to 2 feet",null,null,{"$f":"IFERROR(VLOOKUP(ROWS($BF$9:BF91),$BE$9:$BF$163,2,0),\"\")","v":"Roundoff, Flic to 2 feet"},null,null,null,{"$f":"IF(ISNUMBER(SEARCH($B$15,BN91)),MAX($BM$8:BM90)+1,0)","v":83},"Roundoff, Flic to 2 feet",null,null,{"$f":"IFERROR(VLOOKUP(ROWS($BN$9:BN91),$BM$9:$BN$163,2,0),\"\")","v":"Roundoff, Flic to 2 feet"},null,null,null,{"$f":"IF(ISNUMBER(SEARCH($B$16,BV91)),MAX($BU$8:BU90)+1,0)","v":83},"Roundoff, Flic to 2 feet",null,null,{"$f":"IFERROR(VLOOKUP(ROWS($BV$9:BV91),$BU$9:$BV$163,2,0),\"\")","v":"Roundoff, Flic to 2 feet"},null,null,null,{"$f":"IF(ISNUMBER(SEARCH($B$17,CD91)),MAX($CC$8:CC90)+1,0)","v":83},"Roundoff, Flic to 2 feet",null,null,{"$f":"IFERROR(VLOOKUP(ROWS($CD$9:CD91),$CC$9:$CD$163,2,0),\"\")","v":"Roundoff, Flic to 2 feet"},null,null,null,{"$f":"IF(ISNUMBER(SEARCH($B$18,CL91)),MAX($CK$8:CK90)+1,0)","v":83},"Roundoff, Flic to 2 feet",null,null,{"$f":"IFERROR(VLOOKUP(ROWS($CL$9:CL91),$CK$9:$CL$163,2,0),\"\")","v":"Roundoff, Flic to 2 feet"}]
[null,null,null,null,null,null,null,null,null,null,null,null,null,null,null,null,{"$f":"IF(ISNUMBER(SEARCH($B$9,R92)),MAX($Q$8:Q91)+1,0)","v":84},"Roundoff, Flic, Flic",null,null,{"$f":"IFERROR(VLOOKUP(ROWS($R$9:R92),$Q$9:$R$163,2,0),\"\")","v":"Roundoff, Flic, Flic"},null,null,null,{"$f":"IF(ISNUMBER(SEARCH($B$10,Z92)),MAX($Y$8:Y91)+1,0)","v":84},"Roundoff, Flic, Flic",null,null,{"$f":"IFERROR(VLOOKUP(ROWS($Z$9:Z92),$Y$9:$Z$163,2,0),\"\")","v":"Roundoff, Flic, Flic"},null,null,null,{"$f":"IF(ISNUMBER(SEARCH($B$11,AH92)),MAX($AG$8:AG91)+1,0)","v":84},"Roundoff, Flic, Flic",null,null,{"$f":"IFERROR(VLOOKUP(ROWS($AH$9:AH92),$AG$9:$AH$163,2,0),\"\")","v":"Roundoff, Flic, Flic"},null,null,null,{"$f":"IF(ISNUMBER(SEARCH($B$12,AP92)),MAX($AO$8:AO91)+1,0)","v":84},"Roundoff, Flic, Flic",null,null,{"$f":"IFERROR(VLOOKUP(ROWS($AP$9:AP92),$AO$9:$AP$163,2,0),\"\")","v":"Roundoff, Flic, Flic"},null,null,null,{"$f":"IF(ISNUMBER(SEARCH($B$13,AX92)),MAX($AW$8:AW91)+1,0)","v":84},"Roundoff, Flic, Flic",null,null,{"$f":"IFERROR(VLOOKUP(ROWS($AX$9:AX92),$AW$9:$AX$163,2,0),\"\")","v":"Roundoff, Flic, Flic"},null,null,null,{"$f":"IF(ISNUMBER(SEARCH($B$14,BF92)),MAX($BE$8:BE91)+1,0)","v":84},"Roundoff, Flic, Flic",null,null,{"$f":"IFERROR(VLOOKUP(ROWS($BF$9:BF92),$BE$9:$BF$163,2,0),\"\")","v":"Roundoff, Flic, Flic"},null,null,null,{"$f":"IF(ISNUMBER(SEARCH($B$15,BN92)),MAX($BM$8:BM91)+1,0)","v":84},"Roundoff, Flic, Flic",null,null,{"$f":"IFERROR(VLOOKUP(ROWS($BN$9:BN92),$BM$9:$BN$163,2,0),\"\")","v":"Roundoff, Flic, Flic"},null,null,null,{"$f":"IF(ISNUMBER(SEARCH($B$16,BV92)),MAX($BU$8:BU91)+1,0)","v":84},"Roundoff, Flic, Flic",null,null,{"$f":"IFERROR(VLOOKUP(ROWS($BV$9:BV92),$BU$9:$BV$163,2,0),\"\")","v":"Roundoff, Flic, Flic"},null,null,null,{"$f":"IF(ISNUMBER(SEARCH($B$17,CD92)),MAX($CC$8:CC91)+1,0)","v":84},"Roundoff, Flic, Flic",null,null,{"$f":"IFERROR(VLOOKUP(ROWS($CD$9:CD92),$CC$9:$CD$163,2,0),\"\")","v":"Roundoff, Flic, Flic"},null,null,null,{"$f":"IF(ISNUMBER(SEARCH($B$18,CL92)),MAX($CK$8:CK91)+1,0)","v":84},"Roundoff, Flic, Flic",null,null,{"$f":"IFERROR(VLOOKUP(ROWS($CL$9:CL92),$CK$9:$CL$163,2,0),\"\")","v":"Roundoff, Flic, Flic"}]
[null,null,null,null,null,null,null,null,null,null,null,null,null,null,null,null,{"$f":"IF(ISNUMBER(SEARCH($B$9,R93)),MAX($Q$8:Q92)+1,0)","v":85},"Handspring to 2 feet",null,null,{"$f":"IFERROR(VLOOKUP(ROWS($R$9:R93),$Q$9:$R$163,2,0),\"\")","v":"Handspring to 2 feet"},null,null,null,{"$f":"IF(ISNUMBER(SEARCH($B$10,Z93)),MAX($Y$8:Y92)+1,0)","v":85},"Handspring to 2 feet",null,null,{"$f":"IFERROR(VLOOKUP(ROWS($Z$9:Z93),$Y$9:$Z$163,2,0),\"\")","v":"Handspring to 2 feet"},null,null,null,{"$f":"IF(ISNUMBER(SEARCH($B$11,AH93)),MAX($AG$8:AG92)+1,0)","v":85},"Handspring to 2 feet",null,null,{"$f":"IFERROR(VLOOKUP(ROWS($AH$9:AH93),$AG$9:$AH$163,2,0),\"\")","v":"Handspring to 2 feet"},null,null,null,{"$f":"IF(ISNUMBER(SEARCH($B$12,AP93)),MAX($AO$8:AO92)+1,0)","v":85},"Handspring to 2 feet",null,null,{"$f":"IFERROR(VLOOKUP(ROWS($AP$9:AP93),$AO$9:$AP$163,2,0),\"\")","v":"Handspring to 2 feet"},null,null,null,{"$f":"IF(ISNUMBER(SEARCH($B$13,AX93)),MAX($AW$8:AW92)+1,0)","v":85},"Handspring to 2 feet",null,null,{"$f":"IFERROR(VLOOKUP(ROWS($AX$9:AX93),$AW$9:$AX$163,2,0),\"\")","v":"Handspring to 2 feet"},null,null,null,{"$f":"IF(ISNUMBER(SEARCH($B$14,BF93)),MAX($BE$8:BE92)+1,0)","v":85},"Handspring to 2 feet",null,null,{"$f":"IFERROR(VLOOKUP(ROWS($BF$9:BF93),$BE$9:$BF$163,2,0),\"\")","v":"Handspring to 2 feet"},null,null,null,{"$f":"IF(ISNUMBER(SEARCH($B$15,BN93)),MAX($BM$8:BM92)+1,0)","v":85},"Handspring to 2 feet",null,null,{"$f":"IFERROR(VLOOKUP(ROWS($BN$9:BN93),$BM$9:$BN$163,2,0),\"\")","v":"Handspring to 2 feet"},null,null,null,{"$f":"IF(ISNUMBER(SEARCH($B$16,BV93)),MAX($BU$8:BU92)+1,0)","v":85},"Handspring to 2 feet",null,null,{"$f":"IFERROR(VLOOKUP(ROWS($BV$9:BV93),$BU$9:$BV$163,2,0),\"\")","v":"Handspring to 2 feet"},null,null,null,{"$f":"IF(ISNUMBER(SEARCH($B$17,CD93)),MAX($CC$8:CC92)+1,0)","v":85},"Handspring to 2 feet",null,null,{"$f":"IFERROR(VLOOKUP(ROWS($CD$9:CD93),$CC$9:$CD$163,2,0),\"\")","v":"Handspring to 2 feet"},null,null,null,{"$f":"IF(ISNUMBER(SEARCH($B$18,CL93)),MAX($CK$8:CK92)+1,0)","v":85},"Handspring to 2 feet",null,null,{"$f":"IFERROR(VLOOKUP(ROWS($CL$9:CL93),$CK$9:$CL$163,2,0),\"\")","v":"Handspring to 2 feet"}]
[null,null,null,null,null,null,null,null,null,null,null,null,null,null,null,null,{"$f":"IF(ISNUMBER(SEARCH($B$9,R94)),MAX($Q$8:Q93)+1,0)","v":86},"Handspring to 1 foot",null,null,{"$f":"IFERROR(VLOOKUP(ROWS($R$9:R94),$Q$9:$R$163,2,0),\"\")","v":"Handspring to 1 foot"},null,null,null,{"$f":"IF(ISNUMBER(SEARCH($B$10,Z94)),MAX($Y$8:Y93)+1,0)","v":86},"Handspring to 1 foot",null,null,{"$f":"IFERROR(VLOOKUP(ROWS($Z$9:Z94),$Y$9:$Z$163,2,0),\"\")","v":"Handspring to 1 foot"},null,null,null,{"$f":"IF(ISNUMBER(SEARCH($B$11,AH94)),MAX($AG$8:AG93)+1,0)","v":86},"Handspring to 1 foot",null,null,{"$f":"IFERROR(VLOOKUP(ROWS($AH$9:AH94),$AG$9:$AH$163,2,0),\"\")","v":"Handspring to 1 foot"},null,null,null,{"$f":"IF(ISNUMBER(SEARCH($B$12,AP94)),MAX($AO$8:AO93)+1,0)","v":86},"Handspring to 1 foot",null,null,{"$f":"IFERROR(VLOOKUP(ROWS($AP$9:AP94),$AO$9:$AP$163,2,0),\"\")","v":"Handspring to 1 foot"},null,null,null,{"$f":"IF(ISNUMBER(SEARCH($B$13,AX94)),MAX($AW$8:AW93)+1,0)","v":86},"Handspring to 1 foot",null,null,{"$f":"IFERROR(VLOOKUP(ROWS($AX$9:AX94),$AW$9:$AX$163,2,0),\"\")","v":"Handspring to 1 foot"},null,null,null,{"$f":"IF(ISNUMBER(SEARCH($B$14,BF94)),MAX($BE$8:BE93)+1,0)","v":86},"Handspring to 1 foot",null,null,{"$f":"IFERROR(VLOOKUP(ROWS($BF$9:BF94),$BE$9:$BF$163,2,0),\"\")","v":"Handspring to 1 foot"},null,null,null,{"$f":"IF(ISNUMBER(SEARCH($B$15,BN94)),MAX($BM$8:BM93)+1,0)","v":86},"Handspring to 1 foot",null,null,{"$f":"IFERROR(VLOOKUP(ROWS($BN$9:BN94),$BM$9:$BN$163,2,0),\"\")","v":"Handspring to 1 foot"},null,null,null,{"$f":"IF(ISNUMBER(SEARCH($B$16,BV94)),MAX($BU$8:BU93)+1,0)","v":86},"Handspring to 1 foot",null,null,{"$f":"IFERROR(VLOOKUP(ROWS($BV$9:BV94),$BU$9:$BV$163,2,0),\"\")","v":"Handspring to 1 foot"},null,null,null,{"$f":"IF(ISNUMBER(SEARCH($B$17,CD94)),MAX($CC$8:CC93)+1,0)","v":86},"Handspring to 1 foot",null,null,{"$f":"IFERROR(VLOOKUP(ROWS($CD$9:CD94),$CC$9:$CD$163,2,0),\"\")","v":"Handspring to 1 foot"},null,null,null,{"$f":"IF(ISNUMBER(SEARCH($B$18,CL94)),MAX($CK$8:CK93)+1,0)","v":86},"Handspring to 1 foot",null,null,{"$f":"IFERROR(VLOOKUP(ROWS($CL$9:CL94),$CK$9:$CL$163,2,0),\"\")","v":"Handspring to 1 foot"}]
[null,null,null,null,null,null,null,null,null,null,null,null,null,null,null,null,{"$f":"IF(ISNUMBER(SEARCH($B$9,R95)),MAX($Q$8:Q94)+1,0)","v":87},"Handspring to Roundoff ",null,null,{"$f":"IFERROR(VLOOKUP(ROWS($R$9:R95),$Q$9:$R$163,2,0),\"\")","v":"Handspring to Roundoff "},null,null,null,{"$f":"IF(ISNUMBER(SEARCH($B$10,Z95)),MAX($Y$8:Y94)+1,0)","v":87},"Handspring to Roundoff ",null,null,{"$f":"IFERROR(VLOOKUP(ROWS($Z$9:Z95),$Y$9:$Z$163,2,0),\"\")","v":"Handspring to Roundoff "},null,null,null,{"$f":"IF(ISNUMBER(SEARCH($B$11,AH95)),MAX($AG$8:AG94)+1,0)","v":87},"Handspring to Roundoff ",null,null,{"$f":"IFERROR(VLOOKUP(ROWS($AH$9:AH95),$AG$9:$AH$163,2,0),\"\")","v":"Handspring to Roundoff "},null,null,null,{"$f":"IF(ISNUMBER(SEARCH($B$12,AP95)),MAX($AO$8:AO94)+1,0)","v":87},"Handspring to Roundoff ",null,null,{"$f":"IFERROR(VLOOKUP(ROWS($AP$9:AP95),$AO$9:$AP$163,2,0),\"\")","v":"Handspring to Roundoff "},null,null,null,{"$f":"IF(ISNUMBER(SEARCH($B$13,AX95)),MAX($AW$8:AW94)+1,0)","v":87},"Handspring to Roundoff ",null,null,{"$f":"IFERROR(VLOOKUP(ROWS($AX$9:AX95),$AW$9:$AX$163,2,0),\"\")","v":"Handspring to Roundoff "},null,null,null,{"$f":"IF(ISNUMBER(SEARCH($B$14,BF95)),MAX($BE$8:BE94)+1,0)","v":87},"Handspring to Roundoff ",null,null,{"$f":"IFERROR(VLOOKUP(ROWS($BF$9:BF95),$BE$9:$BF$163,2,0),\"\")","v":"Handspring to Roundoff "},null,null,null,{"$f":"IF(ISNUMBER(SEARCH($B$15,BN95)),MAX($BM$8:BM94)+1,0)","v":87},"Handspring to Roundoff ",null,null,{"$f":"IFERROR(VLOOKUP(ROWS($BN$9:BN95),$BM$9:$BN$163,2,0),\"\")","v":"Handspring to Roundoff "},null,null,null,{"$f":"IF(ISNUMBER(SEARCH($B$16,BV95)),MAX($BU$8:BU94)+1,0)","v":87},"Handspring to Roundoff ",null,null,{"$f":"IFERROR(VLOOKUP(ROWS($BV$9:BV95),$BU$9:$BV$163,2,0),\"\")","v":"Handspring to Roundoff "},null,null,null,{"$f":"IF(ISNUMBER(SEARCH($B$17,CD95)),MAX($CC$8:CC94)+1,0)","v":87},"Handspring to Roundoff ",null,null,{"$f":"IFERROR(VLOOKUP(ROWS($CD$9:CD95),$CC$9:$CD$163,2,0),\"\")","v":"Handspring to Roundoff "},null,null,null,{"$f":"IF(ISNUMBER(SEARCH($B$18,CL95)),MAX($CK$8:CK94)+1,0)","v":87},"Handspring to Roundoff ",null,null,{"$f":"IFERROR(VLOOKUP(ROWS($CL$9:CL95),$CK$9:$CL$163,2,0),\"\")","v":"Handspring to Roundoff "}]
[null,null,null,null,null,null,null,null,null,null,null,null,null,null,null,null,{"$f":"IF(ISNUMBER(SEARCH($B$9,R96)),MAX($Q$8:Q95)+1,0)","v":88},"2 Handsprings 1 – 2 feet",null,null,{"$f":"IFERROR(VLOOKUP(ROWS($R$9:R96),$Q$9:$R$163,2,0),\"\")","v":"2 Handsprings 1 – 2 feet"},null,null,null,{"$f":"IF(ISNUMBER(SEARCH($B$10,Z96)),MAX($Y$8:Y95)+1,0)","v":88},"2 Handsprings 1 – 2 feet",null,null,{"$f":"IFERROR(VLOOKUP(ROWS($Z$9:Z96),$Y$9:$Z$163,2,0),\"\")","v":"2 Handsprings 1 – 2 feet"},null,null,null,{"$f":"IF(ISNUMBER(SEARCH($B$11,AH96)),MAX($AG$8:AG95)+1,0)","v":88},"2 Handsprings 1 – 2 feet",null,null,{"$f":"IFERROR(VLOOKUP(ROWS($AH$9:AH96),$AG$9:$AH$163,2,0),\"\")","v":"2 Handsprings 1 – 2 feet"},null,null,null,{"$f":"IF(ISNUMBER(SEARCH($B$12,AP96)),MAX($AO$8:AO95)+1,0)","v":88},"2 Handsprings 1 – 2 feet",null,null,{"$f":"IFERROR(VLOOKUP(ROWS($AP$9:AP96),$AO$9:$AP$163,2,0),\"\")","v":"2 Handsprings 1 – 2 feet"},null,null,null,{"$f":"IF(ISNUMBER(SEARCH($B$13,AX96)),MAX($AW$8:AW95)+1,0)","v":88},"2 Handsprings 1 – 2 feet",null,null,{"$f":"IFERROR(VLOOKUP(ROWS($AX$9:AX96),$AW$9:$AX$163,2,0),\"\")","v":"2 Handsprings 1 – 2 feet"},null,null,null,{"$f":"IF(ISNUMBER(SEARCH($B$14,BF96)),MAX($BE$8:BE95)+1,0)","v":88},"2 Handsprings 1 – 2 feet",null,null,{"$f":"IFERROR(VLOOKUP(ROWS($BF$9:BF96),$BE$9:$BF$163,2,0),\"\")","v":"2 Handsprings 1 – 2 feet"},null,null,null,{"$f":"IF(ISNUMBER(SEARCH($B$15,BN96)),MAX($BM$8:BM95)+1,0)","v":88},"2 Handsprings 1 – 2 feet",null,null,{"$f":"IFERROR(VLOOKUP(ROWS($BN$9:BN96),$BM$9:$BN$163,2,0),\"\")","v":"2 Handsprings 1 – 2 feet"},null,null,null,{"$f":"IF(ISNUMBER(SEARCH($B$16,BV96)),MAX($BU$8:BU95)+1,0)","v":88},"2 Handsprings 1 – 2 feet",null,null,{"$f":"IFERROR(VLOOKUP(ROWS($BV$9:BV96),$BU$9:$BV$163,2,0),\"\")","v":"2 Handsprings 1 – 2 feet"},null,null,null,{"$f":"IF(ISNUMBER(SEARCH($B$17,CD96)),MAX($CC$8:CC95)+1,0)","v":88},"2 Handsprings 1 – 2 feet",null,null,{"$f":"IFERROR(VLOOKUP(ROWS($CD$9:CD96),$CC$9:$CD$163,2,0),\"\")","v":"2 Handsprings 1 – 2 feet"},null,null,null,{"$f":"IF(ISNUMBER(SEARCH($B$18,CL96)),MAX($CK$8:CK95)+1,0)","v":88},"2 Handsprings 1 – 2 feet",null,null,{"$f":"IFERROR(VLOOKUP(ROWS($CL$9:CL96),$CK$9:$CL$163,2,0),\"\")","v":"2 Handsprings 1 – 2 feet"}]
[null,null,null,null,null,null,null,null,null,null,null,null,null,null,null,null,{"$f":"IF(ISNUMBER(SEARCH($B$9,R97)),MAX($Q$8:Q96)+1,0)","v":89},"Handspring, Roundoff, Flic",null,null,{"$f":"IFERROR(VLOOKUP(ROWS($R$9:R97),$Q$9:$R$163,2,0),\"\")","v":"Handspring, Roundoff, Flic"},null,null,null,{"$f":"IF(ISNUMBER(SEARCH($B$10,Z97)),MAX($Y$8:Y96)+1,0)","v":89},"Handspring, Roundoff, Flic",null,null,{"$f":"IFERROR(VLOOKUP(ROWS($Z$9:Z97),$Y$9:$Z$163,2,0),\"\")","v":"Handspring, Roundoff, Flic"},null,null,null,{"$f":"IF(ISNUMBER(SEARCH($B$11,AH97)),MAX($AG$8:AG96)+1,0)","v":89},"Handspring, Roundoff, Flic",null,null,{"$f":"IFERROR(VLOOKUP(ROWS($AH$9:AH97),$AG$9:$AH$163,2,0),\"\")","v":"Handspring, Roundoff, Flic"},null,null,null,{"$f":"IF(ISNUMBER(SEARCH($B$12,AP97)),MAX($AO$8:AO96)+1,0)","v":89},"Handspring, Roundoff, Flic",null,null,{"$f":"IFERROR(VLOOKUP(ROWS($AP$9:AP97),$AO$9:$AP$163,2,0),\"\")","v":"Handspring, Roundoff, Flic"},null,null,null,{"$f":"IF(ISNUMBER(SEARCH($B$13,AX97)),MAX($AW$8:AW96)+1,0)","v":89},"Handspring, Roundoff, Flic",null,null,{"$f":"IFERROR(VLOOKUP(ROWS($AX$9:AX97),$AW$9:$AX$163,2,0),\"\")","v":"Handspring, Roundoff, Flic"},null,null,null,{"$f":"IF(ISNUMBER(SEARCH($B$14,BF97)),MAX($BE$8:BE96)+1,0)","v":89},"Handspring, Roundoff, Flic",null,null,{"$f":"IFERROR(VLOOKUP(ROWS($BF$9:BF97),$BE$9:$BF$163,2,0),\"\")","v":"Handspring, Roundoff, Flic"},null,null,null,{"$f":"IF(ISNUMBER(SEARCH($B$15,BN97)),MAX($BM$8:BM96)+1,0)","v":89},"Handspring, Roundoff, Flic",null,null,{"$f":"IFERROR(VLOOKUP(ROWS($BN$9:BN97),$BM$9:$BN$163,2,0),\"\")","v":"Handspring, Roundoff, Flic"},null,null,null,{"$f":"IF(ISNUMBER(SEARCH($B$16,BV97)),MAX($BU$8:BU96)+1,0)","v":89},"Handspring, Roundoff, Flic",null,null,{"$f":"IFERROR(VLOOKUP(ROWS($BV$9:BV97),$BU$9:$BV$163,2,0),\"\")","v":"Handspring, Roundoff, Flic"},null,null,null,{"$f":"IF(ISNUMBER(SEARCH($B$17,CD97)),MAX($CC$8:CC96)+1,0)","v":89},"Handspring, Roundoff, Flic",null,null,{"$f":"IFERROR(VLOOKUP(ROWS($CD$9:CD97),$CC$9:$CD$163,2,0),\"\")","v":"Handspring, Roundoff, Flic"},null,null,null,{"$f":"IF(ISNUMBER(SEARCH($B$18,CL97)),MAX($CK$8:CK96)+1,0)","v":89},"Handspring, Roundoff, Flic",null,null,{"$f":"IFERROR(VLOOKUP(ROWS($CL$9:CL97),$CK$9:$CL$163,2,0),\"\")","v":"Handspring, Roundoff, Flic"}]
[null,null,null,null,null,null,null,null,null,null,null,null,null,null,null,null,{"$f":"IF(ISNUMBER(SEARCH($B$9,R98)),MAX($Q$8:Q97)+1,0)","v":90},"Split leap or jump (180° split)",null,null,{"$f":"IFERROR(VLOOKUP(ROWS($R$9:R98),$Q$9:$R$163,2,0),\"\")","v":"Split leap or jump (180° split)"},null,null,null,{"$f":"IF(ISNUMBER(SEARCH($B$10,Z98)),MAX($Y$8:Y97)+1,0)","v":90},"Split leap or jump (180° split)",null,null,{"$f":"IFERROR(VLOOKUP(ROWS($Z$9:Z98),$Y$9:$Z$163,2,0),\"\")","v":"Split leap or jump (180° split)"},null,null,null,{"$f":"IF(ISNUMBER(SEARCH($B$11,AH98)),MAX($AG$8:AG97)+1,0)","v":90},"Split leap or jump (180° split)",null,null,{"$f":"IFERROR(VLOOKUP(ROWS($AH$9:AH98),$AG$9:$AH$163,2,0),\"\")","v":"Split leap or jump (180° split)"},null,null,null,{"$f":"IF(ISNUMBER(SEARCH($B$12,AP98)),MAX($AO$8:AO97)+1,0)","v":90},"Split leap or jump (180° split)",null,null,{"$f":"IFERROR(VLOOKUP(ROWS($AP$9:AP98),$AO$9:$AP$163,2,0),\"\")","v":"Split leap or jump (180° split)"},null,null,null,{"$f":"IF(ISNUMBER(SEARCH($B$13,AX98)),MAX($AW$8:AW97)+1,0)","v":90},"Split leap or jump (180° split)",null,null,{"$f":"IFERROR(VLOOKUP(ROWS($AX$9:AX98),$AW$9:$AX$163,2,0),\"\")","v":"Split leap or jump (180° split)"},null,null,null,{"$f":"IF(ISNUMBER(SEARCH($B$14,BF98)),MAX($BE$8:BE97)+1,0)","v":90},"Split leap or jump (180° split)",null,null,{"$f":"IFERROR(VLOOKUP(ROWS($BF$9:BF98),$BE$9:$BF$163,2,0),\"\")","v":"Split leap or jump (180° split)"},null,null,null,{"$f":"IF(ISNUMBER(SEARCH($B$15,BN98)),MAX($BM$8:BM97)+1,0)","v":90},"Split leap or jump (180° split)",null,null,{"$f":"IFERROR(VLOOKUP(ROWS($BN$9:BN98),$BM$9:$BN$163,2,0),\"\")","v":"Split leap or jump (180° split)"},null,null,null,{"$f":"IF(ISNUMBER(SEARCH($B$16,BV98)),MAX($BU$8:BU97)+1,0)","v":90},"Split leap or jump (180° split)",null,null,{"$f":"IFERROR(VLOOKUP(ROWS($BV$9:BV98),$BU$9:$BV$163,2,0),\"\")","v":"Split leap or jump (180° split)"},null,null,null,{"$f":"IF(ISNUMBER(SEARCH($B$17,CD98)),MAX($CC$8:CC97)+1,0)","v":90},"Split leap or jump (180° split)",null,null,{"$f":"IFERROR(VLOOKUP(ROWS($CD$9:CD98),$CC$9:$CD$163,2,0),\"\")","v":"Split leap or jump (180° split)"},null,null,null,{"$f":"IF(ISNUMBER(SEARCH($B$18,CL98)),MAX($CK$8:CK97)+1,0)","v":90},"Split leap or jump (180° split)",null,null,{"$f":"IFERROR(VLOOKUP(ROWS($CL$9:CL98),$CK$9:$CL$163,2,0),\"\")","v":"Split leap or jump (180° split)"}]
[null,null,null,null,null,null,null,null,null,null,null,null,null,null,null,null,{"$f":"IF(ISNUMBER(SEARCH($B$9,R99)),MAX($Q$8:Q98)+1,0)","v":91},"Change leg split leap or jump ↓(180° split)",null,null,{"$f":"IFERROR(VLOOKUP(ROWS($R$9:R99),$Q$9:$R$163,2,0),\"\")","v":"Change leg split leap or jump ↓(180° split)"},null,null,null,{"$f":"IF(ISNUMBER(SEARCH($B$10,Z99)),MAX($Y$8:Y98)+1,0)","v":91},"Change leg split leap or jump ↓(180° split)",null,null,{"$f":"IFERROR(VLOOKUP(ROWS($Z$9:Z99),$Y$9:$Z$163,2,0),\"\")","v":"Change leg split leap or jump ↓(180° split)"},null,null,null,{"$f":"IF(ISNUMBER(SEARCH($B$11,AH99)),MAX($AG$8:AG98)+1,0)","v":91},"Change leg split leap or jump ↓(180° split)",null,null,{"$f":"IFERROR(VLOOKUP(ROWS($AH$9:AH99),$AG$9:$AH$163,2,0),\"\")","v":"Change leg split leap or jump ↓(180° split)"},null,null,null,{"$f":"IF(ISNUMBER(SEARCH($B$12,AP99)),MAX($AO$8:AO98)+1,0)","v":91},"Change leg split leap or jump ↓(180° split)",null,null,{"$f":"IFERROR(VLOOKUP(ROWS($AP$9:AP99),$AO$9:$AP$163,2,0),\"\")","v":"Change leg split leap or jump ↓(180° split)"},null,null,null,{"$f":"IF(ISNUMBER(SEARCH($B$13,AX99)),MAX($AW$8:AW98)+1,0)","v":91},"Change leg split leap or jump ↓(180° split)",null,null,{"$f":"IFERROR(VLOOKUP(ROWS($AX$9:AX99),$AW$9:$AX$163,2,0),\"\")","v":"Change leg split leap or jump ↓(180° split)"},null,null,null,{"$f":"IF(ISNUMBER(SEARCH($B$14,BF99)),MAX($BE$8:BE98)+1,0)","v":91},"Change leg split leap or jump ↓(180° split)",null,null,{"$f":"IFERROR(VLOOKUP(ROWS($BF$9:BF99),$BE$9:$BF$163,2,0),\"\")","v":"Change leg split leap or jump ↓(180° split)"},null,null,null,{"$f":"IF(ISNUMBER(SEARCH($B$15,BN99)),MAX($BM$8:BM98)+1,0)","v":91},"Change leg split leap or jump ↓(180° split)",null,null,{"$f":"IFERROR(VLOOKUP(ROWS($BN$9:BN99),$BM$9:$BN$163,2,0),\"\")","v":"Change leg split leap or jump ↓(180° split)"},null,null,null,{"$f":"IF(ISNUMBER(SEARCH($B$16,BV99)),MAX($BU$8:BU98)+1,0)","v":91},"Change leg split leap or jump ↓(180° split)",null,null,{"$f":"IFERROR(VLOOKUP(ROWS($BV$9:BV99),$BU$9:$BV$163,2,0),\"\")","v":"Change leg split leap or jump ↓(180° split)"},null,null,null,{"$f":"IF(ISNUMBER(SEARCH($B$17,CD99)),MAX($CC$8:CC98)+1,0)","v":91},"Change leg split leap or jump ↓(180° split)",null,null,{"$f":"IFERROR(VLOOKUP(ROWS($CD$9:CD99),$CC$9:$CD$163,2,0),\"\")","v":"Change leg split leap or jump ↓(180° split)"},null,null,null,{"$f":"IF(ISNUMBER(SEARCH($B$18,CL99)),MAX($CK$8:CK98)+1,0)","v":91},"Change leg split leap or jump ↓(180° split)",null,null,{"$f":"IFERROR(VLOOKUP(ROWS($CL$9:CL99),$CK$9:$CL$163,2,0),\"\")","v":"Change leg split leap or jump ↓(180° split)"}]
[null,null,null,null,null,null,null,null,null,null,null,null,null,null,null,null,{"$f":"IF(ISNUMBER(SEARCH($B$9,R100)),MAX($Q$8:Q99)+1,0)","v":92},"Sissone",null,null,{"$f":"IFERROR(VLOOKUP(ROWS($R$9:R100),$Q$9:$R$163,2,0),\"\")","v":"Sissone"},null,null,null,{"$f":"IF(ISNUMBER(SEARCH($B$10,Z100)),MAX($Y$8:Y99)+1,0)","v":92},"Sissone",null,null,{"$f":"IFERROR(VLOOKUP(ROWS($Z$9:Z100),$Y$9:$Z$163,2,0),\"\")","v":"Sissone"},null,null,null,{"$f":"IF(ISNUMBER(SEARCH($B$11,AH100)),MAX($AG$8:AG99)+1,0)","v":92},"Sissone",null,null,{"$f":"IFERROR(VLOOKUP(ROWS($AH$9:AH100),$AG$9:$AH$163,2,0),\"\")","v":"Sissone"},null,null,null,{"$f":"IF(ISNUMBER(SEARCH($B$12,AP100)),MAX($AO$8:AO99)+1,0)","v":92},"Sissone",null,null,{"$f":"IFERROR(VLOOKUP(ROWS($AP$9:AP100),$AO$9:$AP$163,2,0),\"\")","v":"Sissone"},null,null,null,{"$f":"IF(ISNUMBER(SEARCH($B$13,AX100)),MAX($AW$8:AW99)+1,0)","v":92},"Sissone",null,null,{"$f":"IFERROR(VLOOKUP(ROWS($AX$9:AX100),$AW$9:$AX$163,2,0),\"\")","v":"Sissone"},null,null,null,{"$f":"IF(ISNUMBER(SEARCH($B$14,BF100)),MAX($BE$8:BE99)+1,0)","v":92},"Sissone",null,null,{"$f":"IFERROR(VLOOKUP(ROWS($BF$9:BF100),$BE$9:$BF$163,2,0),\"\")","v":"Sissone"},null,null,null,{"$f":"IF(ISNUMBER(SEARCH($B$15,BN100)),MAX($BM$8:BM99)+1,0)","v":92},"Sissone",null,null,{"$f":"IFERROR(VLOOKUP(ROWS($BN$9:BN100),$BM$9:$BN$163,2,0),\"\")","v":"Sissone"},null,null,null,{"$f":"IF(ISNUMBER(SEARCH($B$16,BV100)),MAX($BU$8:BU99)+1,0)","v":92},"Sissone",null,null,{"$f":"IFERROR(VLOOKUP(ROWS($BV$9:BV100),$BU$9:$BV$163,2,0),\"\")","v":"Sissone"},null,null,null,{"$f":"IF(ISNUMBER(SEARCH($B$17,CD100)),MAX($CC$8:CC99)+1,0)","v":92},"Sissone",null,null,{"$f":"IFERROR(VLOOKUP(ROWS($CD$9:CD100),$CC$9:$CD$163,2,0),\"\")","v":"Sissone"},null,null,null,{"$f":"IF(ISNUMBER(SEARCH($B$18,CL100)),MAX($CK$8:CK99)+1,0)","v":92},"Sissone",null,null,{"$f":"IFERROR(VLOOKUP(ROWS($CL$9:CL100),$CK$9:$CL$163,2,0),\"\")","v":"Sissone"}]
[null,null,null,null,null,null,null,null,null,null,null,null,null,null,null,null,{"$f":"IF(ISNUMBER(SEARCH($B$9,R101)),MAX($Q$8:Q100)+1,0)","v":93},"Cat leap full turn",null,null,{"$f":"IFERROR(VLOOKUP(ROWS($R$9:R101),$Q$9:$R$163,2,0),\"\")","v":"Cat leap full turn"},null,null,null,{"$f":"IF(ISNUMBER(SEARCH($B$10,Z101)),MAX($Y$8:Y100)+1,0)","v":93},"Cat leap full turn",null,null,{"$f":"IFERROR(VLOOKUP(ROWS($Z$9:Z101),$Y$9:$Z$163,2,0),\"\")","v":"Cat leap full turn"},null,null,null,{"$f":"IF(ISNUMBER(SEARCH($B$11,AH101)),MAX($AG$8:AG100)+1,0)","v":93},"Cat leap full turn",null,null,{"$f":"IFERROR(VLOOKUP(ROWS($AH$9:AH101),$AG$9:$AH$163,2,0),\"\")","v":"Cat leap full turn"},null,null,null,{"$f":"IF(ISNUMBER(SEARCH($B$12,AP101)),MAX($AO$8:AO100)+1,0)","v":93},"Cat leap full turn",null,null,{"$f":"IFERROR(VLOOKUP(ROWS($AP$9:AP101),$AO$9:$AP$163,2,0),\"\")","v":"Cat leap full turn"},null,null,null,{"$f":"IF(ISNUMBER(SEARCH($B$13,AX101)),MAX($AW$8:AW100)+1,0)","v":93},"Cat leap full turn",null,null,{"$f":"IFERROR(VLOOKUP(ROWS($AX$9:AX101),$AW$9:$AX$163,2,0),\"\")","v":"Cat leap full turn"},null,null,null,{"$f":"IF(ISNUMBER(SEARCH($B$14,BF101)),MAX($BE$8:BE100)+1,0)","v":93},"Cat leap full turn",null,null,{"$f":"IFERROR(VLOOKUP(ROWS($BF$9:BF101),$BE$9:$BF$163,2,0),\"\")","v":"Cat leap full turn"},null,null,null,{"$f":"IF(ISNUMBER(SEARCH($B$15,BN101)),MAX($BM$8:BM100)+1,0)","v":93},"Cat leap full turn",null,null,{"$f":"IFERROR(VLOOKUP(ROWS($BN$9:BN101),$BM$9:$BN$163,2,0),\"\")","v":"Cat leap full turn"},null,null,null,{"$f":"IF(ISNUMBER(SEARCH($B$16,BV101)),MAX($BU$8:BU100)+1,0)","v":93},"Cat leap full turn",null,null,{"$f":"IFERROR(VLOOKUP(ROWS($BV$9:BV101),$BU$9:$BV$163,2,0),\"\")","v":"Cat leap full turn"},null,null,null,{"$f":"IF(ISNUMBER(SEARCH($B$17,CD101)),MAX($CC$8:CC100)+1,0)","v":93},"Cat leap full turn",null,null,{"$f":"IFERROR(VLOOKUP(ROWS($CD$9:CD101),$CC$9:$CD$163,2,0),\"\")","v":"Cat leap full turn"},null,null,null,{"$f":"IF(ISNUMBER(SEARCH($B$18,CL101)),MAX($CK$8:CK100)+1,0)","v":93},"Cat leap full turn",null,null,{"$f":"IFERROR(VLOOKUP(ROWS($CL$9:CL101),$CK$9:$CL$163,2,0),\"\")","v":"Cat leap full turn"}]
[null,null,null,null,null,null,null,null,null,null,null,null,null,null,null,null,{"$f":"IF(ISNUMBER(SEARCH($B$9,R102)),MAX($Q$8:Q101)+1,0)","v":94},"Jump double turn  ",null,null,{"$f":"IFERROR(VLOOKUP(ROWS($R$9:R102),$Q$9:$R$163,2,0),\"\")","v":"Jump double turn  "},null,null,null,{"$f":"IF(ISNUMBER(SEARCH($B$10,Z102)),MAX($Y$8:Y101)+1,0)","v":94},"Jump double turn  ",null,null,{"$f":"IFERROR(VLOOKUP(ROWS($Z$9:Z102),$Y$9:$Z$163,2,0),\"\")","v":"Jump double turn  "},null,null,null,{"$f":"IF(ISNUMBER(SEARCH($B$11,AH102)),MAX($AG$8:AG101)+1,0)","v":94},"Jump double turn  ",null,null,{"$f":"IFERROR(VLOOKUP(ROWS($AH$9:AH102),$AG$9:$AH$163,2,0),\"\")","v":"Jump double turn  "},null,null,null,{"$f":"IF(ISNUMBER(SEARCH($B$12,AP102)),MAX($AO$8:AO101)+1,0)","v":94},"Jump double turn  ",null,null,{"$f":"IFERROR(VLOOKUP(ROWS($AP$9:AP102),$AO$9:$AP$163,2,0),\"\")","v":"Jump double turn  "},null,null,null,{"$f":"IF(ISNUMBER(SEARCH($B$13,AX102)),MAX($AW$8:AW101)+1,0)","v":94},"Jump double turn  ",null,null,{"$f":"IFERROR(VLOOKUP(ROWS($AX$9:AX102),$AW$9:$AX$163,2,0),\"\")","v":"Jump double turn  "},null,null,null,{"$f":"IF(ISNUMBER(SEARCH($B$14,BF102)),MAX($BE$8:BE101)+1,0)","v":94},"Jump double turn  ",null,null,{"$f":"IFERROR(VLOOKUP(ROWS($BF$9:BF102),$BE$9:$BF$163,2,0),\"\")","v":"Jump double turn  "},null,null,null,{"$f":"IF(ISNUMBER(SEARCH($B$15,BN102)),MAX($BM$8:BM101)+1,0)","v":94},"Jump double turn  ",null,null,{"$f":"IFERROR(VLOOKUP(ROWS($BN$9:BN102),$BM$9:$BN$163,2,0),\"\")","v":"Jump double turn  "},null,null,null,{"$f":"IF(ISNUMBER(SEARCH($B$16,BV102)),MAX($BU$8:BU101)+1,0)","v":94},"Jump double turn  ",null,null,{"$f":"IFERROR(VLOOKUP(ROWS($BV$9:BV102),$BU$9:$BV$163,2,0),\"\")","v":"Jump double turn  "},null,null,null,{"$f":"IF(ISNUMBER(SEARCH($B$17,CD102)),MAX($CC$8:CC101)+1,0)","v":94},"Jump double turn  ",null,null,{"$f":"IFERROR(VLOOKUP(ROWS($CD$9:CD102),$CC$9:$CD$163,2,0),\"\")","v":"Jump double turn  "},null,null,null,{"$f":"IF(ISNUMBER(SEARCH($B$18,CL102)),MAX($CK$8:CK101)+1,0)","v":94},"Jump double turn  ",null,null,{"$f":"IFERROR(VLOOKUP(ROWS($CL$9:CL102),$CK$9:$CL$163,2,0),\"\")","v":"Jump double turn  "}]
[null,null,null,null,null,null,null,null,null,null,null,null,null,null,null,null,{"$f":"IF(ISNUMBER(SEARCH($B$9,R103)),MAX($Q$8:Q102)+1,0)","v":95},"Jump to Prone",null,null,{"$f":"IFERROR(VLOOKUP(ROWS($R$9:R103),$Q$9:$R$163,2,0),\"\")","v":"Jump to Prone"},null,null,null,{"$f":"IF(ISNUMBER(SEARCH($B$10,Z103)),MAX($Y$8:Y102)+1,0)","v":95},"Jump to Prone",null,null,{"$f":"IFERROR(VLOOKUP(ROWS($Z$9:Z103),$Y$9:$Z$163,2,0),\"\")","v":"Jump to Prone"},null,null,null,{"$f":"IF(ISNUMBER(SEARCH($B$11,AH103)),MAX($AG$8:AG102)+1,0)","v":95},"Jump to Prone",null,null,{"$f":"IFERROR(VLOOKUP(ROWS($AH$9:AH103),$AG$9:$AH$163,2,0),\"\")","v":"Jump to Prone"},null,null,null,{"$f":"IF(ISNUMBER(SEARCH($B$12,AP103)),MAX($AO$8:AO102)+1,0)","v":95},"Jump to Prone",null,null,{"$f":"IFERROR(VLOOKUP(ROWS($AP$9:AP103),$AO$9:$AP$163,2,0),\"\")","v":"Jump to Prone"},null,null,null,{"$f":"IF(ISNUMBER(SEARCH($B$13,AX103)),MAX($AW$8:AW102)+1,0)","v":95},"Jump to Prone",null,null,{"$f":"IFERROR(VLOOKUP(ROWS($AX$9:AX103),$AW$9:$AX$163,2,0),\"\")","v":"Jump to Prone"},null,null,null,{"$f":"IF(ISNUMBER(SEARCH($B$14,BF103)),MAX($BE$8:BE102)+1,0)","v":95},"Jump to Prone",null,null,{"$f":"IFERROR(VLOOKUP(ROWS($BF$9:BF103),$BE$9:$BF$163,2,0),\"\")","v":"Jump to Prone"},null,null,null,{"$f":"IF(ISNUMBER(SEARCH($B$15,BN103)),MAX($BM$8:BM102)+1,0)","v":95},"Jump to Prone",null,null,{"$f":"IFERROR(VLOOKUP(ROWS($BN$9:BN103),$BM$9:$BN$163,2,0),\"\")","v":"Jump to Prone"},null,null,null,{"$f":"IF(ISNUMBER(SEARCH($B$16,BV103)),MAX($BU$8:BU102)+1,0)","v":95},"Jump to Prone",null,null,{"$f":"IFERROR(VLOOKUP(ROWS($BV$9:BV103),$BU$9:$BV$163,2,0),\"\")","v":"Jump to Prone"},null,null,null,{"$f":"IF(ISNUMBER(SEARCH($B$17,CD103)),MAX($CC$8:CC102)+1,0)","v":95},"Jump to Prone",null,null,{"$f":"IFERROR(VLOOKUP(ROWS($CD$9:CD103),$CC$9:$CD$163,2,0),\"\")","v":"Jump to Prone"},null,null,null,{"$f":"IF(ISNUMBER(SEARCH($B$18,CL103)),MAX($CK$8:CK102)+1,0)","v":95},"Jump to Prone",null,null,{"$f":"IFERROR(VLOOKUP(ROWS($CL$9:CL103),$CK$9:$CL$163,2,0),\"\")","v":"Jump to Prone"}]
[null,null,null,null,null,null,null,null,null,null,null,null,null,null,null,null,{"$f":"IF(ISNUMBER(SEARCH($B$9,R104)),MAX($Q$8:Q103)+1,0)","v":96},"Straddle jump (feet hip high)",null,null,{"$f":"IFERROR(VLOOKUP(ROWS($R$9:R104),$Q$9:$R$163,2,0),\"\")","v":"Straddle jump (feet hip high)"},null,null,null,{"$f":"IF(ISNUMBER(SEARCH($B$10,Z104)),MAX($Y$8:Y103)+1,0)","v":96},"Straddle jump (feet hip high)",null,null,{"$f":"IFERROR(VLOOKUP(ROWS($Z$9:Z104),$Y$9:$Z$163,2,0),\"\")","v":"Straddle jump (feet hip high)"},null,null,null,{"$f":"IF(ISNUMBER(SEARCH($B$11,AH104)),MAX($AG$8:AG103)+1,0)","v":96},"Straddle jump (feet hip high)",null,null,{"$f":"IFERROR(VLOOKUP(ROWS($AH$9:AH104),$AG$9:$AH$163,2,0),\"\")","v":"Straddle jump (feet hip high)"},null,null,null,{"$f":"IF(ISNUMBER(SEARCH($B$12,AP104)),MAX($AO$8:AO103)+1,0)","v":96},"Straddle jump (feet hip high)",null,null,{"$f":"IFERROR(VLOOKUP(ROWS($AP$9:AP104),$AO$9:$AP$163,2,0),\"\")","v":"Straddle jump (feet hip high)"},null,null,null,{"$f":"IF(ISNUMBER(SEARCH($B$13,AX104)),MAX($AW$8:AW103)+1,0)","v":96},"Straddle jump (feet hip high)",null,null,{"$f":"IFERROR(VLOOKUP(ROWS($AX$9:AX104),$AW$9:$AX$163,2,0),\"\")","v":"Straddle jump (feet hip high)"},null,null,null,{"$f":"IF(ISNUMBER(SEARCH($B$14,BF104)),MAX($BE$8:BE103)+1,0)","v":96},"Straddle jump (feet hip high)",null,null,{"$f":"IFERROR(VLOOKUP(ROWS($BF$9:BF104),$BE$9:$BF$163,2,0),\"\")","v":"Straddle jump (feet hip high)"},null,null,null,{"$f":"IF(ISNUMBER(SEARCH($B$15,BN104)),MAX($BM$8:BM103)+1,0)","v":96},"Straddle jump (feet hip high)",null,null,{"$f":"IFERROR(VLOOKUP(ROWS($BN$9:BN104),$BM$9:$BN$163,2,0),\"\")","v":"Straddle jump (feet hip high)"},null,null,null,{"$f":"IF(ISNUMBER(SEARCH($B$16,BV104)),MAX($BU$8:BU103)+1,0)","v":96},"Straddle jump (feet hip high)",null,null,{"$f":"IFERROR(VLOOKUP(ROWS($BV$9:BV104),$BU$9:$BV$163,2,0),\"\")","v":"Straddle jump (feet hip high)"},null,null,null,{"$f":"IF(ISNUMBER(SEARCH($B$17,CD104)),MAX($CC$8:CC103)+1,0)","v":96},"Straddle jump (feet hip high)",null,null,{"$f":"IFERROR(VLOOKUP(ROWS($CD$9:CD104),$CC$9:$CD$163,2,0),\"\")","v":"Straddle jump (feet hip high)"},null,null,null,{"$f":"IF(ISNUMBER(SEARCH($B$18,CL104)),MAX($CK$8:CK103)+1,0)","v":96},"Straddle jump (feet hip high)",null,null,{"$f":"IFERROR(VLOOKUP(ROWS($CL$9:CL104),$CK$9:$CL$163,2,0),\"\")","v":"Straddle jump (feet hip high)"}]
[null,null,null,null,null,null,null,null,null,null,null,null,null,null,null,null,{"$f":"IF(ISNUMBER(SEARCH($B$9,R105)),MAX($Q$8:Q104)+1,0)","v":97},"Tuck jump full turn",null,null,{"$f":"IFERROR(VLOOKUP(ROWS($R$9:R105),$Q$9:$R$163,2,0),\"\")","v":"Tuck jump full turn"},null,null,null,{"$f":"IF(ISNUMBER(SEARCH($B$10,Z105)),MAX($Y$8:Y104)+1,0)","v":97},"Tuck jump full turn",null,null,{"$f":"IFERROR(VLOOKUP(ROWS($Z$9:Z105),$Y$9:$Z$163,2,0),\"\")","v":"Tuck jump full turn"},null,null,null,{"$f":"IF(ISNUMBER(SEARCH($B$11,AH105)),MAX($AG$8:AG104)+1,0)","v":97},"Tuck jump full turn",null,null,{"$f":"IFERROR(VLOOKUP(ROWS($AH$9:AH105),$AG$9:$AH$163,2,0),\"\")","v":"Tuck jump full turn"},null,null,null,{"$f":"IF(ISNUMBER(SEARCH($B$12,AP105)),MAX($AO$8:AO104)+1,0)","v":97},"Tuck jump full turn",null,null,{"$f":"IFERROR(VLOOKUP(ROWS($AP$9:AP105),$AO$9:$AP$163,2,0),\"\")","v":"Tuck jump full turn"},null,null,null,{"$f":"IF(ISNUMBER(SEARCH($B$13,AX105)),MAX($AW$8:AW104)+1,0)","v":97},"Tuck jump full turn",null,null,{"$f":"IFERROR(VLOOKUP(ROWS($AX$9:AX105),$AW$9:$AX$163,2,0),\"\")","v":"Tuck jump full turn"},null,null,null,{"$f":"IF(ISNUMBER(SEARCH($B$14,BF105)),MAX($BE$8:BE104)+1,0)","v":97},"Tuck jump full turn",null,null,{"$f":"IFERROR(VLOOKUP(ROWS($BF$9:BF105),$BE$9:$BF$163,2,0),\"\")","v":"Tuck jump full turn"},null,null,null,{"$f":"IF(ISNUMBER(SEARCH($B$15,BN105)),MAX($BM$8:BM104)+1,0)","v":97},"Tuck jump full turn",null,null,{"$f":"IFERROR(VLOOKUP(ROWS($BN$9:BN105),$BM$9:$BN$163,2,0),\"\")","v":"Tuck jump full turn"},null,null,null,{"$f":"IF(ISNUMBER(SEARCH($B$16,BV105)),MAX($BU$8:BU104)+1,0)","v":97},"Tuck jump full turn",null,null,{"$f":"IFERROR(VLOOKUP(ROWS($BV$9:BV105),$BU$9:$BV$163,2,0),\"\")","v":"Tuck jump full turn"},null,null,null,{"$f":"IF(ISNUMBER(SEARCH($B$17,CD105)),MAX($CC$8:CC104)+1,0)","v":97},"Tuck jump full turn",null,null,{"$f":"IFERROR(VLOOKUP(ROWS($CD$9:CD105),$CC$9:$CD$163,2,0),\"\")","v":"Tuck jump full turn"},null,null,null,{"$f":"IF(ISNUMBER(SEARCH($B$18,CL105)),MAX($CK$8:CK104)+1,0)","v":97},"Tuck jump full turn",null,null,{"$f":"IFERROR(VLOOKUP(ROWS($CL$9:CL105),$CK$9:$CL$163,2,0),\"\")","v":"Tuck jump full turn"}]
[null,null,null,null,null,null,null,null,null,null,null,null,null,null,null,null,{"$f":"IF(ISNUMBER(SEARCH($B$9,R106)),MAX($Q$8:Q105)+1,0)","v":98},"1½  Spin",null,null,{"$f":"IFERROR(VLOOKUP(ROWS($R$9:R106),$Q$9:$R$163,2,0),\"\")","v":"1½  Spin"},null,null,null,{"$f":"IF(ISNUMBER(SEARCH($B$10,Z106)),MAX($Y$8:Y105)+1,0)","v":98},"1½  Spin",null,null,{"$f":"IFERROR(VLOOKUP(ROWS($Z$9:Z106),$Y$9:$Z$163,2,0),\"\")","v":"1½  Spin"},null,null,null,{"$f":"IF(ISNUMBER(SEARCH($B$11,AH106)),MAX($AG$8:AG105)+1,0)","v":98},"1½  Spin",null,null,{"$f":"IFERROR(VLOOKUP(ROWS($AH$9:AH106),$AG$9:$AH$163,2,0),\"\")","v":"1½  Spin"},null,null,null,{"$f":"IF(ISNUMBER(SEARCH($B$12,AP106)),MAX($AO$8:AO105)+1,0)","v":98},"1½  Spin",null,null,{"$f":"IFERROR(VLOOKUP(ROWS($AP$9:AP106),$AO$9:$AP$163,2,0),\"\")","v":"1½  Spin"},null,null,null,{"$f":"IF(ISNUMBER(SEARCH($B$13,AX106)),MAX($AW$8:AW105)+1,0)","v":98},"1½  Spin",null,null,{"$f":"IFERROR(VLOOKUP(ROWS($AX$9:AX106),$AW$9:$AX$163,2,0),\"\")","v":"1½  Spin"},null,null,null,{"$f":"IF(ISNUMBER(SEARCH($B$14,BF106)),MAX($BE$8:BE105)+1,0)","v":98},"1½  Spin",null,null,{"$f":"IFERROR(VLOOKUP(ROWS($BF$9:BF106),$BE$9:$BF$163,2,0),\"\")","v":"1½  Spin"},null,null,null,{"$f":"IF(ISNUMBER(SEARCH($B$15,BN106)),MAX($BM$8:BM105)+1,0)","v":98},"1½  Spin",null,null,{"$f":"IFERROR(VLOOKUP(ROWS($BN$9:BN106),$BM$9:$BN$163,2,0),\"\")","v":"1½  Spin"},null,null,null,{"$f":"IF(ISNUMBER(SEARCH($B$16,BV106)),MAX($BU$8:BU105)+1,0)","v":98},"1½  Spin",null,null,{"$f":"IFERROR(VLOOKUP(ROWS($BV$9:BV106),$BU$9:$BV$163,2,0),\"\")","v":"1½  Spin"},null,null,null,{"$f":"IF(ISNUMBER(SEARCH($B$17,CD106)),MAX($CC$8:CC105)+1,0)","v":98},"1½  Spin",null,null,{"$f":"IFERROR(VLOOKUP(ROWS($CD$9:CD106),$CC$9:$CD$163,2,0),\"\")","v":"1½  Spin"},null,null,null,{"$f":"IF(ISNUMBER(SEARCH($B$18,CL106)),MAX($CK$8:CK105)+1,0)","v":98},"1½  Spin",null,null,{"$f":"IFERROR(VLOOKUP(ROWS($CL$9:CL106),$CK$9:$CL$163,2,0),\"\")","v":"1½  Spin"}]
[null,null,null,null,null,null,null,null,null,null,null,null,null,null,null,null,{"$f":"IF(ISNUMBER(SEARCH($B$9,R107)),MAX($Q$8:Q106)+1,0)","v":99},"Y Scale (leg at  shoulder height)",null,null,{"$f":"IFERROR(VLOOKUP(ROWS($R$9:R107),$Q$9:$R$163,2,0),\"\")","v":"Y Scale (leg at  shoulder height)"},null,null,null,{"$f":"IF(ISNUMBER(SEARCH($B$10,Z107)),MAX($Y$8:Y106)+1,0)","v":99},"Y Scale (leg at  shoulder height)",null,null,{"$f":"IFERROR(VLOOKUP(ROWS($Z$9:Z107),$Y$9:$Z$163,2,0),\"\")","v":"Y Scale (leg at  shoulder height)"},null,null,null,{"$f":"IF(ISNUMBER(SEARCH($B$11,AH107)),MAX($AG$8:AG106)+1,0)","v":99},"Y Scale (leg at  shoulder height)",null,null,{"$f":"IFERROR(VLOOKUP(ROWS($AH$9:AH107),$AG$9:$AH$163,2,0),\"\")","v":"Y Scale (leg at  shoulder height)"},null,null,null,{"$f":"IF(ISNUMBER(SEARCH($B$12,AP107)),MAX($AO$8:AO106)+1,0)","v":99},"Y Scale (leg at  shoulder height)",null,null,{"$f":"IFERROR(VLOOKUP(ROWS($AP$9:AP107),$AO$9:$AP$163,2,0),\"\")","v":"Y Scale (leg at  shoulder height)"},null,null,null,{"$f":"IF(ISNUMBER(SEARCH($B$13,AX107)),MAX($AW$8:AW106)+1,0)","v":99},"Y Scale (leg at  shoulder height)",null,null,{"$f":"IFERROR(VLOOKUP(ROWS($AX$9:AX107),$AW$9:$AX$163,2,0),\"\")","v":"Y Scale (leg at  shoulder height)"},null,null,null,{"$f":"IF(ISNUMBER(SEARCH($B$14,BF107)),MAX($BE$8:BE106)+1,0)","v":99},"Y Scale (leg at  shoulder height)",null,null,{"$f":"IFERROR(VLOOKUP(ROWS($BF$9:BF107),$BE$9:$BF$163,2,0),\"\")","v":"Y Scale (leg at  shoulder height)"},null,null,null,{"$f":"IF(ISNUMBER(SEARCH($B$15,BN107)),MAX($BM$8:BM106)+1,0)","v":99},"Y Scale (leg at  shoulder height)",null,null,{"$f":"IFERROR(VLOOKUP(ROWS($BN$9:BN107),$BM$9:$BN$163,2,0),\"\")","v":"Y Scale (leg at  shoulder height)"},null,null,null,{"$f":"IF(ISNUMBER(SEARCH($B$16,BV107)),MAX($BU$8:BU106)+1,0)","v":99},"Y Scale (leg at  shoulder height)",null,null,{"$f":"IFERROR(VLOOKUP(ROWS($BV$9:BV107),$BU$9:$BV$163,2,0),\"\")","v":"Y Scale (leg at  shoulder height)"},null,null,null,{"$f":"IF(ISNUMBER(SEARCH($B$17,CD107)),MAX($CC$8:CC106)+1,0)","v":99},"Y Scale (leg at  shoulder height)",null,null,{"$f":"IFERROR(VLOOKUP(ROWS($CD$9:CD107),$CC$9:$CD$163,2,0),\"\")","v":"Y Scale (leg at  shoulder height)"},null,null,null,{"$f":"IF(ISNUMBER(SEARCH($B$18,CL107)),MAX($CK$8:CK106)+1,0)","v":99},"Y Scale (leg at  shoulder height)",null,null,{"$f":"IFERROR(VLOOKUP(ROWS($CL$9:CL107),$CK$9:$CL$163,2,0),\"\")","v":"Y Scale (leg at  shoulder height)"}]
[null,null,null,null,null,null,null,null,null,null,null,null,null,null,null,null,{"$f":"IF(ISNUMBER(SEARCH($B$9,R108)),MAX($Q$8:Q107)+1,0)","v":100},"3 way Splits ",null,null,{"$f":"IFERROR(VLOOKUP(ROWS($R$9:R108),$Q$9:$R$163,2,0),\"\")","v":"3 way Splits "},null,null,null,{"$f":"IF(ISNUMBER(SEARCH($B$10,Z108)),MAX($Y$8:Y107)+1,0)","v":100},"3 way Splits ",null,null,{"$f":"IFERROR(VLOOKUP(ROWS($Z$9:Z108),$Y$9:$Z$163,2,0),\"\")","v":"3 way Splits "},null,null,null,{"$f":"IF(ISNUMBER(SEARCH($B$11,AH108)),MAX($AG$8:AG107)+1,0)","v":100},"3 way Splits ",null,null,{"$f":"IFERROR(VLOOKUP(ROWS($AH$9:AH108),$AG$9:$AH$163,2,0),\"\")","v":"3 way Splits "},null,null,null,{"$f":"IF(ISNUMBER(SEARCH($B$12,AP108)),MAX($AO$8:AO107)+1,0)","v":100},"3 way Splits ",null,null,{"$f":"IFERROR(VLOOKUP(ROWS($AP$9:AP108),$AO$9:$AP$163,2,0),\"\")","v":"3 way Splits "},null,null,null,{"$f":"IF(ISNUMBER(SEARCH($B$13,AX108)),MAX($AW$8:AW107)+1,0)","v":100},"3 way Splits ",null,null,{"$f":"IFERROR(VLOOKUP(ROWS($AX$9:AX108),$AW$9:$AX$163,2,0),\"\")","v":"3 way Splits "},null,null,null,{"$f":"IF(ISNUMBER(SEARCH($B$14,BF108)),MAX($BE$8:BE107)+1,0)","v":100},"3 way Splits ",null,null,{"$f":"IFERROR(VLOOKUP(ROWS($BF$9:BF108),$BE$9:$BF$163,2,0),\"\")","v":"3 way Splits "},null,null,null,{"$f":"IF(ISNUMBER(SEARCH($B$15,BN108)),MAX($BM$8:BM107)+1,0)","v":100},"3 way Splits ",null,null,{"$f":"IFERROR(VLOOKUP(ROWS($BN$9:BN108),$BM$9:$BN$163,2,0),\"\")","v":"3 way Splits "},null,null,null,{"$f":"IF(ISNUMBER(SEARCH($B$16,BV108)),MAX($BU$8:BU107)+1,0)","v":100},"3 way Splits ",null,null,{"$f":"IFERROR(VLOOKUP(ROWS($BV$9:BV108),$BU$9:$BV$163,2,0),\"\")","v":"3 way Splits "},null,null,null,{"$f":"IF(ISNUMBER(SEARCH($B$17,CD108)),MAX($CC$8:CC107)+1,0)","v":100},"3 way Splits ",null,null,{"$f":"IFERROR(VLOOKUP(ROWS($CD$9:CD108),$CC$9:$CD$163,2,0),\"\")","v":"3 way Splits "},null,null,null,{"$f":"IF(ISNUMBER(SEARCH($B$18,CL108)),MAX($CK$8:CK107)+1,0)","v":100},"3 way Splits ",null,null,{"$f":"IFERROR(VLOOKUP(ROWS($CL$9:CL108),$CK$9:$CL$163,2,0),\"\")","v":"3 way Splits "}]
[null,null,null,null,null,null,null,null,null,null,null,null,null,null,null,null,{"$f":"IF(ISNUMBER(SEARCH($B$9,R109)),MAX($Q$8:Q108)+1,0)","v":101},"F Supp jump legs through straddle -",null,null,{"$f":"IFERROR(VLOOKUP(ROWS($R$9:R109),$Q$9:$R$163,2,0),\"\")","v":"F Supp jump legs through straddle -"},null,null,null,{"$f":"IF(ISNUMBER(SEARCH($B$10,Z109)),MAX($Y$8:Y108)+1,0)","v":101},"F Supp jump legs through straddle -",null,null,{"$f":"IFERROR(VLOOKUP(ROWS($Z$9:Z109),$Y$9:$Z$163,2,0),\"\")","v":"F Supp jump legs through straddle -"},null,null,null,{"$f":"IF(ISNUMBER(SEARCH($B$11,AH109)),MAX($AG$8:AG108)+1,0)","v":101},"F Supp jump legs through straddle -",null,null,{"$f":"IFERROR(VLOOKUP(ROWS($AH$9:AH109),$AG$9:$AH$163,2,0),\"\")","v":"F Supp jump legs through straddle -"},null,null,null,{"$f":"IF(ISNUMBER(SEARCH($B$12,AP109)),MAX($AO$8:AO108)+1,0)","v":101},"F Supp jump legs through straddle -",null,null,{"$f":"IFERROR(VLOOKUP(ROWS($AP$9:AP109),$AO$9:$AP$163,2,0),\"\")","v":"F Supp jump legs through straddle -"},null,null,null,{"$f":"IF(ISNUMBER(SEARCH($B$13,AX109)),MAX($AW$8:AW108)+1,0)","v":101},"F Supp jump legs through straddle -",null,null,{"$f":"IFERROR(VLOOKUP(ROWS($AX$9:AX109),$AW$9:$AX$163,2,0),\"\")","v":"F Supp jump legs through straddle -"},null,null,null,{"$f":"IF(ISNUMBER(SEARCH($B$14,BF109)),MAX($BE$8:BE108)+1,0)","v":101},"F Supp jump legs through straddle -",null,null,{"$f":"IFERROR(VLOOKUP(ROWS($BF$9:BF109),$BE$9:$BF$163,2,0),\"\")","v":"F Supp jump legs through straddle -"},null,null,null,{"$f":"IF(ISNUMBER(SEARCH($B$15,BN109)),MAX($BM$8:BM108)+1,0)","v":101},"F Supp jump legs through straddle -",null,null,{"$f":"IFERROR(VLOOKUP(ROWS($BN$9:BN109),$BM$9:$BN$163,2,0),\"\")","v":"F Supp jump legs through straddle -"},null,null,null,{"$f":"IF(ISNUMBER(SEARCH($B$16,BV109)),MAX($BU$8:BU108)+1,0)","v":101},"F Supp jump legs through straddle -",null,null,{"$f":"IFERROR(VLOOKUP(ROWS($BV$9:BV109),$BU$9:$BV$163,2,0),\"\")","v":"F Supp jump legs through straddle -"},null,null,null,{"$f":"IF(ISNUMBER(SEARCH($B$17,CD109)),MAX($CC$8:CC108)+1,0)","v":101},"F Supp jump legs through straddle -",null,null,{"$f":"IFERROR(VLOOKUP(ROWS($CD$9:CD109),$CC$9:$CD$163,2,0),\"\")","v":"F Supp jump legs through straddle -"},null,null,null,{"$f":"IF(ISNUMBER(SEARCH($B$18,CL109)),MAX($CK$8:CK108)+1,0)","v":101},"F Supp jump legs through straddle -",null,null,{"$f":"IFERROR(VLOOKUP(ROWS($CL$9:CL109),$CK$9:$CL$163,2,0),\"\")","v":"F Supp jump legs through straddle -"}]
[null,null,null,null,null,null,null,null,null,null,null,null,null,null,null,null,{"$f":"IF(ISNUMBER(SEARCH($B$9,R110)),MAX($Q$8:Q109)+1,0)","v":102},"Straddle 'Russian' Lever",null,null,{"$f":"IFERROR(VLOOKUP(ROWS($R$9:R110),$Q$9:$R$163,2,0),\"\")","v":"Straddle 'Russian' Lever"},null,null,null,{"$f":"IF(ISNUMBER(SEARCH($B$10,Z110)),MAX($Y$8:Y109)+1,0)","v":102},"Straddle 'Russian' Lever",null,null,{"$f":"IFERROR(VLOOKUP(ROWS($Z$9:Z110),$Y$9:$Z$163,2,0),\"\")","v":"Straddle 'Russian' Lever"},null,null,null,{"$f":"IF(ISNUMBER(SEARCH($B$11,AH110)),MAX($AG$8:AG109)+1,0)","v":102},"Straddle 'Russian' Lever",null,null,{"$f":"IFERROR(VLOOKUP(ROWS($AH$9:AH110),$AG$9:$AH$163,2,0),\"\")","v":"Straddle 'Russian' Lever"},null,null,null,{"$f":"IF(ISNUMBER(SEARCH($B$12,AP110)),MAX($AO$8:AO109)+1,0)","v":102},"Straddle 'Russian' Lever",null,null,{"$f":"IFERROR(VLOOKUP(ROWS($AP$9:AP110),$AO$9:$AP$163,2,0),\"\")","v":"Straddle 'Russian' Lever"},null,null,null,{"$f":"IF(ISNUMBER(SEARCH($B$13,AX110)),MAX($AW$8:AW109)+1,0)","v":102},"Straddle 'Russian' Lever",null,null,{"$f":"IFERROR(VLOOKUP(ROWS($AX$9:AX110),$AW$9:$AX$163,2,0),\"\")","v":"Straddle 'Russian' Lever"},null,null,null,{"$f":"IF(ISNUMBER(SEARCH($B$14,BF110)),MAX($BE$8:BE109)+1,0)","v":102},"Straddle 'Russian' Lever",null,null,{"$f":"IFERROR(VLOOKUP(ROWS($BF$9:BF110),$BE$9:$BF$163,2,0),\"\")","v":"Straddle 'Russian' Lever"},null,null,null,{"$f":"IF(ISNUMBER(SEARCH($B$15,BN110)),MAX($BM$8:BM109)+1,0)","v":102},"Straddle 'Russian' Lever",null,null,{"$f":"IFERROR(VLOOKUP(ROWS($BN$9:BN110),$BM$9:$BN$163,2,0),\"\")","v":"Straddle 'Russian' Lever"},null,null,null,{"$f":"IF(ISNUMBER(SEARCH($B$16,BV110)),MAX($BU$8:BU109)+1,0)","v":102},"Straddle 'Russian' Lever",null,null,{"$f":"IFERROR(VLOOKUP(ROWS($BV$9:BV110),$BU$9:$BV$163,2,0),\"\")","v":"Straddle 'Russian' Lever"},null,null,null,{"$f":"IF(ISNUMBER(SEARCH($B$17,CD110)),MAX($CC$8:CC109)+1,0)","v":102},"Straddle 'Russian' Lever",null,null,{"$f":"IFERROR(VLOOKUP(ROWS($CD$9:CD110),$CC$9:$CD$163,2,0),\"\")","v":"Straddle 'Russian' Lever"},null,null,null,{"$f":"IF(ISNUMBER(SEARCH($B$18,CL110)),MAX($CK$8:CK109)+1,0)","v":102},"Straddle 'Russian' Lever",null,null,{"$f":"IFERROR(VLOOKUP(ROWS($CL$9:CL110),$CK$9:$CL$163,2,0),\"\")","v":"Straddle 'Russian' Lever"}]
[null,null,null,null,null,null,null,null,null,null,null,null,null,null,null,null,{"$f":"IF(ISNUMBER(SEARCH($B$9,R111)),MAX($Q$8:Q110)+1,0)","v":103},"Straddle 1/2 Lever lift to Stand",null,null,{"$f":"IFERROR(VLOOKUP(ROWS($R$9:R111),$Q$9:$R$163,2,0),\"\")","v":"Straddle 1/2 Lever lift to Stand"},null,null,null,{"$f":"IF(ISNUMBER(SEARCH($B$10,Z111)),MAX($Y$8:Y110)+1,0)","v":103},"Straddle 1/2 Lever lift to Stand",null,null,{"$f":"IFERROR(VLOOKUP(ROWS($Z$9:Z111),$Y$9:$Z$163,2,0),\"\")","v":"Straddle 1/2 Lever lift to Stand"},null,null,null,{"$f":"IF(ISNUMBER(SEARCH($B$11,AH111)),MAX($AG$8:AG110)+1,0)","v":103},"Straddle 1/2 Lever lift to Stand",null,null,{"$f":"IFERROR(VLOOKUP(ROWS($AH$9:AH111),$AG$9:$AH$163,2,0),\"\")","v":"Straddle 1/2 Lever lift to Stand"},null,null,null,{"$f":"IF(ISNUMBER(SEARCH($B$12,AP111)),MAX($AO$8:AO110)+1,0)","v":103},"Straddle 1/2 Lever lift to Stand",null,null,{"$f":"IFERROR(VLOOKUP(ROWS($AP$9:AP111),$AO$9:$AP$163,2,0),\"\")","v":"Straddle 1/2 Lever lift to Stand"},null,null,null,{"$f":"IF(ISNUMBER(SEARCH($B$13,AX111)),MAX($AW$8:AW110)+1,0)","v":103},"Straddle 1/2 Lever lift to Stand",null,null,{"$f":"IFERROR(VLOOKUP(ROWS($AX$9:AX111),$AW$9:$AX$163,2,0),\"\")","v":"Straddle 1/2 Lever lift to Stand"},null,null,null,{"$f":"IF(ISNUMBER(SEARCH($B$14,BF111)),MAX($BE$8:BE110)+1,0)","v":103},"Straddle 1/2 Lever lift to Stand",null,null,{"$f":"IFERROR(VLOOKUP(ROWS($BF$9:BF111),$BE$9:$BF$163,2,0),\"\")","v":"Straddle 1/2 Lever lift to Stand"},null,null,null,{"$f":"IF(ISNUMBER(SEARCH($B$15,BN111)),MAX($BM$8:BM110)+1,0)","v":103},"Straddle 1/2 Lever lift to Stand",null,null,{"$f":"IFERROR(VLOOKUP(ROWS($BN$9:BN111),$BM$9:$BN$163,2,0),\"\")","v":"Straddle 1/2 Lever lift to Stand"},null,null,null,{"$f":"IF(ISNUMBER(SEARCH($B$16,BV111)),MAX($BU$8:BU110)+1,0)","v":103},"Straddle 1/2 Lever lift to Stand",null,null,{"$f":"IFERROR(VLOOKUP(ROWS($BV$9:BV111),$BU$9:$BV$163,2,0),\"\")","v":"Straddle 1/2 Lever lift to Stand"},null,null,null,{"$f":"IF(ISNUMBER(SEARCH($B$17,CD111)),MAX($CC$8:CC110)+1,0)","v":103},"Straddle 1/2 Lever lift to Stand",null,null,{"$f":"IFERROR(VLOOKUP(ROWS($CD$9:CD111),$CC$9:$CD$163,2,0),\"\")","v":"Straddle 1/2 Lever lift to Stand"},null,null,null,{"$f":"IF(ISNUMBER(SEARCH($B$18,CL111)),MAX($CK$8:CK110)+1,0)","v":103},"Straddle 1/2 Lever lift to Stand",null,null,{"$f":"IFERROR(VLOOKUP(ROWS($CL$9:CL111),$CK$9:$CL$163,2,0),\"\")","v":"Straddle 1/2 Lever lift to Stand"}]
[null,null,null,null,null,null,null,null,null,null,null,null,null,null,null,null,{"$f":"IF(ISNUMBER(SEARCH($B$9,R112)),MAX($Q$8:Q111)+1,0)","v":104},"H/stand from straddle stand full turn",null,null,{"$f":"IFERROR(VLOOKUP(ROWS($R$9:R112),$Q$9:$R$163,2,0),\"\")","v":"H/stand from straddle stand full turn"},null,null,null,{"$f":"IF(ISNUMBER(SEARCH($B$10,Z112)),MAX($Y$8:Y111)+1,0)","v":104},"H/stand from straddle stand full turn",null,null,{"$f":"IFERROR(VLOOKUP(ROWS($Z$9:Z112),$Y$9:$Z$163,2,0),\"\")","v":"H/stand from straddle stand full turn"},null,null,null,{"$f":"IF(ISNUMBER(SEARCH($B$11,AH112)),MAX($AG$8:AG111)+1,0)","v":104},"H/stand from straddle stand full turn",null,null,{"$f":"IFERROR(VLOOKUP(ROWS($AH$9:AH112),$AG$9:$AH$163,2,0),\"\")","v":"H/stand from straddle stand full turn"},null,null,null,{"$f":"IF(ISNUMBER(SEARCH($B$12,AP112)),MAX($AO$8:AO111)+1,0)","v":104},"H/stand from straddle stand full turn",null,null,{"$f":"IFERROR(VLOOKUP(ROWS($AP$9:AP112),$AO$9:$AP$163,2,0),\"\")","v":"H/stand from straddle stand full turn"},null,null,null,{"$f":"IF(ISNUMBER(SEARCH($B$13,AX112)),MAX($AW$8:AW111)+1,0)","v":104},"H/stand from straddle stand full turn",null,null,{"$f":"IFERROR(VLOOKUP(ROWS($AX$9:AX112),$AW$9:$AX$163,2,0),\"\")","v":"H/stand from straddle stand full turn"},null,null,null,{"$f":"IF(ISNUMBER(SEARCH($B$14,BF112)),MAX($BE$8:BE111)+1,0)","v":104},"H/stand from straddle stand full turn",null,null,{"$f":"IFERROR(VLOOKUP(ROWS($BF$9:BF112),$BE$9:$BF$163,2,0),\"\")","v":"H/stand from straddle stand full turn"},null,null,null,{"$f":"IF(ISNUMBER(SEARCH($B$15,BN112)),MAX($BM$8:BM111)+1,0)","v":104},"H/stand from straddle stand full turn",null,null,{"$f":"IFERROR(VLOOKUP(ROWS($BN$9:BN112),$BM$9:$BN$163,2,0),\"\")","v":"H/stand from straddle stand full turn"},null,null,null,{"$f":"IF(ISNUMBER(SEARCH($B$16,BV112)),MAX($BU$8:BU111)+1,0)","v":104},"H/stand from straddle stand full turn",null,null,{"$f":"IFERROR(VLOOKUP(ROWS($BV$9:BV112),$BU$9:$BV$163,2,0),\"\")","v":"H/stand from straddle stand full turn"},null,null,null,{"$f":"IF(ISNUMBER(SEARCH($B$17,CD112)),MAX($CC$8:CC111)+1,0)","v":104},"H/stand from straddle stand full turn",null,null,{"$f":"IFERROR(VLOOKUP(ROWS($CD$9:CD112),$CC$9:$CD$163,2,0),\"\")","v":"H/stand from straddle stand full turn"},null,null,null,{"$f":"IF(ISNUMBER(SEARCH($B$18,CL112)),MAX($CK$8:CK111)+1,0)","v":104},"H/stand from straddle stand full turn",null,null,{"$f":"IFERROR(VLOOKUP(ROWS($CL$9:CL112),$CK$9:$CL$163,2,0),\"\")","v":"H/stand from straddle stand full turn"}]
[null,null,null,null,null,null,null,null,null,null,null,null,null,null,null,null,{"$f":"IF(ISNUMBER(SEARCH($B$9,R113)),MAX($Q$8:Q112)+1,0)","v":105},"H/stand lower to Straddle 1/2 Lever",null,null,{"$f":"IFERROR(VLOOKUP(ROWS($R$9:R113),$Q$9:$R$163,2,0),\"\")","v":"H/stand lower to Straddle 1/2 Lever"},null,null,null,{"$f":"IF(ISNUMBER(SEARCH($B$10,Z113)),MAX($Y$8:Y112)+1,0)","v":105},"H/stand lower to Straddle 1/2 Lever",null,null,{"$f":"IFERROR(VLOOKUP(ROWS($Z$9:Z113),$Y$9:$Z$163,2,0),\"\")","v":"H/stand lower to Straddle 1/2 Lever"},null,null,null,{"$f":"IF(ISNUMBER(SEARCH($B$11,AH113)),MAX($AG$8:AG112)+1,0)","v":105},"H/stand lower to Straddle 1/2 Lever",null,null,{"$f":"IFERROR(VLOOKUP(ROWS($AH$9:AH113),$AG$9:$AH$163,2,0),\"\")","v":"H/stand lower to Straddle 1/2 Lever"},null,null,null,{"$f":"IF(ISNUMBER(SEARCH($B$12,AP113)),MAX($AO$8:AO112)+1,0)","v":105},"H/stand lower to Straddle 1/2 Lever",null,null,{"$f":"IFERROR(VLOOKUP(ROWS($AP$9:AP113),$AO$9:$AP$163,2,0),\"\")","v":"H/stand lower to Straddle 1/2 Lever"},null,null,null,{"$f":"IF(ISNUMBER(SEARCH($B$13,AX113)),MAX($AW$8:AW112)+1,0)","v":105},"H/stand lower to Straddle 1/2 Lever",null,null,{"$f":"IFERROR(VLOOKUP(ROWS($AX$9:AX113),$AW$9:$AX$163,2,0),\"\")","v":"H/stand lower to Straddle 1/2 Lever"},null,null,null,{"$f":"IF(ISNUMBER(SEARCH($B$14,BF113)),MAX($BE$8:BE112)+1,0)","v":105},"H/stand lower to Straddle 1/2 Lever",null,null,{"$f":"IFERROR(VLOOKUP(ROWS($BF$9:BF113),$BE$9:$BF$163,2,0),\"\")","v":"H/stand lower to Straddle 1/2 Lever"},null,null,null,{"$f":"IF(ISNUMBER(SEARCH($B$15,BN113)),MAX($BM$8:BM112)+1,0)","v":105},"H/stand lower to Straddle 1/2 Lever",null,null,{"$f":"IFERROR(VLOOKUP(ROWS($BN$9:BN113),$BM$9:$BN$163,2,0),\"\")","v":"H/stand lower to Straddle 1/2 Lever"},null,null,null,{"$f":"IF(ISNUMBER(SEARCH($B$16,BV113)),MAX($BU$8:BU112)+1,0)","v":105},"H/stand lower to Straddle 1/2 Lever",null,null,{"$f":"IFERROR(VLOOKUP(ROWS($BV$9:BV113),$BU$9:$BV$163,2,0),\"\")","v":"H/stand lower to Straddle 1/2 Lever"},null,null,null,{"$f":"IF(ISNUMBER(SEARCH($B$17,CD113)),MAX($CC$8:CC112)+1,0)","v":105},"H/stand lower to Straddle 1/2 Lever",null,null,{"$f":"IFERROR(VLOOKUP(ROWS($CD$9:CD113),$CC$9:$CD$163,2,0),\"\")","v":"H/stand lower to Straddle 1/2 Lever"},null,null,null,{"$f":"IF(ISNUMBER(SEARCH($B$18,CL113)),MAX($CK$8:CK112)+1,0)","v":105},"H/stand lower to Straddle 1/2 Lever",null,null,{"$f":"IFERROR(VLOOKUP(ROWS($CL$9:CL113),$CK$9:$CL$163,2,0),\"\")","v":"H/stand lower to Straddle 1/2 Lever"}]
[null,null,null,null,null,null,null,null,null,null,null,null,null,null,null,null,{"$f":"IF(ISNUMBER(SEARCH($B$9,R114)),MAX($Q$8:Q113)+1,0)","v":106},"Chest Roll to Bent Arms Handstand",null,null,{"$f":"IFERROR(VLOOKUP(ROWS($R$9:R114),$Q$9:$R$163,2,0),\"\")","v":"Chest Roll to Bent Arms Handstand"},null,null,null,{"$f":"IF(ISNUMBER(SEARCH($B$10,Z114)),MAX($Y$8:Y113)+1,0)","v":106},"Chest Roll to Bent Arms Handstand",null,null,{"$f":"IFERROR(VLOOKUP(ROWS($Z$9:Z114),$Y$9:$Z$163,2,0),\"\")","v":"Chest Roll to Bent Arms Handstand"},null,null,null,{"$f":"IF(ISNUMBER(SEARCH($B$11,AH114)),MAX($AG$8:AG113)+1,0)","v":106},"Chest Roll to Bent Arms Handstand",null,null,{"$f":"IFERROR(VLOOKUP(ROWS($AH$9:AH114),$AG$9:$AH$163,2,0),\"\")","v":"Chest Roll to Bent Arms Handstand"},null,null,null,{"$f":"IF(ISNUMBER(SEARCH($B$12,AP114)),MAX($AO$8:AO113)+1,0)","v":106},"Chest Roll to Bent Arms Handstand",null,null,{"$f":"IFERROR(VLOOKUP(ROWS($AP$9:AP114),$AO$9:$AP$163,2,0),\"\")","v":"Chest Roll to Bent Arms Handstand"},null,null,null,{"$f":"IF(ISNUMBER(SEARCH($B$13,AX114)),MAX($AW$8:AW113)+1,0)","v":106},"Chest Roll to Bent Arms Handstand",null,null,{"$f":"IFERROR(VLOOKUP(ROWS($AX$9:AX114),$AW$9:$AX$163,2,0),\"\")","v":"Chest Roll to Bent Arms Handstand"},null,null,null,{"$f":"IF(ISNUMBER(SEARCH($B$14,BF114)),MAX($BE$8:BE113)+1,0)","v":106},"Chest Roll to Bent Arms Handstand",null,null,{"$f":"IFERROR(VLOOKUP(ROWS($BF$9:BF114),$BE$9:$BF$163,2,0),\"\")","v":"Chest Roll to Bent Arms Handstand"},null,null,null,{"$f":"IF(ISNUMBER(SEARCH($B$15,BN114)),MAX($BM$8:BM113)+1,0)","v":106},"Chest Roll to Bent Arms Handstand",null,null,{"$f":"IFERROR(VLOOKUP(ROWS($BN$9:BN114),$BM$9:$BN$163,2,0),\"\")","v":"Chest Roll to Bent Arms Handstand"},null,null,null,{"$f":"IF(ISNUMBER(SEARCH($B$16,BV114)),MAX($BU$8:BU113)+1,0)","v":106},"Chest Roll to Bent Arms Handstand",null,null,{"$f":"IFERROR(VLOOKUP(ROWS($BV$9:BV114),$BU$9:$BV$163,2,0),\"\")","v":"Chest Roll to Bent Arms Handstand"},null,null,null,{"$f":"IF(ISNUMBER(SEARCH($B$17,CD114)),MAX($CC$8:CC113)+1,0)","v":106},"Chest Roll to Bent Arms Handstand",null,null,{"$f":"IFERROR(VLOOKUP(ROWS($CD$9:CD114),$CC$9:$CD$163,2,0),\"\")","v":"Chest Roll to Bent Arms Handstand"},null,null,null,{"$f":"IF(ISNUMBER(SEARCH($B$18,CL114)),MAX($CK$8:CK113)+1,0)","v":106},"Chest Roll to Bent Arms Handstand",null,null,{"$f":"IFERROR(VLOOKUP(ROWS($CL$9:CL114),$CK$9:$CL$163,2,0),\"\")","v":"Chest Roll to Bent Arms Handstand"}]
[null,null,null,null,null,null,null,null,null,null,null,null,null,null,null,null,{"$f":"IF(ISNUMBER(SEARCH($B$9,R115)),MAX($Q$8:Q114)+1,0)","v":107},"H/stand FR piked exit (straight arms)",null,null,{"$f":"IFERROR(VLOOKUP(ROWS($R$9:R115),$Q$9:$R$163,2,0),\"\")","v":"H/stand FR piked exit (straight arms)"},null,null,null,{"$f":"IF(ISNUMBER(SEARCH($B$10,Z115)),MAX($Y$8:Y114)+1,0)","v":107},"H/stand FR piked exit (straight arms)",null,null,{"$f":"IFERROR(VLOOKUP(ROWS($Z$9:Z115),$Y$9:$Z$163,2,0),\"\")","v":"H/stand FR piked exit (straight arms)"},null,null,null,{"$f":"IF(ISNUMBER(SEARCH($B$11,AH115)),MAX($AG$8:AG114)+1,0)","v":107},"H/stand FR piked exit (straight arms)",null,null,{"$f":"IFERROR(VLOOKUP(ROWS($AH$9:AH115),$AG$9:$AH$163,2,0),\"\")","v":"H/stand FR piked exit (straight arms)"},null,null,null,{"$f":"IF(ISNUMBER(SEARCH($B$12,AP115)),MAX($AO$8:AO114)+1,0)","v":107},"H/stand FR piked exit (straight arms)",null,null,{"$f":"IFERROR(VLOOKUP(ROWS($AP$9:AP115),$AO$9:$AP$163,2,0),\"\")","v":"H/stand FR piked exit (straight arms)"},null,null,null,{"$f":"IF(ISNUMBER(SEARCH($B$13,AX115)),MAX($AW$8:AW114)+1,0)","v":107},"H/stand FR piked exit (straight arms)",null,null,{"$f":"IFERROR(VLOOKUP(ROWS($AX$9:AX115),$AW$9:$AX$163,2,0),\"\")","v":"H/stand FR piked exit (straight arms)"},null,null,null,{"$f":"IF(ISNUMBER(SEARCH($B$14,BF115)),MAX($BE$8:BE114)+1,0)","v":107},"H/stand FR piked exit (straight arms)",null,null,{"$f":"IFERROR(VLOOKUP(ROWS($BF$9:BF115),$BE$9:$BF$163,2,0),\"\")","v":"H/stand FR piked exit (straight arms)"},null,null,null,{"$f":"IF(ISNUMBER(SEARCH($B$15,BN115)),MAX($BM$8:BM114)+1,0)","v":107},"H/stand FR piked exit (straight arms)",null,null,{"$f":"IFERROR(VLOOKUP(ROWS($BN$9:BN115),$BM$9:$BN$163,2,0),\"\")","v":"H/stand FR piked exit (straight arms)"},null,null,null,{"$f":"IF(ISNUMBER(SEARCH($B$16,BV115)),MAX($BU$8:BU114)+1,0)","v":107},"H/stand FR piked exit (straight arms)",null,null,{"$f":"IFERROR(VLOOKUP(ROWS($BV$9:BV115),$BU$9:$BV$163,2,0),\"\")","v":"H/stand FR piked exit (straight arms)"},null,null,null,{"$f":"IF(ISNUMBER(SEARCH($B$17,CD115)),MAX($CC$8:CC114)+1,0)","v":107},"H/stand FR piked exit (straight arms)",null,null,{"$f":"IFERROR(VLOOKUP(ROWS($CD$9:CD115),$CC$9:$CD$163,2,0),\"\")","v":"H/stand FR piked exit (straight arms)"},null,null,null,{"$f":"IF(ISNUMBER(SEARCH($B$18,CL115)),MAX($CK$8:CK114)+1,0)","v":107},"H/stand FR piked exit (straight arms)",null,null,{"$f":"IFERROR(VLOOKUP(ROWS($CL$9:CL115),$CK$9:$CL$163,2,0),\"\")","v":"H/stand FR piked exit (straight arms)"}]
[null,null,null,null,null,null,null,null,null,null,null,null,null,null,null,null,{"$f":"IF(ISNUMBER(SEARCH($B$9,R116)),MAX($Q$8:Q115)+1,0)","v":108},"B Roll to h/stand (straight arms)",null,null,{"$f":"IFERROR(VLOOKUP(ROWS($R$9:R116),$Q$9:$R$163,2,0),\"\")","v":"B Roll to h/stand (straight arms)"},null,null,null,{"$f":"IF(ISNUMBER(SEARCH($B$10,Z116)),MAX($Y$8:Y115)+1,0)","v":108},"B Roll to h/stand (straight arms)",null,null,{"$f":"IFERROR(VLOOKUP(ROWS($Z$9:Z116),$Y$9:$Z$163,2,0),\"\")","v":"B Roll to h/stand (straight arms)"},null,null,null,{"$f":"IF(ISNUMBER(SEARCH($B$11,AH116)),MAX($AG$8:AG115)+1,0)","v":108},"B Roll to h/stand (straight arms)",null,null,{"$f":"IFERROR(VLOOKUP(ROWS($AH$9:AH116),$AG$9:$AH$163,2,0),\"\")","v":"B Roll to h/stand (straight arms)"},null,null,null,{"$f":"IF(ISNUMBER(SEARCH($B$12,AP116)),MAX($AO$8:AO115)+1,0)","v":108},"B Roll to h/stand (straight arms)",null,null,{"$f":"IFERROR(VLOOKUP(ROWS($AP$9:AP116),$AO$9:$AP$163,2,0),\"\")","v":"B Roll to h/stand (straight arms)"},null,null,null,{"$f":"IF(ISNUMBER(SEARCH($B$13,AX116)),MAX($AW$8:AW115)+1,0)","v":108},"B Roll to h/stand (straight arms)",null,null,{"$f":"IFERROR(VLOOKUP(ROWS($AX$9:AX116),$AW$9:$AX$163,2,0),\"\")","v":"B Roll to h/stand (straight arms)"},null,null,null,{"$f":"IF(ISNUMBER(SEARCH($B$14,BF116)),MAX($BE$8:BE115)+1,0)","v":108},"B Roll to h/stand (straight arms)",null,null,{"$f":"IFERROR(VLOOKUP(ROWS($BF$9:BF116),$BE$9:$BF$163,2,0),\"\")","v":"B Roll to h/stand (straight arms)"},null,null,null,{"$f":"IF(ISNUMBER(SEARCH($B$15,BN116)),MAX($BM$8:BM115)+1,0)","v":108},"B Roll to h/stand (straight arms)",null,null,{"$f":"IFERROR(VLOOKUP(ROWS($BN$9:BN116),$BM$9:$BN$163,2,0),\"\")","v":"B Roll to h/stand (straight arms)"},null,null,null,{"$f":"IF(ISNUMBER(SEARCH($B$16,BV116)),MAX($BU$8:BU115)+1,0)","v":108},"B Roll to h/stand (straight arms)",null,null,{"$f":"IFERROR(VLOOKUP(ROWS($BV$9:BV116),$BU$9:$BV$163,2,0),\"\")","v":"B Roll to h/stand (straight arms)"},null,null,null,{"$f":"IF(ISNUMBER(SEARCH($B$17,CD116)),MAX($CC$8:CC115)+1,0)","v":108},"B Roll to h/stand (straight arms)",null,null,{"$f":"IFERROR(VLOOKUP(ROWS($CD$9:CD116),$CC$9:$CD$163,2,0),\"\")","v":"B Roll to h/stand (straight arms)"},null,null,null,{"$f":"IF(ISNUMBER(SEARCH($B$18,CL116)),MAX($CK$8:CK115)+1,0)","v":108},"B Roll to h/stand (straight arms)",null,null,{"$f":"IFERROR(VLOOKUP(ROWS($CL$9:CL116),$CK$9:$CL$163,2,0),\"\")","v":"B Roll to h/stand (straight arms)"}]
[null,null,null,null,null,null,null,null,null,null,null,null,null,null,null,null,{"$f":"IF(ISNUMBER(SEARCH($B$9,R117)),MAX($Q$8:Q116)+1,0)","v":109},"Handstand 1½ pirouette",null,null,{"$f":"IFERROR(VLOOKUP(ROWS($R$9:R117),$Q$9:$R$163,2,0),\"\")","v":"Handstand 1½ pirouette"},null,null,null,{"$f":"IF(ISNUMBER(SEARCH($B$10,Z117)),MAX($Y$8:Y116)+1,0)","v":109},"Handstand 1½ pirouette",null,null,{"$f":"IFERROR(VLOOKUP(ROWS($Z$9:Z117),$Y$9:$Z$163,2,0),\"\")","v":"Handstand 1½ pirouette"},null,null,null,{"$f":"IF(ISNUMBER(SEARCH($B$11,AH117)),MAX($AG$8:AG116)+1,0)","v":109},"Handstand 1½ pirouette",null,null,{"$f":"IFERROR(VLOOKUP(ROWS($AH$9:AH117),$AG$9:$AH$163,2,0),\"\")","v":"Handstand 1½ pirouette"},null,null,null,{"$f":"IF(ISNUMBER(SEARCH($B$12,AP117)),MAX($AO$8:AO116)+1,0)","v":109},"Handstand 1½ pirouette",null,null,{"$f":"IFERROR(VLOOKUP(ROWS($AP$9:AP117),$AO$9:$AP$163,2,0),\"\")","v":"Handstand 1½ pirouette"},null,null,null,{"$f":"IF(ISNUMBER(SEARCH($B$13,AX117)),MAX($AW$8:AW116)+1,0)","v":109},"Handstand 1½ pirouette",null,null,{"$f":"IFERROR(VLOOKUP(ROWS($AX$9:AX117),$AW$9:$AX$163,2,0),\"\")","v":"Handstand 1½ pirouette"},null,null,null,{"$f":"IF(ISNUMBER(SEARCH($B$14,BF117)),MAX($BE$8:BE116)+1,0)","v":109},"Handstand 1½ pirouette",null,null,{"$f":"IFERROR(VLOOKUP(ROWS($BF$9:BF117),$BE$9:$BF$163,2,0),\"\")","v":"Handstand 1½ pirouette"},null,null,null,{"$f":"IF(ISNUMBER(SEARCH($B$15,BN117)),MAX($BM$8:BM116)+1,0)","v":109},"Handstand 1½ pirouette",null,null,{"$f":"IFERROR(VLOOKUP(ROWS($BN$9:BN117),$BM$9:$BN$163,2,0),\"\")","v":"Handstand 1½ pirouette"},null,null,null,{"$f":"IF(ISNUMBER(SEARCH($B$16,BV117)),MAX($BU$8:BU116)+1,0)","v":109},"Handstand 1½ pirouette",null,null,{"$f":"IFERROR(VLOOKUP(ROWS($BV$9:BV117),$BU$9:$BV$163,2,0),\"\")","v":"Handstand 1½ pirouette"},null,null,null,{"$f":"IF(ISNUMBER(SEARCH($B$17,CD117)),MAX($CC$8:CC116)+1,0)","v":109},"Handstand 1½ pirouette",null,null,{"$f":"IFERROR(VLOOKUP(ROWS($CD$9:CD117),$CC$9:$CD$163,2,0),\"\")","v":"Handstand 1½ pirouette"},null,null,null,{"$f":"IF(ISNUMBER(SEARCH($B$18,CL117)),MAX($CK$8:CK116)+1,0)","v":109},"Handstand 1½ pirouette",null,null,{"$f":"IFERROR(VLOOKUP(ROWS($CL$9:CL117),$CK$9:$CL$163,2,0),\"\")","v":"Handstand 1½ pirouette"}]
[null,null,null,null,null,null,null,null,null,null,null,null,null,null,null,null,{"$f":"IF(ISNUMBER(SEARCH($B$9,R118)),MAX($Q$8:Q117)+1,0)","v":110},"Tic toc",null,null,{"$f":"IFERROR(VLOOKUP(ROWS($R$9:R118),$Q$9:$R$163,2,0),\"\")","v":"Tic toc"},null,null,null,{"$f":"IF(ISNUMBER(SEARCH($B$10,Z118)),MAX($Y$8:Y117)+1,0)","v":110},"Tic toc",null,null,{"$f":"IFERROR(VLOOKUP(ROWS($Z$9:Z118),$Y$9:$Z$163,2,0),\"\")","v":"Tic toc"},null,null,null,{"$f":"IF(ISNUMBER(SEARCH($B$11,AH118)),MAX($AG$8:AG117)+1,0)","v":110},"Tic toc",null,null,{"$f":"IFERROR(VLOOKUP(ROWS($AH$9:AH118),$AG$9:$AH$163,2,0),\"\")","v":"Tic toc"},null,null,null,{"$f":"IF(ISNUMBER(SEARCH($B$12,AP118)),MAX($AO$8:AO117)+1,0)","v":110},"Tic toc",null,null,{"$f":"IFERROR(VLOOKUP(ROWS($AP$9:AP118),$AO$9:$AP$163,2,0),\"\")","v":"Tic toc"},null,null,null,{"$f":"IF(ISNUMBER(SEARCH($B$13,AX118)),MAX($AW$8:AW117)+1,0)","v":110},"Tic toc",null,null,{"$f":"IFERROR(VLOOKUP(ROWS($AX$9:AX118),$AW$9:$AX$163,2,0),\"\")","v":"Tic toc"},null,null,null,{"$f":"IF(ISNUMBER(SEARCH($B$14,BF118)),MAX($BE$8:BE117)+1,0)","v":110},"Tic toc",null,null,{"$f":"IFERROR(VLOOKUP(ROWS($BF$9:BF118),$BE$9:$BF$163,2,0),\"\")","v":"Tic toc"},null,null,null,{"$f":"IF(ISNUMBER(SEARCH($B$15,BN118)),MAX($BM$8:BM117)+1,0)","v":110},"Tic toc",null,null,{"$f":"IFERROR(VLOOKUP(ROWS($BN$9:BN118),$BM$9:$BN$163,2,0),\"\")","v":"Tic toc"},null,null,null,{"$f":"IF(ISNUMBER(SEARCH($B$16,BV118)),MAX($BU$8:BU117)+1,0)","v":110},"Tic toc",null,null,{"$f":"IFERROR(VLOOKUP(ROWS($BV$9:BV118),$BU$9:$BV$163,2,0),\"\")","v":"Tic toc"},null,null,null,{"$f":"IF(ISNUMBER(SEARCH($B$17,CD118)),MAX($CC$8:CC117)+1,0)","v":110},"Tic toc",null,null,{"$f":"IFERROR(VLOOKUP(ROWS($CD$9:CD118),$CC$9:$CD$163,2,0),\"\")","v":"Tic toc"},null,null,null,{"$f":"IF(ISNUMBER(SEARCH($B$18,CL118)),MAX($CK$8:CK117)+1,0)","v":110},"Tic toc",null,null,{"$f":"IFERROR(VLOOKUP(ROWS($CL$9:CL118),$CK$9:$CL$163,2,0),\"\")","v":"Tic toc"}]
[null,null,null,null,null,null,null,null,null,null,null,null,null,null,null,null,{"$f":"IF(ISNUMBER(SEARCH($B$9,R119)),MAX($Q$8:Q118)+1,0)","v":111},"Flyspring",null,null,{"$f":"IFERROR(VLOOKUP(ROWS($R$9:R119),$Q$9:$R$163,2,0),\"\")","v":"Flyspring"},null,null,null,{"$f":"IF(ISNUMBER(SEARCH($B$10,Z119)),MAX($Y$8:Y118)+1,0)","v":111},"Flyspring",null,null,{"$f":"IFERROR(VLOOKUP(ROWS($Z$9:Z119),$Y$9:$Z$163,2,0),\"\")","v":"Flyspring"},null,null,null,{"$f":"IF(ISNUMBER(SEARCH($B$11,AH119)),MAX($AG$8:AG118)+1,0)","v":111},"Flyspring",null,null,{"$f":"IFERROR(VLOOKUP(ROWS($AH$9:AH119),$AG$9:$AH$163,2,0),\"\")","v":"Flyspring"},null,null,null,{"$f":"IF(ISNUMBER(SEARCH($B$12,AP119)),MAX($AO$8:AO118)+1,0)","v":111},"Flyspring",null,null,{"$f":"IFERROR(VLOOKUP(ROWS($AP$9:AP119),$AO$9:$AP$163,2,0),\"\")","v":"Flyspring"},null,null,null,{"$f":"IF(ISNUMBER(SEARCH($B$13,AX119)),MAX($AW$8:AW118)+1,0)","v":111},"Flyspring",null,null,{"$f":"IFERROR(VLOOKUP(ROWS($AX$9:AX119),$AW$9:$AX$163,2,0),\"\")","v":"Flyspring"},null,null,null,{"$f":"IF(ISNUMBER(SEARCH($B$14,BF119)),MAX($BE$8:BE118)+1,0)","v":111},"Flyspring",null,null,{"$f":"IFERROR(VLOOKUP(ROWS($BF$9:BF119),$BE$9:$BF$163,2,0),\"\")","v":"Flyspring"},null,null,null,{"$f":"IF(ISNUMBER(SEARCH($B$15,BN119)),MAX($BM$8:BM118)+1,0)","v":111},"Flyspring",null,null,{"$f":"IFERROR(VLOOKUP(ROWS($BN$9:BN119),$BM$9:$BN$163,2,0),\"\")","v":"Flyspring"},null,null,null,{"$f":"IF(ISNUMBER(SEARCH($B$16,BV119)),MAX($BU$8:BU118)+1,0)","v":111},"Flyspring",null,null,{"$f":"IFERROR(VLOOKUP(ROWS($BV$9:BV119),$BU$9:$BV$163,2,0),\"\")","v":"Flyspring"},null,null,null,{"$f":"IF(ISNUMBER(SEARCH($B$17,CD119)),MAX($CC$8:CC118)+1,0)","v":111},"Flyspring",null,null,{"$f":"IFERROR(VLOOKUP(ROWS($CD$9:CD119),$CC$9:$CD$163,2,0),\"\")","v":"Flyspring"},null,null,null,{"$f":"IF(ISNUMBER(SEARCH($B$18,CL119)),MAX($CK$8:CK118)+1,0)","v":111},"Flyspring",null,null,{"$f":"IFERROR(VLOOKUP(ROWS($CL$9:CL119),$CK$9:$CL$163,2,0),\"\")","v":"Flyspring"}]
[null,null,null,null,null,null,null,null,null,null,null,null,null,null,null,null,{"$f":"IF(ISNUMBER(SEARCH($B$9,R120)),MAX($Q$8:Q119)+1,0)","v":112},"Tucked Front Salto",null,null,{"$f":"IFERROR(VLOOKUP(ROWS($R$9:R120),$Q$9:$R$163,2,0),\"\")","v":"Tucked Front Salto"},null,null,null,{"$f":"IF(ISNUMBER(SEARCH($B$10,Z120)),MAX($Y$8:Y119)+1,0)","v":112},"Tucked Front Salto",null,null,{"$f":"IFERROR(VLOOKUP(ROWS($Z$9:Z120),$Y$9:$Z$163,2,0),\"\")","v":"Tucked Front Salto"},null,null,null,{"$f":"IF(ISNUMBER(SEARCH($B$11,AH120)),MAX($AG$8:AG119)+1,0)","v":112},"Tucked Front Salto",null,null,{"$f":"IFERROR(VLOOKUP(ROWS($AH$9:AH120),$AG$9:$AH$163,2,0),\"\")","v":"Tucked Front Salto"},null,null,null,{"$f":"IF(ISNUMBER(SEARCH($B$12,AP120)),MAX($AO$8:AO119)+1,0)","v":112},"Tucked Front Salto",null,null,{"$f":"IFERROR(VLOOKUP(ROWS($AP$9:AP120),$AO$9:$AP$163,2,0),\"\")","v":"Tucked Front Salto"},null,null,null,{"$f":"IF(ISNUMBER(SEARCH($B$13,AX120)),MAX($AW$8:AW119)+1,0)","v":112},"Tucked Front Salto",null,null,{"$f":"IFERROR(VLOOKUP(ROWS($AX$9:AX120),$AW$9:$AX$163,2,0),\"\")","v":"Tucked Front Salto"},null,null,null,{"$f":"IF(ISNUMBER(SEARCH($B$14,BF120)),MAX($BE$8:BE119)+1,0)","v":112},"Tucked Front Salto",null,null,{"$f":"IFERROR(VLOOKUP(ROWS($BF$9:BF120),$BE$9:$BF$163,2,0),\"\")","v":"Tucked Front Salto"},null,null,null,{"$f":"IF(ISNUMBER(SEARCH($B$15,BN120)),MAX($BM$8:BM119)+1,0)","v":112},"Tucked Front Salto",null,null,{"$f":"IFERROR(VLOOKUP(ROWS($BN$9:BN120),$BM$9:$BN$163,2,0),\"\")","v":"Tucked Front Salto"},null,null,null,{"$f":"IF(ISNUMBER(SEARCH($B$16,BV120)),MAX($BU$8:BU119)+1,0)","v":112},"Tucked Front Salto",null,null,{"$f":"IFERROR(VLOOKUP(ROWS($BV$9:BV120),$BU$9:$BV$163,2,0),\"\")","v":"Tucked Front Salto"},null,null,null,{"$f":"IF(ISNUMBER(SEARCH($B$17,CD120)),MAX($CC$8:CC119)+1,0)","v":112},"Tucked Front Salto",null,null,{"$f":"IFERROR(VLOOKUP(ROWS($CD$9:CD120),$CC$9:$CD$163,2,0),\"\")","v":"Tucked Front Salto"},null,null,null,{"$f":"IF(ISNUMBER(SEARCH($B$18,CL120)),MAX($CK$8:CK119)+1,0)","v":112},"Tucked Front Salto",null,null,{"$f":"IFERROR(VLOOKUP(ROWS($CL$9:CL120),$CK$9:$CL$163,2,0),\"\")","v":"Tucked Front Salto"}]
[null,null,null,null,null,null,null,null,null,null,null,null,null,null,null,null,{"$f":"IF(ISNUMBER(SEARCH($B$9,R121)),MAX($Q$8:Q120)+1,0)","v":113},"Tucked Back Salto FS",null,null,{"$f":"IFERROR(VLOOKUP(ROWS($R$9:R121),$Q$9:$R$163,2,0),\"\")","v":"Tucked Back Salto FS"},null,null,null,{"$f":"IF(ISNUMBER(SEARCH($B$10,Z121)),MAX($Y$8:Y120)+1,0)","v":113},"Tucked Back Salto FS",null,null,{"$f":"IFERROR(VLOOKUP(ROWS($Z$9:Z121),$Y$9:$Z$163,2,0),\"\")","v":"Tucked Back Salto FS"},null,null,null,{"$f":"IF(ISNUMBER(SEARCH($B$11,AH121)),MAX($AG$8:AG120)+1,0)","v":113},"Tucked Back Salto FS",null,null,{"$f":"IFERROR(VLOOKUP(ROWS($AH$9:AH121),$AG$9:$AH$163,2,0),\"\")","v":"Tucked Back Salto FS"},null,null,null,{"$f":"IF(ISNUMBER(SEARCH($B$12,AP121)),MAX($AO$8:AO120)+1,0)","v":113},"Tucked Back Salto FS",null,null,{"$f":"IFERROR(VLOOKUP(ROWS($AP$9:AP121),$AO$9:$AP$163,2,0),\"\")","v":"Tucked Back Salto FS"},null,null,null,{"$f":"IF(ISNUMBER(SEARCH($B$13,AX121)),MAX($AW$8:AW120)+1,0)","v":113},"Tucked Back Salto FS",null,null,{"$f":"IFERROR(VLOOKUP(ROWS($AX$9:AX121),$AW$9:$AX$163,2,0),\"\")","v":"Tucked Back Salto FS"},null,null,null,{"$f":"IF(ISNUMBER(SEARCH($B$14,BF121)),MAX($BE$8:BE120)+1,0)","v":113},"Tucked Back Salto FS",null,null,{"$f":"IFERROR(VLOOKUP(ROWS($BF$9:BF121),$BE$9:$BF$163,2,0),\"\")","v":"Tucked Back Salto FS"},null,null,null,{"$f":"IF(ISNUMBER(SEARCH($B$15,BN121)),MAX($BM$8:BM120)+1,0)","v":113},"Tucked Back Salto FS",null,null,{"$f":"IFERROR(VLOOKUP(ROWS($BN$9:BN121),$BM$9:$BN$163,2,0),\"\")","v":"Tucked Back Salto FS"},null,null,null,{"$f":"IF(ISNUMBER(SEARCH($B$16,BV121)),MAX($BU$8:BU120)+1,0)","v":113},"Tucked Back Salto FS",null,null,{"$f":"IFERROR(VLOOKUP(ROWS($BV$9:BV121),$BU$9:$BV$163,2,0),\"\")","v":"Tucked Back Salto FS"},null,null,null,{"$f":"IF(ISNUMBER(SEARCH($B$17,CD121)),MAX($CC$8:CC120)+1,0)","v":113},"Tucked Back Salto FS",null,null,{"$f":"IFERROR(VLOOKUP(ROWS($CD$9:CD121),$CC$9:$CD$163,2,0),\"\")","v":"Tucked Back Salto FS"},null,null,null,{"$f":"IF(ISNUMBER(SEARCH($B$18,CL121)),MAX($CK$8:CK120)+1,0)","v":113},"Tucked Back Salto FS",null,null,{"$f":"IFERROR(VLOOKUP(ROWS($CL$9:CL121),$CK$9:$CL$163,2,0),\"\")","v":"Tucked Back Salto FS"}]
[null,null,null,null,null,null,null,null,null,null,null,null,null,null,null,null,{"$f":"IF(ISNUMBER(SEARCH($B$9,R122)),MAX($Q$8:Q121)+1,0)","v":114},"Free Cartwheel",null,null,{"$f":"IFERROR(VLOOKUP(ROWS($R$9:R122),$Q$9:$R$163,2,0),\"\")","v":"Free Cartwheel"},null,null,null,{"$f":"IF(ISNUMBER(SEARCH($B$10,Z122)),MAX($Y$8:Y121)+1,0)","v":114},"Free Cartwheel",null,null,{"$f":"IFERROR(VLOOKUP(ROWS($Z$9:Z122),$Y$9:$Z$163,2,0),\"\")","v":"Free Cartwheel"},null,null,null,{"$f":"IF(ISNUMBER(SEARCH($B$11,AH122)),MAX($AG$8:AG121)+1,0)","v":114},"Free Cartwheel",null,null,{"$f":"IFERROR(VLOOKUP(ROWS($AH$9:AH122),$AG$9:$AH$163,2,0),\"\")","v":"Free Cartwheel"},null,null,null,{"$f":"IF(ISNUMBER(SEARCH($B$12,AP122)),MAX($AO$8:AO121)+1,0)","v":114},"Free Cartwheel",null,null,{"$f":"IFERROR(VLOOKUP(ROWS($AP$9:AP122),$AO$9:$AP$163,2,0),\"\")","v":"Free Cartwheel"},null,null,null,{"$f":"IF(ISNUMBER(SEARCH($B$13,AX122)),MAX($AW$8:AW121)+1,0)","v":114},"Free Cartwheel",null,null,{"$f":"IFERROR(VLOOKUP(ROWS($AX$9:AX122),$AW$9:$AX$163,2,0),\"\")","v":"Free Cartwheel"},null,null,null,{"$f":"IF(ISNUMBER(SEARCH($B$14,BF122)),MAX($BE$8:BE121)+1,0)","v":114},"Free Cartwheel",null,null,{"$f":"IFERROR(VLOOKUP(ROWS($BF$9:BF122),$BE$9:$BF$163,2,0),\"\")","v":"Free Cartwheel"},null,null,null,{"$f":"IF(ISNUMBER(SEARCH($B$15,BN122)),MAX($BM$8:BM121)+1,0)","v":114},"Free Cartwheel",null,null,{"$f":"IFERROR(VLOOKUP(ROWS($BN$9:BN122),$BM$9:$BN$163,2,0),\"\")","v":"Free Cartwheel"},null,null,null,{"$f":"IF(ISNUMBER(SEARCH($B$16,BV122)),MAX($BU$8:BU121)+1,0)","v":114},"Free Cartwheel",null,null,{"$f":"IFERROR(VLOOKUP(ROWS($BV$9:BV122),$BU$9:$BV$163,2,0),\"\")","v":"Free Cartwheel"},null,null,null,{"$f":"IF(ISNUMBER(SEARCH($B$17,CD122)),MAX($CC$8:CC121)+1,0)","v":114},"Free Cartwheel",null,null,{"$f":"IFERROR(VLOOKUP(ROWS($CD$9:CD122),$CC$9:$CD$163,2,0),\"\")","v":"Free Cartwheel"},null,null,null,{"$f":"IF(ISNUMBER(SEARCH($B$18,CL122)),MAX($CK$8:CK121)+1,0)","v":114},"Free Cartwheel",null,null,{"$f":"IFERROR(VLOOKUP(ROWS($CL$9:CL122),$CK$9:$CL$163,2,0),\"\")","v":"Free Cartwheel"}]
[null,null,null,null,null,null,null,null,null,null,null,null,null,null,null,null,{"$f":"IF(ISNUMBER(SEARCH($B$9,R123)),MAX($Q$8:Q122)+1,0)","v":115},"Free Cartwheel Flick",null,null,{"$f":"IFERROR(VLOOKUP(ROWS($R$9:R123),$Q$9:$R$163,2,0),\"\")","v":"Free Cartwheel Flick"},null,null,null,{"$f":"IF(ISNUMBER(SEARCH($B$10,Z123)),MAX($Y$8:Y122)+1,0)","v":115},"Free Cartwheel Flick",null,null,{"$f":"IFERROR(VLOOKUP(ROWS($Z$9:Z123),$Y$9:$Z$163,2,0),\"\")","v":"Free Cartwheel Flick"},null,null,null,{"$f":"IF(ISNUMBER(SEARCH($B$11,AH123)),MAX($AG$8:AG122)+1,0)","v":115},"Free Cartwheel Flick",null,null,{"$f":"IFERROR(VLOOKUP(ROWS($AH$9:AH123),$AG$9:$AH$163,2,0),\"\")","v":"Free Cartwheel Flick"},null,null,null,{"$f":"IF(ISNUMBER(SEARCH($B$12,AP123)),MAX($AO$8:AO122)+1,0)","v":115},"Free Cartwheel Flick",null,null,{"$f":"IFERROR(VLOOKUP(ROWS($AP$9:AP123),$AO$9:$AP$163,2,0),\"\")","v":"Free Cartwheel Flick"},null,null,null,{"$f":"IF(ISNUMBER(SEARCH($B$13,AX123)),MAX($AW$8:AW122)+1,0)","v":115},"Free Cartwheel Flick",null,null,{"$f":"IFERROR(VLOOKUP(ROWS($AX$9:AX123),$AW$9:$AX$163,2,0),\"\")","v":"Free Cartwheel Flick"},null,null,null,{"$f":"IF(ISNUMBER(SEARCH($B$14,BF123)),MAX($BE$8:BE122)+1,0)","v":115},"Free Cartwheel Flick",null,null,{"$f":"IFERROR(VLOOKUP(ROWS($BF$9:BF123),$BE$9:$BF$163,2,0),\"\")","v":"Free Cartwheel Flick"},null,null,null,{"$f":"IF(ISNUMBER(SEARCH($B$15,BN123)),MAX($BM$8:BM122)+1,0)","v":115},"Free Cartwheel Flick",null,null,{"$f":"IFERROR(VLOOKUP(ROWS($BN$9:BN123),$BM$9:$BN$163,2,0),\"\")","v":"Free Cartwheel Flick"},null,null,null,{"$f":"IF(ISNUMBER(SEARCH($B$16,BV123)),MAX($BU$8:BU122)+1,0)","v":115},"Free Cartwheel Flick",null,null,{"$f":"IFERROR(VLOOKUP(ROWS($BV$9:BV123),$BU$9:$BV$163,2,0),\"\")","v":"Free Cartwheel Flick"},null,null,null,{"$f":"IF(ISNUMBER(SEARCH($B$17,CD123)),MAX($CC$8:CC122)+1,0)","v":115},"Free Cartwheel Flick",null,null,{"$f":"IFERROR(VLOOKUP(ROWS($CD$9:CD123),$CC$9:$CD$163,2,0),\"\")","v":"Free Cartwheel Flick"},null,null,null,{"$f":"IF(ISNUMBER(SEARCH($B$18,CL123)),MAX($CK$8:CK122)+1,0)","v":115},"Free Cartwheel Flick",null,null,{"$f":"IFERROR(VLOOKUP(ROWS($CL$9:CL123),$CK$9:$CL$163,2,0),\"\")","v":"Free Cartwheel Flick"}]
[null,null,null,null,null,null,null,null,null,null,null,null,null,null,null,null,{"$f":"IF(ISNUMBER(SEARCH($B$9,R124)),MAX($Q$8:Q123)+1,0)","v":116},"Front Salto to 1 R/O",null,null,{"$f":"IFERROR(VLOOKUP(ROWS($R$9:R124),$Q$9:$R$163,2,0),\"\")","v":"Front Salto to 1 R/O"},null,null,null,{"$f":"IF(ISNUMBER(SEARCH($B$10,Z124)),MAX($Y$8:Y123)+1,0)","v":116},"Front Salto to 1 R/O",null,null,{"$f":"IFERROR(VLOOKUP(ROWS($Z$9:Z124),$Y$9:$Z$163,2,0),\"\")","v":"Front Salto to 1 R/O"},null,null,null,{"$f":"IF(ISNUMBER(SEARCH($B$11,AH124)),MAX($AG$8:AG123)+1,0)","v":116},"Front Salto to 1 R/O",null,null,{"$f":"IFERROR(VLOOKUP(ROWS($AH$9:AH124),$AG$9:$AH$163,2,0),\"\")","v":"Front Salto to 1 R/O"},null,null,null,{"$f":"IF(ISNUMBER(SEARCH($B$12,AP124)),MAX($AO$8:AO123)+1,0)","v":116},"Front Salto to 1 R/O",null,null,{"$f":"IFERROR(VLOOKUP(ROWS($AP$9:AP124),$AO$9:$AP$163,2,0),\"\")","v":"Front Salto to 1 R/O"},null,null,null,{"$f":"IF(ISNUMBER(SEARCH($B$13,AX124)),MAX($AW$8:AW123)+1,0)","v":116},"Front Salto to 1 R/O",null,null,{"$f":"IFERROR(VLOOKUP(ROWS($AX$9:AX124),$AW$9:$AX$163,2,0),\"\")","v":"Front Salto to 1 R/O"},null,null,null,{"$f":"IF(ISNUMBER(SEARCH($B$14,BF124)),MAX($BE$8:BE123)+1,0)","v":116},"Front Salto to 1 R/O",null,null,{"$f":"IFERROR(VLOOKUP(ROWS($BF$9:BF124),$BE$9:$BF$163,2,0),\"\")","v":"Front Salto to 1 R/O"},null,null,null,{"$f":"IF(ISNUMBER(SEARCH($B$15,BN124)),MAX($BM$8:BM123)+1,0)","v":116},"Front Salto to 1 R/O",null,null,{"$f":"IFERROR(VLOOKUP(ROWS($BN$9:BN124),$BM$9:$BN$163,2,0),\"\")","v":"Front Salto to 1 R/O"},null,null,null,{"$f":"IF(ISNUMBER(SEARCH($B$16,BV124)),MAX($BU$8:BU123)+1,0)","v":116},"Front Salto to 1 R/O",null,null,{"$f":"IFERROR(VLOOKUP(ROWS($BV$9:BV124),$BU$9:$BV$163,2,0),\"\")","v":"Front Salto to 1 R/O"},null,null,null,{"$f":"IF(ISNUMBER(SEARCH($B$17,CD124)),MAX($CC$8:CC123)+1,0)","v":116},"Front Salto to 1 R/O",null,null,{"$f":"IFERROR(VLOOKUP(ROWS($CD$9:CD124),$CC$9:$CD$163,2,0),\"\")","v":"Front Salto to 1 R/O"},null,null,null,{"$f":"IF(ISNUMBER(SEARCH($B$18,CL124)),MAX($CK$8:CK123)+1,0)","v":116},"Front Salto to 1 R/O",null,null,{"$f":"IFERROR(VLOOKUP(ROWS($CL$9:CL124),$CK$9:$CL$163,2,0),\"\")","v":"Front Salto to 1 R/O"}]
[null,null,null,null,null,null,null,null,null,null,null,null,null,null,null,null,{"$f":"IF(ISNUMBER(SEARCH($B$9,R125)),MAX($Q$8:Q124)+1,0)","v":117},"Front Salto, R/O, flic",null,null,{"$f":"IFERROR(VLOOKUP(ROWS($R$9:R125),$Q$9:$R$163,2,0),\"\")","v":"Front Salto, R/O, flic"},null,null,null,{"$f":"IF(ISNUMBER(SEARCH($B$10,Z125)),MAX($Y$8:Y124)+1,0)","v":117},"Front Salto, R/O, flic",null,null,{"$f":"IFERROR(VLOOKUP(ROWS($Z$9:Z125),$Y$9:$Z$163,2,0),\"\")","v":"Front Salto, R/O, flic"},null,null,null,{"$f":"IF(ISNUMBER(SEARCH($B$11,AH125)),MAX($AG$8:AG124)+1,0)","v":117},"Front Salto, R/O, flic",null,null,{"$f":"IFERROR(VLOOKUP(ROWS($AH$9:AH125),$AG$9:$AH$163,2,0),\"\")","v":"Front Salto, R/O, flic"},null,null,null,{"$f":"IF(ISNUMBER(SEARCH($B$12,AP125)),MAX($AO$8:AO124)+1,0)","v":117},"Front Salto, R/O, flic",null,null,{"$f":"IFERROR(VLOOKUP(ROWS($AP$9:AP125),$AO$9:$AP$163,2,0),\"\")","v":"Front Salto, R/O, flic"},null,null,null,{"$f":"IF(ISNUMBER(SEARCH($B$13,AX125)),MAX($AW$8:AW124)+1,0)","v":117},"Front Salto, R/O, flic",null,null,{"$f":"IFERROR(VLOOKUP(ROWS($AX$9:AX125),$AW$9:$AX$163,2,0),\"\")","v":"Front Salto, R/O, flic"},null,null,null,{"$f":"IF(ISNUMBER(SEARCH($B$14,BF125)),MAX($BE$8:BE124)+1,0)","v":117},"Front Salto, R/O, flic",null,null,{"$f":"IFERROR(VLOOKUP(ROWS($BF$9:BF125),$BE$9:$BF$163,2,0),\"\")","v":"Front Salto, R/O, flic"},null,null,null,{"$f":"IF(ISNUMBER(SEARCH($B$15,BN125)),MAX($BM$8:BM124)+1,0)","v":117},"Front Salto, R/O, flic",null,null,{"$f":"IFERROR(VLOOKUP(ROWS($BN$9:BN125),$BM$9:$BN$163,2,0),\"\")","v":"Front Salto, R/O, flic"},null,null,null,{"$f":"IF(ISNUMBER(SEARCH($B$16,BV125)),MAX($BU$8:BU124)+1,0)","v":117},"Front Salto, R/O, flic",null,null,{"$f":"IFERROR(VLOOKUP(ROWS($BV$9:BV125),$BU$9:$BV$163,2,0),\"\")","v":"Front Salto, R/O, flic"},null,null,null,{"$f":"IF(ISNUMBER(SEARCH($B$17,CD125)),MAX($CC$8:CC124)+1,0)","v":117},"Front Salto, R/O, flic",null,null,{"$f":"IFERROR(VLOOKUP(ROWS($CD$9:CD125),$CC$9:$CD$163,2,0),\"\")","v":"Front Salto, R/O, flic"},null,null,null,{"$f":"IF(ISNUMBER(SEARCH($B$18,CL125)),MAX($CK$8:CK124)+1,0)","v":117},"Front Salto, R/O, flic",null,null,{"$f":"IFERROR(VLOOKUP(ROWS($CL$9:CL125),$CK$9:$CL$163,2,0),\"\")","v":"Front Salto, R/O, flic"}]
[null,null,null,null,null,null,null,null,null,null,null,null,null,null,null,null,{"$f":"IF(ISNUMBER(SEARCH($B$9,R126)),MAX($Q$8:Q125)+1,0)","v":118},"F Salto step out, R/O, B Salto",null,null,{"$f":"IFERROR(VLOOKUP(ROWS($R$9:R126),$Q$9:$R$163,2,0),\"\")","v":"F Salto step out, R/O, B Salto"},null,null,null,{"$f":"IF(ISNUMBER(SEARCH($B$10,Z126)),MAX($Y$8:Y125)+1,0)","v":118},"F Salto step out, R/O, B Salto",null,null,{"$f":"IFERROR(VLOOKUP(ROWS($Z$9:Z126),$Y$9:$Z$163,2,0),\"\")","v":"F Salto step out, R/O, B Salto"},null,null,null,{"$f":"IF(ISNUMBER(SEARCH($B$11,AH126)),MAX($AG$8:AG125)+1,0)","v":118},"F Salto step out, R/O, B Salto",null,null,{"$f":"IFERROR(VLOOKUP(ROWS($AH$9:AH126),$AG$9:$AH$163,2,0),\"\")","v":"F Salto step out, R/O, B Salto"},null,null,null,{"$f":"IF(ISNUMBER(SEARCH($B$12,AP126)),MAX($AO$8:AO125)+1,0)","v":118},"F Salto step out, R/O, B Salto",null,null,{"$f":"IFERROR(VLOOKUP(ROWS($AP$9:AP126),$AO$9:$AP$163,2,0),\"\")","v":"F Salto step out, R/O, B Salto"},null,null,null,{"$f":"IF(ISNUMBER(SEARCH($B$13,AX126)),MAX($AW$8:AW125)+1,0)","v":118},"F Salto step out, R/O, B Salto",null,null,{"$f":"IFERROR(VLOOKUP(ROWS($AX$9:AX126),$AW$9:$AX$163,2,0),\"\")","v":"F Salto step out, R/O, B Salto"},null,null,null,{"$f":"IF(ISNUMBER(SEARCH($B$14,BF126)),MAX($BE$8:BE125)+1,0)","v":118},"F Salto step out, R/O, B Salto",null,null,{"$f":"IFERROR(VLOOKUP(ROWS($BF$9:BF126),$BE$9:$BF$163,2,0),\"\")","v":"F Salto step out, R/O, B Salto"},null,null,null,{"$f":"IF(ISNUMBER(SEARCH($B$15,BN126)),MAX($BM$8:BM125)+1,0)","v":118},"F Salto step out, R/O, B Salto",null,null,{"$f":"IFERROR(VLOOKUP(ROWS($BN$9:BN126),$BM$9:$BN$163,2,0),\"\")","v":"F Salto step out, R/O, B Salto"},null,null,null,{"$f":"IF(ISNUMBER(SEARCH($B$16,BV126)),MAX($BU$8:BU125)+1,0)","v":118},"F Salto step out, R/O, B Salto",null,null,{"$f":"IFERROR(VLOOKUP(ROWS($BV$9:BV126),$BU$9:$BV$163,2,0),\"\")","v":"F Salto step out, R/O, B Salto"},null,null,null,{"$f":"IF(ISNUMBER(SEARCH($B$17,CD126)),MAX($CC$8:CC125)+1,0)","v":118},"F Salto step out, R/O, B Salto",null,null,{"$f":"IFERROR(VLOOKUP(ROWS($CD$9:CD126),$CC$9:$CD$163,2,0),\"\")","v":"F Salto step out, R/O, B Salto"},null,null,null,{"$f":"IF(ISNUMBER(SEARCH($B$18,CL126)),MAX($CK$8:CK125)+1,0)","v":118},"F Salto step out, R/O, B Salto",null,null,{"$f":"IFERROR(VLOOKUP(ROWS($CL$9:CL126),$CK$9:$CL$163,2,0),\"\")","v":"F Salto step out, R/O, B Salto"}]
[null,null,null,null,null,null,null,null,null,null,null,null,null,null,null,null,{"$f":"IF(ISNUMBER(SEARCH($B$9,R127)),MAX($Q$8:Q126)+1,0)","v":119},"R/O Tuck Back Salto",null,null,{"$f":"IFERROR(VLOOKUP(ROWS($R$9:R127),$Q$9:$R$163,2,0),\"\")","v":"R/O Tuck Back Salto"},null,null,null,{"$f":"IF(ISNUMBER(SEARCH($B$10,Z127)),MAX($Y$8:Y126)+1,0)","v":119},"R/O Tuck Back Salto",null,null,{"$f":"IFERROR(VLOOKUP(ROWS($Z$9:Z127),$Y$9:$Z$163,2,0),\"\")","v":"R/O Tuck Back Salto"},null,null,null,{"$f":"IF(ISNUMBER(SEARCH($B$11,AH127)),MAX($AG$8:AG126)+1,0)","v":119},"R/O Tuck Back Salto",null,null,{"$f":"IFERROR(VLOOKUP(ROWS($AH$9:AH127),$AG$9:$AH$163,2,0),\"\")","v":"R/O Tuck Back Salto"},null,null,null,{"$f":"IF(ISNUMBER(SEARCH($B$12,AP127)),MAX($AO$8:AO126)+1,0)","v":119},"R/O Tuck Back Salto",null,null,{"$f":"IFERROR(VLOOKUP(ROWS($AP$9:AP127),$AO$9:$AP$163,2,0),\"\")","v":"R/O Tuck Back Salto"},null,null,null,{"$f":"IF(ISNUMBER(SEARCH($B$13,AX127)),MAX($AW$8:AW126)+1,0)","v":119},"R/O Tuck Back Salto",null,null,{"$f":"IFERROR(VLOOKUP(ROWS($AX$9:AX127),$AW$9:$AX$163,2,0),\"\")","v":"R/O Tuck Back Salto"},null,null,null,{"$f":"IF(ISNUMBER(SEARCH($B$14,BF127)),MAX($BE$8:BE126)+1,0)","v":119},"R/O Tuck Back Salto",null,null,{"$f":"IFERROR(VLOOKUP(ROWS($BF$9:BF127),$BE$9:$BF$163,2,0),\"\")","v":"R/O Tuck Back Salto"},null,null,null,{"$f":"IF(ISNUMBER(SEARCH($B$15,BN127)),MAX($BM$8:BM126)+1,0)","v":119},"R/O Tuck Back Salto",null,null,{"$f":"IFERROR(VLOOKUP(ROWS($BN$9:BN127),$BM$9:$BN$163,2,0),\"\")","v":"R/O Tuck Back Salto"},null,null,null,{"$f":"IF(ISNUMBER(SEARCH($B$16,BV127)),MAX($BU$8:BU126)+1,0)","v":119},"R/O Tuck Back Salto",null,null,{"$f":"IFERROR(VLOOKUP(ROWS($BV$9:BV127),$BU$9:$BV$163,2,0),\"\")","v":"R/O Tuck Back Salto"},null,null,null,{"$f":"IF(ISNUMBER(SEARCH($B$17,CD127)),MAX($CC$8:CC126)+1,0)","v":119},"R/O Tuck Back Salto",null,null,{"$f":"IFERROR(VLOOKUP(ROWS($CD$9:CD127),$CC$9:$CD$163,2,0),\"\")","v":"R/O Tuck Back Salto"},null,null,null,{"$f":"IF(ISNUMBER(SEARCH($B$18,CL127)),MAX($CK$8:CK126)+1,0)","v":119},"R/O Tuck Back Salto",null,null,{"$f":"IFERROR(VLOOKUP(ROWS($CL$9:CL127),$CK$9:$CL$163,2,0),\"\")","v":"R/O Tuck Back Salto"}]
[null,null,null,null,null,null,null,null,null,null,null,null,null,null,null,null,{"$f":"IF(ISNUMBER(SEARCH($B$9,R128)),MAX($Q$8:Q127)+1,0)","v":120},"R/O, Flic, Tuck Back Salto",null,null,{"$f":"IFERROR(VLOOKUP(ROWS($R$9:R128),$Q$9:$R$163,2,0),\"\")","v":"R/O, Flic, Tuck Back Salto"},null,null,null,{"$f":"IF(ISNUMBER(SEARCH($B$10,Z128)),MAX($Y$8:Y127)+1,0)","v":120},"R/O, Flic, Tuck Back Salto",null,null,{"$f":"IFERROR(VLOOKUP(ROWS($Z$9:Z128),$Y$9:$Z$163,2,0),\"\")","v":"R/O, Flic, Tuck Back Salto"},null,null,null,{"$f":"IF(ISNUMBER(SEARCH($B$11,AH128)),MAX($AG$8:AG127)+1,0)","v":120},"R/O, Flic, Tuck Back Salto",null,null,{"$f":"IFERROR(VLOOKUP(ROWS($AH$9:AH128),$AG$9:$AH$163,2,0),\"\")","v":"R/O, Flic, Tuck Back Salto"},null,null,null,{"$f":"IF(ISNUMBER(SEARCH($B$12,AP128)),MAX($AO$8:AO127)+1,0)","v":120},"R/O, Flic, Tuck Back Salto",null,null,{"$f":"IFERROR(VLOOKUP(ROWS($AP$9:AP128),$AO$9:$AP$163,2,0),\"\")","v":"R/O, Flic, Tuck Back Salto"},null,null,null,{"$f":"IF(ISNUMBER(SEARCH($B$13,AX128)),MAX($AW$8:AW127)+1,0)","v":120},"R/O, Flic, Tuck Back Salto",null,null,{"$f":"IFERROR(VLOOKUP(ROWS($AX$9:AX128),$AW$9:$AX$163,2,0),\"\")","v":"R/O, Flic, Tuck Back Salto"},null,null,null,{"$f":"IF(ISNUMBER(SEARCH($B$14,BF128)),MAX($BE$8:BE127)+1,0)","v":120},"R/O, Flic, Tuck Back Salto",null,null,{"$f":"IFERROR(VLOOKUP(ROWS($BF$9:BF128),$BE$9:$BF$163,2,0),\"\")","v":"R/O, Flic, Tuck Back Salto"},null,null,null,{"$f":"IF(ISNUMBER(SEARCH($B$15,BN128)),MAX($BM$8:BM127)+1,0)","v":120},"R/O, Flic, Tuck Back Salto",null,null,{"$f":"IFERROR(VLOOKUP(ROWS($BN$9:BN128),$BM$9:$BN$163,2,0),\"\")","v":"R/O, Flic, Tuck Back Salto"},null,null,null,{"$f":"IF(ISNUMBER(SEARCH($B$16,BV128)),MAX($BU$8:BU127)+1,0)","v":120},"R/O, Flic, Tuck Back Salto",null,null,{"$f":"IFERROR(VLOOKUP(ROWS($BV$9:BV128),$BU$9:$BV$163,2,0),\"\")","v":"R/O, Flic, Tuck Back Salto"},null,null,null,{"$f":"IF(ISNUMBER(SEARCH($B$17,CD128)),MAX($CC$8:CC127)+1,0)","v":120},"R/O, Flic, Tuck Back Salto",null,null,{"$f":"IFERROR(VLOOKUP(ROWS($CD$9:CD128),$CC$9:$CD$163,2,0),\"\")","v":"R/O, Flic, Tuck Back Salto"},null,null,null,{"$f":"IF(ISNUMBER(SEARCH($B$18,CL128)),MAX($CK$8:CK127)+1,0)","v":120},"R/O, Flic, Tuck Back Salto",null,null,{"$f":"IFERROR(VLOOKUP(ROWS($CL$9:CL128),$CK$9:$CL$163,2,0),\"\")","v":"R/O, Flic, Tuck Back Salto"}]
[null,null,null,null,null,null,null,null,null,null,null,null,null,null,null,null,{"$f":"IF(ISNUMBER(SEARCH($B$9,R129)),MAX($Q$8:Q128)+1,0)","v":121},"Handspring Flyspring",null,null,{"$f":"IFERROR(VLOOKUP(ROWS($R$9:R129),$Q$9:$R$163,2,0),\"\")","v":"Handspring Flyspring"},null,null,null,{"$f":"IF(ISNUMBER(SEARCH($B$10,Z129)),MAX($Y$8:Y128)+1,0)","v":121},"Handspring Flyspring",null,null,{"$f":"IFERROR(VLOOKUP(ROWS($Z$9:Z129),$Y$9:$Z$163,2,0),\"\")","v":"Handspring Flyspring"},null,null,null,{"$f":"IF(ISNUMBER(SEARCH($B$11,AH129)),MAX($AG$8:AG128)+1,0)","v":121},"Handspring Flyspring",null,null,{"$f":"IFERROR(VLOOKUP(ROWS($AH$9:AH129),$AG$9:$AH$163,2,0),\"\")","v":"Handspring Flyspring"},null,null,null,{"$f":"IF(ISNUMBER(SEARCH($B$12,AP129)),MAX($AO$8:AO128)+1,0)","v":121},"Handspring Flyspring",null,null,{"$f":"IFERROR(VLOOKUP(ROWS($AP$9:AP129),$AO$9:$AP$163,2,0),\"\")","v":"Handspring Flyspring"},null,null,null,{"$f":"IF(ISNUMBER(SEARCH($B$13,AX129)),MAX($AW$8:AW128)+1,0)","v":121},"Handspring Flyspring",null,null,{"$f":"IFERROR(VLOOKUP(ROWS($AX$9:AX129),$AW$9:$AX$163,2,0),\"\")","v":"Handspring Flyspring"},null,null,null,{"$f":"IF(ISNUMBER(SEARCH($B$14,BF129)),MAX($BE$8:BE128)+1,0)","v":121},"Handspring Flyspring",null,null,{"$f":"IFERROR(VLOOKUP(ROWS($BF$9:BF129),$BE$9:$BF$163,2,0),\"\")","v":"Handspring Flyspring"},null,null,null,{"$f":"IF(ISNUMBER(SEARCH($B$15,BN129)),MAX($BM$8:BM128)+1,0)","v":121},"Handspring Flyspring",null,null,{"$f":"IFERROR(VLOOKUP(ROWS($BN$9:BN129),$BM$9:$BN$163,2,0),\"\")","v":"Handspring Flyspring"},null,null,null,{"$f":"IF(ISNUMBER(SEARCH($B$16,BV129)),MAX($BU$8:BU128)+1,0)","v":121},"Handspring Flyspring",null,null,{"$f":"IFERROR(VLOOKUP(ROWS($BV$9:BV129),$BU$9:$BV$163,2,0),\"\")","v":"Handspring Flyspring"},null,null,null,{"$f":"IF(ISNUMBER(SEARCH($B$17,CD129)),MAX($CC$8:CC128)+1,0)","v":121},"Handspring Flyspring",null,null,{"$f":"IFERROR(VLOOKUP(ROWS($CD$9:CD129),$CC$9:$CD$163,2,0),\"\")","v":"Handspring Flyspring"},null,null,null,{"$f":"IF(ISNUMBER(SEARCH($B$18,CL129)),MAX($CK$8:CK128)+1,0)","v":121},"Handspring Flyspring",null,null,{"$f":"IFERROR(VLOOKUP(ROWS($CL$9:CL129),$CK$9:$CL$163,2,0),\"\")","v":"Handspring Flyspring"}]
[null,null,null,null,null,null,null,null,null,null,null,null,null,null,null,null,{"$f":"IF(ISNUMBER(SEARCH($B$9,R130)),MAX($Q$8:Q129)+1,0)","v":122},"Handspring, Front Salto",null,null,{"$f":"IFERROR(VLOOKUP(ROWS($R$9:R130),$Q$9:$R$163,2,0),\"\")","v":"Handspring, Front Salto"},null,null,null,{"$f":"IF(ISNUMBER(SEARCH($B$10,Z130)),MAX($Y$8:Y129)+1,0)","v":122},"Handspring, Front Salto",null,null,{"$f":"IFERROR(VLOOKUP(ROWS($Z$9:Z130),$Y$9:$Z$163,2,0),\"\")","v":"Handspring, Front Salto"},null,null,null,{"$f":"IF(ISNUMBER(SEARCH($B$11,AH130)),MAX($AG$8:AG129)+1,0)","v":122},"Handspring, Front Salto",null,null,{"$f":"IFERROR(VLOOKUP(ROWS($AH$9:AH130),$AG$9:$AH$163,2,0),\"\")","v":"Handspring, Front Salto"},null,null,null,{"$f":"IF(ISNUMBER(SEARCH($B$12,AP130)),MAX($AO$8:AO129)+1,0)","v":122},"Handspring, Front Salto",null,null,{"$f":"IFERROR(VLOOKUP(ROWS($AP$9:AP130),$AO$9:$AP$163,2,0),\"\")","v":"Handspring, Front Salto"},null,null,null,{"$f":"IF(ISNUMBER(SEARCH($B$13,AX130)),MAX($AW$8:AW129)+1,0)","v":122},"Handspring, Front Salto",null,null,{"$f":"IFERROR(VLOOKUP(ROWS($AX$9:AX130),$AW$9:$AX$163,2,0),\"\")","v":"Handspring, Front Salto"},null,null,null,{"$f":"IF(ISNUMBER(SEARCH($B$14,BF130)),MAX($BE$8:BE129)+1,0)","v":122},"Handspring, Front Salto",null,null,{"$f":"IFERROR(VLOOKUP(ROWS($BF$9:BF130),$BE$9:$BF$163,2,0),\"\")","v":"Handspring, Front Salto"},null,null,null,{"$f":"IF(ISNUMBER(SEARCH($B$15,BN130)),MAX($BM$8:BM129)+1,0)","v":122},"Handspring, Front Salto",null,null,{"$f":"IFERROR(VLOOKUP(ROWS($BN$9:BN130),$BM$9:$BN$163,2,0),\"\")","v":"Handspring, Front Salto"},null,null,null,{"$f":"IF(ISNUMBER(SEARCH($B$16,BV130)),MAX($BU$8:BU129)+1,0)","v":122},"Handspring, Front Salto",null,null,{"$f":"IFERROR(VLOOKUP(ROWS($BV$9:BV130),$BU$9:$BV$163,2,0),\"\")","v":"Handspring, Front Salto"},null,null,null,{"$f":"IF(ISNUMBER(SEARCH($B$17,CD130)),MAX($CC$8:CC129)+1,0)","v":122},"Handspring, Front Salto",null,null,{"$f":"IFERROR(VLOOKUP(ROWS($CD$9:CD130),$CC$9:$CD$163,2,0),\"\")","v":"Handspring, Front Salto"},null,null,null,{"$f":"IF(ISNUMBER(SEARCH($B$18,CL130)),MAX($CK$8:CK129)+1,0)","v":122},"Handspring, Front Salto",null,null,{"$f":"IFERROR(VLOOKUP(ROWS($CL$9:CL130),$CK$9:$CL$163,2,0),\"\")","v":"Handspring, Front Salto"}]
[null,null,null,null,null,null,null,null,null,null,null,null,null,null,null,null,{"$f":"IF(ISNUMBER(SEARCH($B$9,R131)),MAX($Q$8:Q130)+1,0)","v":123},"Split leap - sissone",null,null,{"$f":"IFERROR(VLOOKUP(ROWS($R$9:R131),$Q$9:$R$163,2,0),\"\")","v":"Split leap - sissone"},null,null,null,{"$f":"IF(ISNUMBER(SEARCH($B$10,Z131)),MAX($Y$8:Y130)+1,0)","v":123},"Split leap - sissone",null,null,{"$f":"IFERROR(VLOOKUP(ROWS($Z$9:Z131),$Y$9:$Z$163,2,0),\"\")","v":"Split leap - sissone"},null,null,null,{"$f":"IF(ISNUMBER(SEARCH($B$11,AH131)),MAX($AG$8:AG130)+1,0)","v":123},"Split leap - sissone",null,null,{"$f":"IFERROR(VLOOKUP(ROWS($AH$9:AH131),$AG$9:$AH$163,2,0),\"\")","v":"Split leap - sissone"},null,null,null,{"$f":"IF(ISNUMBER(SEARCH($B$12,AP131)),MAX($AO$8:AO130)+1,0)","v":123},"Split leap - sissone",null,null,{"$f":"IFERROR(VLOOKUP(ROWS($AP$9:AP131),$AO$9:$AP$163,2,0),\"\")","v":"Split leap - sissone"},null,null,null,{"$f":"IF(ISNUMBER(SEARCH($B$13,AX131)),MAX($AW$8:AW130)+1,0)","v":123},"Split leap - sissone",null,null,{"$f":"IFERROR(VLOOKUP(ROWS($AX$9:AX131),$AW$9:$AX$163,2,0),\"\")","v":"Split leap - sissone"},null,null,null,{"$f":"IF(ISNUMBER(SEARCH($B$14,BF131)),MAX($BE$8:BE130)+1,0)","v":123},"Split leap - sissone",null,null,{"$f":"IFERROR(VLOOKUP(ROWS($BF$9:BF131),$BE$9:$BF$163,2,0),\"\")","v":"Split leap - sissone"},null,null,null,{"$f":"IF(ISNUMBER(SEARCH($B$15,BN131)),MAX($BM$8:BM130)+1,0)","v":123},"Split leap - sissone",null,null,{"$f":"IFERROR(VLOOKUP(ROWS($BN$9:BN131),$BM$9:$BN$163,2,0),\"\")","v":"Split leap - sissone"},null,null,null,{"$f":"IF(ISNUMBER(SEARCH($B$16,BV131)),MAX($BU$8:BU130)+1,0)","v":123},"Split leap - sissone",null,null,{"$f":"IFERROR(VLOOKUP(ROWS($BV$9:BV131),$BU$9:$BV$163,2,0),\"\")","v":"Split leap - sissone"},null,null,null,{"$f":"IF(ISNUMBER(SEARCH($B$17,CD131)),MAX($CC$8:CC130)+1,0)","v":123},"Split leap - sissone",null,null,{"$f":"IFERROR(VLOOKUP(ROWS($CD$9:CD131),$CC$9:$CD$163,2,0),\"\")","v":"Split leap - sissone"},null,null,null,{"$f":"IF(ISNUMBER(SEARCH($B$18,CL131)),MAX($CK$8:CK130)+1,0)","v":123},"Split leap - sissone",null,null,{"$f":"IFERROR(VLOOKUP(ROWS($CL$9:CL131),$CK$9:$CL$163,2,0),\"\")","v":"Split leap - sissone"}]
[null,null,null,null,null,null,null,null,null,null,null,null,null,null,null,null,{"$f":"IF(ISNUMBER(SEARCH($B$9,R132)),MAX($Q$8:Q131)+1,0)","v":124},"Split leap - cat leap full turn",null,null,{"$f":"IFERROR(VLOOKUP(ROWS($R$9:R132),$Q$9:$R$163,2,0),\"\")","v":"Split leap - cat leap full turn"},null,null,null,{"$f":"IF(ISNUMBER(SEARCH($B$10,Z132)),MAX($Y$8:Y131)+1,0)","v":124},"Split leap - cat leap full turn",null,null,{"$f":"IFERROR(VLOOKUP(ROWS($Z$9:Z132),$Y$9:$Z$163,2,0),\"\")","v":"Split leap - cat leap full turn"},null,null,null,{"$f":"IF(ISNUMBER(SEARCH($B$11,AH132)),MAX($AG$8:AG131)+1,0)","v":124},"Split leap - cat leap full turn",null,null,{"$f":"IFERROR(VLOOKUP(ROWS($AH$9:AH132),$AG$9:$AH$163,2,0),\"\")","v":"Split leap - cat leap full turn"},null,null,null,{"$f":"IF(ISNUMBER(SEARCH($B$12,AP132)),MAX($AO$8:AO131)+1,0)","v":124},"Split leap - cat leap full turn",null,null,{"$f":"IFERROR(VLOOKUP(ROWS($AP$9:AP132),$AO$9:$AP$163,2,0),\"\")","v":"Split leap - cat leap full turn"},null,null,null,{"$f":"IF(ISNUMBER(SEARCH($B$13,AX132)),MAX($AW$8:AW131)+1,0)","v":124},"Split leap - cat leap full turn",null,null,{"$f":"IFERROR(VLOOKUP(ROWS($AX$9:AX132),$AW$9:$AX$163,2,0),\"\")","v":"Split leap - cat leap full turn"},null,null,null,{"$f":"IF(ISNUMBER(SEARCH($B$14,BF132)),MAX($BE$8:BE131)+1,0)","v":124},"Split leap - cat leap full turn",null,null,{"$f":"IFERROR(VLOOKUP(ROWS($BF$9:BF132),$BE$9:$BF$163,2,0),\"\")","v":"Split leap - cat leap full turn"},null,null,null,{"$f":"IF(ISNUMBER(SEARCH($B$15,BN132)),MAX($BM$8:BM131)+1,0)","v":124},"Split leap - cat leap full turn",null,null,{"$f":"IFERROR(VLOOKUP(ROWS($BN$9:BN132),$BM$9:$BN$163,2,0),\"\")","v":"Split leap - cat leap full turn"},null,null,null,{"$f":"IF(ISNUMBER(SEARCH($B$16,BV132)),MAX($BU$8:BU131)+1,0)","v":124},"Split leap - cat leap full turn",null,null,{"$f":"IFERROR(VLOOKUP(ROWS($BV$9:BV132),$BU$9:$BV$163,2,0),\"\")","v":"Split leap - cat leap full turn"},null,null,null,{"$f":"IF(ISNUMBER(SEARCH($B$17,CD132)),MAX($CC$8:CC131)+1,0)","v":124},"Split leap - cat leap full turn",null,null,{"$f":"IFERROR(VLOOKUP(ROWS($CD$9:CD132),$CC$9:$CD$163,2,0),\"\")","v":"Split leap - cat leap full turn"},null,null,null,{"$f":"IF(ISNUMBER(SEARCH($B$18,CL132)),MAX($CK$8:CK131)+1,0)","v":124},"Split leap - cat leap full turn",null,null,{"$f":"IFERROR(VLOOKUP(ROWS($CL$9:CL132),$CK$9:$CL$163,2,0),\"\")","v":"Split leap - cat leap full turn"}]
[null,null,null,null,null,null,null,null,null,null,null,null,null,null,null,null,{"$f":"IF(ISNUMBER(SEARCH($B$9,R133)),MAX($Q$8:Q132)+1,0)","v":125},"Change leg split leap - split leap",null,null,{"$f":"IFERROR(VLOOKUP(ROWS($R$9:R133),$Q$9:$R$163,2,0),\"\")","v":"Change leg split leap - split leap"},null,null,null,{"$f":"IF(ISNUMBER(SEARCH($B$10,Z133)),MAX($Y$8:Y132)+1,0)","v":125},"Change leg split leap - split leap",null,null,{"$f":"IFERROR(VLOOKUP(ROWS($Z$9:Z133),$Y$9:$Z$163,2,0),\"\")","v":"Change leg split leap - split leap"},null,null,null,{"$f":"IF(ISNUMBER(SEARCH($B$11,AH133)),MAX($AG$8:AG132)+1,0)","v":125},"Change leg split leap - split leap",null,null,{"$f":"IFERROR(VLOOKUP(ROWS($AH$9:AH133),$AG$9:$AH$163,2,0),\"\")","v":"Change leg split leap - split leap"},null,null,null,{"$f":"IF(ISNUMBER(SEARCH($B$12,AP133)),MAX($AO$8:AO132)+1,0)","v":125},"Change leg split leap - split leap",null,null,{"$f":"IFERROR(VLOOKUP(ROWS($AP$9:AP133),$AO$9:$AP$163,2,0),\"\")","v":"Change leg split leap - split leap"},null,null,null,{"$f":"IF(ISNUMBER(SEARCH($B$13,AX133)),MAX($AW$8:AW132)+1,0)","v":125},"Change leg split leap - split leap",null,null,{"$f":"IFERROR(VLOOKUP(ROWS($AX$9:AX133),$AW$9:$AX$163,2,0),\"\")","v":"Change leg split leap - split leap"},null,null,null,{"$f":"IF(ISNUMBER(SEARCH($B$14,BF133)),MAX($BE$8:BE132)+1,0)","v":125},"Change leg split leap - split leap",null,null,{"$f":"IFERROR(VLOOKUP(ROWS($BF$9:BF133),$BE$9:$BF$163,2,0),\"\")","v":"Change leg split leap - split leap"},null,null,null,{"$f":"IF(ISNUMBER(SEARCH($B$15,BN133)),MAX($BM$8:BM132)+1,0)","v":125},"Change leg split leap - split leap",null,null,{"$f":"IFERROR(VLOOKUP(ROWS($BN$9:BN133),$BM$9:$BN$163,2,0),\"\")","v":"Change leg split leap - split leap"},null,null,null,{"$f":"IF(ISNUMBER(SEARCH($B$16,BV133)),MAX($BU$8:BU132)+1,0)","v":125},"Change leg split leap - split leap",null,null,{"$f":"IFERROR(VLOOKUP(ROWS($BV$9:BV133),$BU$9:$BV$163,2,0),\"\")","v":"Change leg split leap - split leap"},null,null,null,{"$f":"IF(ISNUMBER(SEARCH($B$17,CD133)),MAX($CC$8:CC132)+1,0)","v":125},"Change leg split leap - split leap",null,null,{"$f":"IFERROR(VLOOKUP(ROWS($CD$9:CD133),$CC$9:$CD$163,2,0),\"\")","v":"Change leg split leap - split leap"},null,null,null,{"$f":"IF(ISNUMBER(SEARCH($B$18,CL133)),MAX($CK$8:CK132)+1,0)","v":125},"Change leg split leap - split leap",null,null,{"$f":"IFERROR(VLOOKUP(ROWS($CL$9:CL133),$CK$9:$CL$163,2,0),\"\")","v":"Change leg split leap - split leap"}]
[null,null,null,null,null,null,null,null,null,null,null,null,null,null,null,null,{"$f":"IF(ISNUMBER(SEARCH($B$9,R134)),MAX($Q$8:Q133)+1,0)","v":126},"Split leap - W jump",null,null,{"$f":"IFERROR(VLOOKUP(ROWS($R$9:R134),$Q$9:$R$163,2,0),\"\")","v":"Split leap - W jump"},null,null,null,{"$f":"IF(ISNUMBER(SEARCH($B$10,Z134)),MAX($Y$8:Y133)+1,0)","v":126},"Split leap - W jump",null,null,{"$f":"IFERROR(VLOOKUP(ROWS($Z$9:Z134),$Y$9:$Z$163,2,0),\"\")","v":"Split leap - W jump"},null,null,null,{"$f":"IF(ISNUMBER(SEARCH($B$11,AH134)),MAX($AG$8:AG133)+1,0)","v":126},"Split leap - W jump",null,null,{"$f":"IFERROR(VLOOKUP(ROWS($AH$9:AH134),$AG$9:$AH$163,2,0),\"\")","v":"Split leap - W jump"},null,null,null,{"$f":"IF(ISNUMBER(SEARCH($B$12,AP134)),MAX($AO$8:AO133)+1,0)","v":126},"Split leap - W jump",null,null,{"$f":"IFERROR(VLOOKUP(ROWS($AP$9:AP134),$AO$9:$AP$163,2,0),\"\")","v":"Split leap - W jump"},null,null,null,{"$f":"IF(ISNUMBER(SEARCH($B$13,AX134)),MAX($AW$8:AW133)+1,0)","v":126},"Split leap - W jump",null,null,{"$f":"IFERROR(VLOOKUP(ROWS($AX$9:AX134),$AW$9:$AX$163,2,0),\"\")","v":"Split leap - W jump"},null,null,null,{"$f":"IF(ISNUMBER(SEARCH($B$14,BF134)),MAX($BE$8:BE133)+1,0)","v":126},"Split leap - W jump",null,null,{"$f":"IFERROR(VLOOKUP(ROWS($BF$9:BF134),$BE$9:$BF$163,2,0),\"\")","v":"Split leap - W jump"},null,null,null,{"$f":"IF(ISNUMBER(SEARCH($B$15,BN134)),MAX($BM$8:BM133)+1,0)","v":126},"Split leap - W jump",null,null,{"$f":"IFERROR(VLOOKUP(ROWS($BN$9:BN134),$BM$9:$BN$163,2,0),\"\")","v":"Split leap - W jump"},null,null,null,{"$f":"IF(ISNUMBER(SEARCH($B$16,BV134)),MAX($BU$8:BU133)+1,0)","v":126},"Split leap - W jump",null,null,{"$f":"IFERROR(VLOOKUP(ROWS($BV$9:BV134),$BU$9:$BV$163,2,0),\"\")","v":"Split leap - W jump"},null,null,null,{"$f":"IF(ISNUMBER(SEARCH($B$17,CD134)),MAX($CC$8:CC133)+1,0)","v":126},"Split leap - W jump",null,null,{"$f":"IFERROR(VLOOKUP(ROWS($CD$9:CD134),$CC$9:$CD$163,2,0),\"\")","v":"Split leap - W jump"},null,null,null,{"$f":"IF(ISNUMBER(SEARCH($B$18,CL134)),MAX($CK$8:CK133)+1,0)","v":126},"Split leap - W jump",null,null,{"$f":"IFERROR(VLOOKUP(ROWS($CL$9:CL134),$CK$9:$CL$163,2,0),\"\")","v":"Split leap - W jump"}]
[null,null,null,null,null,null,null,null,null,null,null,null,null,null,null,null,{"$f":"IF(ISNUMBER(SEARCH($B$9,R135)),MAX($Q$8:Q134)+1,0)","v":127},"Full turn jump - straddle jump",null,null,{"$f":"IFERROR(VLOOKUP(ROWS($R$9:R135),$Q$9:$R$163,2,0),\"\")","v":"Full turn jump - straddle jump"},null,null,null,{"$f":"IF(ISNUMBER(SEARCH($B$10,Z135)),MAX($Y$8:Y134)+1,0)","v":127},"Full turn jump - straddle jump",null,null,{"$f":"IFERROR(VLOOKUP(ROWS($Z$9:Z135),$Y$9:$Z$163,2,0),\"\")","v":"Full turn jump - straddle jump"},null,null,null,{"$f":"IF(ISNUMBER(SEARCH($B$11,AH135)),MAX($AG$8:AG134)+1,0)","v":127},"Full turn jump - straddle jump",null,null,{"$f":"IFERROR(VLOOKUP(ROWS($AH$9:AH135),$AG$9:$AH$163,2,0),\"\")","v":"Full turn jump - straddle jump"},null,null,null,{"$f":"IF(ISNUMBER(SEARCH($B$12,AP135)),MAX($AO$8:AO134)+1,0)","v":127},"Full turn jump - straddle jump",null,null,{"$f":"IFERROR(VLOOKUP(ROWS($AP$9:AP135),$AO$9:$AP$163,2,0),\"\")","v":"Full turn jump - straddle jump"},null,null,null,{"$f":"IF(ISNUMBER(SEARCH($B$13,AX135)),MAX($AW$8:AW134)+1,0)","v":127},"Full turn jump - straddle jump",null,null,{"$f":"IFERROR(VLOOKUP(ROWS($AX$9:AX135),$AW$9:$AX$163,2,0),\"\")","v":"Full turn jump - straddle jump"},null,null,null,{"$f":"IF(ISNUMBER(SEARCH($B$14,BF135)),MAX($BE$8:BE134)+1,0)","v":127},"Full turn jump - straddle jump",null,null,{"$f":"IFERROR(VLOOKUP(ROWS($BF$9:BF135),$BE$9:$BF$163,2,0),\"\")","v":"Full turn jump - straddle jump"},null,null,null,{"$f":"IF(ISNUMBER(SEARCH($B$15,BN135)),MAX($BM$8:BM134)+1,0)","v":127},"Full turn jump - straddle jump",null,null,{"$f":"IFERROR(VLOOKUP(ROWS($BN$9:BN135),$BM$9:$BN$163,2,0),\"\")","v":"Full turn jump - straddle jump"},null,null,null,{"$f":"IF(ISNUMBER(SEARCH($B$16,BV135)),MAX($BU$8:BU134)+1,0)","v":127},"Full turn jump - straddle jump",null,null,{"$f":"IFERROR(VLOOKUP(ROWS($BV$9:BV135),$BU$9:$BV$163,2,0),\"\")","v":"Full turn jump - straddle jump"},null,null,null,{"$f":"IF(ISNUMBER(SEARCH($B$17,CD135)),MAX($CC$8:CC134)+1,0)","v":127},"Full turn jump - straddle jump",null,null,{"$f":"IFERROR(VLOOKUP(ROWS($CD$9:CD135),$CC$9:$CD$163,2,0),\"\")","v":"Full turn jump - straddle jump"},null,null,null,{"$f":"IF(ISNUMBER(SEARCH($B$18,CL135)),MAX($CK$8:CK134)+1,0)","v":127},"Full turn jump - straddle jump",null,null,{"$f":"IFERROR(VLOOKUP(ROWS($CL$9:CL135),$CK$9:$CL$163,2,0),\"\")","v":"Full turn jump - straddle jump"}]
[null,null,null,null,null,null,null,null,null,null,null,null,null,null,null,null,{"$f":"IF(ISNUMBER(SEARCH($B$9,R136)),MAX($Q$8:Q135)+1,0)","v":128},"Jump 1/2 Turn to Prone",null,null,{"$f":"IFERROR(VLOOKUP(ROWS($R$9:R136),$Q$9:$R$163,2,0),\"\")","v":"Jump 1/2 Turn to Prone"},null,null,null,{"$f":"IF(ISNUMBER(SEARCH($B$10,Z136)),MAX($Y$8:Y135)+1,0)","v":128},"Jump 1/2 Turn to Prone",null,null,{"$f":"IFERROR(VLOOKUP(ROWS($Z$9:Z136),$Y$9:$Z$163,2,0),\"\")","v":"Jump 1/2 Turn to Prone"},null,null,null,{"$f":"IF(ISNUMBER(SEARCH($B$11,AH136)),MAX($AG$8:AG135)+1,0)","v":128},"Jump 1/2 Turn to Prone",null,null,{"$f":"IFERROR(VLOOKUP(ROWS($AH$9:AH136),$AG$9:$AH$163,2,0),\"\")","v":"Jump 1/2 Turn to Prone"},null,null,null,{"$f":"IF(ISNUMBER(SEARCH($B$12,AP136)),MAX($AO$8:AO135)+1,0)","v":128},"Jump 1/2 Turn to Prone",null,null,{"$f":"IFERROR(VLOOKUP(ROWS($AP$9:AP136),$AO$9:$AP$163,2,0),\"\")","v":"Jump 1/2 Turn to Prone"},null,null,null,{"$f":"IF(ISNUMBER(SEARCH($B$13,AX136)),MAX($AW$8:AW135)+1,0)","v":128},"Jump 1/2 Turn to Prone",null,null,{"$f":"IFERROR(VLOOKUP(ROWS($AX$9:AX136),$AW$9:$AX$163,2,0),\"\")","v":"Jump 1/2 Turn to Prone"},null,null,null,{"$f":"IF(ISNUMBER(SEARCH($B$14,BF136)),MAX($BE$8:BE135)+1,0)","v":128},"Jump 1/2 Turn to Prone",null,null,{"$f":"IFERROR(VLOOKUP(ROWS($BF$9:BF136),$BE$9:$BF$163,2,0),\"\")","v":"Jump 1/2 Turn to Prone"},null,null,null,{"$f":"IF(ISNUMBER(SEARCH($B$15,BN136)),MAX($BM$8:BM135)+1,0)","v":128},"Jump 1/2 Turn to Prone",null,null,{"$f":"IFERROR(VLOOKUP(ROWS($BN$9:BN136),$BM$9:$BN$163,2,0),\"\")","v":"Jump 1/2 Turn to Prone"},null,null,null,{"$f":"IF(ISNUMBER(SEARCH($B$16,BV136)),MAX($BU$8:BU135)+1,0)","v":128},"Jump 1/2 Turn to Prone",null,null,{"$f":"IFERROR(VLOOKUP(ROWS($BV$9:BV136),$BU$9:$BV$163,2,0),\"\")","v":"Jump 1/2 Turn to Prone"},null,null,null,{"$f":"IF(ISNUMBER(SEARCH($B$17,CD136)),MAX($CC$8:CC135)+1,0)","v":128},"Jump 1/2 Turn to Prone",null,null,{"$f":"IFERROR(VLOOKUP(ROWS($CD$9:CD136),$CC$9:$CD$163,2,0),\"\")","v":"Jump 1/2 Turn to Prone"},null,null,null,{"$f":"IF(ISNUMBER(SEARCH($B$18,CL136)),MAX($CK$8:CK135)+1,0)","v":128},"Jump 1/2 Turn to Prone",null,null,{"$f":"IFERROR(VLOOKUP(ROWS($CL$9:CL136),$CK$9:$CL$163,2,0),\"\")","v":"Jump 1/2 Turn to Prone"}]
[null,null,null,null,null,null,null,null,null,null,null,null,null,null,null,null,{"$f":"IF(ISNUMBER(SEARCH($B$9,R137)),MAX($Q$8:Q136)+1,0)","v":129},"Straddle jump Shushunova",null,null,{"$f":"IFERROR(VLOOKUP(ROWS($R$9:R137),$Q$9:$R$163,2,0),\"\")","v":"Straddle jump Shushunova"},null,null,null,{"$f":"IF(ISNUMBER(SEARCH($B$10,Z137)),MAX($Y$8:Y136)+1,0)","v":129},"Straddle jump Shushunova",null,null,{"$f":"IFERROR(VLOOKUP(ROWS($Z$9:Z137),$Y$9:$Z$163,2,0),\"\")","v":"Straddle jump Shushunova"},null,null,null,{"$f":"IF(ISNUMBER(SEARCH($B$11,AH137)),MAX($AG$8:AG136)+1,0)","v":129},"Straddle jump Shushunova",null,null,{"$f":"IFERROR(VLOOKUP(ROWS($AH$9:AH137),$AG$9:$AH$163,2,0),\"\")","v":"Straddle jump Shushunova"},null,null,null,{"$f":"IF(ISNUMBER(SEARCH($B$12,AP137)),MAX($AO$8:AO136)+1,0)","v":129},"Straddle jump Shushunova",null,null,{"$f":"IFERROR(VLOOKUP(ROWS($AP$9:AP137),$AO$9:$AP$163,2,0),\"\")","v":"Straddle jump Shushunova"},null,null,null,{"$f":"IF(ISNUMBER(SEARCH($B$13,AX137)),MAX($AW$8:AW136)+1,0)","v":129},"Straddle jump Shushunova",null,null,{"$f":"IFERROR(VLOOKUP(ROWS($AX$9:AX137),$AW$9:$AX$163,2,0),\"\")","v":"Straddle jump Shushunova"},null,null,null,{"$f":"IF(ISNUMBER(SEARCH($B$14,BF137)),MAX($BE$8:BE136)+1,0)","v":129},"Straddle jump Shushunova",null,null,{"$f":"IFERROR(VLOOKUP(ROWS($BF$9:BF137),$BE$9:$BF$163,2,0),\"\")","v":"Straddle jump Shushunova"},null,null,null,{"$f":"IF(ISNUMBER(SEARCH($B$15,BN137)),MAX($BM$8:BM136)+1,0)","v":129},"Straddle jump Shushunova",null,null,{"$f":"IFERROR(VLOOKUP(ROWS($BN$9:BN137),$BM$9:$BN$163,2,0),\"\")","v":"Straddle jump Shushunova"},null,null,null,{"$f":"IF(ISNUMBER(SEARCH($B$16,BV137)),MAX($BU$8:BU136)+1,0)","v":129},"Straddle jump Shushunova",null,null,{"$f":"IFERROR(VLOOKUP(ROWS($BV$9:BV137),$BU$9:$BV$163,2,0),\"\")","v":"Straddle jump Shushunova"},null,null,null,{"$f":"IF(ISNUMBER(SEARCH($B$17,CD137)),MAX($CC$8:CC136)+1,0)","v":129},"Straddle jump Shushunova",null,null,{"$f":"IFERROR(VLOOKUP(ROWS($CD$9:CD137),$CC$9:$CD$163,2,0),\"\")","v":"Straddle jump Shushunova"},null,null,null,{"$f":"IF(ISNUMBER(SEARCH($B$18,CL137)),MAX($CK$8:CK136)+1,0)","v":129},"Straddle jump Shushunova",null,null,{"$f":"IFERROR(VLOOKUP(ROWS($CL$9:CL137),$CK$9:$CL$163,2,0),\"\")","v":"Straddle jump Shushunova"}]
[null,null,null,null,null,null,null,null,null,null,null,null,null,null,null,null,{"$f":"IF(ISNUMBER(SEARCH($B$9,R138)),MAX($Q$8:Q137)+1,0)","v":130},"Straddle jump - pike jump",null,null,{"$f":"IFERROR(VLOOKUP(ROWS($R$9:R138),$Q$9:$R$163,2,0),\"\")","v":"Straddle jump - pike jump"},null,null,null,{"$f":"IF(ISNUMBER(SEARCH($B$10,Z138)),MAX($Y$8:Y137)+1,0)","v":130},"Straddle jump - pike jump",null,null,{"$f":"IFERROR(VLOOKUP(ROWS($Z$9:Z138),$Y$9:$Z$163,2,0),\"\")","v":"Straddle jump - pike jump"},null,null,null,{"$f":"IF(ISNUMBER(SEARCH($B$11,AH138)),MAX($AG$8:AG137)+1,0)","v":130},"Straddle jump - pike jump",null,null,{"$f":"IFERROR(VLOOKUP(ROWS($AH$9:AH138),$AG$9:$AH$163,2,0),\"\")","v":"Straddle jump - pike jump"},null,null,null,{"$f":"IF(ISNUMBER(SEARCH($B$12,AP138)),MAX($AO$8:AO137)+1,0)","v":130},"Straddle jump - pike jump",null,null,{"$f":"IFERROR(VLOOKUP(ROWS($AP$9:AP138),$AO$9:$AP$163,2,0),\"\")","v":"Straddle jump - pike jump"},null,null,null,{"$f":"IF(ISNUMBER(SEARCH($B$13,AX138)),MAX($AW$8:AW137)+1,0)","v":130},"Straddle jump - pike jump",null,null,{"$f":"IFERROR(VLOOKUP(ROWS($AX$9:AX138),$AW$9:$AX$163,2,0),\"\")","v":"Straddle jump - pike jump"},null,null,null,{"$f":"IF(ISNUMBER(SEARCH($B$14,BF138)),MAX($BE$8:BE137)+1,0)","v":130},"Straddle jump - pike jump",null,null,{"$f":"IFERROR(VLOOKUP(ROWS($BF$9:BF138),$BE$9:$BF$163,2,0),\"\")","v":"Straddle jump - pike jump"},null,null,null,{"$f":"IF(ISNUMBER(SEARCH($B$15,BN138)),MAX($BM$8:BM137)+1,0)","v":130},"Straddle jump - pike jump",null,null,{"$f":"IFERROR(VLOOKUP(ROWS($BN$9:BN138),$BM$9:$BN$163,2,0),\"\")","v":"Straddle jump - pike jump"},null,null,null,{"$f":"IF(ISNUMBER(SEARCH($B$16,BV138)),MAX($BU$8:BU137)+1,0)","v":130},"Straddle jump - pike jump",null,null,{"$f":"IFERROR(VLOOKUP(ROWS($BV$9:BV138),$BU$9:$BV$163,2,0),\"\")","v":"Straddle jump - pike jump"},null,null,null,{"$f":"IF(ISNUMBER(SEARCH($B$17,CD138)),MAX($CC$8:CC137)+1,0)","v":130},"Straddle jump - pike jump",null,null,{"$f":"IFERROR(VLOOKUP(ROWS($CD$9:CD138),$CC$9:$CD$163,2,0),\"\")","v":"Straddle jump - pike jump"},null,null,null,{"$f":"IF(ISNUMBER(SEARCH($B$18,CL138)),MAX($CK$8:CK137)+1,0)","v":130},"Straddle jump - pike jump",null,null,{"$f":"IFERROR(VLOOKUP(ROWS($CL$9:CL138),$CK$9:$CL$163,2,0),\"\")","v":"Straddle jump - pike jump"}]
[null,null,null,null,null,null,null,null,null,null,null,null,null,null,null,null,{"$f":"IF(ISNUMBER(SEARCH($B$9,R139)),MAX($Q$8:Q138)+1,0)","v":131},"Double spin",null,null,{"$f":"IFERROR(VLOOKUP(ROWS($R$9:R139),$Q$9:$R$163,2,0),\"\")","v":"Double spin"},null,null,null,{"$f":"IF(ISNUMBER(SEARCH($B$10,Z139)),MAX($Y$8:Y138)+1,0)","v":131},"Double spin",null,null,{"$f":"IFERROR(VLOOKUP(ROWS($Z$9:Z139),$Y$9:$Z$163,2,0),\"\")","v":"Double spin"},null,null,null,{"$f":"IF(ISNUMBER(SEARCH($B$11,AH139)),MAX($AG$8:AG138)+1,0)","v":131},"Double spin",null,null,{"$f":"IFERROR(VLOOKUP(ROWS($AH$9:AH139),$AG$9:$AH$163,2,0),\"\")","v":"Double spin"},null,null,null,{"$f":"IF(ISNUMBER(SEARCH($B$12,AP139)),MAX($AO$8:AO138)+1,0)","v":131},"Double spin",null,null,{"$f":"IFERROR(VLOOKUP(ROWS($AP$9:AP139),$AO$9:$AP$163,2,0),\"\")","v":"Double spin"},null,null,null,{"$f":"IF(ISNUMBER(SEARCH($B$13,AX139)),MAX($AW$8:AW138)+1,0)","v":131},"Double spin",null,null,{"$f":"IFERROR(VLOOKUP(ROWS($AX$9:AX139),$AW$9:$AX$163,2,0),\"\")","v":"Double spin"},null,null,null,{"$f":"IF(ISNUMBER(SEARCH($B$14,BF139)),MAX($BE$8:BE138)+1,0)","v":131},"Double spin",null,null,{"$f":"IFERROR(VLOOKUP(ROWS($BF$9:BF139),$BE$9:$BF$163,2,0),\"\")","v":"Double spin"},null,null,null,{"$f":"IF(ISNUMBER(SEARCH($B$15,BN139)),MAX($BM$8:BM138)+1,0)","v":131},"Double spin",null,null,{"$f":"IFERROR(VLOOKUP(ROWS($BN$9:BN139),$BM$9:$BN$163,2,0),\"\")","v":"Double spin"},null,null,null,{"$f":"IF(ISNUMBER(SEARCH($B$16,BV139)),MAX($BU$8:BU138)+1,0)","v":131},"Double spin",null,null,{"$f":"IFERROR(VLOOKUP(ROWS($BV$9:BV139),$BU$9:$BV$163,2,0),\"\")","v":"Double spin"},null,null,null,{"$f":"IF(ISNUMBER(SEARCH($B$17,CD139)),MAX($CC$8:CC138)+1,0)","v":131},"Double spin",null,null,{"$f":"IFERROR(VLOOKUP(ROWS($CD$9:CD139),$CC$9:$CD$163,2,0),\"\")","v":"Double spin"},null,null,null,{"$f":"IF(ISNUMBER(SEARCH($B$18,CL139)),MAX($CK$8:CK138)+1,0)","v":131},"Double spin",null,null,{"$f":"IFERROR(VLOOKUP(ROWS($CL$9:CL139),$CK$9:$CL$163,2,0),\"\")","v":"Double spin"}]
[null,null,null,null,null,null,null,null,null,null,null,null,null,null,null,null,{"$f":"IF(ISNUMBER(SEARCH($B$9,R140)),MAX($Q$8:Q139)+1,0)","v":132},"Full spin 1 leg extended, min 45 deg",null,null,{"$f":"IFERROR(VLOOKUP(ROWS($R$9:R140),$Q$9:$R$163,2,0),\"\")","v":"Full spin 1 leg extended, min 45 deg"},null,null,null,{"$f":"IF(ISNUMBER(SEARCH($B$10,Z140)),MAX($Y$8:Y139)+1,0)","v":132},"Full spin 1 leg extended, min 45 deg",null,null,{"$f":"IFERROR(VLOOKUP(ROWS($Z$9:Z140),$Y$9:$Z$163,2,0),\"\")","v":"Full spin 1 leg extended, min 45 deg"},null,null,null,{"$f":"IF(ISNUMBER(SEARCH($B$11,AH140)),MAX($AG$8:AG139)+1,0)","v":132},"Full spin 1 leg extended, min 45 deg",null,null,{"$f":"IFERROR(VLOOKUP(ROWS($AH$9:AH140),$AG$9:$AH$163,2,0),\"\")","v":"Full spin 1 leg extended, min 45 deg"},null,null,null,{"$f":"IF(ISNUMBER(SEARCH($B$12,AP140)),MAX($AO$8:AO139)+1,0)","v":132},"Full spin 1 leg extended, min 45 deg",null,null,{"$f":"IFERROR(VLOOKUP(ROWS($AP$9:AP140),$AO$9:$AP$163,2,0),\"\")","v":"Full spin 1 leg extended, min 45 deg"},null,null,null,{"$f":"IF(ISNUMBER(SEARCH($B$13,AX140)),MAX($AW$8:AW139)+1,0)","v":132},"Full spin 1 leg extended, min 45 deg",null,null,{"$f":"IFERROR(VLOOKUP(ROWS($AX$9:AX140),$AW$9:$AX$163,2,0),\"\")","v":"Full spin 1 leg extended, min 45 deg"},null,null,null,{"$f":"IF(ISNUMBER(SEARCH($B$14,BF140)),MAX($BE$8:BE139)+1,0)","v":132},"Full spin 1 leg extended, min 45 deg",null,null,{"$f":"IFERROR(VLOOKUP(ROWS($BF$9:BF140),$BE$9:$BF$163,2,0),\"\")","v":"Full spin 1 leg extended, min 45 deg"},null,null,null,{"$f":"IF(ISNUMBER(SEARCH($B$15,BN140)),MAX($BM$8:BM139)+1,0)","v":132},"Full spin 1 leg extended, min 45 deg",null,null,{"$f":"IFERROR(VLOOKUP(ROWS($BN$9:BN140),$BM$9:$BN$163,2,0),\"\")","v":"Full spin 1 leg extended, min 45 deg"},null,null,null,{"$f":"IF(ISNUMBER(SEARCH($B$16,BV140)),MAX($BU$8:BU139)+1,0)","v":132},"Full spin 1 leg extended, min 45 deg",null,null,{"$f":"IFERROR(VLOOKUP(ROWS($BV$9:BV140),$BU$9:$BV$163,2,0),\"\")","v":"Full spin 1 leg extended, min 45 deg"},null,null,null,{"$f":"IF(ISNUMBER(SEARCH($B$17,CD140)),MAX($CC$8:CC139)+1,0)","v":132},"Full spin 1 leg extended, min 45 deg",null,null,{"$f":"IFERROR(VLOOKUP(ROWS($CD$9:CD140),$CC$9:$CD$163,2,0),\"\")","v":"Full spin 1 leg extended, min 45 deg"},null,null,null,{"$f":"IF(ISNUMBER(SEARCH($B$18,CL140)),MAX($CK$8:CK139)+1,0)","v":132},"Full spin 1 leg extended, min 45 deg",null,null,{"$f":"IFERROR(VLOOKUP(ROWS($CL$9:CL140),$CK$9:$CL$163,2,0),\"\")","v":"Full spin 1 leg extended, min 45 deg"}]
[null,null,null,null,null,null,null,null,null,null,null,null,null,null,null,null,{"$f":"IF(ISNUMBER(SEARCH($B$9,R141)),MAX($Q$8:Q140)+1,0)","v":133},"From Splits position lift to H/stand ",null,null,{"$f":"IFERROR(VLOOKUP(ROWS($R$9:R141),$Q$9:$R$163,2,0),\"\")","v":"From Splits position lift to H/stand "},null,null,null,{"$f":"IF(ISNUMBER(SEARCH($B$10,Z141)),MAX($Y$8:Y140)+1,0)","v":133},"From Splits position lift to H/stand ",null,null,{"$f":"IFERROR(VLOOKUP(ROWS($Z$9:Z141),$Y$9:$Z$163,2,0),\"\")","v":"From Splits position lift to H/stand "},null,null,null,{"$f":"IF(ISNUMBER(SEARCH($B$11,AH141)),MAX($AG$8:AG140)+1,0)","v":133},"From Splits position lift to H/stand ",null,null,{"$f":"IFERROR(VLOOKUP(ROWS($AH$9:AH141),$AG$9:$AH$163,2,0),\"\")","v":"From Splits position lift to H/stand "},null,null,null,{"$f":"IF(ISNUMBER(SEARCH($B$12,AP141)),MAX($AO$8:AO140)+1,0)","v":133},"From Splits position lift to H/stand ",null,null,{"$f":"IFERROR(VLOOKUP(ROWS($AP$9:AP141),$AO$9:$AP$163,2,0),\"\")","v":"From Splits position lift to H/stand "},null,null,null,{"$f":"IF(ISNUMBER(SEARCH($B$13,AX141)),MAX($AW$8:AW140)+1,0)","v":133},"From Splits position lift to H/stand ",null,null,{"$f":"IFERROR(VLOOKUP(ROWS($AX$9:AX141),$AW$9:$AX$163,2,0),\"\")","v":"From Splits position lift to H/stand "},null,null,null,{"$f":"IF(ISNUMBER(SEARCH($B$14,BF141)),MAX($BE$8:BE140)+1,0)","v":133},"From Splits position lift to H/stand ",null,null,{"$f":"IFERROR(VLOOKUP(ROWS($BF$9:BF141),$BE$9:$BF$163,2,0),\"\")","v":"From Splits position lift to H/stand "},null,null,null,{"$f":"IF(ISNUMBER(SEARCH($B$15,BN141)),MAX($BM$8:BM140)+1,0)","v":133},"From Splits position lift to H/stand ",null,null,{"$f":"IFERROR(VLOOKUP(ROWS($BN$9:BN141),$BM$9:$BN$163,2,0),\"\")","v":"From Splits position lift to H/stand "},null,null,null,{"$f":"IF(ISNUMBER(SEARCH($B$16,BV141)),MAX($BU$8:BU140)+1,0)","v":133},"From Splits position lift to H/stand ",null,null,{"$f":"IFERROR(VLOOKUP(ROWS($BV$9:BV141),$BU$9:$BV$163,2,0),\"\")","v":"From Splits position lift to H/stand "},null,null,null,{"$f":"IF(ISNUMBER(SEARCH($B$17,CD141)),MAX($CC$8:CC140)+1,0)","v":133},"From Splits position lift to H/stand ",null,null,{"$f":"IFERROR(VLOOKUP(ROWS($CD$9:CD141),$CC$9:$CD$163,2,0),\"\")","v":"From Splits position lift to H/stand "},null,null,null,{"$f":"IF(ISNUMBER(SEARCH($B$18,CL141)),MAX($CK$8:CK140)+1,0)","v":133},"From Splits position lift to H/stand ",null,null,{"$f":"IFERROR(VLOOKUP(ROWS($CL$9:CL141),$CK$9:$CL$163,2,0),\"\")","v":"From Splits position lift to H/stand "}]
[null,null,null,null,null,null,null,null,null,null,null,null,null,null,null,null,{"$f":"IF(ISNUMBER(SEARCH($B$9,R142)),MAX($Q$8:Q141)+1,0)","v":134},"Full V ‘Russian’ lever",null,null,{"$f":"IFERROR(VLOOKUP(ROWS($R$9:R142),$Q$9:$R$163,2,0),\"\")","v":"Full V ‘Russian’ lever"},null,null,null,{"$f":"IF(ISNUMBER(SEARCH($B$10,Z142)),MAX($Y$8:Y141)+1,0)","v":134},"Full V ‘Russian’ lever",null,null,{"$f":"IFERROR(VLOOKUP(ROWS($Z$9:Z142),$Y$9:$Z$163,2,0),\"\")","v":"Full V ‘Russian’ lever"},null,null,null,{"$f":"IF(ISNUMBER(SEARCH($B$11,AH142)),MAX($AG$8:AG141)+1,0)","v":134},"Full V ‘Russian’ lever",null,null,{"$f":"IFERROR(VLOOKUP(ROWS($AH$9:AH142),$AG$9:$AH$163,2,0),\"\")","v":"Full V ‘Russian’ lever"},null,null,null,{"$f":"IF(ISNUMBER(SEARCH($B$12,AP142)),MAX($AO$8:AO141)+1,0)","v":134},"Full V ‘Russian’ lever",null,null,{"$f":"IFERROR(VLOOKUP(ROWS($AP$9:AP142),$AO$9:$AP$163,2,0),\"\")","v":"Full V ‘Russian’ lever"},null,null,null,{"$f":"IF(ISNUMBER(SEARCH($B$13,AX142)),MAX($AW$8:AW141)+1,0)","v":134},"Full V ‘Russian’ lever",null,null,{"$f":"IFERROR(VLOOKUP(ROWS($AX$9:AX142),$AW$9:$AX$163,2,0),\"\")","v":"Full V ‘Russian’ lever"},null,null,null,{"$f":"IF(ISNUMBER(SEARCH($B$14,BF142)),MAX($BE$8:BE141)+1,0)","v":134},"Full V ‘Russian’ lever",null,null,{"$f":"IFERROR(VLOOKUP(ROWS($BF$9:BF142),$BE$9:$BF$163,2,0),\"\")","v":"Full V ‘Russian’ lever"},null,null,null,{"$f":"IF(ISNUMBER(SEARCH($B$15,BN142)),MAX($BM$8:BM141)+1,0)","v":134},"Full V ‘Russian’ lever",null,null,{"$f":"IFERROR(VLOOKUP(ROWS($BN$9:BN142),$BM$9:$BN$163,2,0),\"\")","v":"Full V ‘Russian’ lever"},null,null,null,{"$f":"IF(ISNUMBER(SEARCH($B$16,BV142)),MAX($BU$8:BU141)+1,0)","v":134},"Full V ‘Russian’ lever",null,null,{"$f":"IFERROR(VLOOKUP(ROWS($BV$9:BV142),$BU$9:$BV$163,2,0),\"\")","v":"Full V ‘Russian’ lever"},null,null,null,{"$f":"IF(ISNUMBER(SEARCH($B$17,CD142)),MAX($CC$8:CC141)+1,0)","v":134},"Full V ‘Russian’ lever",null,null,{"$f":"IFERROR(VLOOKUP(ROWS($CD$9:CD142),$CC$9:$CD$163,2,0),\"\")","v":"Full V ‘Russian’ lever"},null,null,null,{"$f":"IF(ISNUMBER(SEARCH($B$18,CL142)),MAX($CK$8:CK141)+1,0)","v":134},"Full V ‘Russian’ lever",null,null,{"$f":"IFERROR(VLOOKUP(ROWS($CL$9:CL142),$CK$9:$CL$163,2,0),\"\")","v":"Full V ‘Russian’ lever"}]
[null,null,null,null,null,null,null,null,null,null,null,null,null,null,null,null,{"$f":"IF(ISNUMBER(SEARCH($B$9,R143)),MAX($Q$8:Q142)+1,0)","v":135},"Tucked top planchě (held)",null,null,{"$f":"IFERROR(VLOOKUP(ROWS($R$9:R143),$Q$9:$R$163,2,0),\"\")","v":"Tucked top planchě (held)"},null,null,null,{"$f":"IF(ISNUMBER(SEARCH($B$10,Z143)),MAX($Y$8:Y142)+1,0)","v":135},"Tucked top planchě (held)",null,null,{"$f":"IFERROR(VLOOKUP(ROWS($Z$9:Z143),$Y$9:$Z$163,2,0),\"\")","v":"Tucked top planchě (held)"},null,null,null,{"$f":"IF(ISNUMBER(SEARCH($B$11,AH143)),MAX($AG$8:AG142)+1,0)","v":135},"Tucked top planchě (held)",null,null,{"$f":"IFERROR(VLOOKUP(ROWS($AH$9:AH143),$AG$9:$AH$163,2,0),\"\")","v":"Tucked top planchě (held)"},null,null,null,{"$f":"IF(ISNUMBER(SEARCH($B$12,AP143)),MAX($AO$8:AO142)+1,0)","v":135},"Tucked top planchě (held)",null,null,{"$f":"IFERROR(VLOOKUP(ROWS($AP$9:AP143),$AO$9:$AP$163,2,0),\"\")","v":"Tucked top planchě (held)"},null,null,null,{"$f":"IF(ISNUMBER(SEARCH($B$13,AX143)),MAX($AW$8:AW142)+1,0)","v":135},"Tucked top planchě (held)",null,null,{"$f":"IFERROR(VLOOKUP(ROWS($AX$9:AX143),$AW$9:$AX$163,2,0),\"\")","v":"Tucked top planchě (held)"},null,null,null,{"$f":"IF(ISNUMBER(SEARCH($B$14,BF143)),MAX($BE$8:BE142)+1,0)","v":135},"Tucked top planchě (held)",null,null,{"$f":"IFERROR(VLOOKUP(ROWS($BF$9:BF143),$BE$9:$BF$163,2,0),\"\")","v":"Tucked top planchě (held)"},null,null,null,{"$f":"IF(ISNUMBER(SEARCH($B$15,BN143)),MAX($BM$8:BM142)+1,0)","v":135},"Tucked top planchě (held)",null,null,{"$f":"IFERROR(VLOOKUP(ROWS($BN$9:BN143),$BM$9:$BN$163,2,0),\"\")","v":"Tucked top planchě (held)"},null,null,null,{"$f":"IF(ISNUMBER(SEARCH($B$16,BV143)),MAX($BU$8:BU142)+1,0)","v":135},"Tucked top planchě (held)",null,null,{"$f":"IFERROR(VLOOKUP(ROWS($BV$9:BV143),$BU$9:$BV$163,2,0),\"\")","v":"Tucked top planchě (held)"},null,null,null,{"$f":"IF(ISNUMBER(SEARCH($B$17,CD143)),MAX($CC$8:CC142)+1,0)","v":135},"Tucked top planchě (held)",null,null,{"$f":"IFERROR(VLOOKUP(ROWS($CD$9:CD143),$CC$9:$CD$163,2,0),\"\")","v":"Tucked top planchě (held)"},null,null,null,{"$f":"IF(ISNUMBER(SEARCH($B$18,CL143)),MAX($CK$8:CK142)+1,0)","v":135},"Tucked top planchě (held)",null,null,{"$f":"IFERROR(VLOOKUP(ROWS($CL$9:CL143),$CK$9:$CL$163,2,0),\"\")","v":"Tucked top planchě (held)"}]
[null,null,null,null,null,null,null,null,null,null,null,null,null,null,null,null,{"$f":"IF(ISNUMBER(SEARCH($B$9,R144)),MAX($Q$8:Q143)+1,0)","v":136},"Straddle lever to handstand",null,null,{"$f":"IFERROR(VLOOKUP(ROWS($R$9:R144),$Q$9:$R$163,2,0),\"\")","v":"Straddle lever to handstand"},null,null,null,{"$f":"IF(ISNUMBER(SEARCH($B$10,Z144)),MAX($Y$8:Y143)+1,0)","v":136},"Straddle lever to handstand",null,null,{"$f":"IFERROR(VLOOKUP(ROWS($Z$9:Z144),$Y$9:$Z$163,2,0),\"\")","v":"Straddle lever to handstand"},null,null,null,{"$f":"IF(ISNUMBER(SEARCH($B$11,AH144)),MAX($AG$8:AG143)+1,0)","v":136},"Straddle lever to handstand",null,null,{"$f":"IFERROR(VLOOKUP(ROWS($AH$9:AH144),$AG$9:$AH$163,2,0),\"\")","v":"Straddle lever to handstand"},null,null,null,{"$f":"IF(ISNUMBER(SEARCH($B$12,AP144)),MAX($AO$8:AO143)+1,0)","v":136},"Straddle lever to handstand",null,null,{"$f":"IFERROR(VLOOKUP(ROWS($AP$9:AP144),$AO$9:$AP$163,2,0),\"\")","v":"Straddle lever to handstand"},null,null,null,{"$f":"IF(ISNUMBER(SEARCH($B$13,AX144)),MAX($AW$8:AW143)+1,0)","v":136},"Straddle lever to handstand",null,null,{"$f":"IFERROR(VLOOKUP(ROWS($AX$9:AX144),$AW$9:$AX$163,2,0),\"\")","v":"Straddle lever to handstand"},null,null,null,{"$f":"IF(ISNUMBER(SEARCH($B$14,BF144)),MAX($BE$8:BE143)+1,0)","v":136},"Straddle lever to handstand",null,null,{"$f":"IFERROR(VLOOKUP(ROWS($BF$9:BF144),$BE$9:$BF$163,2,0),\"\")","v":"Straddle lever to handstand"},null,null,null,{"$f":"IF(ISNUMBER(SEARCH($B$15,BN144)),MAX($BM$8:BM143)+1,0)","v":136},"Straddle lever to handstand",null,null,{"$f":"IFERROR(VLOOKUP(ROWS($BN$9:BN144),$BM$9:$BN$163,2,0),\"\")","v":"Straddle lever to handstand"},null,null,null,{"$f":"IF(ISNUMBER(SEARCH($B$16,BV144)),MAX($BU$8:BU143)+1,0)","v":136},"Straddle lever to handstand",null,null,{"$f":"IFERROR(VLOOKUP(ROWS($BV$9:BV144),$BU$9:$BV$163,2,0),\"\")","v":"Straddle lever to handstand"},null,null,null,{"$f":"IF(ISNUMBER(SEARCH($B$17,CD144)),MAX($CC$8:CC143)+1,0)","v":136},"Straddle lever to handstand",null,null,{"$f":"IFERROR(VLOOKUP(ROWS($CD$9:CD144),$CC$9:$CD$163,2,0),\"\")","v":"Straddle lever to handstand"},null,null,null,{"$f":"IF(ISNUMBER(SEARCH($B$18,CL144)),MAX($CK$8:CK143)+1,0)","v":136},"Straddle lever to handstand",null,null,{"$f":"IFERROR(VLOOKUP(ROWS($CL$9:CL144),$CK$9:$CL$163,2,0),\"\")","v":"Straddle lever to handstand"}]
[null,null,null,null,null,null,null,null,null,null,null,null,null,null,null,null,{"$f":"IF(ISNUMBER(SEARCH($B$9,R145)),MAX($Q$8:Q144)+1,0)","v":137},"Straddle lever to h/stand full turn ",null,null,{"$f":"IFERROR(VLOOKUP(ROWS($R$9:R145),$Q$9:$R$163,2,0),\"\")","v":"Straddle lever to h/stand full turn "},null,null,null,{"$f":"IF(ISNUMBER(SEARCH($B$10,Z145)),MAX($Y$8:Y144)+1,0)","v":137},"Straddle lever to h/stand full turn ",null,null,{"$f":"IFERROR(VLOOKUP(ROWS($Z$9:Z145),$Y$9:$Z$163,2,0),\"\")","v":"Straddle lever to h/stand full turn "},null,null,null,{"$f":"IF(ISNUMBER(SEARCH($B$11,AH145)),MAX($AG$8:AG144)+1,0)","v":137},"Straddle lever to h/stand full turn ",null,null,{"$f":"IFERROR(VLOOKUP(ROWS($AH$9:AH145),$AG$9:$AH$163,2,0),\"\")","v":"Straddle lever to h/stand full turn "},null,null,null,{"$f":"IF(ISNUMBER(SEARCH($B$12,AP145)),MAX($AO$8:AO144)+1,0)","v":137},"Straddle lever to h/stand full turn ",null,null,{"$f":"IFERROR(VLOOKUP(ROWS($AP$9:AP145),$AO$9:$AP$163,2,0),\"\")","v":"Straddle lever to h/stand full turn "},null,null,null,{"$f":"IF(ISNUMBER(SEARCH($B$13,AX145)),MAX($AW$8:AW144)+1,0)","v":137},"Straddle lever to h/stand full turn ",null,null,{"$f":"IFERROR(VLOOKUP(ROWS($AX$9:AX145),$AW$9:$AX$163,2,0),\"\")","v":"Straddle lever to h/stand full turn "},null,null,null,{"$f":"IF(ISNUMBER(SEARCH($B$14,BF145)),MAX($BE$8:BE144)+1,0)","v":137},"Straddle lever to h/stand full turn ",null,null,{"$f":"IFERROR(VLOOKUP(ROWS($BF$9:BF145),$BE$9:$BF$163,2,0),\"\")","v":"Straddle lever to h/stand full turn "},null,null,null,{"$f":"IF(ISNUMBER(SEARCH($B$15,BN145)),MAX($BM$8:BM144)+1,0)","v":137},"Straddle lever to h/stand full turn ",null,null,{"$f":"IFERROR(VLOOKUP(ROWS($BN$9:BN145),$BM$9:$BN$163,2,0),\"\")","v":"Straddle lever to h/stand full turn "},null,null,null,{"$f":"IF(ISNUMBER(SEARCH($B$16,BV145)),MAX($BU$8:BU144)+1,0)","v":137},"Straddle lever to h/stand full turn ",null,null,{"$f":"IFERROR(VLOOKUP(ROWS($BV$9:BV145),$BU$9:$BV$163,2,0),\"\")","v":"Straddle lever to h/stand full turn "},null,null,null,{"$f":"IF(ISNUMBER(SEARCH($B$17,CD145)),MAX($CC$8:CC144)+1,0)","v":137},"Straddle lever to h/stand full turn ",null,null,{"$f":"IFERROR(VLOOKUP(ROWS($CD$9:CD145),$CC$9:$CD$163,2,0),\"\")","v":"Straddle lever to h/stand full turn "},null,null,null,{"$f":"IF(ISNUMBER(SEARCH($B$18,CL145)),MAX($CK$8:CK144)+1,0)","v":137},"Straddle lever to h/stand full turn ",null,null,{"$f":"IFERROR(VLOOKUP(ROWS($CL$9:CL145),$CK$9:$CL$163,2,0),\"\")","v":"Straddle lever to h/stand full turn "}]
[null,null,null,null,null,null,null,null,null,null,null,null,null,null,null,null,{"$f":"IF(ISNUMBER(SEARCH($B$9,R146)),MAX($Q$8:Q145)+1,0)","v":138},"Chest Roll to Handstand",null,null,{"$f":"IFERROR(VLOOKUP(ROWS($R$9:R146),$Q$9:$R$163,2,0),\"\")","v":"Chest Roll to Handstand"},null,null,null,{"$f":"IF(ISNUMBER(SEARCH($B$10,Z146)),MAX($Y$8:Y145)+1,0)","v":138},"Chest Roll to Handstand",null,null,{"$f":"IFERROR(VLOOKUP(ROWS($Z$9:Z146),$Y$9:$Z$163,2,0),\"\")","v":"Chest Roll to Handstand"},null,null,null,{"$f":"IF(ISNUMBER(SEARCH($B$11,AH146)),MAX($AG$8:AG145)+1,0)","v":138},"Chest Roll to Handstand",null,null,{"$f":"IFERROR(VLOOKUP(ROWS($AH$9:AH146),$AG$9:$AH$163,2,0),\"\")","v":"Chest Roll to Handstand"},null,null,null,{"$f":"IF(ISNUMBER(SEARCH($B$12,AP146)),MAX($AO$8:AO145)+1,0)","v":138},"Chest Roll to Handstand",null,null,{"$f":"IFERROR(VLOOKUP(ROWS($AP$9:AP146),$AO$9:$AP$163,2,0),\"\")","v":"Chest Roll to Handstand"},null,null,null,{"$f":"IF(ISNUMBER(SEARCH($B$13,AX146)),MAX($AW$8:AW145)+1,0)","v":138},"Chest Roll to Handstand",null,null,{"$f":"IFERROR(VLOOKUP(ROWS($AX$9:AX146),$AW$9:$AX$163,2,0),\"\")","v":"Chest Roll to Handstand"},null,null,null,{"$f":"IF(ISNUMBER(SEARCH($B$14,BF146)),MAX($BE$8:BE145)+1,0)","v":138},"Chest Roll to Handstand",null,null,{"$f":"IFERROR(VLOOKUP(ROWS($BF$9:BF146),$BE$9:$BF$163,2,0),\"\")","v":"Chest Roll to Handstand"},null,null,null,{"$f":"IF(ISNUMBER(SEARCH($B$15,BN146)),MAX($BM$8:BM145)+1,0)","v":138},"Chest Roll to Handstand",null,null,{"$f":"IFERROR(VLOOKUP(ROWS($BN$9:BN146),$BM$9:$BN$163,2,0),\"\")","v":"Chest Roll to Handstand"},null,null,null,{"$f":"IF(ISNUMBER(SEARCH($B$16,BV146)),MAX($BU$8:BU145)+1,0)","v":138},"Chest Roll to Handstand",null,null,{"$f":"IFERROR(VLOOKUP(ROWS($BV$9:BV146),$BU$9:$BV$163,2,0),\"\")","v":"Chest Roll to Handstand"},null,null,null,{"$f":"IF(ISNUMBER(SEARCH($B$17,CD146)),MAX($CC$8:CC145)+1,0)","v":138},"Chest Roll to Handstand",null,null,{"$f":"IFERROR(VLOOKUP(ROWS($CD$9:CD146),$CC$9:$CD$163,2,0),\"\")","v":"Chest Roll to Handstand"},null,null,null,{"$f":"IF(ISNUMBER(SEARCH($B$18,CL146)),MAX($CK$8:CK145)+1,0)","v":138},"Chest Roll to Handstand",null,null,{"$f":"IFERROR(VLOOKUP(ROWS($CL$9:CL146),$CK$9:$CL$163,2,0),\"\")","v":"Chest Roll to Handstand"}]
[null,null,null,null,null,null,null,null,null,null,null,null,null,null,null,null,{"$f":"IF(ISNUMBER(SEARCH($B$9,R147)),MAX($Q$8:Q146)+1,0)","v":139},"B Roll to h/stand, 1/2 or full turn",null,null,{"$f":"IFERROR(VLOOKUP(ROWS($R$9:R147),$Q$9:$R$163,2,0),\"\")","v":"B Roll to h/stand, 1/2 or full turn"},null,null,null,{"$f":"IF(ISNUMBER(SEARCH($B$10,Z147)),MAX($Y$8:Y146)+1,0)","v":139},"B Roll to h/stand, 1/2 or full turn",null,null,{"$f":"IFERROR(VLOOKUP(ROWS($Z$9:Z147),$Y$9:$Z$163,2,0),\"\")","v":"B Roll to h/stand, 1/2 or full turn"},null,null,null,{"$f":"IF(ISNUMBER(SEARCH($B$11,AH147)),MAX($AG$8:AG146)+1,0)","v":139},"B Roll to h/stand, 1/2 or full turn",null,null,{"$f":"IFERROR(VLOOKUP(ROWS($AH$9:AH147),$AG$9:$AH$163,2,0),\"\")","v":"B Roll to h/stand, 1/2 or full turn"},null,null,null,{"$f":"IF(ISNUMBER(SEARCH($B$12,AP147)),MAX($AO$8:AO146)+1,0)","v":139},"B Roll to h/stand, 1/2 or full turn",null,null,{"$f":"IFERROR(VLOOKUP(ROWS($AP$9:AP147),$AO$9:$AP$163,2,0),\"\")","v":"B Roll to h/stand, 1/2 or full turn"},null,null,null,{"$f":"IF(ISNUMBER(SEARCH($B$13,AX147)),MAX($AW$8:AW146)+1,0)","v":139},"B Roll to h/stand, 1/2 or full turn",null,null,{"$f":"IFERROR(VLOOKUP(ROWS($AX$9:AX147),$AW$9:$AX$163,2,0),\"\")","v":"B Roll to h/stand, 1/2 or full turn"},null,null,null,{"$f":"IF(ISNUMBER(SEARCH($B$14,BF147)),MAX($BE$8:BE146)+1,0)","v":139},"B Roll to h/stand, 1/2 or full turn",null,null,{"$f":"IFERROR(VLOOKUP(ROWS($BF$9:BF147),$BE$9:$BF$163,2,0),\"\")","v":"B Roll to h/stand, 1/2 or full turn"},null,null,null,{"$f":"IF(ISNUMBER(SEARCH($B$15,BN147)),MAX($BM$8:BM146)+1,0)","v":139},"B Roll to h/stand, 1/2 or full turn",null,null,{"$f":"IFERROR(VLOOKUP(ROWS($BN$9:BN147),$BM$9:$BN$163,2,0),\"\")","v":"B Roll to h/stand, 1/2 or full turn"},null,null,null,{"$f":"IF(ISNUMBER(SEARCH($B$16,BV147)),MAX($BU$8:BU146)+1,0)","v":139},"B Roll to h/stand, 1/2 or full turn",null,null,{"$f":"IFERROR(VLOOKUP(ROWS($BV$9:BV147),$BU$9:$BV$163,2,0),\"\")","v":"B Roll to h/stand, 1/2 or full turn"},null,null,null,{"$f":"IF(ISNUMBER(SEARCH($B$17,CD147)),MAX($CC$8:CC146)+1,0)","v":139},"B Roll to h/stand, 1/2 or full turn",null,null,{"$f":"IFERROR(VLOOKUP(ROWS($CD$9:CD147),$CC$9:$CD$163,2,0),\"\")","v":"B Roll to h/stand, 1/2 or full turn"},null,null,null,{"$f":"IF(ISNUMBER(SEARCH($B$18,CL147)),MAX($CK$8:CK146)+1,0)","v":139},"B Roll to h/stand, 1/2 or full turn",null,null,{"$f":"IFERROR(VLOOKUP(ROWS($CL$9:CL147),$CK$9:$CL$163,2,0),\"\")","v":"B Roll to h/stand, 1/2 or full turn"}]
[null,null,null,null,null,null,null,null,null,null,null,null,null,null,null,null,{"$f":"IF(ISNUMBER(SEARCH($B$9,R148)),MAX($Q$8:Q147)+1,0)","v":140},"Handstand double pirouette",null,null,{"$f":"IFERROR(VLOOKUP(ROWS($R$9:R148),$Q$9:$R$163,2,0),\"\")","v":"Handstand double pirouette"},null,null,null,{"$f":"IF(ISNUMBER(SEARCH($B$10,Z148)),MAX($Y$8:Y147)+1,0)","v":140},"Handstand double pirouette",null,null,{"$f":"IFERROR(VLOOKUP(ROWS($Z$9:Z148),$Y$9:$Z$163,2,0),\"\")","v":"Handstand double pirouette"},null,null,null,{"$f":"IF(ISNUMBER(SEARCH($B$11,AH148)),MAX($AG$8:AG147)+1,0)","v":140},"Handstand double pirouette",null,null,{"$f":"IFERROR(VLOOKUP(ROWS($AH$9:AH148),$AG$9:$AH$163,2,0),\"\")","v":"Handstand double pirouette"},null,null,null,{"$f":"IF(ISNUMBER(SEARCH($B$12,AP148)),MAX($AO$8:AO147)+1,0)","v":140},"Handstand double pirouette",null,null,{"$f":"IFERROR(VLOOKUP(ROWS($AP$9:AP148),$AO$9:$AP$163,2,0),\"\")","v":"Handstand double pirouette"},null,null,null,{"$f":"IF(ISNUMBER(SEARCH($B$13,AX148)),MAX($AW$8:AW147)+1,0)","v":140},"Handstand double pirouette",null,null,{"$f":"IFERROR(VLOOKUP(ROWS($AX$9:AX148),$AW$9:$AX$163,2,0),\"\")","v":"Handstand double pirouette"},null,null,null,{"$f":"IF(ISNUMBER(SEARCH($B$14,BF148)),MAX($BE$8:BE147)+1,0)","v":140},"Handstand double pirouette",null,null,{"$f":"IFERROR(VLOOKUP(ROWS($BF$9:BF148),$BE$9:$BF$163,2,0),\"\")","v":"Handstand double pirouette"},null,null,null,{"$f":"IF(ISNUMBER(SEARCH($B$15,BN148)),MAX($BM$8:BM147)+1,0)","v":140},"Handstand double pirouette",null,null,{"$f":"IFERROR(VLOOKUP(ROWS($BN$9:BN148),$BM$9:$BN$163,2,0),\"\")","v":"Handstand double pirouette"},null,null,null,{"$f":"IF(ISNUMBER(SEARCH($B$16,BV148)),MAX($BU$8:BU147)+1,0)","v":140},"Handstand double pirouette",null,null,{"$f":"IFERROR(VLOOKUP(ROWS($BV$9:BV148),$BU$9:$BV$163,2,0),\"\")","v":"Handstand double pirouette"},null,null,null,{"$f":"IF(ISNUMBER(SEARCH($B$17,CD148)),MAX($CC$8:CC147)+1,0)","v":140},"Handstand double pirouette",null,null,{"$f":"IFERROR(VLOOKUP(ROWS($CD$9:CD148),$CC$9:$CD$163,2,0),\"\")","v":"Handstand double pirouette"},null,null,null,{"$f":"IF(ISNUMBER(SEARCH($B$18,CL148)),MAX($CK$8:CK147)+1,0)","v":140},"Handstand double pirouette",null,null,{"$f":"IFERROR(VLOOKUP(ROWS($CL$9:CL148),$CK$9:$CL$163,2,0),\"\")","v":"Handstand double pirouette"}]
[null,null,null,null,null,null,null,null,null,null,null,null,null,null,null,null,{"$f":"IF(ISNUMBER(SEARCH($B$9,R149)),MAX($Q$8:Q148)+1,0)","v":141},"Double Leg Circle",null,null,{"$f":"IFERROR(VLOOKUP(ROWS($R$9:R149),$Q$9:$R$163,2,0),\"\")","v":"Double Leg Circle"},null,null,null,{"$f":"IF(ISNUMBER(SEARCH($B$10,Z149)),MAX($Y$8:Y148)+1,0)","v":141},"Double Leg Circle",null,null,{"$f":"IFERROR(VLOOKUP(ROWS($Z$9:Z149),$Y$9:$Z$163,2,0),\"\")","v":"Double Leg Circle"},null,null,null,{"$f":"IF(ISNUMBER(SEARCH($B$11,AH149)),MAX($AG$8:AG148)+1,0)","v":141},"Double Leg Circle",null,null,{"$f":"IFERROR(VLOOKUP(ROWS($AH$9:AH149),$AG$9:$AH$163,2,0),\"\")","v":"Double Leg Circle"},null,null,null,{"$f":"IF(ISNUMBER(SEARCH($B$12,AP149)),MAX($AO$8:AO148)+1,0)","v":141},"Double Leg Circle",null,null,{"$f":"IFERROR(VLOOKUP(ROWS($AP$9:AP149),$AO$9:$AP$163,2,0),\"\")","v":"Double Leg Circle"},null,null,null,{"$f":"IF(ISNUMBER(SEARCH($B$13,AX149)),MAX($AW$8:AW148)+1,0)","v":141},"Double Leg Circle",null,null,{"$f":"IFERROR(VLOOKUP(ROWS($AX$9:AX149),$AW$9:$AX$163,2,0),\"\")","v":"Double Leg Circle"},null,null,null,{"$f":"IF(ISNUMBER(SEARCH($B$14,BF149)),MAX($BE$8:BE148)+1,0)","v":141},"Double Leg Circle",null,null,{"$f":"IFERROR(VLOOKUP(ROWS($BF$9:BF149),$BE$9:$BF$163,2,0),\"\")","v":"Double Leg Circle"},null,null,null,{"$f":"IF(ISNUMBER(SEARCH($B$15,BN149)),MAX($BM$8:BM148)+1,0)","v":141},"Double Leg Circle",null,null,{"$f":"IFERROR(VLOOKUP(ROWS($BN$9:BN149),$BM$9:$BN$163,2,0),\"\")","v":"Double Leg Circle"},null,null,null,{"$f":"IF(ISNUMBER(SEARCH($B$16,BV149)),MAX($BU$8:BU148)+1,0)","v":141},"Double Leg Circle",null,null,{"$f":"IFERROR(VLOOKUP(ROWS($BV$9:BV149),$BU$9:$BV$163,2,0),\"\")","v":"Double Leg Circle"},null,null,null,{"$f":"IF(ISNUMBER(SEARCH($B$17,CD149)),MAX($CC$8:CC148)+1,0)","v":141},"Double Leg Circle",null,null,{"$f":"IFERROR(VLOOKUP(ROWS($CD$9:CD149),$CC$9:$CD$163,2,0),\"\")","v":"Double Leg Circle"},null,null,null,{"$f":"IF(ISNUMBER(SEARCH($B$18,CL149)),MAX($CK$8:CK148)+1,0)","v":141},"Double Leg Circle",null,null,{"$f":"IFERROR(VLOOKUP(ROWS($CL$9:CL149),$CK$9:$CL$163,2,0),\"\")","v":"Double Leg Circle"}]
[null,null,null,null,null,null,null,null,null,null,null,null,null,null,null,null,{"$f":"IF(ISNUMBER(SEARCH($B$9,R150)),MAX($Q$8:Q149)+1,0)","v":142},"Valdez",null,null,{"$f":"IFERROR(VLOOKUP(ROWS($R$9:R150),$Q$9:$R$163,2,0),\"\")","v":"Valdez"},null,null,null,{"$f":"IF(ISNUMBER(SEARCH($B$10,Z150)),MAX($Y$8:Y149)+1,0)","v":142},"Valdez",null,null,{"$f":"IFERROR(VLOOKUP(ROWS($Z$9:Z150),$Y$9:$Z$163,2,0),\"\")","v":"Valdez"},null,null,null,{"$f":"IF(ISNUMBER(SEARCH($B$11,AH150)),MAX($AG$8:AG149)+1,0)","v":142},"Valdez",null,null,{"$f":"IFERROR(VLOOKUP(ROWS($AH$9:AH150),$AG$9:$AH$163,2,0),\"\")","v":"Valdez"},null,null,null,{"$f":"IF(ISNUMBER(SEARCH($B$12,AP150)),MAX($AO$8:AO149)+1,0)","v":142},"Valdez",null,null,{"$f":"IFERROR(VLOOKUP(ROWS($AP$9:AP150),$AO$9:$AP$163,2,0),\"\")","v":"Valdez"},null,null,null,{"$f":"IF(ISNUMBER(SEARCH($B$13,AX150)),MAX($AW$8:AW149)+1,0)","v":142},"Valdez",null,null,{"$f":"IFERROR(VLOOKUP(ROWS($AX$9:AX150),$AW$9:$AX$163,2,0),\"\")","v":"Valdez"},null,null,null,{"$f":"IF(ISNUMBER(SEARCH($B$14,BF150)),MAX($BE$8:BE149)+1,0)","v":142},"Valdez",null,null,{"$f":"IFERROR(VLOOKUP(ROWS($BF$9:BF150),$BE$9:$BF$163,2,0),\"\")","v":"Valdez"},null,null,null,{"$f":"IF(ISNUMBER(SEARCH($B$15,BN150)),MAX($BM$8:BM149)+1,0)","v":142},"Valdez",null,null,{"$f":"IFERROR(VLOOKUP(ROWS($BN$9:BN150),$BM$9:$BN$163,2,0),\"\")","v":"Valdez"},null,null,null,{"$f":"IF(ISNUMBER(SEARCH($B$16,BV150)),MAX($BU$8:BU149)+1,0)","v":142},"Valdez",null,null,{"$f":"IFERROR(VLOOKUP(ROWS($BV$9:BV150),$BU$9:$BV$163,2,0),\"\")","v":"Valdez"},null,null,null,{"$f":"IF(ISNUMBER(SEARCH($B$17,CD150)),MAX($CC$8:CC149)+1,0)","v":142},"Valdez",null,null,{"$f":"IFERROR(VLOOKUP(ROWS($CD$9:CD150),$CC$9:$CD$163,2,0),\"\")","v":"Valdez"},null,null,null,{"$f":"IF(ISNUMBER(SEARCH($B$18,CL150)),MAX($CK$8:CK149)+1,0)","v":142},"Valdez",null,null,{"$f":"IFERROR(VLOOKUP(ROWS($CL$9:CL150),$CK$9:$CL$163,2,0),\"\")","v":"Valdez"}]
[null,null,null,null,null,null,null,null,null,null,null,null,null,null,null,null,{"$f":"IF(ISNUMBER(SEARCH($B$9,R151)),MAX($Q$8:Q150)+1,0)","v":143},"Flyspring Front Salto",null,null,{"$f":"IFERROR(VLOOKUP(ROWS($R$9:R151),$Q$9:$R$163,2,0),\"\")","v":"Flyspring Front Salto"},null,null,null,{"$f":"IF(ISNUMBER(SEARCH($B$10,Z151)),MAX($Y$8:Y150)+1,0)","v":143},"Flyspring Front Salto",null,null,{"$f":"IFERROR(VLOOKUP(ROWS($Z$9:Z151),$Y$9:$Z$163,2,0),\"\")","v":"Flyspring Front Salto"},null,null,null,{"$f":"IF(ISNUMBER(SEARCH($B$11,AH151)),MAX($AG$8:AG150)+1,0)","v":143},"Flyspring Front Salto",null,null,{"$f":"IFERROR(VLOOKUP(ROWS($AH$9:AH151),$AG$9:$AH$163,2,0),\"\")","v":"Flyspring Front Salto"},null,null,null,{"$f":"IF(ISNUMBER(SEARCH($B$12,AP151)),MAX($AO$8:AO150)+1,0)","v":143},"Flyspring Front Salto",null,null,{"$f":"IFERROR(VLOOKUP(ROWS($AP$9:AP151),$AO$9:$AP$163,2,0),\"\")","v":"Flyspring Front Salto"},null,null,null,{"$f":"IF(ISNUMBER(SEARCH($B$13,AX151)),MAX($AW$8:AW150)+1,0)","v":143},"Flyspring Front Salto",null,null,{"$f":"IFERROR(VLOOKUP(ROWS($AX$9:AX151),$AW$9:$AX$163,2,0),\"\")","v":"Flyspring Front Salto"},null,null,null,{"$f":"IF(ISNUMBER(SEARCH($B$14,BF151)),MAX($BE$8:BE150)+1,0)","v":143},"Flyspring Front Salto",null,null,{"$f":"IFERROR(VLOOKUP(ROWS($BF$9:BF151),$BE$9:$BF$163,2,0),\"\")","v":"Flyspring Front Salto"},null,null,null,{"$f":"IF(ISNUMBER(SEARCH($B$15,BN151)),MAX($BM$8:BM150)+1,0)","v":143},"Flyspring Front Salto",null,null,{"$f":"IFERROR(VLOOKUP(ROWS($BN$9:BN151),$BM$9:$BN$163,2,0),\"\")","v":"Flyspring Front Salto"},null,null,null,{"$f":"IF(ISNUMBER(SEARCH($B$16,BV151)),MAX($BU$8:BU150)+1,0)","v":143},"Flyspring Front Salto",null,null,{"$f":"IFERROR(VLOOKUP(ROWS($BV$9:BV151),$BU$9:$BV$163,2,0),\"\")","v":"Flyspring Front Salto"},null,null,null,{"$f":"IF(ISNUMBER(SEARCH($B$17,CD151)),MAX($CC$8:CC150)+1,0)","v":143},"Flyspring Front Salto",null,null,{"$f":"IFERROR(VLOOKUP(ROWS($CD$9:CD151),$CC$9:$CD$163,2,0),\"\")","v":"Flyspring Front Salto"},null,null,null,{"$f":"IF(ISNUMBER(SEARCH($B$18,CL151)),MAX($CK$8:CK150)+1,0)","v":143},"Flyspring Front Salto",null,null,{"$f":"IFERROR(VLOOKUP(ROWS($CL$9:CL151),$CK$9:$CL$163,2,0),\"\")","v":"Flyspring Front Salto"}]
[null,null,null,null,null,null,null,null,null,null,null,null,null,null,null,null,{"$f":"IF(ISNUMBER(SEARCH($B$9,R152)),MAX($Q$8:Q151)+1,0)","v":144},"Free Forward Walkover",null,null,{"$f":"IFERROR(VLOOKUP(ROWS($R$9:R152),$Q$9:$R$163,2,0),\"\")","v":"Free Forward Walkover"},null,null,null,{"$f":"IF(ISNUMBER(SEARCH($B$10,Z152)),MAX($Y$8:Y151)+1,0)","v":144},"Free Forward Walkover",null,null,{"$f":"IFERROR(VLOOKUP(ROWS($Z$9:Z152),$Y$9:$Z$163,2,0),\"\")","v":"Free Forward Walkover"},null,null,null,{"$f":"IF(ISNUMBER(SEARCH($B$11,AH152)),MAX($AG$8:AG151)+1,0)","v":144},"Free Forward Walkover",null,null,{"$f":"IFERROR(VLOOKUP(ROWS($AH$9:AH152),$AG$9:$AH$163,2,0),\"\")","v":"Free Forward Walkover"},null,null,null,{"$f":"IF(ISNUMBER(SEARCH($B$12,AP152)),MAX($AO$8:AO151)+1,0)","v":144},"Free Forward Walkover",null,null,{"$f":"IFERROR(VLOOKUP(ROWS($AP$9:AP152),$AO$9:$AP$163,2,0),\"\")","v":"Free Forward Walkover"},null,null,null,{"$f":"IF(ISNUMBER(SEARCH($B$13,AX152)),MAX($AW$8:AW151)+1,0)","v":144},"Free Forward Walkover",null,null,{"$f":"IFERROR(VLOOKUP(ROWS($AX$9:AX152),$AW$9:$AX$163,2,0),\"\")","v":"Free Forward Walkover"},null,null,null,{"$f":"IF(ISNUMBER(SEARCH($B$14,BF152)),MAX($BE$8:BE151)+1,0)","v":144},"Free Forward Walkover",null,null,{"$f":"IFERROR(VLOOKUP(ROWS($BF$9:BF152),$BE$9:$BF$163,2,0),\"\")","v":"Free Forward Walkover"},null,null,null,{"$f":"IF(ISNUMBER(SEARCH($B$15,BN152)),MAX($BM$8:BM151)+1,0)","v":144},"Free Forward Walkover",null,null,{"$f":"IFERROR(VLOOKUP(ROWS($BN$9:BN152),$BM$9:$BN$163,2,0),\"\")","v":"Free Forward Walkover"},null,null,null,{"$f":"IF(ISNUMBER(SEARCH($B$16,BV152)),MAX($BU$8:BU151)+1,0)","v":144},"Free Forward Walkover",null,null,{"$f":"IFERROR(VLOOKUP(ROWS($BV$9:BV152),$BU$9:$BV$163,2,0),\"\")","v":"Free Forward Walkover"},null,null,null,{"$f":"IF(ISNUMBER(SEARCH($B$17,CD152)),MAX($CC$8:CC151)+1,0)","v":144},"Free Forward Walkover",null,null,{"$f":"IFERROR(VLOOKUP(ROWS($CD$9:CD152),$CC$9:$CD$163,2,0),\"\")","v":"Free Forward Walkover"},null,null,null,{"$f":"IF(ISNUMBER(SEARCH($B$18,CL152)),MAX($CK$8:CK151)+1,0)","v":144},"Free Forward Walkover",null,null,{"$f":"IFERROR(VLOOKUP(ROWS($CL$9:CL152),$CK$9:$CL$163,2,0),\"\")","v":"Free Forward Walkover"}]
[null,null,null,null,null,null,null,null,null,null,null,null,null,null,null,null,{"$f":"IF(ISNUMBER(SEARCH($B$9,R153)),MAX($Q$8:Q152)+1,0)","v":145},"Dive Forward Roll (with flight)",null,null,{"$f":"IFERROR(VLOOKUP(ROWS($R$9:R153),$Q$9:$R$163,2,0),\"\")","v":"Dive Forward Roll (with flight)"},null,null,null,{"$f":"IF(ISNUMBER(SEARCH($B$10,Z153)),MAX($Y$8:Y152)+1,0)","v":145},"Dive Forward Roll (with flight)",null,null,{"$f":"IFERROR(VLOOKUP(ROWS($Z$9:Z153),$Y$9:$Z$163,2,0),\"\")","v":"Dive Forward Roll (with flight)"},null,null,null,{"$f":"IF(ISNUMBER(SEARCH($B$11,AH153)),MAX($AG$8:AG152)+1,0)","v":145},"Dive Forward Roll (with flight)",null,null,{"$f":"IFERROR(VLOOKUP(ROWS($AH$9:AH153),$AG$9:$AH$163,2,0),\"\")","v":"Dive Forward Roll (with flight)"},null,null,null,{"$f":"IF(ISNUMBER(SEARCH($B$12,AP153)),MAX($AO$8:AO152)+1,0)","v":145},"Dive Forward Roll (with flight)",null,null,{"$f":"IFERROR(VLOOKUP(ROWS($AP$9:AP153),$AO$9:$AP$163,2,0),\"\")","v":"Dive Forward Roll (with flight)"},null,null,null,{"$f":"IF(ISNUMBER(SEARCH($B$13,AX153)),MAX($AW$8:AW152)+1,0)","v":145},"Dive Forward Roll (with flight)",null,null,{"$f":"IFERROR(VLOOKUP(ROWS($AX$9:AX153),$AW$9:$AX$163,2,0),\"\")","v":"Dive Forward Roll (with flight)"},null,null,null,{"$f":"IF(ISNUMBER(SEARCH($B$14,BF153)),MAX($BE$8:BE152)+1,0)","v":145},"Dive Forward Roll (with flight)",null,null,{"$f":"IFERROR(VLOOKUP(ROWS($BF$9:BF153),$BE$9:$BF$163,2,0),\"\")","v":"Dive Forward Roll (with flight)"},null,null,null,{"$f":"IF(ISNUMBER(SEARCH($B$15,BN153)),MAX($BM$8:BM152)+1,0)","v":145},"Dive Forward Roll (with flight)",null,null,{"$f":"IFERROR(VLOOKUP(ROWS($BN$9:BN153),$BM$9:$BN$163,2,0),\"\")","v":"Dive Forward Roll (with flight)"},null,null,null,{"$f":"IF(ISNUMBER(SEARCH($B$16,BV153)),MAX($BU$8:BU152)+1,0)","v":145},"Dive Forward Roll (with flight)",null,null,{"$f":"IFERROR(VLOOKUP(ROWS($BV$9:BV153),$BU$9:$BV$163,2,0),\"\")","v":"Dive Forward Roll (with flight)"},null,null,null,{"$f":"IF(ISNUMBER(SEARCH($B$17,CD153)),MAX($CC$8:CC152)+1,0)","v":145},"Dive Forward Roll (with flight)",null,null,{"$f":"IFERROR(VLOOKUP(ROWS($CD$9:CD153),$CC$9:$CD$163,2,0),\"\")","v":"Dive Forward Roll (with flight)"},null,null,null,{"$f":"IF(ISNUMBER(SEARCH($B$18,CL153)),MAX($CK$8:CK152)+1,0)","v":145},"Dive Forward Roll (with flight)",null,null,{"$f":"IFERROR(VLOOKUP(ROWS($CL$9:CL153),$CK$9:$CL$163,2,0),\"\")","v":"Dive Forward Roll (with flight)"}]
[null,null,null,null,null,null,null,null,null,null,null,null,null,null,null,null,{"$f":"IF(ISNUMBER(SEARCH($B$9,R154)),MAX($Q$8:Q153)+1,0)","v":146},"Pike Front Salto",null,null,{"$f":"IFERROR(VLOOKUP(ROWS($R$9:R154),$Q$9:$R$163,2,0),\"\")","v":"Pike Front Salto"},null,null,null,{"$f":"IF(ISNUMBER(SEARCH($B$10,Z154)),MAX($Y$8:Y153)+1,0)","v":146},"Pike Front Salto",null,null,{"$f":"IFERROR(VLOOKUP(ROWS($Z$9:Z154),$Y$9:$Z$163,2,0),\"\")","v":"Pike Front Salto"},null,null,null,{"$f":"IF(ISNUMBER(SEARCH($B$11,AH154)),MAX($AG$8:AG153)+1,0)","v":146},"Pike Front Salto",null,null,{"$f":"IFERROR(VLOOKUP(ROWS($AH$9:AH154),$AG$9:$AH$163,2,0),\"\")","v":"Pike Front Salto"},null,null,null,{"$f":"IF(ISNUMBER(SEARCH($B$12,AP154)),MAX($AO$8:AO153)+1,0)","v":146},"Pike Front Salto",null,null,{"$f":"IFERROR(VLOOKUP(ROWS($AP$9:AP154),$AO$9:$AP$163,2,0),\"\")","v":"Pike Front Salto"},null,null,null,{"$f":"IF(ISNUMBER(SEARCH($B$13,AX154)),MAX($AW$8:AW153)+1,0)","v":146},"Pike Front Salto",null,null,{"$f":"IFERROR(VLOOKUP(ROWS($AX$9:AX154),$AW$9:$AX$163,2,0),\"\")","v":"Pike Front Salto"},null,null,null,{"$f":"IF(ISNUMBER(SEARCH($B$14,BF154)),MAX($BE$8:BE153)+1,0)","v":146},"Pike Front Salto",null,null,{"$f":"IFERROR(VLOOKUP(ROWS($BF$9:BF154),$BE$9:$BF$163,2,0),\"\")","v":"Pike Front Salto"},null,null,null,{"$f":"IF(ISNUMBER(SEARCH($B$15,BN154)),MAX($BM$8:BM153)+1,0)","v":146},"Pike Front Salto",null,null,{"$f":"IFERROR(VLOOKUP(ROWS($BN$9:BN154),$BM$9:$BN$163,2,0),\"\")","v":"Pike Front Salto"},null,null,null,{"$f":"IF(ISNUMBER(SEARCH($B$16,BV154)),MAX($BU$8:BU153)+1,0)","v":146},"Pike Front Salto",null,null,{"$f":"IFERROR(VLOOKUP(ROWS($BV$9:BV154),$BU$9:$BV$163,2,0),\"\")","v":"Pike Front Salto"},null,null,null,{"$f":"IF(ISNUMBER(SEARCH($B$17,CD154)),MAX($CC$8:CC153)+1,0)","v":146},"Pike Front Salto",null,null,{"$f":"IFERROR(VLOOKUP(ROWS($CD$9:CD154),$CC$9:$CD$163,2,0),\"\")","v":"Pike Front Salto"},null,null,null,{"$f":"IF(ISNUMBER(SEARCH($B$18,CL154)),MAX($CK$8:CK153)+1,0)","v":146},"Pike Front Salto",null,null,{"$f":"IFERROR(VLOOKUP(ROWS($CL$9:CL154),$CK$9:$CL$163,2,0),\"\")","v":"Pike Front Salto"}]
[null,null,null,null,null,null,null,null,null,null,null,null,null,null,null,null,{"$f":"IF(ISNUMBER(SEARCH($B$9,R155)),MAX($Q$8:Q154)+1,0)","v":147},"Straight Front Salto",null,null,{"$f":"IFERROR(VLOOKUP(ROWS($R$9:R155),$Q$9:$R$163,2,0),\"\")","v":"Straight Front Salto"},null,null,null,{"$f":"IF(ISNUMBER(SEARCH($B$10,Z155)),MAX($Y$8:Y154)+1,0)","v":147},"Straight Front Salto",null,null,{"$f":"IFERROR(VLOOKUP(ROWS($Z$9:Z155),$Y$9:$Z$163,2,0),\"\")","v":"Straight Front Salto"},null,null,null,{"$f":"IF(ISNUMBER(SEARCH($B$11,AH155)),MAX($AG$8:AG154)+1,0)","v":147},"Straight Front Salto",null,null,{"$f":"IFERROR(VLOOKUP(ROWS($AH$9:AH155),$AG$9:$AH$163,2,0),\"\")","v":"Straight Front Salto"},null,null,null,{"$f":"IF(ISNUMBER(SEARCH($B$12,AP155)),MAX($AO$8:AO154)+1,0)","v":147},"Straight Front Salto",null,null,{"$f":"IFERROR(VLOOKUP(ROWS($AP$9:AP155),$AO$9:$AP$163,2,0),\"\")","v":"Straight Front Salto"},null,null,null,{"$f":"IF(ISNUMBER(SEARCH($B$13,AX155)),MAX($AW$8:AW154)+1,0)","v":147},"Straight Front Salto",null,null,{"$f":"IFERROR(VLOOKUP(ROWS($AX$9:AX155),$AW$9:$AX$163,2,0),\"\")","v":"Straight Front Salto"},null,null,null,{"$f":"IF(ISNUMBER(SEARCH($B$14,BF155)),MAX($BE$8:BE154)+1,0)","v":147},"Straight Front Salto",null,null,{"$f":"IFERROR(VLOOKUP(ROWS($BF$9:BF155),$BE$9:$BF$163,2,0),\"\")","v":"Straight Front Salto"},null,null,null,{"$f":"IF(ISNUMBER(SEARCH($B$15,BN155)),MAX($BM$8:BM154)+1,0)","v":147},"Straight Front Salto",null,null,{"$f":"IFERROR(VLOOKUP(ROWS($BN$9:BN155),$BM$9:$BN$163,2,0),\"\")","v":"Straight Front Salto"},null,null,null,{"$f":"IF(ISNUMBER(SEARCH($B$16,BV155)),MAX($BU$8:BU154)+1,0)","v":147},"Straight Front Salto",null,null,{"$f":"IFERROR(VLOOKUP(ROWS($BV$9:BV155),$BU$9:$BV$163,2,0),\"\")","v":"Straight Front Salto"},null,null,null,{"$f":"IF(ISNUMBER(SEARCH($B$17,CD155)),MAX($CC$8:CC154)+1,0)","v":147},"Straight Front Salto",null,null,{"$f":"IFERROR(VLOOKUP(ROWS($CD$9:CD155),$CC$9:$CD$163,2,0),\"\")","v":"Straight Front Salto"},null,null,null,{"$f":"IF(ISNUMBER(SEARCH($B$18,CL155)),MAX($CK$8:CK154)+1,0)","v":147},"Straight Front Salto",null,null,{"$f":"IFERROR(VLOOKUP(ROWS($CL$9:CL155),$CK$9:$CL$163,2,0),\"\")","v":"Straight Front Salto"}]
[null,null,null,null,null,null,null,null,null,null,null,null,null,null,null,null,{"$f":"IF(ISNUMBER(SEARCH($B$9,R156)),MAX($Q$8:Q155)+1,0)","v":148},"F Salto step out, R/O, Flic, B Salto",null,null,{"$f":"IFERROR(VLOOKUP(ROWS($R$9:R156),$Q$9:$R$163,2,0),\"\")","v":"F Salto step out, R/O, Flic, B Salto"},null,null,null,{"$f":"IF(ISNUMBER(SEARCH($B$10,Z156)),MAX($Y$8:Y155)+1,0)","v":148},"F Salto step out, R/O, Flic, B Salto",null,null,{"$f":"IFERROR(VLOOKUP(ROWS($Z$9:Z156),$Y$9:$Z$163,2,0),\"\")","v":"F Salto step out, R/O, Flic, B Salto"},null,null,null,{"$f":"IF(ISNUMBER(SEARCH($B$11,AH156)),MAX($AG$8:AG155)+1,0)","v":148},"F Salto step out, R/O, Flic, B Salto",null,null,{"$f":"IFERROR(VLOOKUP(ROWS($AH$9:AH156),$AG$9:$AH$163,2,0),\"\")","v":"F Salto step out, R/O, Flic, B Salto"},null,null,null,{"$f":"IF(ISNUMBER(SEARCH($B$12,AP156)),MAX($AO$8:AO155)+1,0)","v":148},"F Salto step out, R/O, Flic, B Salto",null,null,{"$f":"IFERROR(VLOOKUP(ROWS($AP$9:AP156),$AO$9:$AP$163,2,0),\"\")","v":"F Salto step out, R/O, Flic, B Salto"},null,null,null,{"$f":"IF(ISNUMBER(SEARCH($B$13,AX156)),MAX($AW$8:AW155)+1,0)","v":148},"F Salto step out, R/O, Flic, B Salto",null,null,{"$f":"IFERROR(VLOOKUP(ROWS($AX$9:AX156),$AW$9:$AX$163,2,0),\"\")","v":"F Salto step out, R/O, Flic, B Salto"},null,null,null,{"$f":"IF(ISNUMBER(SEARCH($B$14,BF156)),MAX($BE$8:BE155)+1,0)","v":148},"F Salto step out, R/O, Flic, B Salto",null,null,{"$f":"IFERROR(VLOOKUP(ROWS($BF$9:BF156),$BE$9:$BF$163,2,0),\"\")","v":"F Salto step out, R/O, Flic, B Salto"},null,null,null,{"$f":"IF(ISNUMBER(SEARCH($B$15,BN156)),MAX($BM$8:BM155)+1,0)","v":148},"F Salto step out, R/O, Flic, B Salto",null,null,{"$f":"IFERROR(VLOOKUP(ROWS($BN$9:BN156),$BM$9:$BN$163,2,0),\"\")","v":"F Salto step out, R/O, Flic, B Salto"},null,null,null,{"$f":"IF(ISNUMBER(SEARCH($B$16,BV156)),MAX($BU$8:BU155)+1,0)","v":148},"F Salto step out, R/O, Flic, B Salto",null,null,{"$f":"IFERROR(VLOOKUP(ROWS($BV$9:BV156),$BU$9:$BV$163,2,0),\"\")","v":"F Salto step out, R/O, Flic, B Salto"},null,null,null,{"$f":"IF(ISNUMBER(SEARCH($B$17,CD156)),MAX($CC$8:CC155)+1,0)","v":148},"F Salto step out, R/O, Flic, B Salto",null,null,{"$f":"IFERROR(VLOOKUP(ROWS($CD$9:CD156),$CC$9:$CD$163,2,0),\"\")","v":"F Salto step out, R/O, Flic, B Salto"},null,null,null,{"$f":"IF(ISNUMBER(SEARCH($B$18,CL156)),MAX($CK$8:CK155)+1,0)","v":148},"F Salto step out, R/O, Flic, B Salto",null,null,{"$f":"IFERROR(VLOOKUP(ROWS($CL$9:CL156),$CK$9:$CL$163,2,0),\"\")","v":"F Salto step out, R/O, Flic, B Salto"}]
[null,null,null,null,null,null,null,null,null,null,null,null,null,null,null,null,{"$f":"IF(ISNUMBER(SEARCH($B$9,R157)),MAX($Q$8:Q156)+1,0)","v":149},"R/O, Flic, Pike/ Straight B Salto",null,null,{"$f":"IFERROR(VLOOKUP(ROWS($R$9:R157),$Q$9:$R$163,2,0),\"\")","v":"R/O, Flic, Pike/ Straight B Salto"},null,null,null,{"$f":"IF(ISNUMBER(SEARCH($B$10,Z157)),MAX($Y$8:Y156)+1,0)","v":149},"R/O, Flic, Pike/ Straight B Salto",null,null,{"$f":"IFERROR(VLOOKUP(ROWS($Z$9:Z157),$Y$9:$Z$163,2,0),\"\")","v":"R/O, Flic, Pike/ Straight B Salto"},null,null,null,{"$f":"IF(ISNUMBER(SEARCH($B$11,AH157)),MAX($AG$8:AG156)+1,0)","v":149},"R/O, Flic, Pike/ Straight B Salto",null,null,{"$f":"IFERROR(VLOOKUP(ROWS($AH$9:AH157),$AG$9:$AH$163,2,0),\"\")","v":"R/O, Flic, Pike/ Straight B Salto"},null,null,null,{"$f":"IF(ISNUMBER(SEARCH($B$12,AP157)),MAX($AO$8:AO156)+1,0)","v":149},"R/O, Flic, Pike/ Straight B Salto",null,null,{"$f":"IFERROR(VLOOKUP(ROWS($AP$9:AP157),$AO$9:$AP$163,2,0),\"\")","v":"R/O, Flic, Pike/ Straight B Salto"},null,null,null,{"$f":"IF(ISNUMBER(SEARCH($B$13,AX157)),MAX($AW$8:AW156)+1,0)","v":149},"R/O, Flic, Pike/ Straight B Salto",null,null,{"$f":"IFERROR(VLOOKUP(ROWS($AX$9:AX157),$AW$9:$AX$163,2,0),\"\")","v":"R/O, Flic, Pike/ Straight B Salto"},null,null,null,{"$f":"IF(ISNUMBER(SEARCH($B$14,BF157)),MAX($BE$8:BE156)+1,0)","v":149},"R/O, Flic, Pike/ Straight B Salto",null,null,{"$f":"IFERROR(VLOOKUP(ROWS($BF$9:BF157),$BE$9:$BF$163,2,0),\"\")","v":"R/O, Flic, Pike/ Straight B Salto"},null,null,null,{"$f":"IF(ISNUMBER(SEARCH($B$15,BN157)),MAX($BM$8:BM156)+1,0)","v":149},"R/O, Flic, Pike/ Straight B Salto",null,null,{"$f":"IFERROR(VLOOKUP(ROWS($BN$9:BN157),$BM$9:$BN$163,2,0),\"\")","v":"R/O, Flic, Pike/ Straight B Salto"},null,null,null,{"$f":"IF(ISNUMBER(SEARCH($B$16,BV157)),MAX($BU$8:BU156)+1,0)","v":149},"R/O, Flic, Pike/ Straight B Salto",null,null,{"$f":"IFERROR(VLOOKUP(ROWS($BV$9:BV157),$BU$9:$BV$163,2,0),\"\")","v":"R/O, Flic, Pike/ Straight B Salto"},null,null,null,{"$f":"IF(ISNUMBER(SEARCH($B$17,CD157)),MAX($CC$8:CC156)+1,0)","v":149},"R/O, Flic, Pike/ Straight B Salto",null,null,{"$f":"IFERROR(VLOOKUP(ROWS($CD$9:CD157),$CC$9:$CD$163,2,0),\"\")","v":"R/O, Flic, Pike/ Straight B Salto"},null,null,null,{"$f":"IF(ISNUMBER(SEARCH($B$18,CL157)),MAX($CK$8:CK156)+1,0)","v":149},"R/O, Flic, Pike/ Straight B Salto",null,null,{"$f":"IFERROR(VLOOKUP(ROWS($CL$9:CL157),$CK$9:$CL$163,2,0),\"\")","v":"R/O, Flic, Pike/ Straight B Salto"}]
[null,null,null,null,null,null,null,null,null,null,null,null,null,null,null,null,{"$f":"IF(ISNUMBER(SEARCH($B$9,R158)),MAX($Q$8:Q157)+1,0)","v":150},"R/O, Flic, B Salto with ½ twist",null,null,{"$f":"IFERROR(VLOOKUP(ROWS($R$9:R158),$Q$9:$R$163,2,0),\"\")","v":"R/O, Flic, B Salto with ½ twist"},null,null,null,{"$f":"IF(ISNUMBER(SEARCH($B$10,Z158)),MAX($Y$8:Y157)+1,0)","v":150},"R/O, Flic, B Salto with ½ twist",null,null,{"$f":"IFERROR(VLOOKUP(ROWS($Z$9:Z158),$Y$9:$Z$163,2,0),\"\")","v":"R/O, Flic, B Salto with ½ twist"},null,null,null,{"$f":"IF(ISNUMBER(SEARCH($B$11,AH158)),MAX($AG$8:AG157)+1,0)","v":150},"R/O, Flic, B Salto with ½ twist",null,null,{"$f":"IFERROR(VLOOKUP(ROWS($AH$9:AH158),$AG$9:$AH$163,2,0),\"\")","v":"R/O, Flic, B Salto with ½ twist"},null,null,null,{"$f":"IF(ISNUMBER(SEARCH($B$12,AP158)),MAX($AO$8:AO157)+1,0)","v":150},"R/O, Flic, B Salto with ½ twist",null,null,{"$f":"IFERROR(VLOOKUP(ROWS($AP$9:AP158),$AO$9:$AP$163,2,0),\"\")","v":"R/O, Flic, B Salto with ½ twist"},null,null,null,{"$f":"IF(ISNUMBER(SEARCH($B$13,AX158)),MAX($AW$8:AW157)+1,0)","v":150},"R/O, Flic, B Salto with ½ twist",null,null,{"$f":"IFERROR(VLOOKUP(ROWS($AX$9:AX158),$AW$9:$AX$163,2,0),\"\")","v":"R/O, Flic, B Salto with ½ twist"},null,null,null,{"$f":"IF(ISNUMBER(SEARCH($B$14,BF158)),MAX($BE$8:BE157)+1,0)","v":150},"R/O, Flic, B Salto with ½ twist",null,null,{"$f":"IFERROR(VLOOKUP(ROWS($BF$9:BF158),$BE$9:$BF$163,2,0),\"\")","v":"R/O, Flic, B Salto with ½ twist"},null,null,null,{"$f":"IF(ISNUMBER(SEARCH($B$15,BN158)),MAX($BM$8:BM157)+1,0)","v":150},"R/O, Flic, B Salto with ½ twist",null,null,{"$f":"IFERROR(VLOOKUP(ROWS($BN$9:BN158),$BM$9:$BN$163,2,0),\"\")","v":"R/O, Flic, B Salto with ½ twist"},null,null,null,{"$f":"IF(ISNUMBER(SEARCH($B$16,BV158)),MAX($BU$8:BU157)+1,0)","v":150},"R/O, Flic, B Salto with ½ twist",null,null,{"$f":"IFERROR(VLOOKUP(ROWS($BV$9:BV158),$BU$9:$BV$163,2,0),\"\")","v":"R/O, Flic, B Salto with ½ twist"},null,null,null,{"$f":"IF(ISNUMBER(SEARCH($B$17,CD158)),MAX($CC$8:CC157)+1,0)","v":150},"R/O, Flic, B Salto with ½ twist",null,null,{"$f":"IFERROR(VLOOKUP(ROWS($CD$9:CD158),$CC$9:$CD$163,2,0),\"\")","v":"R/O, Flic, B Salto with ½ twist"},null,null,null,{"$f":"IF(ISNUMBER(SEARCH($B$18,CL158)),MAX($CK$8:CK157)+1,0)","v":150},"R/O, Flic, B Salto with ½ twist",null,null,{"$f":"IFERROR(VLOOKUP(ROWS($CL$9:CL158),$CK$9:$CL$163,2,0),\"\")","v":"R/O, Flic, B Salto with ½ twist"}]
[null,null,null,null,null,null,null,null,null,null,null,null,null,null,null,null,{"$f":"IF(ISNUMBER(SEARCH($B$9,R159)),MAX($Q$8:Q158)+1,0)","v":151},"R/O, Flic, B Salto with 1/1  twist",null,null,{"$f":"IFERROR(VLOOKUP(ROWS($R$9:R159),$Q$9:$R$163,2,0),\"\")","v":"R/O, Flic, B Salto with 1/1  twist"},null,null,null,{"$f":"IF(ISNUMBER(SEARCH($B$10,Z159)),MAX($Y$8:Y158)+1,0)","v":151},"R/O, Flic, B Salto with 1/1  twist",null,null,{"$f":"IFERROR(VLOOKUP(ROWS($Z$9:Z159),$Y$9:$Z$163,2,0),\"\")","v":"R/O, Flic, B Salto with 1/1  twist"},null,null,null,{"$f":"IF(ISNUMBER(SEARCH($B$11,AH159)),MAX($AG$8:AG158)+1,0)","v":151},"R/O, Flic, B Salto with 1/1  twist",null,null,{"$f":"IFERROR(VLOOKUP(ROWS($AH$9:AH159),$AG$9:$AH$163,2,0),\"\")","v":"R/O, Flic, B Salto with 1/1  twist"},null,null,null,{"$f":"IF(ISNUMBER(SEARCH($B$12,AP159)),MAX($AO$8:AO158)+1,0)","v":151},"R/O, Flic, B Salto with 1/1  twist",null,null,{"$f":"IFERROR(VLOOKUP(ROWS($AP$9:AP159),$AO$9:$AP$163,2,0),\"\")","v":"R/O, Flic, B Salto with 1/1  twist"},null,null,null,{"$f":"IF(ISNUMBER(SEARCH($B$13,AX159)),MAX($AW$8:AW158)+1,0)","v":151},"R/O, Flic, B Salto with 1/1  twist",null,null,{"$f":"IFERROR(VLOOKUP(ROWS($AX$9:AX159),$AW$9:$AX$163,2,0),\"\")","v":"R/O, Flic, B Salto with 1/1  twist"},null,null,null,{"$f":"IF(ISNUMBER(SEARCH($B$14,BF159)),MAX($BE$8:BE158)+1,0)","v":151},"R/O, Flic, B Salto with 1/1  twist",null,null,{"$f":"IFERROR(VLOOKUP(ROWS($BF$9:BF159),$BE$9:$BF$163,2,0),\"\")","v":"R/O, Flic, B Salto with 1/1  twist"},null,null,null,{"$f":"IF(ISNUMBER(SEARCH($B$15,BN159)),MAX($BM$8:BM158)+1,0)","v":151},"R/O, Flic, B Salto with 1/1  twist",null,null,{"$f":"IFERROR(VLOOKUP(ROWS($BN$9:BN159),$BM$9:$BN$163,2,0),\"\")","v":"R/O, Flic, B Salto with 1/1  twist"},null,null,null,{"$f":"IF(ISNUMBER(SEARCH($B$16,BV159)),MAX($BU$8:BU158)+1,0)","v":151},"R/O, Flic, B Salto with 1/1  twist",null,null,{"$f":"IFERROR(VLOOKUP(ROWS($BV$9:BV159),$BU$9:$BV$163,2,0),\"\")","v":"R/O, Flic, B Salto with 1/1  twist"},null,null,null,{"$f":"IF(ISNUMBER(SEARCH($B$17,CD159)),MAX($CC$8:CC158)+1,0)","v":151},"R/O, Flic, B Salto with 1/1  twist",null,null,{"$f":"IFERROR(VLOOKUP(ROWS($CD$9:CD159),$CC$9:$CD$163,2,0),\"\")","v":"R/O, Flic, B Salto with 1/1  twist"},null,null,null,{"$f":"IF(ISNUMBER(SEARCH($B$18,CL159)),MAX($CK$8:CK158)+1,0)","v":151},"R/O, Flic, B Salto with 1/1  twist",null,null,{"$f":"IFERROR(VLOOKUP(ROWS($CL$9:CL159),$CK$9:$CL$163,2,0),\"\")","v":"R/O, Flic, B Salto with 1/1  twist"}]
[null,null,null,null,null,null,null,null,null,null,null,null,null,null,null,null,{"$f":"IF(ISNUMBER(SEARCH($B$9,R160)),MAX($Q$8:Q159)+1,0)","v":152},"R/O, 2 Flics, straight Back Salto",null,null,{"$f":"IFERROR(VLOOKUP(ROWS($R$9:R160),$Q$9:$R$163,2,0),\"\")","v":"R/O, 2 Flics, straight Back Salto"},null,null,null,{"$f":"IF(ISNUMBER(SEARCH($B$10,Z160)),MAX($Y$8:Y159)+1,0)","v":152},"R/O, 2 Flics, straight Back Salto",null,null,{"$f":"IFERROR(VLOOKUP(ROWS($Z$9:Z160),$Y$9:$Z$163,2,0),\"\")","v":"R/O, 2 Flics, straight Back Salto"},null,null,null,{"$f":"IF(ISNUMBER(SEARCH($B$11,AH160)),MAX($AG$8:AG159)+1,0)","v":152},"R/O, 2 Flics, straight Back Salto",null,null,{"$f":"IFERROR(VLOOKUP(ROWS($AH$9:AH160),$AG$9:$AH$163,2,0),\"\")","v":"R/O, 2 Flics, straight Back Salto"},null,null,null,{"$f":"IF(ISNUMBER(SEARCH($B$12,AP160)),MAX($AO$8:AO159)+1,0)","v":152},"R/O, 2 Flics, straight Back Salto",null,null,{"$f":"IFERROR(VLOOKUP(ROWS($AP$9:AP160),$AO$9:$AP$163,2,0),\"\")","v":"R/O, 2 Flics, straight Back Salto"},null,null,null,{"$f":"IF(ISNUMBER(SEARCH($B$13,AX160)),MAX($AW$8:AW159)+1,0)","v":152},"R/O, 2 Flics, straight Back Salto",null,null,{"$f":"IFERROR(VLOOKUP(ROWS($AX$9:AX160),$AW$9:$AX$163,2,0),\"\")","v":"R/O, 2 Flics, straight Back Salto"},null,null,null,{"$f":"IF(ISNUMBER(SEARCH($B$14,BF160)),MAX($BE$8:BE159)+1,0)","v":152},"R/O, 2 Flics, straight Back Salto",null,null,{"$f":"IFERROR(VLOOKUP(ROWS($BF$9:BF160),$BE$9:$BF$163,2,0),\"\")","v":"R/O, 2 Flics, straight Back Salto"},null,null,null,{"$f":"IF(ISNUMBER(SEARCH($B$15,BN160)),MAX($BM$8:BM159)+1,0)","v":152},"R/O, 2 Flics, straight Back Salto",null,null,{"$f":"IFERROR(VLOOKUP(ROWS($BN$9:BN160),$BM$9:$BN$163,2,0),\"\")","v":"R/O, 2 Flics, straight Back Salto"},null,null,null,{"$f":"IF(ISNUMBER(SEARCH($B$16,BV160)),MAX($BU$8:BU159)+1,0)","v":152},"R/O, 2 Flics, straight Back Salto",null,null,{"$f":"IFERROR(VLOOKUP(ROWS($BV$9:BV160),$BU$9:$BV$163,2,0),\"\")","v":"R/O, 2 Flics, straight Back Salto"},null,null,null,{"$f":"IF(ISNUMBER(SEARCH($B$17,CD160)),MAX($CC$8:CC159)+1,0)","v":152},"R/O, 2 Flics, straight Back Salto",null,null,{"$f":"IFERROR(VLOOKUP(ROWS($CD$9:CD160),$CC$9:$CD$163,2,0),\"\")","v":"R/O, 2 Flics, straight Back Salto"},null,null,null,{"$f":"IF(ISNUMBER(SEARCH($B$18,CL160)),MAX($CK$8:CK159)+1,0)","v":152},"R/O, 2 Flics, straight Back Salto",null,null,{"$f":"IFERROR(VLOOKUP(ROWS($CL$9:CL160),$CK$9:$CL$163,2,0),\"\")","v":"R/O, 2 Flics, straight Back Salto"}]
[null,null,null,null,null,null,null,null,null,null,null,null,null,null,null,null,{"$f":"IF(ISNUMBER(SEARCH($B$9,R161)),MAX($Q$8:Q160)+1,0)","v":153},"R/O Flick Arabian",null,null,{"$f":"IFERROR(VLOOKUP(ROWS($R$9:R161),$Q$9:$R$163,2,0),\"\")","v":"R/O Flick Arabian"},null,null,null,{"$f":"IF(ISNUMBER(SEARCH($B$10,Z161)),MAX($Y$8:Y160)+1,0)","v":153},"R/O Flick Arabian",null,null,{"$f":"IFERROR(VLOOKUP(ROWS($Z$9:Z161),$Y$9:$Z$163,2,0),\"\")","v":"R/O Flick Arabian"},null,null,null,{"$f":"IF(ISNUMBER(SEARCH($B$11,AH161)),MAX($AG$8:AG160)+1,0)","v":153},"R/O Flick Arabian",null,null,{"$f":"IFERROR(VLOOKUP(ROWS($AH$9:AH161),$AG$9:$AH$163,2,0),\"\")","v":"R/O Flick Arabian"},null,null,null,{"$f":"IF(ISNUMBER(SEARCH($B$12,AP161)),MAX($AO$8:AO160)+1,0)","v":153},"R/O Flick Arabian",null,null,{"$f":"IFERROR(VLOOKUP(ROWS($AP$9:AP161),$AO$9:$AP$163,2,0),\"\")","v":"R/O Flick Arabian"},null,null,null,{"$f":"IF(ISNUMBER(SEARCH($B$13,AX161)),MAX($AW$8:AW160)+1,0)","v":153},"R/O Flick Arabian",null,null,{"$f":"IFERROR(VLOOKUP(ROWS($AX$9:AX161),$AW$9:$AX$163,2,0),\"\")","v":"R/O Flick Arabian"},null,null,null,{"$f":"IF(ISNUMBER(SEARCH($B$14,BF161)),MAX($BE$8:BE160)+1,0)","v":153},"R/O Flick Arabian",null,null,{"$f":"IFERROR(VLOOKUP(ROWS($BF$9:BF161),$BE$9:$BF$163,2,0),\"\")","v":"R/O Flick Arabian"},null,null,null,{"$f":"IF(ISNUMBER(SEARCH($B$15,BN161)),MAX($BM$8:BM160)+1,0)","v":153},"R/O Flick Arabian",null,null,{"$f":"IFERROR(VLOOKUP(ROWS($BN$9:BN161),$BM$9:$BN$163,2,0),\"\")","v":"R/O Flick Arabian"},null,null,null,{"$f":"IF(ISNUMBER(SEARCH($B$16,BV161)),MAX($BU$8:BU160)+1,0)","v":153},"R/O Flick Arabian",null,null,{"$f":"IFERROR(VLOOKUP(ROWS($BV$9:BV161),$BU$9:$BV$163,2,0),\"\")","v":"R/O Flick Arabian"},null,null,null,{"$f":"IF(ISNUMBER(SEARCH($B$17,CD161)),MAX($CC$8:CC160)+1,0)","v":153},"R/O Flick Arabian",null,null,{"$f":"IFERROR(VLOOKUP(ROWS($CD$9:CD161),$CC$9:$CD$163,2,0),\"\")","v":"R/O Flick Arabian"},null,null,null,{"$f":"IF(ISNUMBER(SEARCH($B$18,CL161)),MAX($CK$8:CK160)+1,0)","v":153},"R/O Flick Arabian",null,null,{"$f":"IFERROR(VLOOKUP(ROWS($CL$9:CL161),$CK$9:$CL$163,2,0),\"\")","v":"R/O Flick Arabian"}]
[null,null,null,null,null,null,null,null,null,null,null,null,null,null,null,null,{"$f":"IF(ISNUMBER(SEARCH($B$9,R162)),MAX($Q$8:Q161)+1,0)","v":154},"H/spring to 1, H/spring to 2, F Salto",null,null,{"$f":"IFERROR(VLOOKUP(ROWS($R$9:R162),$Q$9:$R$163,2,0),\"\")","v":"H/spring to 1, H/spring to 2, F Salto"},null,null,null,{"$f":"IF(ISNUMBER(SEARCH($B$10,Z162)),MAX($Y$8:Y161)+1,0)","v":154},"H/spring to 1, H/spring to 2, F Salto",null,null,{"$f":"IFERROR(VLOOKUP(ROWS($Z$9:Z162),$Y$9:$Z$163,2,0),\"\")","v":"H/spring to 1, H/spring to 2, F Salto"},null,null,null,{"$f":"IF(ISNUMBER(SEARCH($B$11,AH162)),MAX($AG$8:AG161)+1,0)","v":154},"H/spring to 1, H/spring to 2, F Salto",null,null,{"$f":"IFERROR(VLOOKUP(ROWS($AH$9:AH162),$AG$9:$AH$163,2,0),\"\")","v":"H/spring to 1, H/spring to 2, F Salto"},null,null,null,{"$f":"IF(ISNUMBER(SEARCH($B$12,AP162)),MAX($AO$8:AO161)+1,0)","v":154},"H/spring to 1, H/spring to 2, F Salto",null,null,{"$f":"IFERROR(VLOOKUP(ROWS($AP$9:AP162),$AO$9:$AP$163,2,0),\"\")","v":"H/spring to 1, H/spring to 2, F Salto"},null,null,null,{"$f":"IF(ISNUMBER(SEARCH($B$13,AX162)),MAX($AW$8:AW161)+1,0)","v":154},"H/spring to 1, H/spring to 2, F Salto",null,null,{"$f":"IFERROR(VLOOKUP(ROWS($AX$9:AX162),$AW$9:$AX$163,2,0),\"\")","v":"H/spring to 1, H/spring to 2, F Salto"},null,null,null,{"$f":"IF(ISNUMBER(SEARCH($B$14,BF162)),MAX($BE$8:BE161)+1,0)","v":154},"H/spring to 1, H/spring to 2, F Salto",null,null,{"$f":"IFERROR(VLOOKUP(ROWS($BF$9:BF162),$BE$9:$BF$163,2,0),\"\")","v":"H/spring to 1, H/spring to 2, F Salto"},null,null,null,{"$f":"IF(ISNUMBER(SEARCH($B$15,BN162)),MAX($BM$8:BM161)+1,0)","v":154},"H/spring to 1, H/spring to 2, F Salto",null,null,{"$f":"IFERROR(VLOOKUP(ROWS($BN$9:BN162),$BM$9:$BN$163,2,0),\"\")","v":"H/spring to 1, H/spring to 2, F Salto"},null,null,null,{"$f":"IF(ISNUMBER(SEARCH($B$16,BV162)),MAX($BU$8:BU161)+1,0)","v":154},"H/spring to 1, H/spring to 2, F Salto",null,null,{"$f":"IFERROR(VLOOKUP(ROWS($BV$9:BV162),$BU$9:$BV$163,2,0),\"\")","v":"H/spring to 1, H/spring to 2, F Salto"},null,null,null,{"$f":"IF(ISNUMBER(SEARCH($B$17,CD162)),MAX($CC$8:CC161)+1,0)","v":154},"H/spring to 1, H/spring to 2, F Salto",null,null,{"$f":"IFERROR(VLOOKUP(ROWS($CD$9:CD162),$CC$9:$CD$163,2,0),\"\")","v":"H/spring to 1, H/spring to 2, F Salto"},null,null,null,{"$f":"IF(ISNUMBER(SEARCH($B$18,CL162)),MAX($CK$8:CK161)+1,0)","v":154},"H/spring to 1, H/spring to 2, F Salto",null,null,{"$f":"IFERROR(VLOOKUP(ROWS($CL$9:CL162),$CK$9:$CL$163,2,0),\"\")","v":"H/spring to 1, H/spring to 2, F Salto"}]
[null,null,null,null,null,null,null,null,null,null,null,null,null,null,null,null,{"$f":"IF(ISNUMBER(SEARCH($B$9,R163)),MAX($Q$8:Q162)+1,0)","v":155},"Headspring",null,null,{"$f":"IFERROR(VLOOKUP(ROWS($R$9:R163),$Q$9:$R$163,2,0),\"\")","v":"Headspring"},null,null,null,{"$f":"IF(ISNUMBER(SEARCH($B$10,Z163)),MAX($Y$8:Y162)+1,0)","v":155},"Headspring",null,null,{"$f":"IFERROR(VLOOKUP(ROWS($Z$9:Z163),$Y$9:$Z$163,2,0),\"\")","v":"Headspring"},null,null,null,{"$f":"IF(ISNUMBER(SEARCH($B$11,AH163)),MAX($AG$8:AG162)+1,0)","v":155},"Headspring",null,null,{"$f":"IFERROR(VLOOKUP(ROWS($AH$9:AH163),$AG$9:$AH$163,2,0),\"\")","v":"Headspring"},null,null,null,{"$f":"IF(ISNUMBER(SEARCH($B$12,AP163)),MAX($AO$8:AO162)+1,0)","v":155},"Headspring",null,null,{"$f":"IFERROR(VLOOKUP(ROWS($AP$9:AP163),$AO$9:$AP$163,2,0),\"\")","v":"Headspring"},null,null,null,{"$f":"IF(ISNUMBER(SEARCH($B$13,AX163)),MAX($AW$8:AW162)+1,0)","v":155},"Headspring",null,null,{"$f":"IFERROR(VLOOKUP(ROWS($AX$9:AX163),$AW$9:$AX$163,2,0),\"\")","v":"Headspring"},null,null,null,{"$f":"IF(ISNUMBER(SEARCH($B$14,BF163)),MAX($BE$8:BE162)+1,0)","v":155},"Headspring",null,null,{"$f":"IFERROR(VLOOKUP(ROWS($BF$9:BF163),$BE$9:$BF$163,2,0),\"\")","v":"Headspring"},null,null,null,{"$f":"IF(ISNUMBER(SEARCH($B$15,BN163)),MAX($BM$8:BM162)+1,0)","v":155},"Headspring",null,null,{"$f":"IFERROR(VLOOKUP(ROWS($BN$9:BN163),$BM$9:$BN$163,2,0),\"\")","v":"Headspring"},null,null,null,{"$f":"IF(ISNUMBER(SEARCH($B$16,BV163)),MAX($BU$8:BU162)+1,0)","v":155},"Headspring",null,null,{"$f":"IFERROR(VLOOKUP(ROWS($BV$9:BV163),$BU$9:$BV$163,2,0),\"\")","v":"Headspring"},null,null,null,{"$f":"IF(ISNUMBER(SEARCH($B$17,CD163)),MAX($CC$8:CC162)+1,0)","v":155},"Headspring",null,null,{"$f":"IFERROR(VLOOKUP(ROWS($CD$9:CD163),$CC$9:$CD$163,2,0),\"\")","v":"Headspring"},null,null,null,{"$f":"IF(ISNUMBER(SEARCH($B$18,CL163)),MAX($CK$8:CK162)+1,0)","v":155},"Headspring",null,null,{"$f":"IFERROR(VLOOKUP(ROWS($CL$9:CL163),$CK$9:$CL$163,2,0),\"\")","v":"Headspring"}]

{"sheet":"Moves","index":1,"n_rows":155,"n_cols":99,"rows_kept":155,"cut":false,"hidden":true,"merged":[]}
["Straight jump","A",1,"Leap/Hop"]
["Jump ½ turn ","A",1,"Leap/Hop"]
["Star jump ","A",1,"Leap/Hop"]
["Tuck jump","A",1,"Leap/Hop"]
["2 x dynamic 1/2 turns on knees","A",1,"Leap/Hop"]
["1 leg balance ","A",2]
["Splits (F or S) ","A",2]
["Japana (up to 45⁰ chest)","A",2]
["D Shape","A",2,null,null,null,null,null,null,null,null,null,null,null,null,null,null,null,null,null,null,null,null,null,null,null,null,null,null,null,null,null,null,null,null,null,null,null,null,null,null,null,null,null,null,null,null,null,null,null,null,null,null,null,null,null,null,null,null,null,null,null,null,null,null,null,null,null,null,null,null,null,null,null,null,null,null,null,null,null,null,null,null,null,null,null,null,null,null,null,null,null,null,null,null,null,null,null,{"$f":"IF(M9<>$M$39,\"\")","v":false}]
["Bridge","A",2]
["F or B support (lower or push up) ","A",2]
["F Support turn to B Support","A",2]
["Piked V sit (hand supp.)","A",2]
["½ lever (1 foot on floor)","A",2]
["Headstand  (leg optional)","A",2]
["Shoulder stand (hip supp)","A",2]
["Forward Roll ","A",3]
["Back Roll & to straddle","A",3]
["Circle (‘teddy bear’) roll","A",3]
["Side Roll (various shapes)","A",3]
["Egg roll (leg shape optional)","A",3]
["Tuck Bunny Hop to Handstand ","A",3]
["Handstand return to feet","A",4]
["Cartwheel","A",4]
["Bunny Hop / Jump - (Long)","A",4]
["Bunny Hop / Jump - (High)","A",4]
["Split leap / jump (120° )","B",1,"Leap/Hop"]
["Stag leap or jump ","B",1,"Leap/Hop"]
["Cat leap","B",1,"Leap/Hop"]
["Jump full turn ","B",1,"Leap/Hop"]
["Scissor jump ","B",1,"Leap/Hop"]
["W jump","B",1,"Leap/Hop"]
["Arabesque","B",2]
["Japana (flat back, chest to floor)","B",2]
["Fall to prone push to Front Support","B",2]
["Swedish Fall","B",2]
["Piked V sit (no supp.)","B",2]
["1/2 lever shown (straight or straddled) ","B",2]
["Shoulder stand (no support)","B",2]
["F Roll to straddle stand","B",3]
["Handstand F roll ","B",3]
["B Roll to pike stand","B",3]
["Handstand ½ turn","B",3]
["Straddle Bunny Hop to Handstand","B",3]
["Single Leg Circle","B",3]
["Backward walkover","B",3]
["Cartwheel ¼ turn in (Front to Back)↓","B",4]
["Cartwheel ¼ turn out","B",4]
["1 Arm Cartwheel ","B",4]
["2 x side C/wheels (opt. entry / exit)","B",4]
["Dive C/wheel (must show flight)","B",4,"FS"]
["Roundoff","B",4,"FS"]
["Roundoff jump (optional shape)","B",4,"FS"]
["Split leap or jump (150°)","C",1,"Leap/Hop"]
["Fouette Turn","C",1,"Leap/Hop"]
["Cat leap ½ turn","C",1,"Leap/Hop"]
["Jump 1 ½  turn ","C",1,"Leap/Hop"]
["Straddle jump","C",1,"Leap/Hop"]
["Tuck jump ½ turn","C",1,"Leap/Hop"]
["Full Spin","C",1,"Leap/Hop"]
["Y scale (leg above waist height) ","C",2]
["2 way Splits","C",2]
["Japana Swim Through","C",2]
["Fall to Prone Jump to Straddle Stand","C",2]
["F Supp jump legs through straddle -","C",2]
["Tuck ‘Russian’ Lever","C",2]
["Tucked hold (press off knees)","C",2]
["1/2 lever held 2 secs (pike / straddle)","C",2]
["Straddle stand press to h/stand","C",2]
["Forward roll with straight legs","C",3]
["H/stand F Roll straight arms","C",3]
["B Roll through h/stand","C",3]
["Handstand full pirouette","C",3]
["Pike Bunny Hop to Handstand - ","C",3]
["Half Double Leg Circle","C",3]
["Forward walkover","C",3]
["Standing Flic to 2 feet","C",4,"FS"]
["Standing Flic to 1 foot","C",4,"FS"]
["Standing Flic to Front Support","C",4,"AFS"]
["Back Walkover, Flick (1or2 feet)","C",4,"AFS"]
["Cartwheel, Flick","C",4,"AFS"]
["Roundoff, Flic to 1 foot","C",4,"AFS2"]
["Roundoff, Flic to 2 feet","C",4,"AFS2"]
["Roundoff, Flic, Flic","C",4,"AFS2"]
["Handspring to 2 feet","C",4,"FS"]
["Handspring to 1 foot","C",4,"FS"]
["Handspring to Roundoff ","C",4,"AFS2"]
["2 Handsprings 1 – 2 feet","C",4,"AFS2"]
["Handspring, Roundoff, Flic","C",4,"AFS2"]
["Split leap or jump (180° split)","D",1,"Leap/Hop"]
["Change leg split leap or jump ↓(180° split)","D",1,"Leap/Hop"]
["Sissone","D",1,"Leap/Hop"]
["Cat leap full turn","D",1,"Leap/Hop"]
["Jump double turn  ","D",1,"Leap/Hop"]
["Jump to Prone","D",1,"Leap/Hop"]
["Straddle jump (feet hip high)","D",1,"Leap/Hop"]
["Tuck jump full turn","D",1,"Leap/Hop"]
["1½  Spin","D",1,"Leap/Hop"]
["Y Scale (leg at  shoulder height)","D",2]
["3 way Splits ","D",2]
["F Supp jump legs through straddle -","D",2]
["Straddle 'Russian' Lever","D",2]
["Straddle 1/2 Lever lift to Stand","D",2]
["H/stand from straddle stand full turn","D",2]
["H/stand lower to Straddle 1/2 Lever","D",2]
["Chest Roll to Bent Arms Handstand","D",2]
["H/stand FR piked exit (straight arms)","D",3]
["B Roll to h/stand (straight arms)","D",3]
["Handstand 1½ pirouette","D",3]
["Tic toc","D",3]
["Flyspring","D",4,"FS"]
["Tucked Front Salto","D",4,"FS"]
["Tucked Back Salto FS","D",4,"FS"]
["Free Cartwheel","D",4,"FS"]
["Free Cartwheel Flick","D",4,"AFS2"]
["Front Salto to 1 R/O","D",4,"AFS2"]
["Front Salto, R/O, flic","D",4,"AFS2"]
["F Salto step out, R/O, B Salto","D",4,"AFS2"]
["R/O Tuck Back Salto","D",4,"AFS2"]
["R/O, Flic, Tuck Back Salto","D",4,"AFS2"]
["Handspring Flyspring","D",4,"AFS2"]
["Handspring, Front Salto","D",4,"AFS2"]
["Split leap - sissone","E",1,"Leap/Hop"]
["Split leap - cat leap full turn","E",1,"Leap/Hop"]
["Change leg split leap - split leap","E",1,"Leap/Hop"]
["Split leap - W jump","E",1,"Leap/Hop"]
["Full turn jump - straddle jump","E",1,"Leap/Hop"]
["Jump 1/2 Turn to Prone","E",1,"Leap/Hop"]
["Straddle jump Shushunova","E",1,"Leap/Hop"]
["Straddle jump - pike jump","E",1,"Leap/Hop"]
["Double spin","E",1,"Leap/Hop"]
["Full spin 1 leg extended, min 45 deg","E",1,"Leap/Hop"]
["From Splits position lift to H/stand ","E",2]
["Full V ‘Russian’ lever","E",2]
["Tucked top planchě (held)","E",2]
["Straddle lever to handstand","E",2]
["Straddle lever to h/stand full turn ","E",2]
["Chest Roll to Handstand","E",2]
["B Roll to h/stand, 1/2 or full turn","E",3]
["Handstand double pirouette","E",3]
["Double Leg Circle","E",3]
["Valdez","E",3]
["Flyspring Front Salto","E",4,"AFS2"]
["Free Forward Walkover","E",4,"FS"]
["Dive Forward Roll (with flight)","E",4,"FS"]
["Pike Front Salto","E",4,"FS"]
["Straight Front Salto","E",4,"FS"]
["F Salto step out, R/O, Flic, B Salto","E",4,"AFS2"]
["R/O, Flic, Pike/ Straight B Salto","E",4,"AFS2"]
["R/O, Flic, B Salto with ½ twist","E",4,"AFS2"]
["R/O, Flic, B Salto with 1/1  twist","E",4,"AFS2"]
["R/O, 2 Flics, straight Back Salto","E",4,"AFS2"]
["R/O Flick Arabian","E",4,"AFS2"]
["H/spring to 1, H/spring to 2, F Salto","E",4,"AFS2"]
["Headspring","E",4,"FS"]